{"text_format":"1","workbook":"xlsx","n_sheets":12,"sheets":["Instructions","Project Summary","SFR","Trail","Road","Parcel","Lookup","log","BMP Modeling","BMP Sizing","Infeasibility Criteria","MDC Exhibit A"],"not_rendered":{"charts":0,"images":1,"macros":1,"external_links":0,"defined_names":347,"comments":0,"pivot_tables":0},"unopened":[],"bounds":{"document_bytes":16777216,"sheet_cells":100000,"rows_first":2000,"rows_last":500,"rows_between":2000,"halvings":0,"cell_chars":16384,"cell_head_chars":4096},"cells_cut":0,"cells_raw":0,"read":"whole","date_system":"1900"}

{"sheet":"Instructions","index":0,"n_rows":165,"n_cols":6,"rows_kept":165,"cut":false,"hidden":false,"merged":[[0,0,0,41],[7,0,7,41],[1,0,1,41],[4,0,4,41],[5,0,5,41]]}
["On-site Stormwater Management Calculator"]
["Instructions"]
["Version 01-04-2023"]
[]
["To use the On-Site Stormwater Calculator you must select \"Enable Content\" when the Security Warning appears."]
["Note this calculator is designed to work with Microsoft Excel 2010 or newer."]
["Introduction"]
["This spreadsheet tool helps users implement the On-site Stormwater Management requirements for projects in the "]
["City of Seattle.  In addition, this spreadsheet documents the other applicable Stormwater Code requirements for projects"]
["and provides a Site and Drainage Control Summary. Instructions for evaluating, selecting, and sizing on-site best"]
["management practices (BMPs) are provided below."]
[]
["Note: all projects that require Drainage Review by SDCI must include a Site and Drainage Control Summary Sheet on the"]
["Drainage and Wastewater Control Plan. "]
[]
["Refer to Volume 1, Volume 3 (Section 3.3 and Chapter 5), and Appendix C of the Seattle Stormwater Manual (Seattle 2021) for"]
["On-site Stormwater Management requirements, BMP design requirements and infeasibility criteria."]
[]
["The \"Project Summary\" and either the \"BMP Sizing\" or \"BMP Modeling\" tabs can be used to provide documentation for"]
["compliance with the On-site List requirement."]
[]
["How to Use the On-site List Approach Calculator:"]
[null,"Note: The On-site List Approach is the most commonly used method.  Refer to instructions at the bottom of this page if"]
[null,"the On-site Performance Standard will be used."]
[null,"Project Summary Tab:"]
[null,"A. Fill in the light green cells in the \"Project Summary\" tab."]
[]
[null,null,"Step 1: Determine if Dispersion and Infiltration are Feasible"]
[null,null,null,"Refer to Section 3.1 and Section 3.2 in Volume 3 of the Seattle Stormwater Manual (Seattle 2021). "]
[]
[null,null,"Step 2: Calculate Areas by Surface Type"]
[null,null,null,"Divide the project area into hard surface areas with distinct drainage pathways and conduct a BMP evaluation "]
[null,null,null,"for each surface \"sub area\". Refer to Figure 1 below for an example. Enter roof and non-roof areas and number "]
[null,null,null,"of areas into \"Project Summary\" tab and hit Enter. Excel tabs will be generated for each individual surface."]
[null,null,null,"Note: Do not create a surface tab for Permeable Pavement Facilities (PPF). PPFs are the only hard surface that"]
[null,null,null,"will not have a surface tab. Enter the PPF area on the BMP Sizing tab."]
[]
[null,null,"Step 3: Select the On-site List Approach (Pre-sized Approach) Calculator option"]
[null,null,null,"Check the box for the “On-site List Approach (Pre-sized Approach) Calculator” on the Summary Tab."]
[]
[null,null,null,"The On-site Lists that indicate the BMPs that must be evaluated and the order in which they must be evaluated "]
[null,null,null,"are provided in Volume 1, Section 5.2 for all project type(s). The applicable on-site BMPs are provided in"]
[null,null,null,"this calculator in the \"Surface\" tabs based on information entered in the \"Project Summary\" tab."]
[]
[]
[]
[]
[]
[]
[]
[]
[]
[]
[]
[]
[]
[]
[]
[]
[null,"Figure 1. Example Delineation of Hard Surface Areas with Distinct Drainage Pathways for a Parcel or Single Family Project."]
[]
[]
[]
[]
[]
[]
[]
[]
[]
[]
[]
[]
[]
[]
[]
[]
[]
[null,"Figure 2. Example Delineation of Hard Surface Areas for Trail and Sidewalk Projects."]
[]
[null,"Surface Tab(s):"]
[null,null,"Step 4: Evaluate BMPs by Category"]
[null,null,null,"On each \"Surface\" tab, select \"Infeasible\", \"Not evaluated\", or \"Use BMP\" for each category. Note: BMPs in each"]
[null,null,null,"category may be evaluated in any order. (See detailed information in Steps 5 through 10)."]
[]
[null,null,"Step 5: Evaluate Feasibility of Category 1 BMPs"]
[null,null,null,"Determine feasibility of the BMP(s) in Category 1. The BMP is considered infeasible if one of the following applies:"]
[null,null,null,null,"-The BMP is considered infeasible per the criteria provided in the “Infeasibility Criteria” tab."]
[null,null,null,null,"-Competing needs (e.g., historic preservation laws, health and safety standards) as provided in"]
[null,null,null,null,null,"Seattle Municipal Code (SMC), Section 22.805.070 conflict with the BMP."]
[null,null,null,null,"-The size of the BMP in the \"Surface\" tab(s) (generated based on \"Project Summary\" tab inputs)"]
[null,null,null,null,"cannot be met on the site."]
[]
[null,null,"Step 6: Select Category 1 BMP(s)"]
[null,null,null,"If any of the Category 1 BMPs are feasible for a surface, then a Category 1 BMP must be used to manage"]
[null,null,null,"runoff from the surface. Identify the BMP selected for the surface area by selecting \"Use BMP\" from"]
[null,null,null,"the drop down menu. After BMP(s) are selected, the calculator will size the BMP for the surface area"]
[null,null,null,"based on the facility information (e.g., ponding depth) entered in the \"BMP Sizing\" tab."]
[null,null,null,"Note: Facility sizes provided in this tool are the minimum size required. Facilities can be made larger to "]
[null,null,null,"meet additional requirements (i.e., flow control and/or water quality treatment standards)."]
[]
[null,null,"Step 7: Document Infeasibility of Category 1 BMPs (if applicable)"]
[null,null,null,"If all the Category 1 BMPs are deemed infeasible, select \"Infeasible\" and the applicable \"infeasibility criteria\" "]
[null,null,null,"from the drop down menus and proceed to Step 8. If needed for clarity, the applicant shall provide a narrative"]
[null,null,null,"description and rationale with substantial evidence sufficient to explain and justify the applicant's conclusion "]
[null,null,null,"that On-site BMPs are infeasible."]
[]
[null,null,"Step 8: Evaluate/Select Category 2 BMPs"]
[null,null,null,"If all of the Category 1 BMPs are deemed infeasible, evaluate the On-site BMPs in Category 2 using the same approach "]
[null,null,null,"described in Steps 5 through 7. Once you move to Category 2, you can select any BMP within that Category."]
[]
[null,null,"Step 9: Evaluate/Select Category 3 BMPs"]
[null,null,null,"If all of the Category 2 BMPs are deemed infeasible, evaluate the On-site BMPs in Category 3 using the same approach "]
[null,null,null,"described in Steps 5 through 7. Once you move to Category 3, you can select any BMP within that Category."]
[]
[null,null,"Step 10: Evaluate/Select Category 4 BMPs"]
[null,null,null,"If all of the Category 3 BMPs are deemed infeasible, evaluate the On-site BMPs in Category 4 using the same approach "]
[null,null,null,"described in Steps 5 through 7."]
[]
[null,null,"Step 11: Evaluate/Select Category 5 BMPs (if applicable)"]
[null,null,null,"If all of the Category 4 BMPs are deemed infeasible, evaluate the On-site BMPs in Category 5 using the same approach "]
[null,null,null,"described in Steps 5 through 7."]
[]
[null,"BMP Sizing Tab:"]
[null,"B. Once a \"Surface\" tab is completed for each surface, complete the information on the \"BMP Sizing\" tab "]
[]
[null,null,null,"For each surface, select the BMP that the surface drains to. If more than one surface drains to the same BMP,"]
[null,null,null,"indicate with the same BMP number. The appropriate sizing will be provided for each BMP based on the area"]
[null,null,null,"of the surfaces draining to it. For BMPs with multiple design parameters (i.e., ponding depth, side slopes),"]
[null,null,null,"select the design parameters that will be applied to the project."]
[]
[null,"Project Summary Tab:"]
[null,"C. The \"Project Summary\" tab summarizes the selected BMPs and BMP sizes by surface."]
[]
["How to Use this Spreadsheet for the On-site Performance Standard"]
[null,"Project Summary Tab:"]
[null,"A. Fill in the light green cells in the \"Project Summary\" tab."]
[]
[null,null,"Step 1: Determine if Dispersion and Infiltration are Feasible"]
[null,null,null,"Refer to Section 3.1 and Section 3.2 in Volume 3 of the Seattle Stormwater Manual (Seattle 2021)."]
[]
[null,null,"Step 2: Select the On-site Performance Standard Option"]
[null,null,null,"Check the box for the “On-site Performance Standard” on the Summary Tab."]
[]
[null,null,null,"When using the Performance Standard, any BMP from the Stormwater Manual may be selected in any order (i.e. the "]
[null,null,null,"On-site Lists are not required to be used)."]
[]
[null,null,"Step 3: Conduct Stormwater Modeling Using an Approved Continuous Runoff Model"]
[null,null,null,"Determine which On-site Stormwater Performance goal from Volume 1, Section 5.2.1 is applicable to your project "]
[null,null,null,"and use an approved continuous runoff model to demonstrate that this standard is met. See On-site Performance"]
[null,null,null,"Standard BMP Design in Appendix F, Section F-4 of the Seattle Stormwater Manual (Seattle 2021)."]
[]
[null,null,null,"Submit the calculations and a narrative describing the calculations in a Drainage Report."]
[]
[null,null,"Step 4: Calculate Areas Tributary to Each BMP"]
[null,null,null,"Divide the hard surface areas of the project into surfaces that are managed with each BMP selected using the "]
[null,null,null,"continuous runoff modeling indicated above. If some hard surfaces bypass all BMPs, designate a surface for"]
[null,null,null,"these areas to be identified as a “bypass area”."]
[]
[null,null,null,"Enter the number of separate roof and non-roof areas into \"Project Summary\" tab and hit Enter.  Instead of creating "]
[null,null,null,"separate surface tabs, the Performance Standard mode will create user inputs for each “surface” in the BMP"]
[null,null,null,"Modeling Tab."]
[]
[null,null,"Step 5: Document the BMP’s Used in the BMP Modeling Tab"]
[null,null,null,"Complete the green input fields in the BMP Modeling Tab to identify which BMP manages each “surface”.  Verify that"]
[null,null,null,"the summary of these BMPs correctly shows on the Summary tab."]

{"sheet":"Project Summary","index":1,"n_rows":89,"n_cols":56,"rows_kept":89,"cut":false,"hidden":false,"merged":[[13,18,13,40],[19,25,21,35],[23,25,25,35],[19,36,19,39],[23,36,23,39],[17,22,17,25],[15,35,15,40],[21,18,21,21],[23,18,23,21],[19,18,19,21],[25,18,25,21],[0,0,0,41],[1,0,1,41],[7,7,7,19],[5,7,5,19],[9,7,9,19],[7,32,7,40],[5,32,5,40],[9,32,9,40],[3,0,3,41],[80,1,80,3],[80,4,80,9],[63,16,63,19],[78,4,78,9],[54,17,54,20],[65,16,65,19],[78,1,78,3],[74,20,77,41],[80,10,80,20],[80,32,80,40],[80,22,80,25],[80,26,80,31],[60,36,60,39],[78,32,78,40],[78,26,78,31],[67,29,67,30],[74,16,74,19],[78,10,78,20],[40,16,40,40],[60,21,60,24],[38,16,38,40],[50,36,50,39],[52,36,52,39],[50,22,50,23],[52,22,52,23],[46,20,46,23],[78,22,78,25],[76,16,76,19],[88,18,88,20],[82,34,82,39],[82,15,82,20],[84,15,84,20],[86,15,86,20],[88,23,88,40],[84,34,84,39],[86,34,86,39],[36,30,36,33],[27,18,27,21],[27,25,29,35],[67,14,67,15],[52,17,52,20],[50,17,50,20],[67,32,67,34],[63,26,63,40],[65,24,65,40],[27,36,27,39],[32,16,32,40],[34,16,34,40],[29,6,29,24]]}
["On-site Stormwater Management Calculator "]
["Site and Drainage Control Summary"]
[{"$f":"Version","v":"Version 01-04-2023"}]
["To use the On-Site List Calculator you must select \"Enable Content\" when the Security Warning appears."]
["Project Information",null,null,null,null,null,null,null,null,null,null,null,null,null,null,null,null,null,null,null,null,null,null,null,null,null,null,null,null,null,null,null,null,null,null,null,null,null,null,null,null,null,null,"Hidden Column"]
[null,"Site Address",null,null,null,null,null,null,null,null,null,null,null,null,null,null,null,null,null,null,null,"SDCI Project Number"]
[]
[null,"Primary Contact",null,null,null,null,null,null,null,null,null,null,null,null,null,null,null,null,null,null,null,"SDOT Project Number",null,null,null,null,null,null,null,null,null,null,null,null,null,null,null,null,null,null,null,null,null,"Type","Old"]
[]
[null,"Project Type",null,null,null,null,null,null,null,null,null,null,null,null,null,null,null,null,null,null,null,"Primary Contact E-mail or Phone",null,null,null,null,null,null,null,null,null,null,null,null,null,null,null,null,null,null,null,null,null,{"$f":"IFERROR(INDEX(Lookup!$L$2:$L$9,MATCH($H$10,Project,0)),\"\")","v":""}]
[]
[null,"Is this project \"Closely Related\" to other SDCI construction permits/projects?",null,null,null,null,null,null,null,null,null,null,null,null,null,null,null,null,null,null,null,null,null,null,null,null,"´",null,null,"Yes",null,null,null,"No"]
[]
[null,"\"Closely Related\" SDCI Construction Permit Numbers"]
[]
[null,"Is this project associated with a Short Plat or Subdivision?",null,null,null,null,null,null,null,null,null,null,null,null,null,null,null,null,null,null,null,null,"Yes",null,null,"No",null,null,"SDCI MUP Number"]
[]
[null,"Was the project lot created or altered in size after Jan 1, 2016? ",null,null,null,null,null,null,null,null,null,null,null,null,null,null,null,null,null,null,null,null,null,null,null,null,null,null,null,null,null,null,null,null,null,null,null,null,null,null,null,null,null,"Engineer Required",{"$f":"OR(S22>5000,R51>5000,AS73,AND(Q64=\"Yes\",NOT(AA64=\"Simple infiltration test\")),Q33=\"On Site Infiltration (No Off-site Point of Discharge)\")","v":false},{"$f":"IF(AS73,\"Submit Continuous Runoff Model in a Drainage Report to demonstrate On-site Performance Standard (Vol. 1, Section 5.2.1) is met.\",IF(AND(OR(AR10=\"Road\",AR10=\"Trail\"),S22>=2000),\"On-site Stormwater Management is required for ≥ 2,000 sf of new plus replaced area.\",IF(AND(OR(AR10=\"Parcel\",AR10=\"SFR\"),W18=\"Yes\",S22>=750),\"On-site Stormater Management is required for ≥ 750 sf of new plus replaced area.\",IF(AND(OR(AR10=\"Parcel\",AR10=\"SFR\"),OR(W18=\"No\",W18=\"\"),S22>=1500),\"On-site Stormwater Management required for ≥ 1,500 sf of new plus replaced area.\",\"On-site Stormwater Management is not required.\"))))","v":"On-site Stormwater Management is not required."}]
[]
[null,"Total Site Area",null,null,null,null,null,null,null,null,null,null,null,null,null,null,null,null,null,null,null,null,"sf","´",{"$f":"IF(OR(AU31=1,AU33=1),\"\u008e\",\"\")","v":""},"Total Closely Related and/or Short Plat/Subdivision Site Area",null,null,null,null,null,null,null,null,null,null,null,null,null,null,"sf","´",null,"On-site Required",{"$f":"AT18<>\"On-site Stormwater Management is not required.\"","v":false}]
[]
[null,"Total New plus Replaced Hard Surface Area (NPRHS)",null,null,null,null,null,null,null,null,null,null,null,null,null,null,null,null,null,null,null,null,"sf","´"]
[]
[null,"Total New and/or Replaced Lawn/Landscaping",null,null,null,null,null,null,null,null,null,null,null,null,null,null,null,null,null,null,null,null,"sf","´",{"$f":"IF(OR(AU31=1,AU33=1),\"\u008e\",\"\")","v":""},"Total Closely Related and/or Short Plat/Subdivision NPRHS",null,null,null,null,null,null,null,null,null,null,null,null,null,null,"sf","´"]
[]
[null,"Undisturbed and Protected Site Area",null,null,null,null,null,null,null,null,null,null,null,null,null,null,null,null,null,null,null,null,"sf","´"]
[]
[null,"Total Existing Hard Surface Area To Remain",null,null,null,null,null,null,null,null,null,null,null,null,null,null,null,null,null,null,null,null,"sf","´",null,"Total Existing Hard Surface Area (Prior to Project)",null,null,null,null,null,null,null,null,null,null,null,null,null,null,"sf","´"]
[]
["Site Information",null,null,null,null,null,{"$f":"IF(AND(AR10=\"SFR\",S22>=5000),\"For ≥5,000 sf of NPRHS the project is a Parcel Based project.\",\"\")","v":""},null,null,null,null,null,null,null,null,null,null,null,null,null,null,null,null,null,null,null,null,null,null,null,null,null,null,null,null,null,null,null,null,null,null,null,null,null,null,null,"check boxes"]
[null,"Note: Reference the Preliminary Assessment Report (PAR) to complete this section.",null,null,null,null,null,null,null,null,null,null,null,null,null,null,null,null,null,null,null,null,null,null,null,null,null,null,null,null,null,null,null,null,null,null,null,null,null,null,null,null,null,null,null,null,null,"Closely related"]
[]
[null,"Approved Point of Stormwater Discharge",null,null,null,null,null,null,null,null,null,null,null,null,null,null,null,null,null,null,null,null,null,null,null,null,null,null,null,null,null,null,null,null,null,null,null,null,null,null,null,null,null,null,null,null,null,"Short Plat or Subdivision?"]
[]
[null,null,null,"Drainage Basin",null,null,null,null,null,null,null,null,null,null,null,null,null,null,null,null,null,null,null,null,null,null,null,null,null,null,null,null,null,null,null,null,null,null,null,null,null,null,null,"Drainage Basin Category",{"$f":"IFERROR(INDEX(Lookup!$K$2:$K$19,MATCH(CONCATENATE(Q35,AE37),Lookup!$J$2:$J$19,0)),1)","v":1},null,null,"Pre-Developed Pasture Standard"]
[]
[null,null,null,"Is the downstream drainage system considered Capacity Constrained by SPU?",null,null,null,null,null,null,null,null,null,null,null,null,null,null,null,null,null,null,null,null,null,null,null,null,null,null,null,null,null,null,null,null,null,null,null,null,null,null,null,null,null,null,null,"Peak Control Standard"]
[]
[null,"Approved Point of Wastewater Discharge",null,null,null,null,null,null,null,null,null,null,null,null,null,null,null,null,null,null,null,null,null,null,null,null,null,null,null,null,null,null,null,null,null,null,null,null,null,null,null,null,null,null,null,null,null,"Pre-Developed Forest Standard"]
[]
[null,"Approved Point of Sub-Surface Discharge",null,null,null,null,null,null,null,null,null,null,null,null,null,null,null,null,null,null,null,null,null,null,null,null,null,null,null,null,null,null,null,null,null,null,null,null,null,null,null,null,null,null,null,null,null,"Wetland Protection Standard"]
[]
[null,"Required Flow Control Standard",null,null,null,null,null,null,null,null,null,null,null,"Pre-Developed Pasture",null,null,null,null,null,null,null,null,null,null,"Pre-Developed Forest",null,null,null,null,null,null,null,null,null,null,null,"Peak Control",null,null,null,null,null,null,null,null,null,null,"Existing Conditions Standard"]
[]
[null,null,null,null,null,null,null,null,null,null,null,null,null,"Wetland Protection",null,null,null,null,null,null,null,null,null,null,"Existing Conditions",null,null,null,null,null,null,null,null,null,null,null,"None",null,null,null,null,null,null,null,null,null,null,"None"]
[]
[null,"Project will permanently discharge groundwater?",null,null,null,null,null,null,null,null,null,null,null,null,null,null,null,null,"´",null,null,null,null,null,null,null,null,null,null,null,null,null,null,null,null,null,null,null,null,null,null,null,null,"Flow Control Required",{"$f":"IFERROR(OR(AU35:AU43),FALSE)","v":false},null,null,"oil control"]
[]
[null,"Required Water Quality Treatment Standard",null,null,null,null,null,null,null,null,null,null,null,null,null,null,null,null,"´",null,null,"Oil Control",null,null,null,null,null,"Enhanced",null,null,null,null,null,"Basic",null,null,null,null,"None",null,null,null,null,"Water Quality",{"$f":"IFERROR(OR(AU46:AU51),FALSE)","v":false},null,null,"enhanced"]
[]
[null,"Total Pollution Generating Hard Surface Area",null,null,null,null,null,null,null,null,null,null,null,null,null,null,null,null,null,null,null,"sf",{"$f":"IF(OR(AU31=1,AU33=1),\"\u008e\",\"\")","v":""},null,"w/ Closely Related/Short Plat/Subdiv.",null,null,null,null,null,null,null,null,null,null,null,null,null,null,null,"sf","´",null,null,null,null,null,"basic"]
[]
[null,"Total Pollution Generating Pervious Surface Area",null,null,null,null,null,null,null,null,null,null,null,null,null,null,null,null,null,null,null,"sf",{"$f":"IF(OR(AU31=1,AU33=1),\"\u008e\",\"\")","v":""},null,"w/ Closely Related/Short Plat/Subdiv.",null,null,null,null,null,null,null,null,null,null,null,null,null,null,null,"sf","´",null,null,null,null,null,"none"]
[]
[null,"Environmentally Critical Areas",null,null,null,null,null,null,null,null,null,"´",null,null,null,null,null,null,null,null,null,null,null,null,null,null,null,null,null,null,null,null,null,null,null,null,null,null,null,null,null,null,null,"Dispersion Infeasible",false,null,null,"steep slope"]
[]
[null,null,null,"Steep Slope",null,null,null,null,null,null,"Potential Slide",null,null,null,null,null,null,"Riparian Corridor",null,null,null,null,null,null,"Wetland",null,null,null,null,null,"Liquefaction",null,null,null,null,null,"Flood Prone",null,null,null,null,null,null,"Infiltration Infeasible",{"$f":"Q66=\"No\"","v":false},null,null,"potential slide"]
[]
[null,null,null,"Landfill",null,null,null,null,null,null,"Known Landslide",null,null,null,null,null,null,"Fish / Wildlife",null,null,null,null,null,null,"Peat / Groundwater Management",null,null,null,null,null,null,null,null,null,null,null,"Shoreline Habitat",null,null,null,null,null,null,"Infiltrating Area",{"$f":"SUMIF(BD81:BD84,TRUE,W81:W82)","v":0},null,null,"riparian cooridor"]
[]
[null,"Is there soil and/or groundwater contamination on this site?",null,null,null,null,null,null,null,null,null,null,null,null,null,null,null,null,null,null,null,null,null,null,null,null,null,"Source Control is required",null,null,null,null,null,null,null,null,null,null,null,null,null,"´",null,null,null,null,null,"wetland"]
[]
["Infiltration Information",null,null,null,null,null,null,null,null,{"$f":"IF(AND(NOT(AS20),Q33=Lookup!V10),\"Infiltration evaluation is required for projects with No Off-site Point of Discharge\",\"\")","v":""},null,null,null,null,null,null,null,null,null,null,null,null,null,null,null,null,null,null,null,null,null,null,null,null,null,null,null,null,null,null,null,null,null,null,null,null,null,"liquefaction"]
[null,"Is infiltration investigation required?",null,null,null,null,null,null,null,null,null,null,null,null,null,null,null,null,null,null,null,{"$f":"IF(Q64=\"\",\"\",IF(Q64=\"No\",\"Why?\",\"Type of test:\"))","v":""},null,null,null,null,null,null,null,null,null,null,null,null,null,null,null,null,null,null,null,null,null,"Infiltration Exploration or Mapped",{"$f":"OR(Q64=\"Yes\",AND(Q64=\"No\",AA64=\"Site is mapped as \"\"infltr. investigation not required\"\"\"))","v":false},null,null,"flood prone"]
[]
[null,null,null,"Is infiltration on the site feasible?",null,null,null,null,null,null,null,null,null,null,null,null,null,null,null,null,null,{"$f":"IF(Q66=\"No\",\"Why?\",IF(AND(Q64=\"No\",AA64=\"Other\"),\"Explain:\",\"\"))","v":""},null,null,null,null,null,null,null,null,null,null,null,null,null,null,null,null,null,null,null,null,null,"Measured Infiltration Rate ",{"$f":"O68","v":0},null,null,"landfill"]
[]
[null,null,null,"Site Measured Infiltration Rate ",null,null,null,null,null,null,null,null,null,null,null,null,"x","Infiltration Rate Correction Factor ",null,null,null,null,null,null,null,null,null,null,null,null,null,"=",{"$f":"AD68*O68","v":0},null,null,"Site Design Inf Rate",null,null,null,null,null,null,null,"Infiltration Rate (in/hr)",{"$f":"IF(Q66=\"No\",0,AG68)","v":0},null,null,"known landslide"]
[]
["On-site Stormwater Management (select List Approach or Performance Standard)",null,null,null,null,null,null,null,null,null,null,null,null,null,null,null,null,null,null,null,null,null,null,null,null,null,null,"´",null,{"$f":"IF(AND(NOT(AS20),Q33<>Lookup!V10,ProjectTypeCell<>\"\",totalnewreplacedarea<>\"\"),\"OSM not required\",\"\")","v":""},null,null,null,null,null,null,null,null,null,null,null,null,null,null,null,null,null,"fish wildlife"]
[null,null,null,"On-site List Approach (Pre-sized) Calculator -- Complete the Surface tabs and BMP Sizing tabs   (Most commonly used)",null,null,null,null,null,null,null,null,null,null,null,null,null,null,null,null,null,null,null,null,null,null,null,null,null,null,null,null,null,null,null,null,null,null,null,null,null,null,null,"List Apporach",true,"Toggle",null,"peat"]
[]
[null,null,null,"On-site Performance Standard -- Stormwater modeling by Civil Engineer",null,null,null,null,null,null,null,null,null,null,null,null,null,null,null,null,null,null,null,null,null,null,null,"´","(Also for No Off-site Point of Discharge)",null,null,null,null,null,null,null,null,null,null,null,null,"´",null,"Performance Standard",false,1,null,"shoreline"]
[null,null,null,null,null,null,null,null,null,null,null,null,null,null,null,null,null,null,null,null,null,null,null,null,null,null,null,null,null,null,null,null,null,null,null,null,null,null,null,null,null,null,null,"Areas","Sheets","Old "]
[null,"Number of roof areas",null,null,null,null,null,null,null,null,null,null,null,null,null,null,0,null,null,null,{"$f":"IF(AS73,\"\",IF(SUM(W81:Z82)>0,IF(ROUND(SUM(W81:Z82)+SUMIF($AT$80:$AT$84,\"Permeable Pavement Facility\",$BB$80:$BB$84),0)>ROUND(S22,0),\"Note total area entered on surface tabs (plus permeable pavement facility area) exceeds the total new plus replaced hard surface area entered above.\",IF(ROUND(SUM(W81:Z82)+SUMIF($AT$80:$AT$84,\"Permeable Pavement Facility\",$BB$80:$BB$84),0)<ROUND(S22,0),\"Note total area entered on surface tabs (plus permeable pavement facility area) does not match total new plus replaced hard surface area entered above.\",\"\")),IF(SUM(Q75:T77)=0,\"Enter number of surface areas and hit Enter\",\"\")))","v":"Enter number of surface areas and hit Enter"},null,null,null,null,null,null,null,null,null,null,null,null,null,null,null,null,null,null,null,null,null,null,{"$f":"SUM(Q75,Q77)","v":0},{"$f":"MAX(AS80:AS84)","v":0},0,0]
[]
[null,"Number of other surface areas",null,null,null,null,null,null,null,null,null,null,null,null,null,null,0,null,null,null,null,null,null,null,null,null,null,null,null,null,null,null,null,null,null,null,null,null,null,null,null,null,null,null,null,0,0]
[]
[null,"Surface",null,null,"Surfaces Description",null,null,null,null,null,"On-site BMP",null,null,null,null,null,null,null,null,null,null,null,"Contrib. Area (sf)",null,null,null,"Facility \nSize (sf)",null,null,null,null,null,"Facility Configuration",null,null,null,null,null,null,null,null,null,null,"Sheet Name","Count","BMP","BMP # from Sizing Tab","Count for BMP #","List more than 1 BMP","List Name","Roof / Non Roof","Roof Managed","Surface Managed","Facility Size no units","Vol Managed per Year (gal)","Infiltrating BMP"]
[null,null,null,null,null,null,null,null,null,null,null,null,null,null,null,null,null,null,null,null,null,null,null,null,null,null,null,null,null,null,null,null,null,null,null,null,null,null,null,null,null,null,null,null,-1,null,0]
[null,{"$f":"AS81","v":0},null,null,{"$f":"IFERROR(IF($AS$73,IF(INDEX('BMP Modeling'!$J:$J,MATCH(B81,'BMP Modeling'!$B:$B,0))=\"Roof\",\"Roof: \",\"Surface: \") & INDEX('BMP Modeling'!P:P,MATCH(B81,'BMP Modeling'!$B:$B,0)),\nIF(INDIRECT(\"'\"&AR81&\"'!N9\")=\"\",\"\",IF(INDIRECT(\"'\"&AR81&\"'!N9\")=\"Roof\",INDIRECT(\"'\"&AR81&\"'!N9\")&\":\"&INDIRECT(\"'\"&AR81&\"'!n11\"),\"Surface:\"&INDIRECT(\"'\"&AR81&\"'!n11\")))),\"\")","v":""},null,null,null,null,null,{"$f":"IF(AT81=\"\",\"\",IF($AS$73,INDEX('BMP Modeling'!X:X,MATCH(B81,'BMP Modeling'!B:B,0)),IF(AND(AW81,AV81>1),INDEX('BMP Sizing'!$K$7:$K$45,MATCH(AU81,'BMP Sizing'!$AO$7:$AO$45,0)),AT81)))","v":""},null,null,null,null,null,null,null,null,null,null,null,{"$f":"IFERROR(IF($AS$73,INDEX('BMP Modeling'!D:D,MATCH(B81,'BMP Modeling'!B:B,0)),INDIRECT(\"'\"&AR81&\"'!N13\")),\"\")","v":""},null,null,null,{"$f":"IF($AS$73,TEXT(INDEX('BMP Modeling'!$AF:$AF,MATCH(B81,'BMP Modeling'!$B:$B,0)),\"#,###\"),IF(AT81=\"None Feasible\",\"-\",IFERROR(IF(AU81<=MAX($AU$80:AU80),\"^\",TEXT(INDEX('BMP Sizing'!$AQ$49:$AQ$209,MATCH(AU81,'BMP Sizing'!$AN$49:$AN$209,0)),\"#,##0\")& \" \" & INDEX('BMP Sizing'!$AR$49:$AR$209,MATCH(AU81,'BMP Sizing'!$AN$49:$AN$209,0)) ),\"-\")))","v":"-"},null,null,null,null,null,{"$f":"IFERROR(IF($AS$73,\"See Plan\",IF(AU81<=MAX($AU$80:AU80),\"^\",INDEX('BMP Sizing'!$AT$49:$AT$209,MATCH(AU81,'BMP Sizing'!$AN$49:$AN$209,0)))),\"-\")","v":"-"},null,null,null,null,null,null,null,null,null,null,{"$f":"$AR$10&\" - Surface \"&B81","v":" - Surface 0"},{"$f":"AS80+1","v":0},{"$f":"IFERROR(IF($AS$73,\"BMP Modeling\",INDEX(INDIRECT(\"'\"&AR81&\"'!BS:BS\"),MATCH(TRUE,INDIRECT(\"'\"&AR81&\"'!BX:BX\"),0))),\"\")","v":""},{"$f":"IFERROR(INDEX('BMP Sizing'!$AO$7:$AO$46,MATCH(AS81,'BMP Sizing'!$B$7:$B$46,0)),\"\")","v":""},{"$f":"COUNTIF($AT$80:$AT$82,AT81)","v":3},{"$f":"INDEX(Lookup!$B$70:$B$90,MATCH(AT81,Lookup!$A$70:$A$90,0))","v":{"$error":"#N/A"}},{"$f":"TRIM(SUBSTITUTE(SUBSTITUTE(SUBSTITUTE(AT81,\" \",\"\"),\"-\",\"\"),\"/\",\"\")&IF(AW81,AV81,\"\"))","v":{"$error":"#N/A"}},{"$f":"IFERROR(IF(performancestd,INDEX('BMP Modeling'!J:J,MATCH(B81,'BMP Modeling'!B:B,0)),INDIRECT(\"'\"&AR81&\"'!N9\")),\"\")","v":""},{"$f":"IF(performancestd,AY81=\"Roof\",IF(OR(AT81=\"Vegetated Roof System\",AND(AT81=\"Permeable Pavement Facility\",AY81=\"Roof\")), BB81>=INT(INDEX('BMP Sizing'!$V$49:$V$209,MATCH(AU81,'BMP Sizing'!$AN$49:$AN$209,0))*INDEX('BMP Sizing'!$AP$49:$AP$209,MATCH(AU81,'BMP Sizing'!$AN$49:$AN$209,0))),AND(AND(AU81>0,AU81<>\"\"),AY81=\"Roof\",BC81>0,BC81<>\"-\")))","v":false},{"$f":"IF(performancestd,AY81=\"Non-Roof\",IF(AND(AT81=\"Permeable Pavement Facility\",AY81=\"Non-Roof\"), BB81>=INDEX('BMP Sizing'!$V$49:$V$209,MATCH(AU81,'BMP Sizing'!$AN$49:$AN$209,0))*INDEX('BMP Sizing'!$AP$49:$AP$209,MATCH(AU81,'BMP Sizing'!$AN$49:$AN$209,0)),AND(AND(AU81>0,AU81<>\"\"),AY81=\"Non-Roof\",BC81>0,BC81<>\"-\")))","v":false},{"$f":"IF($AS$73,0,IF(AT81=\"None Feasible\",\"-\",IFERROR(IF(AU81<=MAX($AU$80:AU80),\"^\",INDEX('BMP Sizing'!$AQ$49:$AQ$209,MATCH(AU81,'BMP Sizing'!$AN$49:$AN$209,0))),\"-\")))","v":"-"},{"$f":"IF($AS$73,\nIFERROR(INDEX('BMP Modeling'!$AL:$AL,MATCH(B81,'BMP Modeling'!$B:$B,0))*7.48052/158,0),\nIF(AT81=\"None Feasible\",\"-\",IFERROR(IF(AU81<=MAX($AU$80:AU80),\"^\",INDEX('BMP Sizing'!$AS$49:$AS$209,MATCH(AU81,'BMP Sizing'!$AN$49:$AN$209,0))),\"-\")))","v":"-"},{"$f":"INDEX(Lookup!$H$70:$H$90,MATCH(AT81,Lookup!$A$70:$A$90,0))","v":{"$error":"#N/A"}}]
[]
[null,"Total New/Replaced Roof Area",null,null,null,null,null,null,null,null,null,null,null,null,null,{"$f":"SUMIF($AY$80:$AY$84,\"Roof\",$W$80:$Z$82)","v":0},null,null,null,null,null,null,null,"Total Roof Area Managed",null,null,null,null,null,null,null,null,null,null,{"$f":"SUMIF($AZ$80:$AZ$84,TRUE,$W$80:$Z$82)","v":0}]
[]
[null,"Total New/Replaced Other Surface Area",null,null,null,null,null,null,null,null,null,null,null,null,null,{"$f":"SUMIF($AY$80:$AY$84,\"Non-Roof\",$W$80:$Z$82)+SUMIF($AT$80:$AT$84,\"Permeable Pavement Facility\",$BB$80:$BB$84)","v":0},null,null,null,null,null,"´",null,"Total Other Surface Managed",null,null,null,null,null,null,null,null,null,null,{"$f":"SUMIF($BA$80:$BA$84,TRUE,$W$80:$Z$82)+SUMIFS($BB$80:$BB$84,AT80:AT84,\"Permeable Pavement Facility\")","v":0}]
[]
[null,"Total Area Managed",null,null,null,null,null,null,null,null,null,null,null,null,null,{"$f":"IF($AS$73,SUM($W$81:$Z$82),SUM($AI$83:$AN$85))","v":0},null,null,null,null,null,"sf",null,"Total Volume Managed On Site",null,null,null,null,null,null,null,null,null,null,{"$f":"IFERROR(TEXT(SUM($BC$81:$BC$84),\"#,##0\")&\" gal\",\"\")","v":"0 gal"}]
[]
[null,"Estimated compost required for soil amendment",null,null,null,null,null,null,null,null,null,null,null,null,null,null,null,null,{"$f":"IF(S24=\"\",0,S24*0.0062)","v":0},null,null,"cy",null,"Volume of compost will be verified by the Inspector."]

{"sheet":"SFR","index":2,"n_rows":90,"n_cols":85,"rows_kept":90,"cut":false,"hidden":true,"merged":[[72,15,72,20],[72,22,72,67],[46,15,46,20],[46,22,46,67],[0,0,0,68],[21,15,21,20],[21,22,21,67],[24,15,24,20],[24,22,24,67],[18,15,18,20],[18,22,18,67],[8,22,8,67],[31,15,31,20],[31,22,31,67],[34,15,34,20],[34,22,34,67],[0,79,0,84],[1,0,1,68],[6,13,6,18],[6,70,13,70],[6,72,13,72],[6,73,13,73],[6,75,13,75],[6,76,13,76],[6,77,13,77],[6,84,13,84],[8,13,8,18],[10,13,10,67],[12,13,12,18],[6,81,13,81],[6,82,13,82],[6,83,13,83],[6,78,13,78],[6,79,13,79],[6,80,13,80],[6,71,13,71],[6,74,13,74],[59,15,59,20],[59,22,59,67],[62,15,62,20],[62,22,62,67],[40,15,40,20],[40,22,40,67],[43,15,43,20],[43,22,43,67],[53,15,53,20],[53,22,53,67],[3,13,3,22],[88,15,88,20],[88,22,88,67],[90,22,90,59],[69,15,69,20],[69,22,69,67],[75,15,75,20],[75,22,75,67],[82,15,82,20],[82,22,82,67],[85,15,85,20],[85,22,85,67],[56,15,56,20],[56,22,56,67],[37,15,37,20],[37,22,37,67]]}
["On-site Stormwater Management Calculator - List Approach",null,null,null,null,null,null,null,null,null,null,null,null,null,null,null,null,null,null,null,null,null,null,null,null,null,null,null,null,null,null,null,null,null,null,null,null,null,null,null,null,null,null,null,null,null,null,null,null,null,null,null,null,null,null,null,null,null,null,null,null,null,null,null,null,null,null,null,null,null,null,null,null,null,null,null,null,"Column to Use",null,"Evaluation Required"]
["Surface Identification and BMP Evaluation for Single Family Residential Projects",null,null,null,null,null,null,null,null,null,null,null,null,null,null,null,null,null,null,null,null,null,null,null,null,null,null,null,null,null,null,null,null,null,null,null,null,null,null,null,null,null,null,null,null,null,null,null,null,null,null,null,null,null,null,null,null,null,null,null,null,null,null,null,null,null,null,null,null,null,"None Feasible",null,null,null,null,{"$f":"AND(COUNTIFS(BT19:BT89,\"Feasibility\",BV19:BV89,TRUE)=COUNTIF(BT19:BT89,\"Feasibility\"),COUNTIF(BX19:BX89,TRUE)=0)","v":false},null,{"$f":"OFFSET(CA2,0,IF($N$9=\"Roof\",0,3)+'Project Summary'!$AS$35)","v":4},null,1,2,3,4,5,6]
[]
[null,"Project No.",null,null,null,null,null,null,null,null,null,null,null,{"$f":"'Project Summary'!$AG$6","v":0},null,null,null,null,null,null,null,null,null,null,null,null,null,null,null,null,null,null,null,null,null,null,null,null,null,null,null,null,null,null,null,null,null,null,null,null,null,null,null,null,null,null,null,null,null,null,null,null,null,null,null,null,null,null,null,null,null,null,null,null,null,null,null,null,null,"Roof","Roof","Roof","Surface","Surface","Surface"]
[]
[]
[null,"Hard Surface Number",null,null,null,null,null,null,null,null,null,null,null,null,null,null,null,null,null,null,null,null,null,null,null,null,null,null,null,null,null,null,null,null,null,null,null,null,null,null,null,null,null,null,null,null,null,null,null,null,null,null,null,null,null,null,null,null,null,null,null,null,null,null,null,null,null,null,null,null,"BMP","Dropdown Lookup","Grey Out","Infeasible Selected","Infeasibility Criteria Selected","BMP Selected","Other BMP in Group Selected","Evaluation Required","Infiltration /Dispersion Infeasible","Not designated receiving water","Public combined sewer or capacity constrained","Designated Receiving Water","Not designated receiving water","Public combined sewer or capacity constrained","Designated Receiving Water"]
[]
[null,"Hard Surface Type",null,null,null,null,null,null,null,null,null,null,null,null,null,null,null,null,null,"´",null,null,{"$f":"IF(COUNTIF(BX19:BX89,TRUE)>1,\"More than one Use BMP selected, please select only one. \",\"\") & IF(SUMPRODUCT($BV$19:$BV$90*NOT(BW19:BW90)*NOT(BY19:BY90)) > 0,SUMPRODUCT($BV$19:$BV$90*NOT(BW19:BW90)*NOT(BY19:BY90))&\" BMP(s) require infeasibility criteria.\",\"\")","v":""}]
[]
[null,"Hard Surface Description"]
[]
[null,"Surface Area (sf)"]
[]
["Category 1            (Select 1 BMP from Category 1, order does not matter, or move to Category 2)",null,null,null,null,null,null,null,null,null,null,null,null,null,null,null,null,null,null,null,null,null,null,null,null,null,null,null,null,null,null,null,null,null,null,null,null,null,null,null,null,null,null,null,null,null,null,null,null,null,null,null,null,null,null,null,null,null,null,null,null,null,null,null,null,null,null,null,null,null,"Category 1"]
[]
[null,"BMP",null,null,null,null,null,null,null,null,null,null,null,null,null,"Feasibility",null,null,null,null,null,null,"Infeasibility Criteria"]
[]
[null,"Full Dispersion",null,null,null,null,null,null,null,null,null,null,null,null,null,null,null,null,null,null,null,null,null,null,null,null,null,null,null,null,null,null,null,null,null,null,null,null,null,null,null,null,null,null,null,null,null,null,null,null,null,null,null,null,null,null,null,null,null,null,null,null,null,null,null,null,null,null,null,null,"Full Dispersion",{"$f":"IF(CA19,\"Infeasible\",IF(BZ19,\"Feasibility\",\"NoEval\"))","v":"Feasibility"},{"$f":"IF(OR(P19=\"\",BX19),FALSE,OR(NOT(BZ19),BV19))","v":false},{"$f":"P19=\"Infeasible\"","v":false},{"$f":"AND(BV19,NOT(W19=\"\"))","v":false},{"$f":"P19=\"Use BMP\"","v":false},{"$f":"OR(BX22,BX25)","v":false},{"$f":"INDEX(CB19:CG19,MATCH($BZ$2,$CB$2:$CG$2,0))","v":true},{"$f":"Dispersion","v":false},true,true,true,true,true,true]
[]
[]
[null,"Infiltration Trench",null,null,null,null,null,null,null,null,null,null,null,null,null,null,null,null,null,null,null,null,null,null,null,null,null,null,null,null,null,null,null,null,null,null,null,null,null,null,null,null,null,null,null,null,null,null,null,null,null,null,null,null,null,null,null,null,null,null,null,null,null,null,null,null,null,null,null,null,"Infiltration Trench",{"$f":"IF(CA22,\"Infeasible\",IF(BZ22,\"Feasibility\",IF(N9=\"Roof\",\"NoEval\",\"NotRequired\")))","v":"NotRequired"},{"$f":"IF(OR(P22=\"\",BX22),FALSE,OR(NOT(BZ22),BV22))","v":false},{"$f":"P22=\"Infeasible\"","v":false},{"$f":"AND(BV22,NOT(W22=\"\"))","v":false},{"$f":"P22=\"Use BMP\"","v":false},{"$f":"OR(BX19,BX25)","v":false},{"$f":"INDEX(CB22:CG22,MATCH($BZ$2,$CB$2:$CG$2,0))","v":false},{"$f":"AND(InfExploration,OR(InfiltrationInfeasible,MeasuredInfRate<5))","v":false},true,true,true,false,false,false]
[null,null,{"$f":"IF($N$9=\"\",\"\",IF($N$9=\"Non-Roof\",\"Evaluation not required but allowed.\",\"\"))","v":""}]
[]
[null,"Dry Well",null,null,null,null,null,null,null,null,null,null,null,null,null,null,null,null,null,null,null,null,null,null,null,null,null,null,null,null,null,null,null,null,null,null,null,null,null,null,null,null,null,null,null,null,null,null,null,null,null,null,null,null,null,null,null,null,null,null,null,null,null,null,null,null,null,null,null,null,"Dry Well",{"$f":"IF(CA25,\"Infeasible\",IF(BZ25,\"Feasibility\",IF(N9=\"Roof\",\"NoEval\",\"NotRequired\")))","v":"NotRequired"},{"$f":"IF(OR(P25=\"\",BX25),FALSE,OR(NOT(BZ25),BV25))","v":false},{"$f":"P25=\"Infeasible\"","v":false},{"$f":"AND(BV25,NOT(W25=\"\"))","v":false},{"$f":"P25=\"Use BMP\"","v":false},{"$f":"OR(BX19,BX22)","v":false},{"$f":"INDEX(CB25:CG25,MATCH($BZ$2,$CB$2:$CG$2,0))","v":false},{"$f":"AND(InfExploration,OR(InfiltrationInfeasible,MeasuredInfRate<5))","v":false},true,true,true,false,false,false]
[null,null,{"$f":"IF($N$9=\"\",\"\",IF($N$9=\"Non-Roof\",\"Evaluation not required but allowed.\",\"\"))","v":""}]
[]
["Category 2",null,null,null,null,null,null,null,null,null,null,null,null,null,null,null,null,null,null,null,null,null,null,null,null,null,null,null,null,null,null,null,null,null,null,null,null,null,null,null,null,null,null,null,null,null,null,null,null,null,null,null,null,null,null,null,null,null,null,null,null,null,null,null,null,null,null,null,null,null,"Category 2",null,{"$f":"OR(NOT(AND(BU19:BU25)),N9=\"\")","v":true}]
[]
[null,"BMP",null,null,null,null,null,null,null,null,null,null,null,null,null,"Feasibility",null,null,null,null,null,null,"Infeasibility Criteria"]
[]
[null,"Rain Garden",null,null,null,null,null,null,null,null,null,null,null,null,null,null,null,null,null,null,null,null,null,null,null,null,null,null,null,null,null,null,null,null,null,null,null,null,null,null,null,null,null,null,null,null,null,null,null,null,null,null,null,null,null,null,null,null,null,null,null,null,null,null,null,null,null,null,null,null,"Rain Garden",{"$f":"IF(CA32,\"Infeasible\",IF(BZ32,\"Feasibility\",\"NotRequired\"))","v":"Feasibility"},{"$f":"IF(OR(P32=\"\",BX32),FALSE,OR(NOT(BZ32),BV32))","v":false},{"$f":"P32=\"Infeasible\"","v":false},{"$f":"AND(BV32,NOT(W32=\"\"))","v":false},{"$f":"P32=\"Use BMP\"","v":false},{"$f":"OR(BX35,BX38,BX41,BX44,BX47)","v":false},{"$f":"INDEX(CB32:CG32,MATCH($BZ$2,$CB$2:$CG$2,0))","v":true},{"$f":"AND(InfExploration,OR(InfiltrationInfeasible,MeasuredInfRate<0.3))","v":false},{"$f":"$N$13<5000","v":true},{"$f":"$N$13<5000","v":true},true,true,true,true]
[null,null,{"$f":"IF($N$9=\"\",\"\",IF(BZ32,\"\",\"Evaluation not allowed for projects with greater than 5,000 sf of hard surface infiltrating on site.\"))","v":""}]
[]
[null,"Infiltrating Bioretention",null,null,null,null,null,null,null,null,null,null,null,null,null,null,null,null,null,null,null,null,null,null,null,null,null,null,null,null,null,null,null,null,null,null,null,null,null,null,null,null,null,null,null,null,null,null,null,null,null,null,null,null,null,null,null,null,null,null,null,null,null,null,null,null,null,null,null,null,"Infiltrating Bioretention",{"$f":"IF($CA$35,\"Infeasible\",\"Feasibility\")","v":"Feasibility"},{"$f":"IF(OR(P35=\"\",BX35),FALSE,OR(NOT(BZ35),BV35))","v":false},{"$f":"P35=\"Infeasible\"","v":false},{"$f":"AND(BV35,NOT(W35=\"\"))","v":false},{"$f":"P35=\"Use BMP\"","v":false},{"$f":"OR(BX32,BX38,BX41,BX44,BX47)","v":false},{"$f":"INDEX(CB35:CG35,MATCH($BZ$2,$CB$2:$CG$2,0))","v":true},{"$f":"AND(InfExploration,OR(InfiltrationInfeasible,MeasuredInfRate<0.3))","v":false},true,true,true,true,true,true]
[]
[]
[null,"Rainwater Harvesting - Category 2 Sizing",null,null,null,null,null,null,null,null,null,null,null,null,null,null,null,null,null,null,null,null,null,null,null,null,null,null,null,null,null,null,null,null,null,null,null,null,null,null,null,null,null,null,null,null,null,null,null,null,null,null,null,null,null,null,null,null,null,null,null,null,null,null,null,null,null,null,null,null,"Rainwater Harvesting - Category 2",{"$f":"IF($BZ$38,\"Feasibility\",IF($N$9=\"Roof\",\"NotRequired\",\"NoEval\"))","v":"NoEval"},{"$f":"IF(OR(P38=\"\",BX38),FALSE,OR(NOT(BZ38),BV38))","v":false},{"$f":"P38=\"Infeasible\"","v":false},{"$f":"AND(BV38,NOT(W38=\"\"))","v":false},{"$f":"P38=\"Use BMP\"","v":false},{"$f":"OR(BX32,BX35,BX41,BX44,BX47)","v":false},{"$f":"INDEX(CB38:CG38,MATCH($BZ$2,$CB$2:$CG$2,0))","v":false},null,false,false,false,false,false,false]
[null,null,{"$f":"IF($N$9=\"\",\"\",IF($N$9=\"Roof\",\"Evaluation not required but allowed.\",\"\"))","v":""}]
[]
[null,"Permeable Pavement Facility",null,null,null,null,null,null,null,null,null,null,null,null,null,null,null,null,null,null,null,null,null,null,null,null,null,null,null,null,null,null,null,null,null,null,null,null,null,null,null,null,null,null,null,null,null,null,null,null,null,null,null,null,null,null,null,null,null,null,null,null,null,null,null,null,null,null,null,null,"Permeable Pavement Facility",{"$f":"IF($CA$41,\"Infeasible\",\"Feasibility\")","v":"Feasibility"},{"$f":"IF(OR(P41=\"\",BX41),FALSE,OR(NOT(BZ41),BV41))","v":false},{"$f":"P41=\"Infeasible\"","v":false},{"$f":"AND(BV41,NOT(W41=\"\"))","v":false},{"$f":"P41=\"Use BMP\"","v":false},{"$f":"OR(BX32,BX35,BX38,BX44,BX47)","v":false},{"$f":"INDEX(CB41:CG41,MATCH($BZ$2,$CB$2:$CG$2,0))","v":true},{"$f":"AND(InfExploration,OR(InfiltrationInfeasible,MeasuredInfRate<0.3))","v":false},true,true,true,true,true,true]
[null,null,{"$f":"IF(BX41,\"Note the surface area (\"&N13&\" sf) should represent the area contributing to the permeable pavement facility. Facility area will be entered on the BMP Sizing tab.\",\"\")","v":""}]
[]
[null,"Permeable Pavement Surface",null,null,null,null,null,null,null,null,null,null,null,null,null,null,null,null,null,null,null,null,null,null,null,null,null,null,null,null,null,null,null,null,null,null,null,null,null,null,null,null,null,null,null,null,null,null,null,null,null,null,null,null,null,null,null,null,null,null,null,null,null,null,null,null,null,null,null,null,"Permeable Pavement Surface",{"$f":"IF(NOT($BZ$44),\"NoEval\",IF($CA$44,\"Infeasible\",\"Feasibility\"))","v":"Feasibility"},{"$f":"IF(OR(P44=\"\",BX44),FALSE,OR(NOT(BZ44),BV44))","v":false},{"$f":"P44=\"Infeasible\"","v":false},{"$f":"AND(BV44,NOT(W44=\"\"))","v":false},{"$f":"P44=\"Use BMP\"","v":false},{"$f":"OR(BX32,BX35,BX38,BX41,BX47)","v":false},{"$f":"INDEX(CB44:CG44,MATCH($BZ$2,$CB$2:$CG$2,0))","v":true},null,false,false,false,true,true,true]
[null,null,{"$f":"IF(N9=\"\",\"\",IF(N9=\"Roof\",\"Evaluation not allowed for roof surfaces.\",\"\"))","v":""}]
[]
[null,"Sidewalk/Trail Compost-Amended Strip",null,null,null,null,null,null,null,null,null,null,null,null,null,null,null,null,null,null,null,null,null,null,null,null,null,null,null,null,null,null,null,null,null,null,null,null,null,null,null,null,null,null,null,null,null,null,null,null,null,null,null,null,null,null,null,null,null,null,null,null,null,null,null,null,null,null,null,null,"Sidewalk/Trail Compost-Amended Strip",{"$f":"IF(NOT($BZ$47),\"NoEval\",IF($CA$47,\"Infeasible\",\"Feasibility\"))","v":"Feasibility"},{"$f":"IF(OR(P47=\"\",BX47),FALSE,OR(NOT(BZ47),BV47))","v":false},{"$f":"P47=\"Infeasible\"","v":false},{"$f":"AND(BV47,NOT(W47=\"\"))","v":false},{"$f":"P47=\"Use BMP\"","v":false},{"$f":"OR(BX32,BX35,BX38,BX41,BX44)","v":false},{"$f":"INDEX(CB47:CG47,MATCH($BZ$2,$CB$2:$CG$2,0))","v":true},{"$f":"AND(InfExploration,OR(InfiltrationInfeasible,InfRate<0.15), 'Project Summary'!$AA$64<>Lookup!$R$2)","v":false},false,false,false,true,true,true]
[null,null,{"$f":"IF(N9=\"\",\"\",IF(N9=\"Roof\",\"Evaluation not allowed for roof surfaces.\",\"\"))","v":""}]
[]
["Category 3",null,null,null,null,null,null,null,null,null,null,null,null,null,null,null,null,null,null,null,null,null,null,null,null,null,null,null,null,null,null,null,null,null,null,null,null,null,null,null,null,null,null,null,null,null,null,null,null,null,null,null,null,null,null,null,null,null,null,null,null,null,null,null,null,null,null,null,null,null,"Category 3",null,{"$f":"OR(NOT(AND(BU19:BU25,BU32:BU47)),N9=\"\")","v":true}]
[]
[null,"BMP",null,null,null,null,null,null,null,null,null,null,null,null,null,"Feasibility",null,null,null,null,null,null,"Infeasibility Criteria"]
[]
[null,"Sheet Flow Dispersion",null,null,null,null,null,null,null,null,null,null,null,null,null,null,null,null,null,null,null,null,null,null,null,null,null,null,null,null,null,null,null,null,null,null,null,null,null,null,null,null,null,null,null,null,null,null,null,null,null,null,null,null,null,null,null,null,null,null,null,null,null,null,null,null,null,null,null,null,"Sheet Flow Dispersion",{"$f":"IF($CA$54,\"Infeasible\",\"Feasibility\")","v":"Feasibility"},{"$f":"IF(OR(P54=\"\",BX54),FALSE,OR(NOT(BZ54),BV54))","v":false},{"$f":"P54=\"Infeasible\"","v":false},{"$f":"AND(BV54,NOT(W54=\"\"))","v":false},{"$f":"P54=\"Use BMP\"","v":false},{"$f":"OR(BX57,BX60,BX63,BX70,BX76)","v":false},{"$f":"INDEX(CB54:CG54,MATCH($BZ$2,$CB$2:$CG$2,0))","v":true},{"$f":"Dispersion","v":false},true,true,true,true,true,true]
[]
[]
[null,"Concentrated Flow Dispersion",null,null,null,null,null,null,null,null,null,null,null,null,null,null,null,null,null,null,null,null,null,null,null,null,null,null,null,null,null,null,null,null,null,null,null,null,null,null,null,null,null,null,null,null,null,null,null,null,null,null,null,null,null,null,null,null,null,null,null,null,null,null,null,null,null,null,null,null,"Concentrated Flow Dispersion",{"$f":"IF(BZ57,IF($CA$57,\"Infeasible\",\"Feasibility\"),\"NoEval\")","v":"Feasibility"},{"$f":"IF(OR(P57=\"\",BX57),FALSE,OR(NOT(BZ57),BV57))","v":false},{"$f":"P57=\"Infeasible\"","v":false},{"$f":"AND(BV57,NOT(W57=\"\"))","v":false},{"$f":"P57=\"Use BMP\"","v":false},{"$f":"OR(BX54,BX60,BX63,BX70,BX76)","v":false},{"$f":"INDEX(CB57:CG57,MATCH($BZ$2,$CB$2:$CG$2,0))","v":true},{"$f":"Dispersion","v":false},false,false,false,true,true,true]
[null,null,{"$f":"IF($N$9=\"Roof\",\"Evaluation not allowed for roof surfaces.\",\"\")","v":""}]
[]
[null,"Splashblock Downspout Dispersion",null,null,null,null,null,null,null,null,null,null,null,null,null,null,null,null,null,null,null,null,null,null,null,null,null,null,null,null,null,null,null,null,null,null,null,null,null,null,null,null,null,null,null,null,null,null,null,null,null,null,null,null,null,null,null,null,null,null,null,null,null,null,null,null,null,null,null,null,"Splashblock Downspout Dispersion",{"$f":"IF(BZ60,IF($CA$60,\"Infeasible\",\"Feasibility\"),\"NoEval\")","v":"NoEval"},{"$f":"IF(OR(P60=\"\",BX60),FALSE,OR(NOT(BZ60),BV60))","v":false},{"$f":"P60=\"Infeasible\"","v":false},{"$f":"AND(BV60,NOT(W60=\"\"))","v":false},{"$f":"P60=\"Use BMP\"","v":false},{"$f":"OR(BX54,BX57,BX63,BX70,BX76)","v":false},{"$f":"INDEX(CB60:CG60,MATCH($BZ$2,$CB$2:$CG$2,0))","v":false},{"$f":"Dispersion","v":false},true,true,true,false,false,false]
[null,null,{"$f":"IF($N$9=\"\",\"\",IF($N$9=\"Roof\",\"\",\"Evaluation not allowed for non-roof surfaces.\"))","v":""}]
[]
[null,"Trench Downspout Dispersion",null,null,null,null,null,null,null,null,null,null,null,null,null,null,null,null,null,null,null,null,null,null,null,null,null,null,null,null,null,null,null,null,null,null,null,null,null,null,null,null,null,null,null,null,null,null,null,null,null,null,null,null,null,null,null,null,null,null,null,null,null,null,null,null,null,null,null,null,"Trench Downspout Dispersion",{"$f":"IF(BZ63,IF($CA$60,\"Infeasible\",\"Feasibility\"),\"NoEval\")","v":"NoEval"},{"$f":"IF(OR(P63=\"\",BX63),FALSE,OR(NOT(BZ63),BV63))","v":false},{"$f":"P63=\"Infeasible\"","v":false},{"$f":"AND(BV63,NOT(W63=\"\"))","v":false},{"$f":"P63=\"Use BMP\"","v":false},{"$f":"OR(BX54,BX57,BX60,BX70,BX76)","v":false},{"$f":"INDEX(CB63:CG63,MATCH($BZ$2,$CB$2:$CG$2,0))","v":false},{"$f":"Dispersion","v":false},true,true,true,false,false,false]
[null,null,{"$f":"IF($N$9=\"\",\"\",IF($N$9=\"Roof\",\"\",\"Evaluation not allowed for non-roof surfaces.\"))","v":""}]
[]
["Category 4",null,null,null,null,null,null,null,null,null,null,null,null,null,null,null,null,null,null,null,null,null,null,null,null,null,null,null,null,null,null,null,null,null,null,null,null,null,null,null,null,null,null,null,null,null,null,null,null,null,null,null,null,null,null,null,null,null,null,null,null,null,null,null,null,null,null,null,null,null,"Category 4",null,{"$f":"OR(NOT(AND(BU19:BU25,BU32:BU47,BU54:BU63)),N9=\"\")","v":true}]
[]
[null,"BMP",null,null,null,null,null,null,null,null,null,null,null,null,null,"Feasibility",null,null,null,null,null,null,"Infeasibility Criteria"]
[]
[null,"Non-Infiltrating Bioretention",null,null,null,null,null,null,null,null,null,null,null,null,null,null,null,null,null,null,null,null,null,null,null,null,null,null,null,null,null,null,null,null,null,null,null,null,null,null,null,null,null,null,null,null,null,null,null,null,null,null,null,null,null,null,null,null,null,null,null,null,null,null,null,null,null,null,null,null,"Non-Infiltrating Bioretention",{"$f":"IF($BZ$70,\"Feasibility\",\"NoEval\")","v":"Feasibility"},{"$f":"IF(OR(P70=\"\",BX70),FALSE,OR(NOT(BZ70),BV70))","v":false},{"$f":"P70=\"Infeasible\"","v":false},{"$f":"AND(BV70,NOT(W70=\"\"))","v":false},{"$f":"P70=\"Use BMP\"","v":false},{"$f":"OR(BX73,BX76)","v":false},{"$f":"INDEX(CB70:CG70,MATCH($BZ$2,$CB$2:$CG$2,0))","v":true},null,true,true,true,true,true,true]
[]
[]
[null,"Rainwater Harvesting - Category 4 Sizing",null,null,null,null,null,null,null,null,null,null,null,null,null,null,null,null,null,null,null,null,null,null,null,null,null,null,null,null,null,null,null,null,null,null,null,null,null,null,null,null,null,null,null,null,null,null,null,null,null,null,null,null,null,null,null,null,null,null,null,null,null,null,null,null,null,null,null,null,"Rainwater Harvesting - Category 4",{"$f":"IF($BZ$38,\"Feasibility\",IF($N$9=\"Roof\",\"NotRequired\",\"NoEval\"))","v":"NoEval"},{"$f":"IF(OR(P73=\"\",BX73),FALSE,OR(NOT(BZ73),BV73))","v":false},{"$f":"P73=\"Infeasible\"","v":false},{"$f":"AND(BV73,NOT(W73=\"\"))","v":false},{"$f":"P73=\"Use BMP\"","v":false},{"$f":"OR(BX70,BX76)","v":false},{"$f":"INDEX(CB73:CG73,MATCH($BZ$2,$CB$2:$CG$2,0))","v":false},null,false,false,false,false,false,false]
[null,null,{"$f":"IF($N$9=\"\",\"\",IF($N$9=\"Roof\",\"Evaluation not required but allowed.\",\"\"))","v":""}]
[]
[null,"Vegetated Roof System",null,null,null,null,null,null,null,null,null,null,null,null,null,null,null,null,null,null,null,null,null,null,null,null,null,null,null,null,null,null,null,null,null,null,null,null,null,null,null,null,null,null,null,null,null,null,null,null,null,null,null,null,null,null,null,null,null,null,null,null,null,null,null,null,null,null,null,null,"Vegetated Roof System",{"$f":"IF($N$9=\"Roof\",\"NotRequired\",\"NoEval\")","v":"NoEval"},{"$f":"IF(OR(P76=\"\",BX76),FALSE,OR(NOT(BZ76),BV76))","v":false},{"$f":"P76=\"Infeasible\"","v":false},{"$f":"AND(BV76,NOT(W76=\"\"))","v":false},{"$f":"P76=\"Use BMP\"","v":false},{"$f":"OR(BX70,BX73)","v":false},{"$f":"INDEX(CB76:CG76,MATCH($BZ$2,$CB$2:$CG$2,0))","v":false},null,false,false,false,false,false,false]
[null,null,{"$f":"IF($N$9=\"\",\"\",IF(N9=\"Roof\",\"Evaluation not required but allowed.\",\"Evaluation not allowed for non-roof surfaces.\"))","v":""}]
[]
["Category 5",null,null,null,null,null,null,null,null,null,null,null,null,null,null,null,null,null,null,null,null,null,null,null,null,null,null,null,null,null,null,null,null,null,null,null,null,null,null,null,null,null,null,null,null,null,null,null,null,null,null,null,null,null,null,null,null,null,null,null,null,null,null,null,null,null,null,null,null,null,"Category 5",null,{"$f":"OR(NOT(AND(BU19:BU25,BU32:BU47,BU54:BU63,BU70:BU76)),N9=\"\")","v":true}]
[]
[null,"BMP",null,null,null,null,null,null,null,null,null,null,null,null,null,"Feasibility",null,null,null,null,null,null,"Infeasibility Criteria"]
[]
[null,"Single-family Residential Cisterns",null,null,null,null,null,null,null,null,null,null,null,null,null,null,null,null,null,null,null,null,null,null,null,null,null,null,null,null,null,null,null,null,null,null,null,null,null,null,null,null,null,null,null,null,null,null,null,null,null,null,null,null,null,null,null,null,null,null,null,null,null,null,null,null,null,null,null,null,"Single-family Residential Cisterns",{"$f":"IF(BZ83,\"Feasibility\",\"NoEval\")","v":"NoEval"},{"$f":"IF(OR(P83=\"\",BX83),FALSE,OR(NOT(BZ83),BV83))","v":false},{"$f":"P83=\"Infeasible\"","v":false},{"$f":"AND(BV83,NOT(W83=\"\"))","v":false},{"$f":"P83=\"Use BMP\"","v":false},{"$f":"OR(BX86,BX89)","v":false},{"$f":"INDEX(CB83:CG83,MATCH($BZ$2,$CB$2:$CG$2,0))","v":false},null,true,true,true,false,false,false]
[null,null,{"$f":"IF($N$9=\"\",\"\",IF($N$9=\"Roof\",\"\",\"Evaluation not allowed for non-roof surfaces.\"))","v":""}]
[]
[null,"Perforated Stub-out Connection",null,null,null,null,null,null,null,null,null,null,null,null,null,null,null,null,null,null,null,null,null,null,null,null,null,null,null,null,null,null,null,null,null,null,null,null,null,null,null,null,null,null,null,null,null,null,null,null,null,null,null,null,null,null,null,null,null,null,null,null,null,null,null,null,null,null,null,null,"Perforated Stub-out Connection",{"$f":"IF(BZ86,IF(CA86,\"Infeasible\",\"Feasibility\"),\"NoEval\")","v":"NoEval"},{"$f":"IF(OR(P86=\"\",BX86),FALSE,OR(NOT(BZ86),BV86))","v":false},{"$f":"P86=\"Infeasible\"","v":false},{"$f":"AND(BV86,NOT(W86=\"\"))","v":false},{"$f":"P86=\"Use BMP\"","v":false},{"$f":"OR(BX83,BX89)","v":false},{"$f":"INDEX(CB86:CG86,MATCH($BZ$2,$CB$2:$CG$2,0))","v":false},{"$f":"AND(InfExploration,OR(InfiltrationInfeasible,MeasuredInfRate<0.3))","v":false},true,true,true,false,false,false]
[null,null,{"$f":"IF($N$9=\"\",\"\",IF($N$9=\"Roof\",\"\",\"Evaluation not allowed for non-roof surfaces.\"))","v":""}]
[]
[null,"Trees",null,null,null,null,null,null,null,null,null,null,null,null,null,null,null,null,null,null,null,null,null,null,null,null,null,null,null,null,null,null,null,null,null,null,null,null,null,null,null,null,null,null,null,null,null,null,null,null,null,null,null,null,null,null,null,null,null,null,null,null,null,null,null,null,null,null,null,null,"Trees",{"$f":"IF(BZ89,\"Feasibility\",\"NoEval\")","v":"Feasibility"},{"$f":"IF(OR(P89=\"\",BX89),FALSE,OR(NOT(BZ89),BV89))","v":false},{"$f":"P89=\"Infeasible\"","v":false},{"$f":"AND(BV89,NOT(W89=\"\"))","v":false},{"$f":"P89=\"Use BMP\"","v":false},{"$f":"OR(BX83,BX86)","v":false},{"$f":"INDEX(CB89:CG89,MATCH($BZ$2,$CB$2:$CG$2,0))","v":true},null,false,false,false,true,true,true]
[null,null,{"$f":"IF(NOT(BZ89),\"Evaluation not allowed for roof surfaces.\",\"\")","v":""}]

{"sheet":"Trail","index":3,"n_rows":53,"n_cols":85,"rows_kept":53,"cut":false,"hidden":true,"merged":[[0,0,0,68],[0,79,0,84],[1,0,1,68],[6,13,6,18],[6,70,13,70],[6,72,13,72],[6,73,13,73],[6,75,13,75],[6,76,13,76],[6,77,13,77],[6,71,13,71],[6,74,13,74],[8,22,8,67],[3,13,3,22],[28,15,28,20],[28,22,28,67],[25,15,25,20],[25,22,25,67],[6,84,13,84],[8,13,8,18],[10,13,10,67],[12,13,12,18],[18,15,18,20],[18,22,18,67],[6,78,13,78],[6,79,13,79],[6,80,13,80],[6,81,13,81],[6,82,13,82],[6,83,13,83],[51,15,51,20],[51,22,51,67],[31,15,31,20],[31,22,31,67],[41,15,41,20],[41,22,41,67],[44,15,44,20],[44,22,44,67],[34,15,34,20],[34,22,34,67]]}
["On-site Stormwater Management Calculator - List Approach",null,null,null,null,null,null,null,null,null,null,null,null,null,null,null,null,null,null,null,null,null,null,null,null,null,null,null,null,null,null,null,null,null,null,null,null,null,null,null,null,null,null,null,null,null,null,null,null,null,null,null,null,null,null,null,null,null,null,null,null,null,null,null,null,null,null,null,null,null,null,null,null,null,null,null,null,"Column to Use",null,"Evaluation Required"]
["Surface Identification and BMP Evaluation for Trail and Sidewalk Projects",null,null,null,null,null,null,null,null,null,null,null,null,null,null,null,null,null,null,null,null,null,null,null,null,null,null,null,null,null,null,null,null,null,null,null,null,null,null,null,null,null,null,null,null,null,null,null,null,null,null,null,null,null,null,null,null,null,null,null,null,null,null,null,null,null,null,null,null,null,"None Feasible",null,null,null,null,{"$f":"AND(COUNTIFS(BT19:BT52,\"Feasibility\",BV19:BV52,TRUE)=COUNTIF(BT19:BT52,\"Feasibility\"),COUNTIF(BX19:BX52,TRUE)=0)","v":false},null,{"$f":"OFFSET(CA2,0,IF($N$9=\"Roof\",0,3)+'Project Summary'!$AS$35)","v":4},null,1,2,3,4,5,6]
[]
[null,"Project No.",null,null,null,null,null,null,null,null,null,null,null,{"$f":"'Project Summary'!$AG$6","v":0},null,null,null,null,null,null,null,null,null,null,null,null,null,null,null,null,null,null,null,null,null,null,null,null,null,null,null,null,null,null,null,null,null,null,null,null,null,null,null,null,null,null,null,null,null,null,null,null,null,null,null,null,null,null,null,null,null,null,null,null,null,null,null,null,null,"Roof","Roof","Roof","Surface","Surface","Surface"]
[]
[]
[null,"Hard Surface Number",null,null,null,null,null,null,null,null,null,null,null,null,null,null,null,null,null,null,null,null,null,null,null,null,null,null,null,null,null,null,null,null,null,null,null,null,null,null,null,null,null,null,null,null,null,null,null,null,null,null,null,null,null,null,null,null,null,null,null,null,null,null,null,null,null,null,null,null,"BMP","Dropdown Lookup","Grey Out","Infeasible Selected","Infeasibility Criteria Selected","BMP Selected","Other BMP in Group Selected","Evaluation Required","Infiltration/ DispersionInfeasible","Not designated receiving water","Public combined sewer or capacity constrained","Designated Receiving Water","Not designated receiving water","Public combined sewer or capacity constrained","Designated Receiving Water"]
[]
[null,"Hard Surface Type",null,null,null,null,null,null,null,null,null,null,null,null,null,null,null,null,null,"´",null,null,{"$f":"IF(COUNTIF(BX19:BX79,TRUE)>1,\"More than one Use BMP selected, please select only one. \",\"\") & IF(SUMPRODUCT($BV$19:$BV$80*NOT(BW19:BW80)*NOT(BY19:BY80)) > 0,SUMPRODUCT($BV$19:$BV$80*NOT(BW19:BW80)*NOT(BY19:BY80))&\" BMP(s) require infeasibility criteria.\",\"\")","v":""}]
[]
[null,"Hard Surface Description"]
[]
[null,"Surface Area (sf)"]
[]
["Category 1            (Select 1 BMP from Category 1, order does not matter, or move to Category 2)",null,null,null,null,null,null,null,null,null,null,null,null,null,null,null,null,null,null,null,null,null,null,null,null,null,null,null,null,null,null,null,null,null,null,null,null,null,null,null,null,null,null,null,null,null,null,null,null,null,null,null,null,null,null,null,null,null,null,null,null,null,null,null,null,null,null,null,null,null,"Category 1"]
[]
[null,"BMP",null,null,null,null,null,null,null,null,null,null,null,null,null,"Feasibility",null,null,null,null,null,null,"Infeasibility Criteria"]
[]
[null,"Full Dispersion",null,null,null,null,null,null,null,null,null,null,null,null,null,null,null,null,null,null,null,null,null,null,null,null,null,null,null,null,null,null,null,null,null,null,null,null,null,null,null,null,null,null,null,null,null,null,null,null,null,null,null,null,null,null,null,null,null,null,null,null,null,null,null,null,null,null,null,null,"Full Dispersion",{"$f":"IF(BZ19,IF(CA19,\"Infeasible\",\"Feasibility\"),\"NoEval\")","v":"Feasibility"},{"$f":"IF(OR(P19=\"\",BX19),FALSE,OR(NOT(BZ19),BV19))","v":false},{"$f":"P19=\"Infeasible\"","v":false},{"$f":"AND(BV19,NOT(W19=\"\"))","v":false},{"$f":"P19=\"Use BMP\"","v":false},false,{"$f":"INDEX(CB19:CG19,MATCH($BZ$2,$CB$2:$CG$2,0))","v":true},{"$f":"Dispersion","v":false},false,false,false,true,true,true]
[]
[]
["Category 2",null,null,null,null,null,null,null,null,null,null,null,null,null,null,null,null,null,null,null,null,null,null,null,null,null,null,null,null,null,null,null,null,null,null,null,null,null,null,null,null,null,null,null,null,null,null,null,null,null,null,null,null,null,null,null,null,null,null,null,null,null,null,null,null,null,null,null,null,null,"Category 2",null,{"$f":"NOT(AND(BU19:BU21,N9<>\"\"))","v":true}]
[]
[null,"BMP",null,null,null,null,null,null,null,null,null,null,null,null,null,"Feasibility",null,null,null,null,null,null,"Infeasibility Criteria"]
[]
[null,"Rain Garden",null,null,null,null,null,null,null,null,null,null,null,null,null,null,null,null,null,null,null,null,null,null,null,null,null,null,null,null,null,null,null,null,null,null,null,null,null,null,null,null,null,null,null,null,null,null,null,null,null,null,null,null,null,null,null,null,null,null,null,null,null,null,null,null,null,null,null,null,"Rain Garden",{"$f":"IF(BZ26,IF(CA26,\"Infeasible\",\"Feasibility\"),\"NotRequired\")","v":"Feasibility"},{"$f":"IF(OR(P26=\"\",BX26),FALSE,OR(NOT(BZ26),BV26))","v":false},{"$f":"P26=\"Infeasible\"","v":false},{"$f":"AND(BV26,NOT(W26=\"\"))","v":false},{"$f":"P26=\"Use BMP\"","v":false},{"$f":"OR(BX29,BX32,BX35)","v":false},{"$f":"INDEX(CB26:CG26,MATCH($BZ$2,$CB$2:$CG$2,0))","v":true},{"$f":"AND(InfExploration,OR(InfiltrationInfeasible,MeasuredInfRate<0.3))","v":false},true,true,false,true,{"$f":"O13<5000","v":true},false]
[null,null,{"$f":"IF($N$9=\"\",\"\",IF(BZ26,\"\",\"Evaluation not required.\"))","v":""}]
[]
[null,"Permeable Pavement Facility",null,null,null,null,null,null,null,null,null,null,null,null,null,null,null,null,null,null,null,null,null,null,null,null,null,null,null,null,null,null,null,null,null,null,null,null,null,null,null,null,null,null,null,null,null,null,null,null,null,null,null,null,null,null,null,null,null,null,null,null,null,null,null,null,null,null,null,null,"Permeable Pavement Facility",{"$f":"IF(CA29,\"Infeasible\",IF(BZ29,\"Feasibility\",\"NotRequired\"))","v":"NotRequired"},{"$f":"IF(OR(P29=\"\",BX29),FALSE,OR(NOT(BZ29),BV29))","v":false},{"$f":"P29=\"Infeasible\"","v":false},{"$f":"AND(BV29,NOT(W29=\"\"))","v":false},{"$f":"P29=\"Use BMP\"","v":false},{"$f":"OR(BX26,BX32,BX35)","v":false},{"$f":"INDEX(CB29:CG29,MATCH($BZ$2,$CB$2:$CG$2,0))","v":false},{"$f":"AND(InfExploration,OR(InfiltrationInfeasible,MeasuredInfRate<0.3))","v":false},false,false,false,false,false,false]
[null,null,{"$f":"IF(BX29,\"Note the surface area (\"&N13&\" sf) should represent the area contributing to the permeable pavement facility. Facility area will be entered on the BMP Sizing tab.\",\nIF($N$9=\"\",\"\",\nIF(OR('Project Summary'!Q35=Lookup!I4, 'Project Summary'!Q35=Lookup!I5),\"Evaluation not required but allowed if permeable pavement in ROW is greater than 2,000 sf.\",\"Evaluation not required but allowed.\")))","v":""}]
[]
[null,"Permeable Pavement Surface",null,null,null,null,null,null,null,null,null,null,null,null,null,null,null,null,null,null,null,null,null,null,null,null,null,null,null,null,null,null,null,null,null,null,null,null,null,null,null,null,null,null,null,null,null,null,null,null,null,null,null,null,null,null,null,null,null,null,null,null,null,null,null,null,null,null,null,null,"Permeable Pavement Surface",{"$f":"IF(CA32,\"Infeasible\",IF(BZ32,\"Feasibility\",\"NotRequired\"))","v":"Feasibility"},{"$f":"IF(OR(P32=\"\",BX32),FALSE,OR(NOT(BZ32),BV32))","v":false},{"$f":"P32=\"Infeasible\"","v":false},{"$f":"AND(BV32,NOT(W32=\"\"))","v":false},{"$f":"P32=\"Use BMP\"","v":false},{"$f":"OR(BX26,BX29,BX35)","v":false},{"$f":"INDEX(CB32:CG32,MATCH($BZ$2,$CB$2:$CG$2,0))","v":true},null,true,true,false,true,true,false]
[null,null,{"$f":"IF(N9=\"\",\"\",\nIF(BZ2=5,\"Minimum permeable pavement area in ROW is 2,000 sf.\",\nIF(BZ2=6,IF(N13<2000,\"Evaluation not allowed in ROW if new plus replaced PGHS is less than 2,000 sf.\",\"Evaluation not required but allowed if permable pavement in ROW is greater than 2,000 sf.\"),\"\")))","v":""}]
[]
[null,"Sidewalk/Trail Compost-Amended Strip",null,null,null,null,null,null,null,null,null,null,null,null,null,null,null,null,null,null,null,null,null,null,null,null,null,null,null,null,null,null,null,null,null,null,null,null,null,null,null,null,null,null,null,null,null,null,null,null,null,null,null,null,null,null,null,null,null,null,null,null,null,null,null,null,null,null,null,null,"Sidewalk/Trail Compost-Amended Strip",{"$f":"IF(BZ35,\"Feasibility\",\"NotRequired\")","v":"Feasibility"},{"$f":"IF(OR(P35=\"\",BX35),FALSE,OR(NOT(BZ35),BV35))","v":false},{"$f":"P35=\"Infeasible\"","v":false},{"$f":"AND(BV35,NOT(W35=\"\"))","v":false},{"$f":"P35=\"Use BMP\"","v":false},{"$f":"OR(BX26,BX29,BX32)","v":false},{"$f":"INDEX(CB35:CG35,MATCH($BZ$2,$CB$2:$CG$2,0))","v":true},{"$f":"AND(InfExploration,OR(InfiltrationInfeasible,InfRate<0.15), 'Project Summary'!$AA$64<>Lookup!$R$2)","v":false},true,true,false,true,true,false]
[null,null,{"$f":"IF($N$9=\"\",\"\",IF(BZ35,\"\",\"Evaluation not required.\"))","v":""}]
[]
["Category 3",null,null,null,null,null,null,null,null,null,null,null,null,null,null,null,null,null,null,null,null,null,null,null,null,null,null,null,null,null,null,null,null,null,null,null,null,null,null,null,null,null,null,null,null,null,null,null,null,null,null,null,null,null,null,null,null,null,null,null,null,null,null,null,null,null,null,null,null,null,"Category 3",null,{"$f":"NOT(AND(BU19:BU21,BU23:BU36))","v":true}]
[]
[null,"BMP",null,null,null,null,null,null,null,null,null,null,null,null,null,"Feasibility",null,null,null,null,null,null,"Infeasibility Criteria"]
[]
[null,"Sheet Flow Dispersion",null,null,null,null,null,null,null,null,null,null,null,null,null,null,null,null,null,null,null,null,null,null,null,null,null,null,null,null,null,null,null,null,null,null,null,null,null,null,null,null,null,null,null,null,null,null,null,null,null,null,null,null,null,null,null,null,null,null,null,null,null,null,null,null,null,null,null,null,"Sheet Flow Dispersion",{"$f":"IF(BZ42,IF(CA42,\"Infeasible\",\"Feasibility\"),\"NoEval\")","v":"Feasibility"},{"$f":"IF(OR(P42=\"\",BX42),FALSE,OR(NOT(BZ42),BV42))","v":false},{"$f":"P42=\"Infeasible\"","v":false},{"$f":"AND(BV42,NOT(W42=\"\"))","v":false},{"$f":"P42=\"Use BMP\"","v":false},{"$f":"BX45","v":false},{"$f":"INDEX(CB42:CG42,MATCH($BZ$2,$CB$2:$CG$2,0))","v":true},{"$f":"Dispersion","v":false},false,false,false,true,true,true]
[]
[]
[null,"Concentrated Dispersion",null,null,null,null,null,null,null,null,null,null,null,null,null,null,null,null,null,null,null,null,null,null,null,null,null,null,null,null,null,null,null,null,null,null,null,null,null,null,null,null,null,null,null,null,null,null,null,null,null,null,null,null,null,null,null,null,null,null,null,null,null,null,null,null,null,null,null,null,"Concentrated Flow Dispersion",{"$f":"IF(BZ45,IF(CA45,\"Infeasible\",\"Feasibility\"),\"NoEval\")","v":"Feasibility"},{"$f":"IF(OR(P45=\"\",BX45),FALSE,OR(NOT(BZ45),BV45))","v":false},{"$f":"P45=\"Infeasible\"","v":false},{"$f":"AND(BV45,NOT(W45=\"\"))","v":false},{"$f":"P45=\"Use BMP\"","v":false},{"$f":"BX42","v":false},{"$f":"INDEX(CB45:CG45,MATCH($BZ$2,$CB$2:$CG$2,0))","v":true},{"$f":"Dispersion","v":false},false,false,false,true,true,true]
[null,null,{"$f":"IF($N$9=\"Roof\",\"Evaluation not required for roof surfaces.\",\"\")","v":""}]
[]
["Category 4",null,null,null,null,null,null,null,null,null,null,null,null,null,null,null,null,null,null,null,null,null,null,null,null,null,null,null,null,null,null,null,null,null,null,null,null,null,null,null,null,null,null,null,null,null,null,null,null,null,null,null,null,null,null,null,null,null,null,null,null,null,null,null,null,null,null,null,null,null,"Category 4",null,{"$f":"NOT(AND(BU19,BU26:BU35,BU42:BU45))","v":true}]
[]
[null,"BMP",null,null,null,null,null,null,null,null,null,null,null,null,null,"Feasibility",null,null,null,null,null,null,"Infeasibility Criteria"]
[]
[null,"Trees",null,null,null,null,null,null,null,null,null,null,null,null,null,null,null,null,null,null,null,null,null,null,null,null,null,null,null,null,null,null,null,null,null,null,null,null,null,null,null,null,null,null,null,null,null,null,null,null,null,null,null,null,null,null,null,null,null,null,null,null,null,null,null,null,null,null,null,null,"Trees",{"$f":"IF(BZ52,\"Feasibility\",\"NoEval\")","v":"Feasibility"},{"$f":"IF(OR(P52=\"\",BX52),FALSE,OR(NOT(BZ52),BV52))","v":false},{"$f":"P52=\"Infeasible\"","v":false},{"$f":"AND(BV52,NOT(W52=\"\"))","v":false},{"$f":"P52=\"Use BMP\"","v":false},false,{"$f":"INDEX(CB52:CG52,MATCH($BZ$2,$CB$2:$CG$2,0))","v":true},null,false,false,false,true,true,true]
[null,null,{"$f":"IF($N$9=\"Roof\",\"Evaluation not required for roof surfaces.\",\"\")","v":""}]

{"sheet":"Road","index":4,"n_rows":54,"n_cols":85,"rows_kept":54,"cut":false,"hidden":true,"merged":[[25,22,25,67],[0,0,0,68],[0,79,0,84],[1,0,1,68],[6,13,6,18],[6,70,13,70],[6,72,13,72],[6,73,13,73],[6,75,13,75],[6,76,13,76],[6,77,13,77],[6,71,13,71],[6,84,13,84],[8,13,8,18],[12,13,12,18],[18,15,18,20],[18,22,18,67],[6,78,13,78],[6,79,13,79],[6,80,13,80],[10,13,10,21],[6,81,13,81],[6,82,13,82],[6,83,13,83],[6,74,13,74],[8,22,8,67],[10,23,10,67],[53,15,53,20],[53,22,53,67],[3,13,3,23],[34,15,34,20],[34,22,34,67],[44,15,44,20],[44,22,44,67],[28,15,28,20],[28,22,28,67],[31,15,31,20],[31,22,31,67],[37,15,37,20],[37,22,37,67],[46,22,46,67],[46,15,46,20],[25,15,25,20]]}
["On-site Stormwater Management Calculator - List Approach",null,null,null,null,null,null,null,null,null,null,null,null,null,null,null,null,null,null,null,null,null,null,null,null,null,null,null,null,null,null,null,null,null,null,null,null,null,null,null,null,null,null,null,null,null,null,null,null,null,null,null,null,null,null,null,null,null,null,null,null,null,null,null,null,null,null,null,null,null,null,null,null,null,null,null,null,"Column to Use",null,"Evaluation Required"]
["Surface Identification and BMP Evaluation for Roadway Projects",null,null,null,null,null,null,null,null,null,null,null,null,null,null,null,null,null,null,null,null,null,null,null,null,null,null,null,null,null,null,null,null,null,null,null,null,null,null,null,null,null,null,null,null,null,null,null,null,null,null,null,null,null,null,null,null,null,null,null,null,null,null,null,null,null,null,null,null,null,"None Feasible",null,null,null,null,{"$f":"AND(COUNTIFS(BT19:BT54,\"Feasibility\",BV19:BV54,TRUE)=COUNTIF(BT19:BT54,\"Feasibility\"),COUNTIF(BX19:BX54,TRUE)=0)","v":false},null,{"$f":"OFFSET(CA2,0,IF($N$9=\"Roof\",0,3)+'Project Summary'!$AS$35)","v":4},null,1,2,3,4,5,6]
[]
[null,"Project No.",null,null,null,null,null,null,null,null,null,null,null,{"$f":"'Project Summary'!$AG$6","v":0},null,null,null,null,null,null,null,null,null,null,null,null,null,null,null,null,null,null,null,null,null,null,null,null,null,null,null,null,null,null,null,null,null,null,null,null,null,null,null,null,null,null,null,null,null,null,null,null,null,null,null,null,null,null,null,null,null,null,null,null,null,null,null,null,null,"Roof","Roof","Roof","Surface","Surface","Surface"]
[]
[]
[null,"Hard Surface Number",null,null,null,null,null,null,null,null,null,null,null,null,null,null,null,null,null,null,null,null,null,null,null,null,null,null,null,null,null,null,null,null,null,null,null,null,null,null,null,null,null,null,null,null,null,null,null,null,null,null,null,null,null,null,null,null,null,null,null,null,null,null,null,null,null,null,null,null,"BMP","Dropdown Lookup","Grey Out","Infeasible Selected","Infeasible Criteria Entered","BMP Selected","Other BMP in Group Selected","Evaluation Required","Infiltration /Dispersion Infeasible","Not designated receiving water","Public combined sewer or capacity constrained","Designated Receiving Water","Not designated receiving water","Public combined sewer or capacity constrained","Designated Receiving Water"]
[]
[null,"Hard Surface Type",null,null,null,null,null,null,null,null,null,null,null,null,null,null,null,null,null,"´",null,null,{"$f":"IF(COUNTIF(BX19:BX80,TRUE)>1,\"More than one Use BMP selected, please select only one. \",\"\") & IF(SUMPRODUCT($BV$19:$BV$81*NOT(BW19:BW81)*NOT(BY19:BY81)) > 0,SUMPRODUCT($BV$19:$BV$81*NOT(BW19:BW81)*NOT(BY19:BY81))&\" BMP(s) require infeasibility criteria.\",\"\")","v":""}]
[]
[null,"Hard Surface Description",null,null,null,null,null,null,null,null,null,null,null,null,null,null,null,null,null,null,null,null,":"]
[]
[null,"Surface Area (sf)"]
[]
["Category 1            (Select 1 BMP from Category 1, order does not matter, or move to Category 2)",null,null,null,null,null,null,null,null,null,null,null,null,null,null,null,null,null,null,null,null,null,null,null,null,null,null,null,null,null,null,null,null,null,null,null,null,null,null,null,null,null,null,null,null,null,null,null,null,null,null,null,null,null,null,null,null,null,null,null,null,null,null,null,null,null,null,null,null,null,"Category 1"]
[]
[null,"BMP",null,null,null,null,null,null,null,null,null,null,null,null,null,"Feasibility",null,null,null,null,null,null,"Infeasibility Criteria"]
[]
[null,"Full Dispersion",null,null,null,null,null,null,null,null,null,null,null,null,null,null,null,null,null,null,null,null,null,null,null,null,null,null,null,null,null,null,null,null,null,null,null,null,null,null,null,null,null,null,null,null,null,null,null,null,null,null,null,null,null,null,null,null,null,null,null,null,null,null,null,null,null,null,null,null,"Full Dispersion",{"$f":"IF(BZ19,IF(CA19,\"Infeasible\",\"Feasibility\"),\"NoEval\")","v":"Feasibility"},{"$f":"IF(OR(P19=\"\",BX19),FALSE,OR(NOT(BZ19),BV19))","v":false},{"$f":"P19=\"Infeasible\"","v":false},{"$f":"AND(BV19,NOT(W19=\"\"))","v":false},{"$f":"P19=\"Use BMP\"","v":false},false,{"$f":"INDEX(CB19:CG19,MATCH($BZ$2,$CB$2:$CG$2,0))","v":true},{"$f":"Dispersion","v":false},false,false,false,true,true,true]
[]
[]
["Category 2",null,null,null,null,null,null,null,null,null,null,null,null,null,null,null,null,null,null,null,null,null,null,null,null,null,null,null,null,null,null,null,null,null,null,null,null,null,null,null,null,null,null,null,null,null,null,null,null,null,null,null,null,null,null,null,null,null,null,null,null,null,null,null,null,null,null,null,null,null,"Category 2",null,{"$f":"NOT(AND(BU19:BU21,N9<>\"\"))","v":true}]
[]
[null,"BMP",null,null,null,null,null,null,null,null,null,null,null,null,null,"Feasibility",null,null,null,null,null,null,"Infeasibility Criteria"]
[]
[null,"Rain Garden",null,null,null,null,null,null,null,null,null,null,null,null,null,null,null,null,null,null,null,null,null,null,null,null,null,null,null,null,null,null,null,null,null,null,null,null,null,null,null,null,null,null,null,null,null,null,null,null,null,null,null,null,null,null,null,null,null,null,null,null,null,null,null,null,null,null,null,null,"Rain Garden",{"$f":"IF(BZ26,IF(CA26,\"Infeasible\",\"Feasibility\"),\"NoEval\")","v":"Feasibility"},{"$f":"IF(OR(P26=\"\",BX26),FALSE,OR(NOT(BZ26),BV26))","v":false},{"$f":"P26=\"Infeasible\"","v":false},{"$f":"AND(BV26,NOT(W26=\"\"))","v":false},{"$f":"P26=\"Use BMP\"","v":false},{"$f":"OR(BX29,BX32,BX35)","v":false},{"$f":"INDEX(CB26:CG26,MATCH($BZ$2,$CB$2:$CG$2,0))","v":true},{"$f":"AND(InfExploration,OR(InfiltrationInfeasible,MeasuredInfRate<0.3))","v":false},false,false,false,{"$f":"AND(NOT('Project Summary'!$AS$47),NOT('Project Summary'!$AS$49),$N$13<5000)","v":true},{"$f":"AND(NOT('Project Summary'!$AS$47),NOT('Project Summary'!$AS$49),$N$13<5000)","v":true},{"$f":"AND(NOT('Project Summary'!$AS$47),NOT('Project Summary'!$AS$49),$N$13<5000)","v":true}]
[null,null,{"$f":"IF($N$9=\"\",\"\",IF(MeasuredInfRate<0.3,\"\",IF(OR('Project Summary'!AS47,'Project Summary'!AS49),\"Evaluation not allowed when project requires Flow Control or Water Quality Treatment\",IF(N13>=5000,\"Evaluation not allowed for sites with greater than 5,000 sf of hard surface infiltrating onsite\",\"\"))))","v":""}]
[]
[null,"Infiltrating Bioretention",null,null,null,null,null,null,null,null,null,null,null,null,null,null,null,null,null,null,null,null,null,null,null,null,null,null,null,null,null,null,null,null,null,null,null,null,null,null,null,null,null,null,null,null,null,null,null,null,null,null,null,null,null,null,null,null,null,null,null,null,null,null,null,null,null,null,null,null,"Infiltrating Bioretention",{"$f":"IF(BZ29,IF(CA29,\"Infeasible\",\"Feasibility\"),\"NoEval\")","v":"Feasibility"},{"$f":"IF(OR(P29=\"\",BX29),FALSE,OR(NOT(BZ29),BV29))","v":false},{"$f":"P29=\"Infeasible\"","v":false},{"$f":"AND(BV29,NOT(W29=\"\"))","v":false},{"$f":"P29=\"Use BMP\"","v":false},{"$f":"OR(BX26,BX32,BX35)","v":false},{"$f":"INDEX(CB29:CG29,MATCH($BZ$2,$CB$2:$CG$2,0))","v":true},{"$f":"AND(InfExploration,OR(InfiltrationInfeasible,MeasuredInfRate<0.3))","v":false},false,false,false,true,true,true]
[null,null,{"$f":"IF(N9<>\"\",\nIF(BZ2>=5, \"Evaluation is only allowed when contributing area is sufficient to warrant minimum bioretention cell size in ROW.\",\"\"),\"\")","v":""}]
[]
[null,"Permeable Pavement Facility",null,null,null,null,null,null,null,null,null,null,null,null,null,null,null,null,null,null,null,null,null,null,null,null,null,null,null,null,null,null,null,null,null,null,null,null,null,null,null,null,null,null,null,null,null,null,null,null,null,null,null,null,null,null,null,null,null,null,null,null,null,null,null,null,null,null,null,null,"Permeable Pavement Facility",{"$f":"IF(CA32,\"Infeasible\",\nIF(BZ2=4,\nIF(N11=\"Arterial Street or Collector\",\"NoEval\",\"NotRequired\"),\nIF(BZ2=5,\nIF(AND(N11=\"ROW\", N13<2000),\"NoEval\",IF(OR(N11=\"ROW\",N11=\"Other\"),\"NotRequired\",\"NoEval\")),\nIF(BZ2=6,\nIF(AND(N13>=2000, OR(N11=\"ROW\",N11=\"Other\")),\"NotRequired\",IF(AND(N13<2000,N11=\"Other\"),\"NoEval\",IF(AND(N13<2000,N11=\"ROW\"),\"NoEval\",\"NoEval\"))),\"Feasibility\"))))","v":"NotRequired"},{"$f":"IF(OR(P32=\"\",BX32),FALSE,OR(NOT(BZ32),BV32))","v":false},{"$f":"P32=\"Infeasible\"","v":false},{"$f":"AND(BV32,NOT(W32=\"\"))","v":false},{"$f":"P32=\"Use BMP\"","v":false},{"$f":"OR(BX26,BX29,BX35)","v":false},{"$f":"INDEX(CB32:CG32,MATCH($BZ$2,$CB$2:$CG$2,0))","v":false},{"$f":"AND(InfExploration,OR(InfiltrationInfeasible,MeasuredInfRate<0.3))","v":false},false,false,false,false,false,false]
[null,null,{"$f":"IF(BX32,\"Note the surface area (\"&N13&\" sf) should represent the area contributing to the permeable pavement facility. Facility area will be entered on the BMP Sizing tab.\",\"\")","v":""}]
[]
[null,"Permeable Pavement Surface",null,null,null,null,null,null,null,null,null,null,null,null,null,null,null,null,null,null,null,null,null,null,null,null,null,null,null,null,null,null,null,null,null,null,null,null,null,null,null,null,null,null,null,null,null,null,null,null,null,null,null,null,null,null,null,null,null,null,null,null,null,null,null,null,null,null,null,null,"Permeable Pavement Surface",{"$f":"IF(BZ2=4,IF(N11=\"Arterial Street or Collector\",\"NoEval\",IF(CA35,\"Infeasible\",\"Feasibility\")),\nIF(BZ2=5,IF(AND(N11=\"ROW\",N13<2000),\"NoEval\",IF(OR(N11=\"ROW\",N11=\"Other\"),IF(CA35,\"Infeasible\",\"Feasibility\"),\"NoEval\")),\nIF(BZ2=6,IF(AND(N11=\"Other\",N13<2000),\"NoEval\",IF(AND(N11=\"ROW\",N13<2000),\"NoEval\",IF(OR(N11=\"Other\",N11=\"ROW\"),IF(CA35,\"Infeasible\",\"NotRequired\"),\"NoEval\"))))))","v":"Feasibility"},{"$f":"IF(OR(P35=\"\",BX35),FALSE,OR(NOT(BZ35),BV35))","v":false},{"$f":"P35=\"Infeasible\"","v":false},{"$f":"AND(BV35,NOT(W35=\"\"))","v":false},{"$f":"P35=\"Use BMP\"","v":false},{"$f":"OR(BX26,BX29,BX32)","v":false},{"$f":"INDEX(CB35:CG35,MATCH($BZ$2,$CB$2:$CG$2,0))","v":true},null,false,false,false,{"$f":"IF(N11=\"Arterial Street or Collector\",FALSE,TRUE)","v":true},{"$f":"IF(AND(N11=\"ROW\",N13<2000),FALSE,IF(OR(N11=\"ROW\",N11=\"Other\"),TRUE,FALSE))","v":false},{"$f":"AND(N13>=2000,OR(N11=\"Other\",N11=\"ROW\"))","v":false}]
[null,null,{"$f":"IF(N9=\"\",\"\",\nIF(MeasuredInfRate<0.3, \"\",\nIF(BZ2=4,IF(N11=\"Arterial Street or Collector\",\"Evaluation is not allowed if roadway is an arterial street or collector.\",\"\"),\nIF(BZ2=5,IF(AND(N11=\"ROW\",N13<2000),\"Minimum permeable pavement area allowed in the ROW is 2,000 sf.\",IF(OR(N11=\"ROW\",N11=\"Other\"),\"\",\"Evaluation of roadway surfaces, including alleys, is not allowed.\")),\nIF(BZ2=6,IF(AND(N11=\"Other\",N13<2000),\"Evaluation is not allowed if new plus replaced PGHS is less than 2,000 sf.\",IF(AND(N11=\"ROW\",N13<2000),\"Minimum permeable pavement area allowed in the ROW is 2,000 sf.\",IF(OR(N11=\"Other\",N11=\"ROW\"),\"\",\"Evaluation of roadway surfaces, including alleys, is not allowed.\"))))))))","v":""}]
[]
[null,"Sidewalk/Trail Compost-Amended Strip",null,null,null,null,null,null,null,null,null,null,null,null,null,null,null,null,null,null,null,null,null,null,null,null,null,null,null,null,null,null,null,null,null,null,null,null,null,null,null,null,null,null,null,null,null,null,null,null,null,null,null,null,null,null,null,null,null,null,null,null,null,null,null,null,null,null,null,null,"Sidewalk/Trail Compost-Amended Strip",{"$f":"IF(N9=\"Roof\",\"NoEval\",\"NotRequired\")","v":"NotRequired"},{"$f":"IF(OR(P38=\"\",BX38),FALSE,OR(NOT(BZ38),BV38))","v":false},{"$f":"P38=\"Infeasible\"","v":false},{"$f":"AND(BV38,NOT(W38=\"\"))","v":false},{"$f":"P38=\"Use BMP\"","v":false},{"$f":"OR(BX29,BX32,BX35)","v":false},{"$f":"INDEX(CB38:CG38,MATCH($BZ$2,$CB$2:$CG$2,0))","v":false},{"$f":"AND(InfExploration,OR(InfiltrationInfeasible,InfRate<0.15), 'Project Summary'!$AA$64<>Lookup!$R$2)","v":false},false,false,false,false,false,false]
[null,null,{"$f":"IF(N9=\"\",\"\",\n\"Evaluation of roadway surfaces, including alleys, is not allowed.\")","v":""}]
[]
["Category 3",null,null,null,null,null,null,null,null,null,null,null,null,null,null,null,null,null,null,null,null,null,null,null,null,null,null,null,null,null,null,null,null,null,null,null,null,null,null,null,null,null,null,null,null,null,null,null,null,null,null,null,null,null,null,null,null,null,null,null,null,null,null,null,null,null,null,null,null,null,"Category 3",null,{"$f":"NOT(AND(BU19:BU21,BU25:BU39,N9<>\"\"))","v":true}]
[]
[null,"BMP",null,null,null,null,null,null,null,null,null,null,null,null,null,"Feasibility",null,null,null,null,null,null,"Infeasibility Criteria"]
[]
[null,"Sheet Flow Dispersion",null,null,null,null,null,null,null,null,null,null,null,null,null,null,null,null,null,null,null,null,null,null,null,null,null,null,null,null,null,null,null,null,null,null,null,null,null,null,null,null,null,null,null,null,null,null,null,null,null,null,null,null,null,null,null,null,null,null,null,null,null,null,null,null,null,null,null,null,"Sheet Flow Dispersion",{"$f":"IF(BZ45,IF(CA45,\"Infeasible\",\"Feasibility\"),\"NoEval\")","v":"Feasibility"},{"$f":"IF(OR(P45=\"\",BX45),FALSE,OR(NOT(BZ45),BV45))","v":false},{"$f":"P45=\"Infeasible\"","v":false},{"$f":"AND(BV45,NOT(W45=\"\"))","v":false},{"$f":"P45=\"Use BMP\"","v":false},{"$f":"BX47","v":false},{"$f":"INDEX(CB45:CG45,MATCH($BZ$2,$CB$2:$CG$2,0))","v":true},{"$f":"Dispersion","v":false},false,false,false,true,true,true]
[]
[null,"Concentrated Flow Dispersion",null,null,null,null,null,null,null,null,null,null,null,null,null,null,null,null,null,null,null,null,null,null,null,null,null,null,null,null,null,null,null,null,null,null,null,null,null,null,null,null,null,null,null,null,null,null,null,null,null,null,null,null,null,null,null,null,null,null,null,null,null,null,null,null,null,null,null,null,"Concentrated Flow Dispersion",{"$f":"IF(BZ47,IF(CA47,\"Infeasible\",\"Feasibility\"),\"NoEval\")","v":"Feasibility"},{"$f":"IF(OR(P47=\"\",BX47),FALSE,OR(NOT(BZ47),BV47))","v":false},{"$f":"P47=\"Infeasible\"","v":false},{"$f":"AND(BV47,NOT(W47=\"\"))","v":false},{"$f":"P47=\"Use BMP\"","v":false},{"$f":"BX45","v":false},{"$f":"INDEX(CB47:CG47,MATCH($BZ$2,$CB$2:$CG$2,0))","v":true},{"$f":"Dispersion","v":false},false,false,false,true,true,true]
[]
[]
["Category 4",null,null,null,null,null,null,null,null,null,null,null,null,null,null,null,null,null,null,null,null,null,null,null,null,null,null,null,null,null,null,null,null,null,null,null,null,null,null,null,null,null,null,null,null,null,null,null,null,null,null,null,null,null,null,null,null,null,null,null,null,null,null,null,null,null,null,null,null,null,"Category 4",null,{"$f":"NOT(AND(BU19,BU26:BU38,BU45:BU47,N9<>\"\"))","v":true}]
[]
[null,"BMP",null,null,null,null,null,null,null,null,null,null,null,null,null,"Feasibility",null,null,null,null,null,null,"Infeasibility Criteria"]
[]
[null,"Trees",null,null,null,null,null,null,null,null,null,null,null,null,null,null,null,null,null,null,null,null,null,null,null,null,null,null,null,null,null,null,null,null,null,null,null,null,null,null,null,null,null,null,null,null,null,null,null,null,null,null,null,null,null,null,null,null,null,null,null,null,null,null,null,null,null,null,null,null,"Trees",{"$f":"IF(BZ54,\"Feasibility\",\"NoEval\")","v":"Feasibility"},{"$f":"IF(OR(P54=\"\",BX54),FALSE,OR(NOT(BZ54),BV54))","v":false},{"$f":"P54=\"Infeasible\"","v":false},{"$f":"AND(BV54,NOT(W54=\"\"))","v":false},{"$f":"P54=\"Use BMP\"","v":false},false,{"$f":"INDEX(CB54:CG54,MATCH($BZ$2,$CB$2:$CG$2,0))","v":true},{"$f":"Dispersion","v":false},false,false,false,true,true,true]

{"sheet":"Parcel","index":5,"n_rows":90,"n_cols":85,"rows_kept":90,"cut":false,"hidden":true,"merged":[[0,0,0,68],[31,15,31,20],[34,15,34,20],[37,15,37,20],[40,15,40,20],[24,15,24,20],[1,0,1,68],[10,13,10,67],[18,22,18,67],[8,13,8,18],[12,13,12,18],[18,15,18,20],[21,15,21,20],[24,22,24,67],[37,22,37,67],[34,22,34,67],[88,15,88,20],[85,15,85,20],[78,15,78,20],[78,22,78,67],[8,22,8,67],[43,15,43,20],[69,15,69,20],[53,15,53,20],[56,15,56,20],[59,15,59,20],[62,15,62,20],[69,22,69,67],[62,22,62,67],[59,22,59,67],[56,22,56,67],[21,22,21,67],[6,77,13,77],[6,72,13,72],[6,74,13,74],[90,22,90,57],[85,22,85,67],[88,22,88,67],[43,22,43,67],[31,22,31,67],[6,71,13,71],[6,73,13,73],[6,75,13,75],[6,76,13,76],[6,70,13,70],[6,78,13,78],[0,79,0,84],[6,84,13,84],[6,83,13,83],[6,82,13,82],[6,81,13,81],[6,80,13,80],[6,79,13,79],[46,15,46,20],[46,22,46,67],[75,15,75,20],[75,22,75,67],[3,13,3,22],[6,13,6,18],[40,22,40,67],[53,22,53,67],[72,15,72,20],[72,22,72,67]]}
["On-site Stormwater Management Calculator - List Approach",null,null,null,null,null,null,null,null,null,null,null,null,null,null,null,null,null,null,null,null,null,null,null,null,null,null,null,null,null,null,null,null,null,null,null,null,null,null,null,null,null,null,null,null,null,null,null,null,null,null,null,null,null,null,null,null,null,null,null,null,null,null,null,null,null,null,null,null,null,null,null,null,null,null,null,null,"Column to Use",null,"Evaluation Required"]
["Surface Identification and BMP Evaluation for Parcel-Based Projects",null,null,null,null,null,null,null,null,null,null,null,null,null,null,null,null,null,null,null,null,null,null,null,null,null,null,null,null,null,null,null,null,null,null,null,null,null,null,null,null,null,null,null,null,null,null,null,null,null,null,null,null,null,null,null,null,null,null,null,null,null,null,null,null,null,null,null,null,null,"None Feasible",null,null,null,null,{"$f":"AND(COUNTIFS(BT19:BT89,\"Feasibility\",BV19:BV89,TRUE)=COUNTIF(BT19:BT89,\"Feasibility\"),COUNTIF(BX19:BX89,TRUE)=0)","v":false},null,{"$f":"OFFSET(CA2,0,IF($N$9=\"Roof\",0,3)+'Project Summary'!$AS$35)","v":4},null,1,2,3,4,5,6]
[]
[null,"Project No.",null,null,null,null,null,null,null,null,null,null,null,{"$f":"'Project Summary'!$AG$6","v":0},null,null,null,null,null,null,null,null,null,null,null,null,null,null,null,null,null,null,null,null,null,null,null,null,null,null,null,null,null,null,null,null,null,null,null,null,null,null,null,null,null,null,null,null,null,null,null,null,null,null,null,null,null,null,null,null,null,null,null,null,null,null,null,null,null,"Roof","Roof","Roof","Surface","Surface","Surface"]
[]
[]
[null,"Hard Surface Number",null,null,null,null,null,null,null,null,null,null,null,null,null,null,null,null,null,null,null,null,null,null,null,null,null,null,null,null,null,null,null,null,null,null,null,null,null,null,null,null,null,null,null,null,null,null,null,null,null,null,null,null,null,null,null,null,null,null,null,null,null,null,null,null,null,null,null,null,"BMP","Dropdown Lookup","Grey Out","Infeasible Selected","Infeasibility Criteria Selected","BMP Selected","Other BMP in Group Selected","Evaluation Required","Dispersion/Infiltration Infeasible","Not designated receiving water","Public combined sewer or capacity constrained","Designated Receiving Water","Not designated receiving water","Public combined sewer or capacity constrained","Designated Receiving Water"]
[]
[null,"Hard Surface Type",null,null,null,null,null,null,null,null,null,null,null,null,null,null,null,null,null,"´",null,null,{"$f":"IF(COUNTIF(BX19:BX92,TRUE)>1,\"More than one Use BMP selected, please select only one. \",\"\") & IF(SUMPRODUCT($BV$19:$BV$93*NOT(BW19:BW93)*NOT(BY19:BY93)) > 0,SUMPRODUCT($BV$19:$BV$93*NOT(BW19:BW93)*NOT(BY19:BY93))&\" BMP(s) require infeasibility criteria.\",\"\")","v":""}]
[]
[null,"Hard Surface Description"]
[]
[null,"Surface Area (sf)"]
[]
["Category 1            (Select 1 BMP from Category 1, order does not matter, or move to Category 2)",null,null,null,null,null,null,null,null,null,null,null,null,null,null,null,null,null,null,null,null,null,null,null,null,null,null,null,null,null,null,null,null,null,null,null,null,null,null,null,null,null,null,null,null,null,null,null,null,null,null,null,null,null,null,null,null,null,null,null,null,null,null,null,null,null,null,null,null,null,"Category 1"]
[]
[null,"BMP",null,null,null,null,null,null,null,null,null,null,null,null,null,"Feasibility",null,null,null,null,null,null,"Infeasibility Criteria (see infeasibility criteria tab for full text)"]
[]
[null,"Full Dispersion",null,null,null,null,null,null,null,null,null,null,null,null,null,null,null,null,null,null,null,null,null,null,null,null,null,null,null,null,null,null,null,null,null,null,null,null,null,null,null,null,null,null,null,null,null,null,null,null,null,null,null,null,null,null,null,null,null,null,null,null,null,null,null,null,null,null,null,null,"Full Dispersion",{"$f":"IF(BZ19,IF(CA19,\"Infeasible\",\"Feasibility\"),\"NoEval\")","v":"Feasibility"},{"$f":"IF(OR(BX19,P19=\"\"),FALSE,OR(NOT(BZ19),BV19))","v":false},{"$f":"P19=\"Infeasible\"","v":false},{"$f":"AND(BV19,NOT(W19=\"\"))","v":false},{"$f":"P19=\"Use BMP\"","v":false},{"$f":"OR(BX22,BX25)","v":false},{"$f":"INDEX(CB19:CG19,MATCH($BZ$2,$CB$2:$CG$2,0))","v":true},{"$f":"Dispersion","v":false},true,true,true,true,true,true]
[]
[]
[null,"Infiltration Trench",null,null,null,null,null,null,null,null,null,null,null,null,null,null,null,null,null,null,null,null,null,null,null,null,null,null,null,null,null,null,null,null,null,null,null,null,null,null,null,null,null,null,null,null,null,null,null,null,null,null,null,null,null,null,null,null,null,null,null,null,null,null,null,null,null,null,null,null,"Infiltration Trench",{"$f":"IF(BZ22,IF(CA22,\"Infeasible\",\"Feasibility\"),IF(N9=\"Roof\",\"NoEval\",\"NotRequired\"))","v":"NotRequired"},{"$f":"IF(OR(BX22,P22=\"\"),FALSE,OR(NOT(BZ22),BV22))","v":false},{"$f":"P22=\"Infeasible\"","v":false},{"$f":"AND(BV22,NOT(W22=\"\"))","v":false},{"$f":"P22=\"Use BMP\"","v":false},{"$f":"OR(BX19,BX25)","v":false},{"$f":"INDEX(CB22:CG22,MATCH($BZ$2,$CB$2:$CG$2,0))","v":false},{"$f":"AND(InfExploration,OR(InfiltrationInfeasible,MeasuredInfRate<5))","v":false},true,true,true,false,false,false]
[null,null,{"$f":"IF(N9=\"\",\"\",IF(N9=\"Roof\",\"\",\"Evaluation is not required but allowed.\"))","v":""}]
[]
[null,"Dry Well",null,null,null,null,null,null,null,null,null,null,null,null,null,null,null,null,null,null,null,null,null,null,null,null,null,null,null,null,null,null,null,null,null,null,null,null,null,null,null,null,null,null,null,null,null,null,null,null,null,null,null,null,null,null,null,null,null,null,null,null,null,null,null,null,null,null,null,null,"Dry Well",{"$f":"IF(BZ25,IF(CA25,\"Infeasible\",\"Feasibility\"),IF(N12=\"Roof\",\"NoEval\",\"NotRequired\"))","v":"NotRequired"},{"$f":"IF(OR(BX25,P25=\"\"),FALSE,OR(NOT(BZ25),BV25))","v":false},{"$f":"P25=\"Infeasible\"","v":false},{"$f":"AND(BV25,NOT(W25=\"\"))","v":false},{"$f":"P25=\"Use BMP\"","v":false},{"$f":"OR(BX19,BX22)","v":false},{"$f":"INDEX(CB25:CG25,MATCH($BZ$2,$CB$2:$CG$2,0))","v":false},{"$f":"AND(InfExploration,OR(InfiltrationInfeasible,MeasuredInfRate<5))","v":false},true,true,true,false,false,false]
[null,null,{"$f":"IF(N9=\"\",\"\",IF(N9=\"Roof\",\"\",\"Evaluation is not required but allowed.\"))","v":""}]
[]
["Category 2",null,null,null,null,null,null,null,null,null,null,null,null,null,null,null,null,null,null,null,null,null,null,null,null,null,null,null,null,null,null,null,null,null,null,null,null,null,null,null,null,null,null,null,null,null,null,null,null,null,null,null,null,null,null,null,null,null,null,null,null,null,null,null,null,null,null,null,null,null,"Category 2",null,{"$f":"NOT(AND(BU19:BU25,N9<>\"\"))","v":true}]
[]
[null,"BMP",null,null,null,null,null,null,null,null,null,null,null,null,null,"Feasibility",null,null,null,null,null,null,"Infeasibility Criteria"]
[]
[null,"Rain Garden",null,null,null,null,null,null,null,null,null,null,null,null,null,null,null,null,null,null,null,null,null,null,null,null,null,null,null,null,null,null,null,null,null,null,null,null,null,null,null,null,null,null,null,null,null,null,null,null,null,null,null,null,null,null,null,null,null,null,null,null,null,null,null,null,null,null,null,null,"Rain Garden",{"$f":"IF(BZ32,IF(CA32,\"Infeasible\",\"Feasibility\"),\"NoEval\")","v":"Feasibility"},{"$f":"IF(OR(BX32,P32=\"\"),FALSE,OR(NOT(BZ32),BV32))","v":false},{"$f":"P32=\"Infeasible\"","v":false},{"$f":"AND(BV32,NOT(W32=\"\"))","v":false},{"$f":"P32=\"Use BMP\"","v":false},{"$f":"OR(BX35,BX38,BX41,BX44,BX47)","v":false},{"$f":"INDEX(CB32:CG32,MATCH($BZ$2,$CB$2:$CG$2,0))","v":true},{"$f":"AND(InfExploration,OR(InfiltrationInfeasible,MeasuredInfRate<0.3))","v":false},{"$f":"AND(NOT('Project Summary'!$AS$47),NOT('Project Summary'!$AS$49),N13<5000)","v":true},{"$f":"AND(NOT('Project Summary'!$AS$47),NOT('Project Summary'!$AS$49),N13<5000)","v":true},{"$f":"AND(NOT('Project Summary'!$AS$47),NOT('Project Summary'!$AS$49),N13<5000)","v":true},{"$f":"AND(NOT('Project Summary'!$AS$47),NOT('Project Summary'!$AS$49),N13<5000)","v":true},{"$f":"AND(NOT('Project Summary'!$AS$47),NOT('Project Summary'!$AS$49),N13<5000)","v":true},{"$f":"AND(NOT('Project Summary'!$AS$47),NOT('Project Summary'!$AS$49),N13<5000)","v":true}]
[null,null,{"$f":"IF($N$9=\"\",\"\",IF(BZ32,\"\",\"Evaluation not allowed when project requires flow control or water quality treatment or >5000 SF hard surface is infiltrated onsite.\"))","v":""}]
[]
[null,"Infiltrating Bioretention",null,null,null,null,null,null,null,null,null,null,null,null,null,null,null,null,null,null,null,null,null,null,null,null,null,null,null,null,null,null,null,null,null,null,null,null,null,null,null,null,null,null,null,null,null,null,null,null,null,null,null,null,null,null,null,null,null,null,null,null,null,null,null,null,null,null,null,null,"Infiltrating Bioretention",{"$f":"IF(BZ35,IF(CA35,\"Infeasible\",\"Feasibility\"),\"NoEval\")","v":"Feasibility"},{"$f":"IF(OR(BX35,P35=\"\"),FALSE,OR(NOT(BZ35),BV35))","v":false},{"$f":"P35=\"Infeasible\"","v":false},{"$f":"AND(BV35,NOT(W35=\"\"))","v":false},{"$f":"P35=\"Use BMP\"","v":false},{"$f":"OR(BX32,BX38,BX41,BX44,BX47)","v":false},{"$f":"INDEX(CB35:CG35,MATCH($BZ$2,$CB$2:$CG$2,0))","v":true},{"$f":"AND(InfExploration,OR(InfiltrationInfeasible,MeasuredInfRate<0.3))","v":false},true,true,true,true,true,true]
[]
[]
[null,"Rainwater Harvesting - Category 2 Sizing",null,null,null,null,null,null,null,null,null,null,null,null,null,null,null,null,null,null,null,null,null,null,null,null,null,null,null,null,null,null,null,null,null,null,null,null,null,null,null,null,null,null,null,null,null,null,null,null,null,null,null,null,null,null,null,null,null,null,null,null,null,null,null,null,null,null,null,null,"Rainwater Harvesting - Category 2",{"$f":"IF(N9=\"Roof\",IF(BZ38,\"Feasibility\",\"NotRequired\"),\"NoEval\")","v":"NoEval"},{"$f":"IF(OR(BX38,P38=\"\"),FALSE,OR(NOT(BZ38),BV38))","v":false},{"$f":"P38=\"Infeasible\"","v":false},{"$f":"AND(BV38,NOT(W38=\"\"))","v":false},{"$f":"P38=\"Use BMP\"","v":false},{"$f":"OR(BX32,BX35,BX41,BX44,BX47)","v":false},{"$f":"INDEX(CB38:CG38,MATCH($BZ$2,$CB$2:$CG$2,0))","v":false},null,{"$f":"'Project Summary'!$P$83>=10000","v":false},{"$f":"'Project Summary'!$P$83>=10000","v":false},false,false,false,false]
[null,null,{"$f":"IF($N$9=\"\",\"\",\nIF(N9=\"Roof\",IF(BZ2=3,\"Evaluation not required but allowed.\",\"\"),\"Evaluation not allowed for non-roof surfaces.\"))","v":""}]
[]
[null,"Permeable Pavement Facility",null,null,null,null,null,null,null,null,null,null,null,null,null,null,null,null,null,null,null,null,null,null,null,null,null,null,null,null,null,null,null,null,null,null,null,null,null,null,null,null,null,null,null,null,null,null,null,null,null,null,null,null,null,null,null,null,null,null,null,null,null,null,null,null,null,null,null,null,"Permeable Pavement Facility",{"$f":"IF($CA$41,\"Infeasible\",\"Feasibility\")","v":"Feasibility"},{"$f":"IF(OR(BX41,P41=\"\"),FALSE,OR(NOT(BZ41),BV41))","v":false},{"$f":"P41=\"Infeasible\"","v":false},{"$f":"AND(BV41,NOT(W41=\"\"))","v":false},{"$f":"P41=\"Use BMP\"","v":false},{"$f":"OR(BX32,BX35,BX38,BX44,BX47)","v":false},{"$f":"INDEX(CB41:CG41,MATCH($BZ$2,$CB$2:$CG$2,0))","v":true},{"$f":"AND(InfExploration,OR(InfiltrationInfeasible,MeasuredInfRate<0.3))","v":false},true,true,true,true,true,true]
[null,null,{"$f":"IF(BX41,\"Note: the surface area (\"&N13&\" sf) must represent the area contributing to the permeable pavement facility. Do not create a separate surface tab for the Permeable Pavement Facility, facility area will be entered on the BMP Sizing sheet.\",\"\")","v":""}]
[]
[null,"Permeable Pavement Surface",null,null,null,null,null,null,null,null,null,null,null,null,null,null,null,null,null,null,null,null,null,null,null,null,null,null,null,null,null,null,null,null,null,null,null,null,null,null,null,null,null,null,null,null,null,null,null,null,null,null,null,null,null,null,null,null,null,null,null,null,null,null,null,null,null,null,null,null,"Permeable Pavement Surface",{"$f":"IF(NOT($BZ$44),\"NoEval\",IF($CA$44,\"Infeasible\",\"Feasibility\"))","v":"Feasibility"},{"$f":"IF(OR(BX44,P44=\"\"),FALSE,OR(NOT(BZ44),BV44))","v":false},{"$f":"P44=\"Infeasible\"","v":false},{"$f":"AND(BV44,NOT(W44=\"\"))","v":false},{"$f":"P44=\"Use BMP\"","v":false},{"$f":"OR(BX32,BX35,BX38,BX41,BX47)","v":false},{"$f":"INDEX(CB44:CG44,MATCH($BZ$2,$CB$2:$CG$2,0))","v":true},null,false,false,false,true,true,true]
[null,null,{"$f":"IF(N9=\"\",\"\",IF(N9=\"Roof\",\"Evaluation not allowed for roof surfaces.\",\"\"))","v":""}]
[]
[null,"Sidewalk/Trail Compost-Amended Strip",null,null,null,null,null,null,null,null,null,null,null,null,null,null,null,null,null,null,null,null,null,null,null,null,null,null,null,null,null,null,null,null,null,null,null,null,null,null,null,null,null,null,null,null,null,null,null,null,null,null,null,null,null,null,null,null,null,null,null,null,null,null,null,null,null,null,null,null,"Sidewalk/Trail Compost-Amended Strip",{"$f":"IF(NOT($BZ$47),\"NoEval\",\"Feasibility\")","v":"Feasibility"},{"$f":"IF(OR(BX47,P47=\"\"),FALSE,OR(NOT(BZ47),BV47))","v":false},{"$f":"P47=\"Infeasible\"","v":false},{"$f":"AND(BV47,NOT(W47=\"\"))","v":false},{"$f":"P47=\"Use BMP\"","v":false},{"$f":"OR(BX32,BX35,BX38,BX41,BX44)","v":false},{"$f":"INDEX(CB47:CG47,MATCH($BZ$2,$CB$2:$CG$2,0))","v":true},{"$f":"AND(InfExploration,OR(InfiltrationInfeasible,InfRate<0.15), 'Project Summary'!$AA$64<>Lookup!$R$2)","v":false},false,false,false,true,true,true]
[null,null,{"$f":"IF(N9=\"\",\"\",IF(N9=\"Roof\",\"Evaluation not allowed for roof surfaces.\",\"\"))","v":""}]
[]
["Category 3",null,null,null,null,null,null,null,null,null,null,null,null,null,null,null,null,null,null,null,null,null,null,null,null,null,null,null,null,null,null,null,null,null,null,null,null,null,null,null,null,null,null,null,null,null,null,null,null,null,null,null,null,null,null,null,null,null,null,null,null,null,null,null,null,null,null,null,null,null,"Category 3",null,{"$f":"NOT(AND(BU19:BU27,BU29:BU47,N9<>\"\"))","v":true}]
[]
[null,"BMP",null,null,null,null,null,null,null,null,null,null,null,null,null,"Feasibility",null,null,null,null,null,null,"Infeasibility Criteria"]
[]
[null,"Sheet Flow Dispersion",null,null,null,null,null,null,null,null,null,null,null,null,null,null,null,null,null,null,null,null,null,null,null,null,null,null,null,null,null,null,null,null,null,null,null,null,null,null,null,null,null,null,null,null,null,null,null,null,null,null,null,null,null,null,null,null,null,null,null,null,null,null,null,null,null,null,null,null,"Sheet Flow Dispersion",{"$f":"IF(BZ54,\"Feasibility\",\"Infeasible\")","v":"Feasibility"},{"$f":"IF(OR(BX54,P54=\"\"),FALSE,OR(NOT(BZ54),BV54))","v":false},{"$f":"P54=\"Infeasible\"","v":false},{"$f":"AND(BV54,NOT(W54=\"\"))","v":false},{"$f":"P54=\"Use BMP\"","v":false},{"$f":"OR(BX57,BX60,BX63)","v":false},{"$f":"AND(INDEX(CB54:CG54,MATCH($BZ$2,$CB$2:$CG$2,0)),NOT(CA54))","v":true},{"$f":"Dispersion","v":false},true,true,true,true,true,true]
[]
[]
[null,"Concentrated Flow Dispersion",null,null,null,null,null,null,null,null,null,null,null,null,null,null,null,null,null,null,null,null,null,null,null,null,null,null,null,null,null,null,null,null,null,null,null,null,null,null,null,null,null,null,null,null,null,null,null,null,null,null,null,null,null,null,null,null,null,null,null,null,null,null,null,null,null,null,null,null,"Concentrated Flow Dispersion",{"$f":"IF(BZ57,\"Feasibility\",IF(N9=\"Roof\",\"NoEval\",\"Infeasible\"))","v":"Feasibility"},{"$f":"IF(OR(BX57,P57=\"\"),FALSE,OR(NOT(BZ57),BV57))","v":false},{"$f":"P57=\"Infeasible\"","v":false},{"$f":"AND(BV57,NOT(W57=\"\"))","v":false},{"$f":"P57=\"Use BMP\"","v":false},{"$f":"OR(BX54,BX60,BX63)","v":false},{"$f":"AND(INDEX(CB57:CG57,MATCH($BZ$2,$CB$2:$CG$2,0)),NOT(CA57))","v":true},{"$f":"Dispersion","v":false},false,false,false,true,true,true]
[null,null,{"$f":"IF($N$9=\"Roof\",\"Evaluation not allowed for roof surfaces.\",\"\")","v":""}]
[]
[null,"Splashblock Downspout Dispersion",null,null,null,null,null,null,null,null,null,null,null,null,null,null,null,null,null,null,null,null,null,null,null,null,null,null,null,null,null,null,null,null,null,null,null,null,null,null,null,null,null,null,null,null,null,null,null,null,null,null,null,null,null,null,null,null,null,null,null,null,null,null,null,null,null,null,null,null,"Splashblock Downspout Dispersion",{"$f":"IF(BZ60,\"Feasibility\",IF(CA60,\"Infeasible\",\"NoEval\"))","v":"NoEval"},{"$f":"IF(OR(BX60,P60=\"\"),FALSE,OR(NOT(BZ60),BV60))","v":false},{"$f":"P60=\"Infeasible\"","v":false},{"$f":"AND(BV60,NOT(W60=\"\"))","v":false},{"$f":"P60=\"Use BMP\"","v":false},{"$f":"OR(BX54,BX57,BX63)","v":false},{"$f":"AND(INDEX(CB60:CG60,MATCH($BZ$2,$CB$2:$CG$2,0)),NOT(CA60))","v":false},{"$f":"Dispersion","v":false},true,true,true,false,false,false]
[null,null,{"$f":"IF($N$9=\"\",\"\",IF($N$9=\"Roof\",\"\",\"Evaluation not allowed for non-roof surfaces.\"))","v":""}]
[]
[null,"Trench Downspout Dispersion",null,null,null,null,null,null,null,null,null,null,null,null,null,null,null,null,null,null,null,null,null,null,null,null,null,null,null,null,null,null,null,null,null,null,null,null,null,null,null,null,null,null,null,null,null,null,null,null,null,null,null,null,null,null,null,null,null,null,null,null,null,null,null,null,null,null,null,null,"Trench Downspout Dispersion",{"$f":"IF(BZ63,\"Feasibility\",IF(CA63,\"Infeasible\",\"NoEval\"))","v":"NoEval"},{"$f":"IF(OR(BX63,P63=\"\"),FALSE,OR(NOT(BZ63),BV63))","v":false},{"$f":"P63=\"Infeasible\"","v":false},{"$f":"AND(BV63,NOT(W63=\"\"))","v":false},{"$f":"P63=\"Use BMP\"","v":false},{"$f":"OR(BX54,BX57,BX60)","v":false},{"$f":"AND(INDEX(CB63:CG63,MATCH($BZ$2,$CB$2:$CG$2,0)),NOT(CA63))","v":false},{"$f":"Dispersion","v":false},true,true,true,false,false,false]
[null,null,{"$f":"IF($N$9=\"\",\"\",IF($N$9=\"Roof\",\"\",\"Evaluation not allowed for non-roof surfaces.\"))","v":""}]
[]
["Category 4",null,null,null,null,null,null,null,null,null,null,null,null,null,null,null,null,null,null,null,null,null,null,null,null,null,null,null,null,null,null,null,null,null,null,null,null,null,null,null,null,null,null,null,null,null,null,null,null,null,null,null,null,null,null,null,null,null,null,null,null,null,null,null,null,null,null,null,null,null,"Category 4",null,{"$f":"NOT(AND(BU18:BU26,BU31:BU48,BU54:BU63,N9<>\"\"))","v":true}]
[]
[null,"BMP",null,null,null,null,null,null,null,null,null,null,null,null,null,"Feasibility",null,null,null,null,null,null,"Infeasibility Criteria"]
[]
[null,"Non-Infiltrating Bioretention (NIB)",null,null,null,null,null,null,null,null,null,null,null,null,null,null,null,null,null,null,null,null,null,null,null,null,null,null,null,null,null,null,null,null,null,null,null,null,null,null,null,null,null,null,null,null,null,null,null,null,null,null,null,null,null,null,null,null,null,null,null,null,null,null,null,null,null,null,null,null,"Non-Infiltrating Bioretention",{"$f":"IF(BZ70,\"Feasibility\",\"Infeasible\")","v":"Feasibility"},{"$f":"IF(OR(BX70,P70=\"\"),FALSE,OR(NOT(BZ70),BV70))","v":false},{"$f":"P70=\"Infeasible\"","v":false},{"$f":"AND(BV70,NOT(W70=\"\"))","v":false},{"$f":"P70=\"Use BMP\"","v":false},{"$f":"OR(BX73,BX76,BX79)","v":false},{"$f":"INDEX(CB70:CG70,MATCH($BZ$2,$CB$2:$CG$2,0))","v":true},null,true,true,true,true,true,true]
[]
[null,null,null,null,null,null,null,null,null,null,null,null,null,null,null,null,null,null,null,null,null,null,null,null,null,null,null,null,null,null,null,null,null,null,null,null,null,null,null,null,null,null,null,null,null,null,null,null,null,null,null,null,null,null,null,null,null,null,null,null,null,null,null,null,null,null,null,null,null,null,null,"\""]
[null,"Water Quality BMP in lieu of NIB",null,null,null,null,null,null,null,null,null,null,null,null,null,null,null,null,null,null,null,null,null,null,null,null,null,null,null,null,null,null,null,null,null,null,null,null,null,null,null,null,null,null,null,null,null,null,null,null,null,null,null,null,null,null,null,null,null,null,null,null,null,null,null,null,null,null,null,null,"Water Quality BMP in lieu of NIB",{"$f":"IF('Project Summary'!$Q$35=Lookup!$I$5,\"NoEval\",\"UseorNotEvaluated\")","v":"UseorNotEvaluated"},{"$f":"IF(OR(BX73,P73=\"\"),FALSE,OR(NOT(BZ73),BV73))","v":false},{"$f":"P73=\"Infeasible\"","v":false},{"$f":"AND(BV73,NOT(W73=\"\"))","v":false},{"$f":"P73=\"Use BMP\"","v":false},{"$f":"OR(BX70,BX76,BX79)","v":false},{"$f":"INDEX(CB73:CG73,MATCH($BZ$2,$CB$2:$CG$2,0))","v":true},null,{"$f":"NOT('Project Summary'!$Q$35=Lookup!$I$5)","v":true},{"$f":"NOT('Project Summary'!$Q$35=Lookup!$I$5)","v":true},{"$f":"NOT('Project Summary'!$Q$35=Lookup!$I$5)","v":true},{"$f":"NOT('Project Summary'!$Q$35=Lookup!$I$5)","v":true},{"$f":"NOT('Project Summary'!$Q$35=Lookup!$I$5)","v":true},{"$f":"NOT('Project Summary'!$Q$35=Lookup!$I$5)","v":true}]
[null,null,{"$f":"IF(N9=\"\",\"\",IF('Project Summary'!Q35=Lookup!I5,\"Evaluation not allowed in Combined Sewer Service Area.\",\"Evaluation is allowed but not required.\"))","v":""}]
[]
[null,"Rainwater Harvesting - Category 4 Sizing",null,null,null,null,null,null,null,null,null,null,null,null,null,null,null,null,null,null,null,null,null,null,null,null,null,null,null,null,null,null,null,null,null,null,null,null,null,null,null,null,null,null,null,null,null,null,null,null,null,null,null,null,null,null,null,null,null,null,null,null,null,null,null,null,null,null,null,null,"Rainwater Harvesting - Category 4",{"$f":"IF(BZ76,\"NotRequired\",IF(N9=\"Roof\",\"NotRequired\",\"NoEval\"))","v":"NoEval"},{"$f":"IF(OR(BX76,P76=\"\"),FALSE,OR(NOT(BZ76),BV76))","v":false},{"$f":"P76=\"Infeasible\"","v":false},{"$f":"AND(BV76,NOT(W76=\"\"))","v":false},{"$f":"P76=\"Use BMP\"","v":false},{"$f":"OR(BX70,BX73,BX79)","v":false},{"$f":"INDEX(CB76:CG76,MATCH($BZ$2,$CB$2:$CG$2,0))","v":false},null,true,true,false,false,false,false]
[null,null,{"$f":"IF($N$9=\"\",\"\",\nIF(BZ2=3,\"Evaluation not required but allowed.\",\nIF(N9=\"Roof\",\"Evaluation not required for less than 20,000 sf of new and replaced rooftop but allowed.\",\"Evaluation not allowed for non-roof surfaces.\")))","v":""}]
[]
[null,"Vegetated Roof System",null,null,null,null,null,null,null,null,null,null,null,null,null,null,null,null,null,null,null,null," ",null,null,null,null,null,null,null,null,null,null,null,null,null,null,null,null,null,null,null,null,null,null,null,null,null,null,null,null,null,null,null,null,null,null,null,null,null,null,null,null,null,null,null,null,null,null,null,"Vegetated Roof System",{"$f":"IF(BZ79,IF(N9=\"Roof\",\"NotRequired\",\"NoEval\"),\"NotRequired\")","v":"NotRequired"},{"$f":"IF(OR(BX79,P79=\"\"),FALSE,OR(NOT(BZ79),BV79))","v":false},{"$f":"P79=\"Infeasible\"","v":false},{"$f":"AND(BV79,NOT(W79=\"\"))","v":false},{"$f":"P79=\"Use BMP\"","v":false},{"$f":"OR(BX70,BX73,BX76)","v":false},{"$f":"INDEX(CB79:CG79,MATCH($BZ$2,$CB$2:$CG$2,0))","v":false},null,true,true,false,false,false,false]
[null,null,{"$f":"IF($N$9=\"\",\"\",IF(N9=\"Roof\",IF(NOT(BZ79),\"Evaluation not required but allowed.\",\"Evaluation not required for less than 5,000 sf of new plus replaced rooftop surface.\"),\"Evaluation not allowed for non-roof surfaces.\"))","v":""}]
[]
["Category 5",null,null,null,null,null,null,null,null,null,null,null,null,null,null,null,null,null,null,null,null,null,null,null,null,null,null,null,null,null,null,null,null,null,null,null,null,null,null,null,null,null,null,null,null,null,null,null,null,null,null,null,null,null,null,null,null,null,null,null,null,null,null,null,null,null,null,null,null,null,"Category 5",null,{"$f":"NOT(AND(BU19:BU27,BU29:BU46,BU51:BU63,BU70:BU79,N9<>\"\"))","v":true}]
[]
[null,"BMP",null,null,null,null,null,null,null,null,null,null,null,null,null,"Feasibility",null,null,null,null,null,null,"Infeasibility Criteria"]
[]
[null,"Perforated Stub-out Connection",null,null,null,null,null,null,null,null,null,null,null,null,null,null,null,null,null,null,null,null,null,null,null,null,null,null,null,null,null,null,null,null,null,null,null,null,null,null,null,null,null,null,null,null,null,null,null,null,null,null,null,null,null,null,null,null,null,null,null,null,null,null,null,null,null,null,null,null,"Perforated Stub-out Connection",{"$f":"IF(N9=\"Roof\",IF(CA86,\"Infeasible\",\"Feasibility\"),\"NoEval\")","v":"NoEval"},{"$f":"IF(OR(BX86,P86=\"\"),FALSE,OR(NOT(BZ86),BV86))","v":false},{"$f":"P86=\"Infeasible\"","v":false},{"$f":"AND(BV86,NOT(W86=\"\"))","v":false},{"$f":"P86=\"Use BMP\"","v":false},{"$f":"BX89","v":false},{"$f":"INDEX(CB86:CG86,MATCH($BZ$2,$CB$2:$CG$2,0))","v":false},{"$f":"AND(InfExploration,OR(InfiltrationInfeasible,MeasuredInfRate<0.3))","v":false},true,true,true,false,false,false]
[null,null,{"$f":"IF($N$9=\"\",\"\",IF(N9=\"Roof\",\"\",\"Evaluation not allowed for non-roof surfaces.\"))","v":""}]
[]
[null,"Trees",null,null,null,null,null,null,null,null,null,null,null,null,null,null,null,null,null,null,null,null,null,null,null,null,null,null,null,null,null,null,null,null,null,null,null,null,null,null,null,null,null,null,null,null,null,null,null,null,null,null,null,null,null,null,null,null,null,null,null,null,null,null,null,null,null,null,null,null,"Trees",{"$f":"IF(N9=\"Roof\",\"NoEval\",\"Feasibility\")","v":"Feasibility"},{"$f":"IF(OR(BX89,P89=\"\"),FALSE,OR(NOT(BZ89),BV89))","v":false},{"$f":"P89=\"Infeasible\"","v":false},{"$f":"AND(BV89,NOT(W89=\"\"))","v":false},{"$f":"P89=\"Use BMP\"","v":false},{"$f":"BX86","v":false},{"$f":"INDEX(CB89:CG89,MATCH($BZ$2,$CB$2:$CG$2,0))","v":true},null,false,false,false,true,true,true]
[null,null,{"$f":"IF(NOT(BZ89),\"Evaluation not allowed for roof surfaces.\",\"\")","v":""}]

{"sheet":"Lookup","index":6,"n_rows":258,"n_cols":25,"rows_kept":258,"cut":false,"hidden":true,"merged":[]}
["Project Type","Surface Type","BMP Feasibility","Ponding Depths","Side slopes","YesNo","Check","No Eval","Drainage Basin","Basin + Capacity Constrained","On-Site List Lookup Column","Sheet Name","Infeasible Infiltration",null,"Empty List","Environmentally Critical Areas","Dispersion Infeasible","Infiltration Investigation No","Infiltration Investigation Yes","Infiltration Infeasible","ROW Surface List","Approved Point of Stormwater Discharge","Approved Point of Sub Discharge","Approved Point of Wastewater Discharge","Does Not Apply"]
["Single-Family Residential","Roof","-",6,"Vertical","Yes",null,"Not Evaluated","Listed Creek Basin","Listed Creek BasinYes",1,"SFR","Infeasible",null,{"$f":"\"\"","v":""},"No","Site cannot meet required horizontal setbacks ","Site is mapped as \"infltr. investigation not required\"","Simple infiltration test","Can’t meet setbacks from structures/property lines","ROW","Public Storm Drain Main ","Public Storm Drain Main ","Public Sanitary Sewer Main","Does Not Apply for Roadway or Trail and Sidewalk projects"]
["Trail and Sidewalk","Non-Roof","Infeasible",12,"3H:1V","No","✓","Evaluation not required for roof.","Non-listed Creek Basin","Non-listed Creek BasinYes",1,"Trail","Infiltration is infeasible on site.",null,null,"Geologic Hazard/ Steep Slope Area","Site constraints make dispersion infeasible","Other","Small PIT test","Can’t meet separation from groundwater/hard pan","Alley","Drainage Ditch","Drainage Ditch","Public Combined Sewer Main"]
["Parcel-Based",null,"Use BMP",null,null,null,null,"Evaluation not required for other surfaces.","Designated Receiving Water","Designated Receiving WaterYes",2,"Parcel","Dispersion is infeasible",null,null,"Flood-prone Area","Site cannot meet flow path requirements ",null,"Large PIT test","Can’t meet setbacks from environmental “Site Constraints”","Arterial Street or Collector","Drainage Culvert","Drainage Culvert","Existing Septic System (King County Public Health Department Approval Required)"]
["Roadway",null,"Not Evaluated",null,null,null,null,null,"Combined Sewer Service Area","Combined Sewer Service AreaYes",2,"Road",null,null,null,"Wetland","One or more of the infeasibility criteria for “All Dispersion BMPs” (Appendix C, Table C.1) apply.",null,"Deep infiltration test","Measured infl rate is less than 0.3 inch/hour","Roadway","Curb Weep Hole","Direct to Receiving Water"]
["Utility",null,"None Feasible",null,null,null,null,null,"Small Lake Basins","Small Lake BasinsYes",1,"x",null,null,null,"Fish and Wildlife Conservation Area",null,null,null,"Infeasibility criteria for “All Infiltration BMPs” applies","Other","Alley Surface Drain","Wetland"]
["Pavement Maintenance",null,null,null,null,null,null,null,"Wetland","WetlandYes",1,"x",null,null,null,"Abandoned Landfill",null,null,null,"Site is mapped as \"infltr. investigation not required\"",null,"Direct to Receiving Water","Public Combined Sewer Main"]
["Remediation",null,null,null,null,null,null,null,"N/A for Single Family Projects","Listed Creek BasinNo",1,"x",null,null,null,null,null,null,null,null,null,"Wetland","On Site Infiltration "]
["Stormwater Retrofit",null,null,null,null,null,null,null,null,"Non-listed Creek BasinNo",1,"x",null,null,null,null,null,null,null,null,null,"Public Combined Sewer Main"]
[null,null,null,null,null,null,null,null,null,"Designated Receiving WaterNo",3,null,null,null,null,null,null,null,null,null,null,"On Site Infiltration (No Off-site Point of Discharge)"]
[null,null,null,null,null,null,null,null,null,"Combined Sewer Service AreaNo",2,null,null,null,null,null,null,null,null,null,null,"Other"]
[null,null,null,null,null,null,null,null,null,"Small Lake BasinsNo",1]
[null,null,null,null,null,null,null,null,null,"WetlandNo",1]
[null,null,null,null,null,null,null,null,null,"Listed Creek Basin",1]
[null,null,null,null,null,null,null,null,null,"Non-listed Creek Basin",1]
[null,null,null,null,null,null,null,null,null,"Designated Receiving Water",3]
[null,null,null,null,null,null,null,null,null,"Combined Sewer Service Area",2]
[null,null,null,null,null,null,null,null,null,"Small Lake Basins",1]
[null,null,null,null,null,null,null,null,null,"Wetland",1]
["Full Dispersion","Infiltration Trench","Dry Well","Rain Garden","Infiltrating Bioretention","Rainwater Harvesting","Permeable Pavement Facility","Permeable Pavement Surface","Sheet Flow Dispersion","Concentrated Dispersion","Splashblock Downspout Dispersion","Trench Downspout Dispersion","Non-Infiltrating Bioretention","Vegetated Roof","Single-family Residential Cisterns","Perforated Stub-out Connection","New or Retained Trees","Sidewalk/Trail Compost-Amended Strip","Water Quality BMP in lieu of NIB"]
["Full Dispersion","Infiltration Trench #1","Dry Well #1","Rain Garden #1","Infiltrating Bioretention #1","Rainwater Harvesting - Category 2","Permeable Pavement Facility #1","Permeable Pavement Surface #1","Sheet Flow Dispersion","Concentrated Flow Dispersion","Splashblock Downspout Dispersion","Trench Downspout Dispersion","Non-Infiltrating Bioretention #1","Vegetated Roof System #1","Single-family Residential Cisterns #1","Perforated Stub-out Connection","Trees #1","Sidewalk/Trail Compost-Amended Strip","Water Quality BMP in lieu of NIB #1"]
[null,"Infiltration Trench #2","Dry Well #2","Rain Garden #2","Infiltrating Bioretention #2","Rainwater Harvesting - Category 4","Permeable Pavement Facility #2","Permeable Pavement Surface #2",null,null,null,null,"Non-Infiltrating Bioretention #2","Vegetated Roof System #2","Single-family Residential Cisterns #2",null,"Trees #2",null,"Water Quality BMP in lieu of NIB #2"]
[null,"Infiltration Trench #3","Dry Well #3","Rain Garden #3","Infiltrating Bioretention #3",null,"Permeable Pavement Facility #3","Permeable Pavement Surface #3",null,null,null,null,"Non-Infiltrating Bioretention #3","Vegetated Roof System #3","Single-family Residential Cisterns #3",null,"Trees #3",null,"Water Quality BMP in lieu of NIB #3"]
[null,"Infiltration Trench #4","Dry Well #4","Rain Garden #4","Infiltrating Bioretention #4",null,"Permeable Pavement Facility #4","Permeable Pavement Surface #4",null,null,null,null,"Non-Infiltrating Bioretention #4","Vegetated Roof System #4","Single-family Residential Cisterns #4",null,"Trees #4",null,"Water Quality BMP in lieu of NIB #4"]
[null,"Infiltration Trench #5","Dry Well #5","Rain Garden #5","Infiltrating Bioretention #5",null,"Permeable Pavement Facility #5","Permeable Pavement Surface #5",null,null,null,null,"Non-Infiltrating Bioretention #5","Vegetated Roof System #5","Single-family Residential Cisterns #5",null,"Trees #5",null,"Water Quality BMP in lieu of NIB #5"]
[null,"Infiltration Trench #6","Dry Well #6","Rain Garden #6","Infiltrating Bioretention #6",null,"Permeable Pavement Facility #6","Permeable Pavement Surface #6",null,null,null,null,"Non-Infiltrating Bioretention #6","Vegetated Roof System #6","Single-family Residential Cisterns #6",null,"Trees #6",null,"Water Quality BMP in lieu of NIB #6"]
[null,"Infiltration Trench #7","Dry Well #7","Rain Garden #7","Infiltrating Bioretention #7",null,"Permeable Pavement Facility #7","Permeable Pavement Surface #7",null,null,null,null,"Non-Infiltrating Bioretention #7","Vegetated Roof System #7","Single-family Residential Cisterns #7",null,"Trees #7",null,"Water Quality BMP in lieu of NIB #7"]
[null,"Infiltration Trench #8","Dry Well #8","Rain Garden #8","Infiltrating Bioretention #8",null,"Permeable Pavement Facility #8","Permeable Pavement Surface #8",null,null,null,null,"Non-Infiltrating Bioretention #8","Vegetated Roof System #8","Single-family Residential Cisterns #8",null,"Trees #8",null,"Water Quality BMP in lieu of NIB #8"]
[null,"Infiltration Trench #9","Dry Well #9","Rain Garden #9","Infiltrating Bioretention #9",null,"Permeable Pavement Facility #9","Permeable Pavement Surface #9",null,null,null,null,"Non-Infiltrating Bioretention #9","Vegetated Roof System #9","Single-family Residential Cisterns #9",null,"Trees #9",null,"Water Quality BMP in lieu of NIB #9"]
[null,"Infiltration Trench #10","Dry Well #10","Rain Garden #10","Infiltrating Bioretention #10",null,"Permeable Pavement Facility #10","Permeable Pavement Surface #10",null,null,null,null,"Non-Infiltrating Bioretention #10","Vegetated Roof System #10","Single-family Residential Cisterns #10",null,"Trees #10",null,"Water Quality BMP in lieu of NIB #10"]
[null,"Infiltration Trench #11","Dry Well #11","Rain Garden #11","Infiltrating Bioretention #11",null,"Permeable Pavement Facility #11","Permeable Pavement Surface #11",null,null,null,null,"Non-Infiltrating Bioretention #11","Vegetated Roof System #11","Single-family Residential Cisterns #11",null,"Trees #11",null,"Water Quality BMP in lieu of NIB #11"]
[null,"Infiltration Trench #12","Dry Well #12","Rain Garden #12","Infiltrating Bioretention #12",null,"Permeable Pavement Facility #12","Permeable Pavement Surface #12",null,null,null,null,"Non-Infiltrating Bioretention #12","Vegetated Roof System #12","Single-family Residential Cisterns #12",null,"Trees #12",null,"Water Quality BMP in lieu of NIB #12"]
[null,"Infiltration Trench #13","Dry Well #13","Rain Garden #13","Infiltrating Bioretention #13",null,"Permeable Pavement Facility #13","Permeable Pavement Surface #13",null,null,null,null,"Non-Infiltrating Bioretention #13","Vegetated Roof System #13","Single-family Residential Cisterns #13",null,"Trees #13",null,"Water Quality BMP in lieu of NIB #13"]
[null,"Infiltration Trench #14","Dry Well #14","Rain Garden #14","Infiltrating Bioretention #14",null,"Permeable Pavement Facility #14","Permeable Pavement Surface #14",null,null,null,null,"Non-Infiltrating Bioretention #14","Vegetated Roof System #14","Single-family Residential Cisterns #14",null,"Trees #14",null,"Water Quality BMP in lieu of NIB #14"]
[null,"Infiltration Trench #15","Dry Well #15","Rain Garden #15","Infiltrating Bioretention #15",null,"Permeable Pavement Facility #15","Permeable Pavement Surface #15",null,null,null,null,"Non-Infiltrating Bioretention #15","Vegetated Roof System #15","Single-family Residential Cisterns #15",null,"Trees #15",null,"Water Quality BMP in lieu of NIB #15"]
[null,"Infiltration Trench #16","Dry Well #16","Rain Garden #16","Infiltrating Bioretention #16",null,"Permeable Pavement Facility #16","Permeable Pavement Surface #16",null,null,null,null,"Non-Infiltrating Bioretention #16","Vegetated Roof System #16","Single-family Residential Cisterns #16",null,"Trees #16",null,"Water Quality BMP in lieu of NIB #16"]
[null,"Infiltration Trench #17","Dry Well #17","Rain Garden #17","Infiltrating Bioretention #17",null,"Permeable Pavement Facility #17","Permeable Pavement Surface #17",null,null,null,null,"Non-Infiltrating Bioretention #17","Vegetated Roof System #17","Single-family Residential Cisterns #17",null,"Trees #17",null,"Water Quality BMP in lieu of NIB #17"]
[null,"Infiltration Trench #18","Dry Well #18","Rain Garden #18","Infiltrating Bioretention #18",null,"Permeable Pavement Facility #18","Permeable Pavement Surface #18",null,null,null,null,"Non-Infiltrating Bioretention #18","Vegetated Roof System #18","Single-family Residential Cisterns #18",null,"Trees #18",null,"Water Quality BMP in lieu of NIB #18"]
[null,"Infiltration Trench #19","Dry Well #19","Rain Garden #19","Infiltrating Bioretention #19",null,"Permeable Pavement Facility #19","Permeable Pavement Surface #19",null,null,null,null,"Non-Infiltrating Bioretention #19","Vegetated Roof System #19","Single-family Residential Cisterns #19",null,"Trees #19",null,"Water Quality BMP in lieu of NIB #19"]
[null,"Infiltration Trench #20","Dry Well #20","Rain Garden #20","Infiltrating Bioretention #20",null,"Permeable Pavement Facility #20","Permeable Pavement Surface #20",null,null,null,null,"Non-Infiltrating Bioretention #20","Vegetated Roof System #20","Single-family Residential Cisterns #20",null,"Trees #20",null,"Water Quality BMP in lieu of NIB #20"]
[]
[null,"List 1","List 1","List 1","List 1",null,"List 1",null,null,null,null,null,"List 1","List 1",null,null,"List 1","List 1"]
[null,18,4,2,2,null,6,null,null,null,null,null,2,"Single-Course",null,null,"New Deciduous","< 10"]
[null,36,null,6,6,null,12,null,null,null,null,null,6,"Multi-Course",null,null,"New Evergreen","≥ 10"]
[null,null,null,null,12,null,null,null,null,null,null,null,12,null,null,null,"Retain Deciduous"]
[null,null,null,"List 2","List 2",null,"List 2",null,null,null,null,null,"List 2","List 2",null,null,"Retain Evergreen"]
[null,null,null,"Sloped sides","Sloped sides",null,"0%",null,null,null,null,null,"Sloped sides",4]
[null,null,null,"Vertical sides","Vertical sides",null,"5%",null,null,null,null,null,"Vertical sides",8,null,null,"List 2"]
[null,null,null,null,null,null,"10%",null,null,null,null,null,null,null,null,null,1]
[null,null,null,null,"List 3",null,"15%",null,null,null,null,null,null,"List 3",null,null,2]
[null,null,null,null,"Underdrain",null,"20%",null,null,null,null,null,null,null,null,null,3]
[null,null,null,null,"No Underdrain",null,"25%",null,null,null,null,null,null,null,null,null,4]
[null,null,null,null,null,null,"30%",null,null,null,null,null,null,null,null,null,5]
[null,null,null,null,null,null,"35%",null,null,null,null,null,null,null,null,null,6]
[null,null,null,null,null,null,"40%",null,null,null,null,null,null,null,null,null,7]
[null,null,null,null,null,null,"45%",null,null,null,null,null,null,null,null,null,8]
[null,null,null,null,null,null,"50%",null,null,null,null,null,null,null,null,null,9]
[null,null,null,null,null,null,"55%",null,null,null,null,null,null,null,null,null,10]
[null,null,null,null,null,null,"60%",null,null,null,null,null,null,null,null,null,11]
[null,null,null,null,null,null,"65%",null,null,null,null,null,null,null,null,null,12]
[null,null,null,null,null,null,"70%",null,null,null,null,null,null,null,null,null,13]
[null,null,null,null,null,null,"75%",null,null,null,null,null,null,null,null,null,14]
[null,null,null,null,null,null,"80%",null,null,null,null,null,null,null,null,null,15]
[null,null,null,null,null,null,"85%",null,null,null,null,null,null,null,null,null,16]
[null,null,null,null,null,null,"90%",null,null,null,null,null,null,null,null,null,17]
[null,null,null,null,null,null,"95%",null,null,null,null,null,null,null,null,null,18]
[null,null,null,null,null,null,"100%",null,null,null,null,null,null,null,null,null,19]
[null,null,null,null,null,null,null,null,null,null,null,null,null,null,null,null,20]
["BMPs","List More than One BMP option","Sizing Input 1","Sizing Input 2","Sizing Input 3","Units 1","Units 2","Infiltrating BMP",null,null,null,null,null,null,null,null,21]
["Full Dispersion",false,{"$f":"NA()","v":{"$error":"#N/A"}},{"$f":"NA()","v":{"$error":"#N/A"}},{"$f":"NA()","v":{"$error":"#N/A"}},{"$f":"NA()","v":{"$error":"#N/A"}},{"$f":"NA()","v":{"$error":"#N/A"}},false,null,null,null,null,null,null,null,null,22]
["Infiltration Trench",true,{"$f":"NA()","v":{"$error":"#N/A"}},{"$f":"NA()","v":{"$error":"#N/A"}},{"$f":"NA()","v":{"$error":"#N/A"}},{"$f":"NA()","v":{"$error":"#N/A"}},{"$f":"NA()","v":{"$error":"#N/A"}},true,null,null,null,null,null,null,null,null,23]
["Dry Well",true,"Aggregate Depth (ft)",{"$f":"NA()","v":{"$error":"#N/A"}},{"$f":"NA()","v":{"$error":"#N/A"}},"ft",{"$f":"NA()","v":{"$error":"#N/A"}},true,null,null,null,null,null,null,null,null,24]
["Rain Garden",true,"Ponding Depth (inch)","Sideslopes",{"$f":"NA()","v":{"$error":"#N/A"}},"inch",{"$f":"NA()","v":{"$error":"#N/A"}},true,null,null,null,null,null,null,null,null,25]
["Infiltrating Bioretention",true,"Ponding Depth (inch)","Sideslopes","Underdrain","inch",{"$f":"NA()","v":{"$error":"#N/A"}},true,null,null,null,null,null,null,null,null,26]
["Rainwater Harvesting - Category 2",false,{"$f":"NA()","v":{"$error":"#N/A"}},{"$f":"NA()","v":{"$error":"#N/A"}},{"$f":"NA()","v":{"$error":"#N/A"}},"gal",{"$f":"NA()","v":{"$error":"#N/A"}},false,null,null,null,null,null,null,null,null,27]
["Rainwater Harvesting - Category 4",false,{"$f":"NA()","v":{"$error":"#N/A"}},{"$f":"NA()","v":{"$error":"#N/A"}},{"$f":"NA()","v":{"$error":"#N/A"}},{"$f":"NA()","v":{"$error":"#N/A"}},{"$f":"NA()","v":{"$error":"#N/A"}},false,null,null,null,null,null,null,null,null,28]
["Permeable Pavement Facility",true,"Avg. Storage Depth (inch)","% Pollution Generating",{"$f":"NA()","v":{"$error":"#N/A"}},"inch","PGHS",true,null,null,null,null,null,null,null,null,29]
["Permeable Pavement Surface",true,{"$f":"NA()","v":{"$error":"#N/A"}},{"$f":"NA()","v":{"$error":"#N/A"}},{"$f":"NA()","v":{"$error":"#N/A"}},{"$f":"NA()","v":{"$error":"#N/A"}},{"$f":"NA()","v":{"$error":"#N/A"}},false,null,null,null,null,null,null,null,null,30]
["Sheet Flow Dispersion",false,{"$f":"NA()","v":{"$error":"#N/A"}},{"$f":"NA()","v":{"$error":"#N/A"}},{"$f":"NA()","v":{"$error":"#N/A"}},{"$f":"NA()","v":{"$error":"#N/A"}},{"$f":"NA()","v":{"$error":"#N/A"}},false,null,null,null,null,null,null,null,null,31]
["Concentrated Flow Dispersion",false,{"$f":"NA()","v":{"$error":"#N/A"}},{"$f":"NA()","v":{"$error":"#N/A"}},{"$f":"NA()","v":{"$error":"#N/A"}},{"$f":"NA()","v":{"$error":"#N/A"}},{"$f":"NA()","v":{"$error":"#N/A"}},false,null,null,null,null,null,null,null,null,32]
["Splashblock Downspout Dispersion",false,{"$f":"NA()","v":{"$error":"#N/A"}},{"$f":"NA()","v":{"$error":"#N/A"}},{"$f":"NA()","v":{"$error":"#N/A"}},{"$f":"NA()","v":{"$error":"#N/A"}},{"$f":"NA()","v":{"$error":"#N/A"}},false,null,null,null,null,null,null,null,null,33]
["Trench Downspout Dispersion",false,{"$f":"NA()","v":{"$error":"#N/A"}},{"$f":"NA()","v":{"$error":"#N/A"}},{"$f":"NA()","v":{"$error":"#N/A"}},{"$f":"NA()","v":{"$error":"#N/A"}},{"$f":"NA()","v":{"$error":"#N/A"}},false,null,null,null,null,null,null,null,null,34]
["Non-Infiltrating Bioretention",true,"Ponding Depth (inch)","Sideslopes",{"$f":"NA()","v":{"$error":"#N/A"}},"inch",{"$f":"NA()","v":{"$error":"#N/A"}},false,null,null,null,null,null,null,null,null,35]
["Vegetated Roof System",true,"Course","Media Depth (inch)",{"$f":"NA()","v":{"$error":"#N/A"}},{"$f":"NA()","v":{"$error":"#N/A"}},"inch",false,null,null,null,null,null,null,null,null,36]
["Perforated Stub-out Connection",false,{"$f":"NA()","v":{"$error":"#N/A"}},{"$f":"NA()","v":{"$error":"#N/A"}},{"$f":"NA()","v":{"$error":"#N/A"}},{"$f":"NA()","v":{"$error":"#N/A"}},{"$f":"NA()","v":{"$error":"#N/A"}},true,null,null,null,null,null,null,null,null,37]
["Single-family Residential Cisterns",true,{"$f":"NA()","v":{"$error":"#N/A"}},{"$f":"NA()","v":{"$error":"#N/A"}},{"$f":"NA()","v":{"$error":"#N/A"}},{"$f":"NA()","v":{"$error":"#N/A"}},{"$f":"NA()","v":{"$error":"#N/A"}},false,null,null,null,null,null,null,null,null,38]
["Trees",true,"Type","Number",{"$f":"NA()","v":{"$error":"#N/A"}},{"$f":"NA()","v":{"$error":"#N/A"}},{"$f":"NA()","v":{"$error":"#N/A"}},false,null,null,null,null,null,null,null,null,39]
["Sidewalk/Trail Compost-Amended Strip",false,{"$error":"#N/A"},{"$f":"NA()","v":{"$error":"#N/A"}},{"$f":"NA()","v":{"$error":"#N/A"}},"ft",{"$f":"NA()","v":{"$error":"#N/A"}},true,null,null,null,null,null,null,null,null,40]
["None Feasible",false,{"$error":"#N/A"},{"$error":"#N/A"},{"$error":"#N/A"},{"$error":"#N/A"},{"$error":"#N/A"},false,null,null,null,null,null,null,null,null,41]
["Water Quality BMP in lieu of NIB",true,{"$error":"#N/A"},{"$error":"#N/A"},{"$error":"#N/A"},{"$error":"#N/A"},{"$error":"#N/A"},true,null,null,null,null,null,null,null,null,42]
[null,null,null,null,null,null,null,null,null,null,null,null,null,null,null,null,43]
["BMP","List 1","List 2","List 3","Combined Lookup","Sizing Factor","Volume Managed CF/SF","Facility Units","Notes",null,null,null,null,null,null,null,44]
["Full Dispersion",null,null,null,{"$f":"TRIM(CONCATENATE(A93,B93,C93,D93))","v":"Full Dispersion"},{"$f":"NA()","v":{"$error":"#N/A"}},{"$f":"2.1*0.768","v":1.6128},null,null,null,null,null,null,null,null,null,45]
["Sidewalk/Trail Compost-Amended Strip","≥ 10",null,null,{"$f":"A94","v":"Sidewalk/Trail Compost-Amended Strip"},{"$f":"IF(InfRate<0.15,0,IF(InfRate<0.3,0.42, IF(InfRate<0.06,0.29,0.21)))","v":0},{"$f":"2.1*0.828","v":1.7387999999999999},"sf"]
["Sidewalk/Trail Compost-Amended Strip","< 10",null,null,{"$f":"A95","v":"Sidewalk/Trail Compost-Amended Strip"},{"$f":"IF(InfRate<0.15,0,IF(InfRate<0.3,0.33,IF(InfRate<0.06,0.21,0.13)))","v":0},{"$f":"2.1*0.828","v":1.7387999999999999},"sf"]
["Infiltration Trench",null,null,null,{"$f":"TRIM(CONCATENATE(A96,B96,C96,D96))","v":"Infiltration Trench"},{"$f":"IF(InfRate<1,0,IF(InfRate<2.5,0.15,IF(InfRate<5,0.105,IF(InfRate<7.5,0.057,IF(InfRate<10,0.048,0.04)))))","v":0},{"$f":"IF(F96=0,NA(),2.3*0.8108811)","v":{"$error":"#N/A"}},"sf","Volume Managed modeling done specifically for tool. See Volume Managed.xlsx. 1.5' Trench, 0.25 in/hr."]
["Dry Well",4,null,null,"Dry Well4",{"$f":"IF(InfRate<2.5,0,IF(InfRate<5,0.024,IF(InfRate<7.5,0.024,IF(InfRate<10,0.023,0.021))))","v":0},{"$f":"IF(F97=0,NA(),2.1*0.8149233)","v":{"$error":"#N/A"}},"sf","Modeling done specifically for tool. See Volume Managed.xlsx. 4' Drywell, 0.25 in/hr."]
["Rain Garden",2,"Sloped sides",null,"Rain Garden2Sloped sides",{"$f":"IF(InfRate<0.15,0,IF(InfRate<0.3,0.061, 0.045))","v":0},{"$f":"IF(F98=0,NA(),2.1*0.864)","v":{"$error":"#N/A"}},"sf","To develop sizing that meets Ecology’s requirements, we first developed sizing factors that provide a 5% wetted surface area (Table 1 below) and sizing factors that meet the LID Performance Standard for a forest condition (Table 2 below).  We then selected the larger of the two sizing factors for each ponding depth/infitlration rate scenario (highlighted in red in the tables below) and used them for the On-site List Sizing (provided in the table above). [[refer to O:\\proj\\Y2019\\19-07117-001\\Modeling\\ and 20-1116_OnSiteList_Sizing.xlsx and On-site List Sizing for Bioretention (Stormwater Manual Volume 3  ̶   Table 5.21)]]"]
["Rain Garden",6,"Sloped sides",null,"Rain Garden6Sloped sides",{"$f":"IF(OR(ProjectTypeCell=\"Roadway\",ProjectTypeCell=\"Trail and Sidewalk\"),-999,IF(InfRate<0.3,0,0.035))","v":0},{"$f":"IF(OR(F99=0, F99=-999),NA(),2.1*0.864)","v":{"$error":"#N/A"}},"sf","Green cells updated 2020"]
["Rain Garden",2,"Vertical sides",null,"Rain Garden2Vertical sides",-999,{"$f":"NA()","v":{"$error":"#N/A"}},"sf"]
["Rain Garden",6,"Vertical sides",null,"Rain Garden6Vertical sides",{"$f":"IF(OR(ProjectTypeCell=\"Roadway\",ProjectTypeCell=\"Trail and Sidewalk\"),-999,IF(InfRate<0.3,0,0.05))","v":0},{"$f":"IF(OR(F101=0,F101=-999),NA(),2.1*0.844)","v":{"$error":"#N/A"}},"sf","Rain garden ponding over 3\" not allowed for Road or Trail projects"]
["Infiltrating Bioretention",2,"Sloped sides","No Underdrain","Infiltrating Bioretention2Sloped sidesNo Underdrain",{"$f":"IF(InfRate<0.3,0,0.045)","v":0},{"$f":"IF(F102=0,NA(),2.1*0.864)","v":{"$error":"#N/A"}},"sf"]
["Infiltrating Bioretention",6,"Sloped sides","No Underdrain","Infiltrating Bioretention6Sloped sidesNo Underdrain",{"$f":"IF(InfRate<0.3,0,0.035)","v":0},{"$f":"IF(F103=0,NA(),2.1*0.864)","v":{"$error":"#N/A"}},"sf"]
["Infiltrating Bioretention",12,"Sloped sides","No Underdrain","Infiltrating Bioretention12Sloped sidesNo Underdrain",{"$f":"IF(InfRate<0.6,0,0.023)","v":0},{"$f":"IF(F104=0,NA(),2.1*0.864)","v":{"$error":"#N/A"}},"sf"]
["Infiltrating Bioretention",2,"Vertical sides","No Underdrain","Infiltrating Bioretention2Vertical sidesNo Underdrain",-999,{"$f":"NA()","v":{"$error":"#N/A"}},"sf"]
["Infiltrating Bioretention",6,"Vertical sides","No Underdrain","Infiltrating Bioretention6Vertical sidesNo Underdrain",{"$f":"IF(InfRate<0.3,0,0.05)","v":0},{"$f":"IF(OR(F106=0,F106=-999),NA(),2.1*0.844)","v":{"$error":"#N/A"}},"sf"]
["Infiltrating Bioretention",12,"Vertical sides","No Underdrain","Infiltrating Bioretention12Vertical sidesNo Underdrain",{"$f":"IF(InfRate<0.6,0,0.05)","v":0},{"$f":"IF(F107=0,NA(),2.1*0.844)","v":{"$error":"#N/A"}},"sf"]
["Infiltrating Bioretention",2,"Sloped sides","Underdrain","Infiltrating Bioretention2Sloped sidesUnderdrain",{"$f":"IF(InfRate<0.15,0,IF(InfRate<0.3,0.068,0.05))","v":0},{"$f":"IF(F108=0,NA(),2.1*0.864)","v":{"$error":"#N/A"}},"sf"]
["Infiltrating Bioretention",6,"Sloped sides","Underdrain","Infiltrating Bioretention6Sloped sidesUnderdrain",{"$f":"IF(InfRate<0.15,0,IF(InfRate<0.3,0.047,0.039))","v":0},{"$f":"IF(F109=0,NA(),2.1*0.864)","v":{"$error":"#N/A"}},"sf"]
["Infiltrating Bioretention",12,"Sloped sides","Underdrain","Infiltrating Bioretention12Sloped sidesUnderdrain",{"$f":"IF(InfRate<0.15,0,IF(InfRate<0.3,0.028,0.026))","v":0},{"$f":"IF(F110=0,NA(),2.1*0.864)","v":{"$error":"#N/A"}},"sf"]
["Infiltrating Bioretention",2,"Vertical sides","Underdrain","Infiltrating Bioretention2Vertical sidesUnderdrain",-999,{"$f":"NA()","v":{"$error":"#N/A"}},"sf"]
["Infiltrating Bioretention",6,"Vertical sides","Underdrain","Infiltrating Bioretention6Vertical sidesUnderdrain",{"$f":"IF(InfRate<0.15,0,IF(InfRate<0.3,0.072,0.056))","v":0},{"$f":"IF(OR(F112=0,F112=-999),NA(),2.1*0.844)","v":{"$error":"#N/A"}},"sf"]
["Infiltrating Bioretention",12,"Vertical sides","Underdrain","Infiltrating Bioretention12Vertical sidesUnderdrain",{"$f":"IF(InfRate<0.15,0,IF(InfRate<0.3,0.057,0.056))","v":0},{"$f":"IF(F113=0,NA(),2.1*0.844)","v":{"$error":"#N/A"}},"sf"]
["Rainwater Harvesting - Category 2",null,null,null,"Rainwater Harvesting - Category 2",1,{"$f":"NA()","v":{"$error":"#N/A"}},"gal"]
["Rainwater Harvesting - Category 4",null,null,null,{"$f":"TRIM(CONCATENATE(A115,B115,C115,D115))","v":"Rainwater Harvesting - Category 4"},1,{"$f":"NA()","v":{"$error":"#N/A"}},"gal"]
["Permeable Pavement Facility",6,"0%",null,"Permeable Pavement Facility60%",{"$f":"0.3*C116+0.2","v":0.2},{"$f":"2.1","v":2.1},"sf","Area weighted sizing factor. 50% for PGHS, 20% for Non-PGHS"]
["Permeable Pavement Facility",6,"5%",null,"Permeable Pavement Facility65%",{"$f":"0.3*C117+0.2","v":0.21500000000000002},{"$f":"2.1","v":2.1},"sf"]
["Permeable Pavement Facility",6,"10%",null,"Permeable Pavement Facility610%",0.23,{"$f":"2.1","v":2.1},"sf"]
["Permeable Pavement Facility",6,"15%",null,"Permeable Pavement Facility615%",0.245,2.1,"sf"]
["Permeable Pavement Facility",6,"20%",null,"Permeable Pavement Facility620%",0.26,2.1,"sf"]
["Permeable Pavement Facility",6,"25%",null,"Permeable Pavement Facility625%",0.27500000000000002,2.1,"sf"]
["Permeable Pavement Facility",6,"30%",null,"Permeable Pavement Facility630%",0.29000000000000004,2.1,"sf"]
["Permeable Pavement Facility",6,"35%",null,"Permeable Pavement Facility635%",0.30499999999999999,2.1,"sf"]
["Permeable Pavement Facility",6,"40%",null,"Permeable Pavement Facility640%",0.32,2.1,"sf"]
["Permeable Pavement Facility",6,"45%",null,"Permeable Pavement Facility645%",0.33500000000000002,2.1,"sf"]
["Permeable Pavement Facility",6,"50%",null,"Permeable Pavement Facility650%",0.35,2.1,"sf"]
["Permeable Pavement Facility",6,"55%",null,"Permeable Pavement Facility655%",0.36499999999999999,2.1,"sf"]
["Permeable Pavement Facility",6,"60%",null,"Permeable Pavement Facility660%",0.38,2.1,"sf"]
["Permeable Pavement Facility",6,"65%",null,"Permeable Pavement Facility665%",0.39500000000000002,2.1,"sf"]
["Permeable Pavement Facility",6,"70%",null,"Permeable Pavement Facility670%",0.41000000000000003,2.1,"sf"]
["Permeable Pavement Facility",6,"75%",null,"Permeable Pavement Facility675%",0.42499999999999999,2.1,"sf"]
["Permeable Pavement Facility",6,"80%",null,"Permeable Pavement Facility680%",0.44,2.1,"sf"]
["Permeable Pavement Facility",6,"85%",null,"Permeable Pavement Facility685%",0.45500000000000002,2.1,"sf"]
["Permeable Pavement Facility",6,"90%",null,"Permeable Pavement Facility690%",0.47000000000000003,2.1,"sf"]
["Permeable Pavement Facility",6,"95%",null,"Permeable Pavement Facility695%",0.48499999999999999,2.1,"sf"]
["Permeable Pavement Facility",6,"100%",null,"Permeable Pavement Facility6100%",0.5,2.1,"sf"]
["Permeable Pavement Facility",12,"0%",null,"Permeable Pavement Facility120%",{"$f":"0.3*C137+0.2","v":0.2},{"$f":"2.1","v":2.1},"sf"]
["Permeable Pavement Facility",12,"5%",null,"Permeable Pavement Facility125%",{"$f":"0.3*C138+0.2","v":0.21500000000000002},{"$f":"2.1","v":2.1},"sf"]
["Permeable Pavement Facility",12,"10%",null,"Permeable Pavement Facility1210%",0.23,{"$f":"2.1","v":2.1},"sf"]
["Permeable Pavement Facility",12,"15%",null,"Permeable Pavement Facility1215%",0.245,2.1,"sf"]
["Permeable Pavement Facility",12,"20%",null,"Permeable Pavement Facility1220%",0.26,2.1,"sf"]
["Permeable Pavement Facility",12,"25%",null,"Permeable Pavement Facility1225%",0.27500000000000002,2.1,"sf"]
["Permeable Pavement Facility",12,"30%",null,"Permeable Pavement Facility1230%",0.29000000000000004,2.1,"sf"]
["Permeable Pavement Facility",12,"35%",null,"Permeable Pavement Facility1235%",0.30499999999999999,2.1,"sf"]
["Permeable Pavement Facility",12,"40%",null,"Permeable Pavement Facility1240%",0.32,2.1,"sf"]
["Permeable Pavement Facility",12,"45%",null,"Permeable Pavement Facility1245%",0.33500000000000002,2.1,"sf"]
["Permeable Pavement Facility",12,"50%",null,"Permeable Pavement Facility1250%",0.35,2.1,"sf"]
["Permeable Pavement Facility",12,"55%",null,"Permeable Pavement Facility1255%",0.36499999999999999,2.1,"sf"]
["Permeable Pavement Facility",12,"60%",null,"Permeable Pavement Facility1260%",0.38,2.1,"sf"]
["Permeable Pavement Facility",12,"65%",null,"Permeable Pavement Facility1265%",0.39500000000000002,2.1,"sf"]
["Permeable Pavement Facility",12,"70%",null,"Permeable Pavement Facility1270%",0.41000000000000003,2.1,"sf"]
["Permeable Pavement Facility",12,"75%",null,"Permeable Pavement Facility1275%",0.42499999999999999,2.1,"sf"]
["Permeable Pavement Facility",12,"80%",null,"Permeable Pavement Facility1280%",0.44,2.1,"sf"]
["Permeable Pavement Facility",12,"85%",null,"Permeable Pavement Facility1285%",0.45500000000000002,2.1,"sf"]
["Permeable Pavement Facility",12,"90%",null,"Permeable Pavement Facility1290%",0.47000000000000003,2.1,"sf"]
["Permeable Pavement Facility",12,"95%",null,"Permeable Pavement Facility1295%",0.48499999999999999,2.1,"sf"]
["Permeable Pavement Facility",12,"100%",null,"Permeable Pavement Facility12100%",0.5,2.1,"sf"]
["Permeable Pavement Surface",null,null,null,"Permeable Pavement Surface",1,{"$f":"2.1*(1+0.85)/2","v":1.9425000000000001},"sf"]
["Sheet Flow Dispersion",null,null,null,"Sheet Flow Dispersion",{"$f":"NA()","v":{"$error":"#N/A"}},{"$f":"2.1*0.768","v":1.6128}]
["Concentrated Dispersion",null,null,null,"Concentrated Dispersion",{"$f":"NA()","v":{"$error":"#N/A"}},{"$f":"2.1*0.768","v":1.6128}]
["Splashblock Downspout Dispersion",null,null,null,{"$f":"TRIM(CONCATENATE(A161,B161,C161,D161))","v":"Splashblock Downspout Dispersion"},{"$f":"NA()","v":{"$error":"#N/A"}},{"$f":"2.1*0.768","v":1.6128}]
["Trench Downspout Dispersion",null,null,null,"Trench Downspout Dispersion",{"$f":"NA()","v":{"$error":"#N/A"}},{"$f":"2.1*0.768","v":1.6128}]
["Non-Infiltrating Bioretention",2,"Sloped sides",null,"Non-Infiltrating Bioretention2Sloped sides",{"$f":"NA()","v":{"$error":"#N/A"}},{"$f":"0.46*2.1","v":0.96600000000000008},"sf","DMA dependent, handled on BMP Sizing tab"]
["Non-Infiltrating Bioretention",6,"Sloped sides",null,{"$f":"TRIM(CONCATENATE(A164,B164,C164,D164))","v":"Non-Infiltrating Bioretention6Sloped sides"},{"$f":"NA()","v":{"$error":"#N/A"}},{"$f":"0.46*2.1","v":0.96600000000000008},"sf","DMA dependent, handled on BMP Sizing tab"]
["Non-Infiltrating Bioretention",12,"Sloped sides",null,{"$f":"TRIM(CONCATENATE(A165,B165,C165,D165))","v":"Non-Infiltrating Bioretention12Sloped sides"},{"$f":"NA()","v":{"$error":"#N/A"}},0.96600000000000008,"sf","DMA dependent, handled on BMP Sizing tab"]
["Non-Infiltrating Bioretention",2,"Vertical sides",null,"Non-Infiltrating Bioretention2Vertical sides",-999,{"$f":"NA()","v":{"$error":"#N/A"}},"sf"]
["Non-Infiltrating Bioretention",6,"Vertical sides",null,"Non-Infiltrating Bioretention6Vertical sides",1.2E-2,0.96600000000000008,"sf"]
["Non-Infiltrating Bioretention",12,"Vertical sides",null,"Non-Infiltrating Bioretention12Vertical sides",0.01,0.96600000000000008,"sf"]
["Vegetated Roof System","Single-Course",4,null,"Vegetated Roof SystemSingle-Course4",0.8,{"$f":"2.1*0.458","v":0.9618000000000001},"sf"]
["Vegetated Roof System","Multi-Course",4,null,"Vegetated Roof SystemMulti-Course4",0.8,{"$f":"2.1*0.458","v":0.9618000000000001},"sf"]
["Vegetated Roof System","Single-Course",8,null,"Vegetated Roof SystemSingle-Course8",0.8,{"$f":"2.1*0.458","v":0.9618000000000001},"sf"]
["Vegetated Roof System","Multi-Course",8,null,"Vegetated Roof SystemMulti-Course8",0.8,{"$f":"2.1*0.458","v":0.9618000000000001},"sf"]
["Perforated Stub-out Connection",null,null,null,"Perforated Stub-out Connection",{"$f":"NA()","v":{"$error":"#N/A"}},{"$f":"2.1*IF(InfRate<0.05,0.07,IF(InfRate<0.15,0.13,0.18))","v":0.14700000000000002},null,"From meghan modeling for perf stub outs 09/28/2015"]
["Single-family Residential Cisterns",0,null,null,"Single-family Residential Cisterns0",0,0,"sf"]
["Single-family Residential Cisterns",400,null,null,"Single-family Residential Cisterns400",3.5999999999999997E-2,{"$f":"2.1*0.95","v":1.9949999999999999},"min. 3 ft depth",{"$f":"RIGHT(H175,15)","v":"min. 3 ft depth"}]
["Single-family Residential Cisterns",500,null,null,"Single-family Residential Cisterns500",3.5999999999999997E-2,1.9949999999999999,"min. 3 ft depth"]
["Single-family Residential Cisterns",600,null,null,"Single-family Residential Cisterns600",3.5999999999999997E-2,1.9949999999999999,"min. 3 ft depth"]
["Single-family Residential Cisterns",700,null,null,"Single-family Residential Cisterns700",3.5999999999999997E-2,1.9949999999999999,"min. 3 ft depth"]
["Single-family Residential Cisterns",800,null,null,"Single-family Residential Cisterns800",2.8000000000000001E-2,1.9949999999999999,"min. 4 ft depth"]
["Single-family Residential Cisterns",900,null,null,"Single-family Residential Cisterns900",2.4E-2,1.9949999999999999,"min. 4 ft depth"]
["Single-family Residential Cisterns",1000,null,null,"Single-family Residential Cisterns1000",0.02,1.9949999999999999,"min. 4 ft depth"]
["Single-family Residential Cisterns",1100,null,null,"Single-family Residential Cisterns1100",1.7000000000000001E-2,1.9949999999999999,"in.. 4 ft depth"]
["Single-family Residential Cisterns",1200,null,null,"Single-family Residential Cisterns1200",1.4E-2,1.9949999999999999,"min. 4 ft depth"]
["Single-family Residential Cisterns",1300,null,null,"Single-family Residential Cisterns1300",1.4E-2,1.9949999999999999,"min. 5 ft depth"]
["Single-family Residential Cisterns",1400,null,null,"Single-family Residential Cisterns1400",1.2999999999999999E-2,1.9949999999999999,"min. 5 ft depth"]
["Single-family Residential Cisterns",1500,null,null,"Single-family Residential Cisterns1500",1.2999999999999999E-2,1.9949999999999999,"min. 5 ft depth"]
["Single-family Residential Cisterns",1600,null,null,"Single-family Residential Cisterns1600",1.2999999999999999E-2,1.9949999999999999,"min. 5 ft depth"]
["Single-family Residential Cisterns",1700,null,null,"Single-family Residential Cisterns1700",1.2999999999999999E-2,1.9949999999999999,"min. 5 ft depth"]
["Single-family Residential Cisterns",1800,null,null,"Single-family Residential Cisterns1800",1.2999999999999999E-2,1.9949999999999999,"min. 5 ft depth"]
["Single-family Residential Cisterns",1900,null,null,"Single-family Residential Cisterns1900",1.2E-2,1.9949999999999999,"min. 5 ft depth"]
["Single-family Residential Cisterns",2000,null,null,"Single-family Residential Cisterns2000",1.6E-2,1.9949999999999999,"min. 5 ft depth"]
["Single-family Residential Cisterns",2100,null,null,"Single-family Residential Cisterns2100",1.6E-2,1.9949999999999999,"min. 5 ft depth"]
["Single-family Residential Cisterns",2200,null,null,"Single-family Residential Cisterns2200",1.6E-2,1.9949999999999999,"min. 5 ft depth"]
["Single-family Residential Cisterns",2300,null,null,"Single-family Residential Cisterns2300",1.6E-2,1.9949999999999999,"min. 5 ft depth"]
["Single-family Residential Cisterns",2400,null,null,"Single-family Residential Cisterns2400",1.6E-2,1.9949999999999999,"min. 5 ft depth"]
["Single-family Residential Cisterns",2500,null,null,"Single-family Residential Cisterns2500",1.6E-2,1.9949999999999999,"min. 5 ft depth"]
["Single-family Residential Cisterns",2600,null,null,"Single-family Residential Cisterns2600",1.6E-2,1.9949999999999999,"min. 5 ft depth"]
["Single-family Residential Cisterns",2700,null,null,"Single-family Residential Cisterns2700",1.6E-2,1.9949999999999999,"min. 5 ft depth"]
["Single-family Residential Cisterns",2800,null,null,"Single-family Residential Cisterns2800",1.6E-2,1.9949999999999999,"min. 5 ft depth"]
["Single-family Residential Cisterns",2900,null,null,"Single-family Residential Cisterns2900",1.6E-2,1.9949999999999999,"min. 5 ft depth"]
["Single-family Residential Cisterns",3000,null,null,"Single-family Residential Cisterns3000",1.9E-2,1.9949999999999999,"min. 5 ft depth"]
["Single-family Residential Cisterns",3100,null,null,"Single-family Residential Cisterns3100",1.9E-2,1.9949999999999999,"min. 5 ft depth"]
["Single-family Residential Cisterns",3200,null,null,"Single-family Residential Cisterns3200",1.9E-2,1.9949999999999999,"min. 5 ft depth"]
["Single-family Residential Cisterns",3300,null,null,"Single-family Residential Cisterns3300",1.9E-2,1.9949999999999999,"min. 5 ft depth"]
["Single-family Residential Cisterns",3400,null,null,"Single-family Residential Cisterns3400",1.9E-2,1.9949999999999999,"min. 5 ft depth"]
["Single-family Residential Cisterns",3500,null,null,"Single-family Residential Cisterns3500",1.9E-2,1.9949999999999999,"min. 5 ft depth"]
["Single-family Residential Cisterns",3600,null,null,"Single-family Residential Cisterns3600",1.9E-2,1.9949999999999999,"min. 5 ft depth"]
["Single-family Residential Cisterns",3700,null,null,"Single-family Residential Cisterns3700",1.9E-2,1.9949999999999999,"min. 5 ft depth"]
["Single-family Residential Cisterns",3800,null,null,"Single-family Residential Cisterns3800",1.9E-2,1.9949999999999999,"min. 5 ft depth"]
["Single-family Residential Cisterns",3900,null,null,"Single-family Residential Cisterns3900",1.9E-2,1.9949999999999999,"min. 5 ft depth"]
["Single-family Residential Cisterns",4000,null,null,"Single-family Residential Cisterns4000",1.9E-2,1.9949999999999999,"min. 5 ft depth"]
["Single-family Residential Cisterns",4100,null,null,"Single-family Residential Cisterns4100",1.9E-2,1.9949999999999999,"min. 5 ft depth"]
["Single-family Residential Cisterns",4200,null,null,"Single-family Residential Cisterns4200",1.9E-2,1.9949999999999999,"min. 5 ft depth"]
["Single-family Residential Cisterns",4201,null,null,"Single-family Residential Cisterns4201",{"$error":"#N/A"},0]
["New or Retained Trees","New Deciduous",null,null,"New or Retained TreesNew Deciduous",1E-10,{"$f":"20*2.1","v":42},"new trees"]
["New or Retained Trees","New Evergreen",null,null,"New or Retained TreesNew Evergreen",1E-10,{"$f":"50*2.1","v":105},"sf canopy"]
["New or Retained Trees","Retain Deciduous",null,null,"New or Retained TreesRetain Deciduous",1E-10,{"$f":"50*2.1","v":105},"new trees"]
["New or Retained Trees","Retain Evergreen",null,null,"New or Retained TreesRetain Evergreen",1E-10,{"$f":"100*2.1","v":210},"sf canopy"]
["Water Quality BMP in lieu of NIB",null,null,null,{"$f":"TRIM(CONCATENATE(A219,B219,C219,D219))","v":"Water Quality BMP in lieu of NIB"},{"$f":"NA()","v":{"$error":"#N/A"}},{"$f":"0.46*2.1","v":0.96600000000000008},"sf",{"$f":"G219*1000*7.48052","v":7226.1823200000008}]
[null,null,null,null,""]
[]
["Infeasibility Criteria Lists"]
["Full Dispersion","Infiltration Trench","Dry Well","Rain Garden","Infiltrating Bioretention","Rainwater Harvesting","Permeable Pavement Facility","Permeable Pavement Surface","Sidewalk/Trail Compost-Amended Strip","Sheet Flow Dispersion","Concentrated Dispersion","Splashblock Downspout Dispersion","Trench Downspout Dispersion","Non-Infiltrating Bioretention","Vegetated Roof","Perforated Stub-out Connection","Trees","Single Family Residential Cistern"]
["A licensed professional recommends dispersion not be used anywhere within project site due to reasonable concerns of erosion, slope failure, or flooding.",{"$f":"IF(AND('Project Summary'!Q64=\"No\",'Project Summary'!AA64=\"Site is mapped as \"\"infltr. investigation not required\"\"\"),\"Site is mapped as \"\"Infiltration investigation not required.\"\"\",IF('Project Summary'!Q66=\"No\",IF('Project Summary'!Y66=\"\",\"Infiltration on site is infeasible\",'Project Summary'!Y66),\"The measured infiltration rate is below 5 inches per hour.\"))","v":"The measured infiltration rate is below 5 inches per hour."},{"$f":"IF(AND('Project Summary'!Q64=\"No\",'Project Summary'!AA64=\"Site is mapped as \"\"infltr. investigation not required\"\"\"),\"Site is mapped as \"\"Infiltration investigation not required.\"\"\",IF('Project Summary'!Q66=\"No\",IF('Project Summary'!Y66=\"\",\"Infiltration on site is infeasible\",'Project Summary'!Y66),\"The measured infiltration rate is below 5 inches per hour.\"))","v":"The measured infiltration rate is below 5 inches per hour."},{"$f":"IF(AND('Project Summary'!Q64=\"No\",'Project Summary'!AA64=\"Site is mapped as \"\"infltr. investigation not required\"\"\"),\"Site is mapped as \"\"Infiltration investigation not required.\"\"\",IF('Project Summary'!Q66=\"No\",IF('Project Summary'!Y66=\"\",\"Infiltration on site is infeasible\",'Project Summary'!Y66),\"The measured infiltration rate is below 0.3 inches per hour.\"))","v":"The measured infiltration rate is below 0.3 inches per hour."},{"$f":"IF(AND('Project Summary'!Q64=\"No\",'Project Summary'!AA64=\"Site is mapped as \"\"infltr. investigation not required\"\"\"),\"Site is mapped as \"\"Infiltration investigation not required.\"\"\",IF('Project Summary'!Q66=\"No\",IF('Project Summary'!Y66=\"\",\"Infiltration on site is infeasible\",'Project Summary'!Y66),\"The measured infiltration rate is below 0.3 inches per hour.\"))","v":"The measured infiltration rate is below 0.3 inches per hour."},null,{"$f":"IF(AND('Project Summary'!Q64=\"No\",'Project Summary'!AA64=\"Site is mapped as \"\"infltr. investigation not required\"\"\"),\"Site is mapped as \"\"Infiltration investigation not required.\"\"\",IF('Project Summary'!Q66=\"No\",IF('Project Summary'!Y66=\"\",\"Infiltration on site is infeasible\",'Project Summary'!Y66),\"The measured infiltration rate is below 0.3 inches per hour.\"))","v":"The measured infiltration rate is below 0.3 inches per hour."},{"$f":"IF(AND('Project Summary'!Q64=\"No\",'Project Summary'!AA64=\"Site is mapped as \"\"infltr. investigation not required\"\"\"),\"Site is mapped as \"\"Infiltration investigation not required.\"\"\",IF('Project Summary'!Q66=\"No\",IF('Project Summary'!Y66=\"\",\"Infiltration on site is infeasible\",'Project Summary'!Y66),\"The measured infiltration rate is below 0.3 inches per hour.\"))","v":"The measured infiltration rate is below 0.3 inches per hour."},"Design soil infiltration rate less than 0.15 inch per hour",null,null,null,null,null,null,{"$f":"IF(AND('Project Summary'!Q64=\"No\",'Project Summary'!AA64=\"Site is mapped as \"\"infltr. investigation not required\"\"\"),\"Site is mapped as \"\"Infiltration investigation not required.\"\"\",IF('Project Summary'!Q66=\"No\",IF('Project Summary'!Y66=\"\",\"Infiltration on site is infeasible\",'Project Summary'!Y66),\"The measured infiltration rate is below 0.3 inches per hour.\"))","v":"The measured infiltration rate is below 0.3 inches per hour."}]
["1 Installation requires removal of an existing tree. ","1 Installation requires removal of an existing tree. ","1 Installation requires removal of an existing tree. ","1 Installation requires removal of an existing tree. ","1 Installation requires removal of an existing tree. ","1 Installation requires removal of an existing tree. ","1 Installation requires removal of an existing tree. ","1 Installation requires removal of an existing tree. ","1 Installation requires removal of an existing tree. ","1 Installation requires removal of an existing tree. ","1 Installation requires removal of an existing tree. ","1 Installation requires removal of an existing tree. ","1 Installation requires removal of an existing tree. ","1 Installation requires removal of an existing tree. ","1 Installation requires removal of an existing tree. ","1 Installation requires removal of an existing tree. ","1 Installation requires removal of an existing tree. ","1 Installation requires removal of an existing tree. "]
["2 Installation is prohibited per Regulations for Environmentally Critical Areas (SMC Chapter 25.09).","2 Where BMP installation is prohibited per Regulations for Environmentally Critical Areas (SMC Chapter 25.09).","2 Where BMP installation is prohibited per Regulations for Environmentally Critical Areas (SMC Chapter 25.09).","2 Where BMP installation is prohibited per Regulations for Environmentally Critical Areas (SMC Chapter 25.09).","2 Where BMP installation is prohibited per Regulations for Environmentally Critical Areas (SMC Chapter 25.09).","2 Installation is prohibited per Regulations for Environmentally Critical Areas (SMC Chapter 25.09).","2 Where BMP installation is prohibited per Regulations for Environmentally Critical Areas (SMC Chapter 25.09).","2 Where BMP installation is prohibited per Regulations for Environmentally Critical Areas (SMC Chapter 25.09).","2 Installation is prohibited per Regulations for Environmentally Critical Areas (SMC Chapter 25.09).","2 Where BMP installation is prohibited per Regulations for Environmentally Critical Areas (SMC Chapter 25.09).","2 Where BMP installation is prohibited per Regulations for Environmentally Critical Areas (SMC Chapter 25.09).","2 Where BMP installation is prohibited per Regulations for Environmentally Critical Areas (SMC Chapter 25.09).","2 Where BMP installation is prohibited per Regulations for Environmentally Critical Areas (SMC Chapter 25.09).","2 Where BMP installation is prohibited per Regulations for Environmentally Critical Areas (SMC Chapter 25.09).","2 Where BMP installation is prohibited per Regulations for Environmentally Critical Areas (SMC Chapter 25.09).","2 Where BMP installation is prohibited per Regulations for Environmentally Critical Areas (SMC Chapter 25.09).","2 Where BMP installation is prohibited per Regulations for Environmentally Critical Areas (SMC Chapter 25.09).","2 Where BMP installation is prohibited per Regulations for Environmentally Critical Areas (SMC Chapter 25.09)."]
["3 Installation would require pumping to a designated point of discharge, but failure of the pump may destabilize a steep slope.","3 Installation would require pumping to a designated point of discharge, but failure of the pump may destabilize a steep slope.","3 Installation would require pumping to a designated point of discharge, but failure of the pump may destabilize a steep slope.","3 Installation would require pumping to a designated point of discharge, but failure of the pump may destabilize a steep slope.","3 Installation would require pumping to a designated point of discharge, but failure of the pump may destabilize a steep slope.","3 Installation would require pumping to a designated point of discharge, but failure of the pump may destabilize a steep slope.","3 Installation would require pumping to a designated point of discharge, but failure of the pump may destabilize a steep slope.","3 Installation would require pumping to a designated point of discharge, but failure of the pump may destabilize a steep slope.","3 Installation would require pumping to a designated point of discharge, but failure of the pump may destabilize a steep slope.","3 Installation would require pumping to a designated point of discharge, but failure of the pump may destabilize a steep slope.","3 Installation would require pumping to a designated point of discharge, but failure of the pump may destabilize a steep slope.","3 Installation would require pumping to a designated point of discharge, but failure of the pump may destabilize a steep slope.","3 Installation would require pumping to a designated point of discharge, but failure of the pump may destabilize a steep slope.","3 Installation would require pumping to a designated point of discharge, but failure of the pump may destabilize a steep slope.","3 Installation would require pumping to a designated point of discharge, but failure of the pump may destabilize a steep slope.","3 Installation would require pumping to a designated point of discharge, but failure of the pump may destabilize a steep slope.","3 Unable to maintain a desired access of 36 inches in a required building setback from a property line. ","3 Installation would require pumping to a designated point of discharge, but failure of the pump may destabilize a steep slope."]
["4 Unable to maintain a desired access of 36 inches in a required building setback from a property line. ","4 Installation would require a pump when a pump is not already required to provide site storm drainage.","4 Installation would require a pump when a pump is not already required to provide site storm drainage.","4 Unable to maintain a desired access of 36 inches in a required building setback from a property line. ","4 Unable to maintain a desired access of 36 inches in a required building setback from a property line. ","4 Unable to maintain a desired access of 36 inches in a required building setback from a property line. ","4 Installation would require a pump when a pump is not already required to provide site storm drainage.","4 Unable to maintain a desired access of 36 inches in a required building setback from a property line. ","4 Unable to maintain a desired access of 36 inches in a required building setback from a property line. ","4 Unable to maintain a desired access of 36 inches in a required building setback from a property line. ","4 Unable to maintain a desired access of 36 inches in a required building setback from a property line. ","4 Unable to maintain a desired access of 36 inches in a required building setback from a property line. ","4 Unable to maintain a desired access of 36 inches in a required building setback from a property line. ","4 Unable to maintain a desired access of 36 inches in a required building setback from a property line. ","4 Unable to maintain a desired access of 36 inches in a required building setback from a property line. ","4 Installation would require a pump when a pump is not already required to provide site storm drainage.","4 Unable to maintain clearance for required ingress, egress, or ADA pathways.","4 Unable to maintain a desired access of 36 inches in a required building setback from a property line, "]
["5 Unable to maintain clearance for required ingress, egress, or ADA pathways.","5 Infiltration is not recommended due to reasonable concerns about erosion, slope failure, or flooding.","5 Infiltration is not recommended due to reasonable concerns about erosion, slope failure, or flooding.","5 Unable to maintain clearance for required ingress, egress, or ADA pathways.","5 Unable to maintain clearance for required ingress, egress, or ADA pathways.","5 Unable to maintain clearance for required ingress, egress, or ADA pathways.","5 Infiltration is not recommended due to reasonable concerns about erosion, slope failure, or flooding.","5 Unable to maintain clearance for required ingress, egress, or ADA pathways.","5 Unable to maintain clearance for required ingress, egress, or ADA pathways.","5 Unable to maintain clearance for required ingress, egress, or ADA pathways.","5 Unable to maintain clearance for required ingress, egress, or ADA pathways.","5 Unable to maintain clearance for required ingress, egress, or ADA pathways.","5 Unable to maintain clearance for required ingress, egress, or ADA pathways.","5 Unable to maintain clearance for required ingress, egress, or ADA pathways.","5 Unable to maintain clearance for required ingress, egress, or ADA pathways.","5 Infiltration is not recommended due to reasonable concerns about erosion, slope failure, or flooding.","5 The mature height, size, and/or rooting depth is not compatible with Medium and Large trees listed in the current Seattle Master Tree List.","5 Unable to maintain clearance for required ingress, egress, or ADA pathways."]
["6 Installation would require a pump when a pump is not already required to provide site storm drainage.","6 The area available for siting would threaten the safety or reliability of pre-existing underground utilities, pre-existing underground storage tanks, pre-existing structures, or pre-existing road or parking lot surfaces or subgrades.","6 The area available for siting would threaten the safety or reliability of pre-existing underground utilities, pre-existing underground storage tanks, pre-existing structures, or pre-existing road or parking lot surfaces or subgrades.","6 Installation would require a pump when a pump is not already required to provide site storm drainage.","6 Installation would require a pump when a pump is not already required to provide site storm drainage.","6 Installation would require a pump when a pump is not already required to provide site storm drainage. (Requiring a pump as the result of using the Rainwater Harvesting BMP does not make this BMP infeasible.)","6 The area available for siting would threaten the safety or reliability of pre-existing underground utilities, pre-existing underground storage tanks, pre-existing structures, or pre-existing road or parking lot surfaces or subgrades.","6 Installation would require a pump when a pump is not already required to provide site storm drainage.","6 Installation would require a pump when a pump is not already required to provide site storm drainage.","6 Installation would require a pump when a pump is not already required to provide site storm drainage.","6 Installation would require a pump when a pump is not already required to provide site storm drainage.","6 Installation would require a pump when a pump is not already required to provide site storm drainage.","6 Installation would require a pump when a pump is not already required to provide site storm drainage.","6 Installation would require a pump when a pump is not already required to provide site storm drainage.","6 Installation would require a pump when a pump is not already required to provide site storm drainage.","6 The area available for siting would threaten the safety or reliability of pre-existing underground utilities, pre-existing underground storage tanks, pre-existing structures, or pre-existing road or parking lot surfaces or subgrades.",null,"6 Installation would require a pump when a pump is not already required to provide site storm drainage."]
["7 A licensed professional recommends dispersion not be used anywhere within project site due to reasonable concerns of erosion, slope failure, or flooding.","7 The area available for siting would threaten shoreline structures such as bulkheads.","7 The area available for siting would threaten shoreline structures such as bulkheads.","7 Infiltration is not recommended due to reasonable concerns about erosion, slope failure, or flooding.","7 Infiltration is not recommended due to reasonable concerns about erosion, slope failure, or flooding.","7 Project lacks non-pollution-generating roof from which to harvest rainwater.","7 The area available for siting would threaten shoreline structures such as bulkheads.","7 Infiltrating or ponding water below pavement area would compromise adjacent pavements.","7 A licensed professional recommends dispersion not be used anywhere within project site due to reasonable concerns of erosion, slope failure, or flooding.","7 A licensed professional recommends dispersion not be used anywhere within project site due to reasonable concerns of erosion, slope failure, or flooding.","7 A licensed professional recommends dispersion not be used anywhere within project site due to reasonable concerns of erosion, slope failure, or flooding.","7 A licensed professional recommends dispersion not be used anywhere within project site due to reasonable concerns of erosion, slope failure, or flooding.","7 A licensed professional recommends dispersion not be used anywhere within project site due to reasonable concerns of erosion, slope failure, or flooding.","7 The minimum bottom width of the non-infiltrating bioretention facility (2 feet) cannot be met due to, but not limited to: encroachment within the critical root zone of an existing tree(s), minimum setbacks to structures / utilities, or project limits/planting strip too small.","7 Project does not include a roof.","7 The area available for siting would threaten shoreline structures such as bulkheads.",null,"7 Project does not include non-pollution generating surfaces."]
["8 The dispersion flow path area does not provide positive drainage.","8 Evaluation of infiltration is not required per the “Infiltration Investigation Map”.","8 Evaluation of infiltration is not required per the “Infiltration Investigation Map”.","8 The area available for siting would threaten the safety or reliability of pre-existing underground utilities, pre-existing underground storage tanks, pre-existing structures, or pre-existing road or parking lot surfaces or subgrades.","8 The area available for siting would threaten the safety or reliability of pre-existing underground utilities, pre-existing underground storage tanks, pre-existing structures, or pre-existing road or parking lot surfaces or subgrades.","8 Non-potable water demand is insufficient to meet the On-site Performance Standard per modeling conducted in accordance with Volume 3, Section 5.5.1.6.","8 Evaluation of infiltration is not required per the “Infiltration Investigation Map”.","8 Fill soils are used that can become unstable when saturated.","8 The dispersion flow path area does not provide positive drainage.","8 The dispersion flow path area does not provide positive drainage.","8 The dispersion flow path area does not provide positive drainage.","8 The dispersion flow path area does not provide positive drainage.","8 The dispersion flow path area does not provide positive drainage.","8 Minimum vertical and horizontal clearances from utilities are unachievable as required by utility owner.","8 Roof design has a slope less than 1 degree (0.2:12) or greater than 10 degrees (2:12).","8 Evaluation of infiltration is not required per the “Infiltration Investigation Map”.",null,"8 The SFR cistern would be within restricted setbacks."]
["9 The dispersion flowpath area is within a landslide-prone area (SMC, Section 25.09.080).","9 The area available for siting does not allow for overflow conveyance to an approved point of discharge per Volume 3, Section 4.3.2.","9 The area available for siting does not allow for overflow conveyance to an approved point of discharge per Volume 3, Section 4.3.2.","9 The area available for siting would threaten shoreline structures such as bulkheads.","9 The area available for siting would threaten shoreline structures such as bulkheads.","9 Installation is not economically feasible based on reasonable consideration of financial cost (e.g., roof area is less than 20,000 sf or the ratio of roof area to average daily rainwater demand is less than 10,000 square feet/gpm) (refer to Appendix H). Documentation is required. ","9 The area available for siting does not allow for overflow conveyance to an approved point of discharge per Volume 3, Section 4.3.2.","9 The permeable pavement design does not provide sufficient strength to support heavy loads in areas with “industrial activity” as identified in 40 CFR 122.26(b)(14).","9 The dispersion flowpath area is within a landslide-prone area (SMC, Section 25.09.080).","9 The dispersion flowpath area is within a landslide-prone area (SMC, Section 25.09.080).","9 The dispersion flowpath area is within a landslide-prone area (SMC, Section 25.09.080).","9 The dispersion flowpath area is within a landslide-prone area (SMC, Section 25.09.080).","9 The dispersion flowpath area is within a landslide-prone area (SMC, Section 25.09.080).","9 The facility would route underdrained water to a nutrient-critical receiving water. ","9 Installation is not economically feasible based on reasonable consideration of financial cost (refer to Appendix H). Documentation is required.","9 The area available for siting does not allow for overflow conveyance to an approved point of discharge per Volume 3, Section 4.3.2."]
["10 The dispersion flowpath area is within 100 feet of a contaminated site or landfill (active or closed).","10 The area available for siting is within a steep slope area or land-slide prone area (or setback) (refer to Volume 3, Section 3.2).","10 The area available for siting is within a steep slope area or land-slide prone area (or setback) (refer to Volume 3, Section 3.2).","10 Evaluation of infiltration is not required per the “Infiltration Investigation Map”.","10 Evaluation of infiltration is not required per the “Infiltration Investigation Map”.",null,"10 The area available for siting is within a steep slope area or land-slide prone area (or setback) (refer to Volume 3, Section 3.2).","10 The subgrade slope exceeds 6 percent after reasonable efforts to grade.","10 The dispersion flowpath area is within 100 feet of a contaminated site or landfill (active or closed).","10 The dispersion flowpath area is within 100 feet of a contaminated site or landfill (active or closed).","10 The dispersion flowpath area is within 100 feet of a contaminated site or landfill (active or closed).","10 The dispersion flowpath area is within 100 feet of a contaminated site or landfill (active or closed).","10 The dispersion flowpath area is within 100 feet of a contaminated site or landfill (active or closed).","10 The area available for siting is within a setback equal to the height of the slope to a maximum of 50 feet from the top of steep slope and known landslide area.","10 This portion of the roof is an amenity area subject to pedestrian use (e.g. balcony, patio, walkway, pet runs, etc.).","10 The area available for siting is within a steep slope area or land-slide prone area (or setback) (refer to Volume 3, Section 3.2)."]
["11 The dispersion flowpath area is in a steep slope area (SMC, Section 25.09.020) or within a setback to a steep slope area (calculated as 10 times the height of the steep slope to a 500 foot maximum setback).","11 The area available for siting does not meet the minimum horizontal setback requirements (refer to Volume 3, Section 3.2).","11 The area available for siting does not meet the minimum horizontal setback requirements (refer to Volume 3, Section 3.2).","11 The area available for siting does not allow for overflow conveyance to an approved point of discharge per Volume 3, Section 4.3.2.","11 The area available for siting does not allow for overflow conveyance to an approved point of discharge per Volume 3, Section 4.3.2.",null,"11 The area available for siting does not meet the minimum horizontal setback requirements (refer to Volume 3, Section 3.2).","11 The permeable pavement wearing course slope exceeds 6 percent after reasonable efforts to grade.","11 The dispersion flowpath area is in a steep slope area (SMC, Section 25.09.020) or within a setback to a steep slope area (calculated as 10 times the height of the steep slope to a 500 foot maximum setback).","11 The dispersion flowpath area is in a steep slope area (SMC, Section 25.09.020) or within a setback to a steep slope area (calculated as 10 times the height of the steep slope to a 500 foot maximum setback).","11 The dispersion flowpath area is in a steep slope area (SMC, Section 25.09.020) or within a setback to a steep slope area (calculated as 10 times the height of the steep slope to a 500 foot maximum setback).","11 The dispersion flowpath area is in a steep slope area (SMC, Section 25.09.020) or within a setback to a steep slope area (calculated as 10 times the height of the steep slope to a 500 foot maximum setback).","11 The dispersion flowpath area is in a steep slope area (SMC, Section 25.09.020) or within a setback to a steep slope area (calculated as 10 times the height of the steep slope to a 500 foot maximum setback).","11 The BMP would be located on a structure or roof that cannot provide sufficient structural support for the BMP. ","11 The portion of the roof is required for HVAC equipment and/or maintenance access ways (e.g., window washing, HVAC maintenance, etc.).","11 The area available for siting does not meet the minimum horizontal setback requirements (refer to Volume 3, Section 3.2)."]
["12 The dispersion flowpath area is within 10 feet of a proposed or existing septic system or drainfield. ","12 The area available for siting does not meet the minimum vertical setback requirements (refer to Volume 3, Section 3.2, and Appendix D).","12 The area available for siting does not meet the minimum vertical setback requirements (refer to Volume 3, Section 3.2, and Appendix D).","12 The area available for siting is within a steep slope area or land-slide prone area (or setback) (refer to Volume 3, Section 3.2).","12 The area available for siting is within a steep slope area or land-slide prone area (or setback) (refer to Volume 3, Section 3.2).",null,"12 The area available for siting does not meet the minimum vertical setback requirements (refer to Volume 3, Section 3.2, and Appendix D).","12 For projects in the right-of-way, the permeable pavement surface area would be less than 2,000 square feet of contiguous pavement and the project discharges to: a designated receiving water body,  a combined system, or a capacity constrained system which does not drain to a creek wetland or small lake.","12 The dispersion flowpath area is within 10 feet of a proposed or existing septic system or drainfield. ","12 The dispersion flowpath area is within 10 feet of a proposed or existing septic system or drainfield. ","12 The dispersion flowpath area is within 10 feet of a proposed or existing septic system or drainfield. ","12 The dispersion flowpath area is within 10 feet of a proposed or existing septic system or drainfield. ","12 The dispersion flowpath area is within 10 feet of a proposed or existing septic system or drainfield. ","12 Less than 1 foot between the liner and seasonal high groundwater elevation.","12 This portion of the roof is completely covered with Solar Panels.","12 The area available for siting does not meet the minimum vertical setback requirements (refer to Volume 3, Section 3.2, and Appendix D)."]
["13 The site has less than a 65 to 10 ratio of the native vegetation area to the impervious area.","13 Infiltration is restricted due to contaminated soil or groundwater (refer to Volume 3, Section 3.2).","13 Infiltration is restricted due to contaminated soil or groundwater (refer to Volume 3, Section 3.2).","13 The area available for siting does not meet the minimum horizontal setback requirements (refer to Volume 3, Section 3.2).","13 The area available for siting does not meet the minimum horizontal setback requirements (refer to Volume 3, Section 3.2).",null,"13 Infiltration is restricted due to contaminated soil or groundwater (refer to Volume 3, Section 3.2).","13 The anticipated mature tree spread (based on tree species) would overhang more than 50 percent of permeable pavement area.","13 Infiltration is not recommended due to reasonable concerns about erosion, slope failure, or flooding.","13 The area to be dispersed (e.g., driveway, patio) exceeds a slope of 15 percent.","13 There are no concentrated flows to disperse.","13 There are no downspouts.","13 There are no downspouts.",null,null,"13 Infiltration is restricted due to contaminated soil or groundwater (refer to Volume 3, Section 3.2)."]
["14 The minimum native vegetation flowpath length is less than 100 feet.","14 Field testing indicates potential infiltration trench site(s) have a measured underlying soil infiltration rate less than 5 inches per hour (Volume 3, Section 5.4.2).","14 Field testing indicates potential drywell site(s) have a measured underlying soil infiltration rate less than 5 inches per hour (Volume 3, Section 5.4.3).","14 The area available for siting does not meet the minimum vertical setback requirements (refer to Volume 3, Section 3.2, and Appendix D).","14 The area available for siting does not meet the minimum vertical setback requirements (refer to Volume 3, Section 3.2, and Appendix D).",null,"14 Infiltrating or ponding water below pavement area would compromise adjacent pavements.","14 The pavement is over a structure, such as, but not limited to: parking garages, box culverts, and bridges.","14 The area available for siting would threaten the safety or reliability of pre-existing underground utilities, pre-existing underground storage tanks, pre-existing structures, or pre-existing road or parking lot surfaces or subgrades.","14 The minimum vegetated flow path for sheet flow dispersion cannot be met. Note: A 10 foot flowpath is required to disperse runoff from a contributing flow length of up to 20 feet. An additional 10 feet of flow path is required for each additional 20 feet of contributing flow path or fraction thereof. Refer to Volume 3, Figure 5.5.","14 The minimum dispersion trench length of 10 feet cannot be met.","14 The vegetated flowpath is less than 50 feet.","14 The minimum dispersion trench length of 10 feet for every 700 square feet of drainage area cannot be met.",null,null,"14 The location for the perforated pipe portion of the system is under impervious or heavily compacted (e.g., driveways and parking areas) surfaces."]
[null,"15 Where the site cannot be reasonably designed to locate a catch basin between the infiltration trench and point of connection to the public system.","15 Where the site cannot be reasonably designed to locate a catch basin between the drywell and point of connection to the public system.","15 Infiltration is restricted due to contaminated soil or groundwater (refer to Volume 3, Section 3.2).","15 Infiltration is restricted due to contaminated soil or groundwater (refer to Volume 3, Section 3.2).",null,"15 Fill soils are used that can become unstable when saturated.","15 The pavement is subject to long-term excessive sediment deposition (e.g., construction and landscaping material yards).","15 The area available for siting would threaten shoreline structures such as bulkheads.","15 The flowpath does not meet the minimum horizontal setback requirements to property lines, structures and other flowpaths (refer to Volume 3, Section 5.3.5).","15 The vegetated flow path for the dispersion trench is less than 25 feet","15 Greater than 700 square feet of surface area drains to the BMP.","15 The vegetated flowpath is less than 25 feet.",null,null,"15 The minimum perforated stub-out length of 10 feet per 5,000 square feet of contributing roof area cannot be met."]
[null,null,null,"16 In the right-of-way, the longitudinal road slope exceeds 4 percent.","16 The infiltrating bioretention facility would have a linear geometry with a longitudinal slope greater than 8 percent.",null,"16 The permeable pavement design does not provide sufficient strength to support heavy loads in areas with “industrial activity” as identified in 40 CFR 122.26(b)(14).","16 Underlying soils are unsuitable for supporting traffic loads when saturated (e.g., a residential access road has a California Bearing Ratio of 5 percent or less).","16 Evaluation of infiltration is not required per the “Infiltration Investigation Map”.",null,"16 The vegetated flow path for a rock pad is less than 50 feet.","16 The flowpath does not meet the minimum horizontal setback requirements to property lines, structures and other flowpaths (refer to Volume 3, Section 5.3.3). ","16 The flowpath is within the setbacks to property lines, structures and other flowpaths (refer to Volume 3, Section 5.3.4).",null,null,"16 Where the site cannot be reasonably designed to locate a catch basin between the perforated stub-out and point of connection to the public system."]
[null,null,null,"17 The rain garden would have a linear geometry with a longitudinal slope greater than 8 percent.","17 The minimum bottom width of the infiltrating bioretention facility (2 feet for facilities with vertical sides and 18 inch average for facilities with sloped sides) cannot be met due to, but not limited to: encroachment within the critical root zone of an existing tree(s) or minimum setbacks to structures, utilities, or property lines.",null,"17 The subgrade slope exceeds 6 percent after reasonable efforts to grade.","17 Field testing indicates soils have a measured underlying soil infiltration rate less than 0.3 inches per hour.","17 The area available for siting does not allow for overflow conveyance to an approved point of discharge per Volume 3, Section 4.3.2.",null,"17 Greater than 700 square feet of surface area drains to the BMP."]
[null,null,null,"18 The minimum bottom width of the rain garden (12-inch average) cannot be met due to, but not limited to: encroachment within the critical root zone of an existing tree(s) or minimum setbacks to structures, utilities, or property lines.","18 The infiltration area is within the minimum vertical and horizontal clearance from utilities, according to clearances required by the utility owner.",null,"18 The permeable pavement wearing course slope exceeds 6 percent after reasonable efforts to grade.","18 Pavement is replacing an existing pollution-generating hard surface in the right-of-way.","18 The area available for siting is within a steep slope area or land-slide prone area (or setback) (refer to Volume 3, Section 3.2).",null,"18 The flowpath does not meet the minimum horizontal setback requirements to property lines, structures and other flowpaths (refer to Volume 3, Section 5.3.6)."]
[null,null,null,"19 The infiltration area is within the minimum vertical or horizontal clearance from utilities, according to clearances required by the utility owner.","19 Field testing indicates soils have a measured underlying soil infiltration rate less than 0.3 inches per hour.",null,"19 For projects in the right-of-way, the permeable pavement surface area would be less than 2,000 square feet of contiguous pavement and the project discharges to: a designated receiving water body,  a combined system, or a capacity constrained system which does not drain to a creek wetland or small lake.","19 The street type is classified as arterial or collector rather than local access. Refer to RCW 35.78.010, RCW 36.86.070, and RCW 47.05.021. Note: This infeasibility criterion does not extend to sidewalks and other non-traffic bearing surfaces associated with the collector or arterial.","19 The area available for siting does not meet the minimum horizontal setback requirements (refer to Volume 3, Section 3.2)."]
[null,null,null,"20 For projects in the right-of-way, the total rain garden top area would be less than 500 square feet and the project discharges to: A designated receiving water body or, A combined system, or A capacity constrained system which does not drain to a creek wetland or small lake.","20 Field testing indicates soils have a measured underlying soil infiltration rate less than 0.6 inches per hour and an underdrain cannot be installed per the design criteria.",null,"20 The anticipated mature tree spread (based on tree species) would overhang more than 50 percent of permeable pavement area.","20 Streets that receive more than very low traffic volumes, and areas having more than very low truck traffic. Streets with a projected average daily traffic volume of 400 vehicles or less are very low volume roads (AASHTO, 2001)(U.S. Dept. of Transportation, 2013). Areas with very low truck traffic volumes are streets and other areas not subject to through truck traffic but may receive up to weekly use by utility trucks (e.g., garbage, recycling), daily school bus use, and multiple daily use by pick-up trucks, mail/parcel delivery trucks, and maintenance vehicles. Note: This infeasibility criterion does not extend to sidewalks and other non-traffic bearing surfaces.","20 The area available for siting does not meet the minimum vertical setback requirements (refer to Volume 3, Section 3.2, and Appendix D)."]
[null,null,null,"21 Field testing indicates soils have a measured underlying soil infiltration rate less than 0.3 inches per hour. ","21 The facility with an underdrain would route underdrained water to a nutrient-critical receiving water.",null,"21 The pavement is over a structure, such as, but not limited to: parking garages, box culverts, and bridges.","21 The pavement area is defined as a “high use site” in SMC, Section 22.801.090.","21 Infiltration is restricted due to contaminated soil or groundwater (refer to Volume 3, Section 3.2)."]
[null,null,null,null,"22 In the right-of-way, installation requires a vertical walled facility. ",null,"22 The pavement is subject to long-term excessive sediment deposition (e.g., construction and landscaping material yards).","22 In areas with “industrial activity” as identified in 40 CFR 122.26(b)(14).","22 The flowpath downstream of the Sidewalk/Trail Compost-Amended Strip is within 10 feet of a proposed or existing septic system or drainfield, as measured from the toe of the Sidewalk/Trail Compost-Amended Strip slope."]
[null,null,null,null,null,null,"23 Underlying soils are unsuitable for supporting traffic loads when saturated (e.g., a residential access road has a California Bearing Ratio of 5 percent or less).","23 Where the risk of concentrated pollutant spills is more likely, including, but not limited to, gas stations, truck stops, and industrial chemical storage sites.","23 The sidewalk or trail to be dispersed exceeds a lateral slope of 5 percent or a longitudinal slope of 8 percent."]
[null,null,null,null,null,null,"24 Field testing indicates soils have a measured underlying soil infiltration rate less than 0.3 inches per hour.","24 In areas where routine, heavy roadway applications of sand occur in frequent snow zones to maintain traction during weeks of snow and ice accumulation, including sidewalks within 7 feet of roadways with sand application.","24 The sidewalk or trail to be dispersed has a lateral slope of less than 1 percent."]
[null,null,null,null,null,null,"25 Pavement is replacing an existing pollution-generating hard surface in the right-of-way.","25 Where runon from unstabilized erodible areas would occur without presettling.","25 Field testing indicates underlying soils have a design soil infiltration rate less than 0.15 inch per hour. Note that field infiltration tests are not required for Sidewalk/Trail Compost-Amended Strip, but must be used to demonstrate infeasibility."]
[null,null,null,null,null,null,"26 The street type is classified as arterial or collector rather than local access. Refer to RCW 35.78.010, RCW 36.86.070, and RCW 47.05.021. Note: This infeasibility criterion does not extend to sidewalks and other non-traffic bearing surfaces associated with the collector or arterial.","26 Field testing indicates soils have a measured underlying soil infiltration rate less than 0.3 inches per hour (Note: field infiltration tests are not required for permeable pavement surfaces, but must be used to demonstrate infeasibility).","26 The minimum Sidewalk/Trail Compost-Amended Strip design criteria cannot be met."]
[null,null,null,null,null,null,"27 Streets that receive more than very low traffic volumes, and areas having more than very low truck traffic. Streets with a projected average daily traffic volume of 400 vehicles or less are very low volume roads (AASHTO, 2001)(U.S. Dept. of Transportation, 2013). Areas with very low truck traffic volumes are streets and other areas not subject to through truck traffic but may receive up to weekly use by utility trucks (e.g., garbage, recycling), daily school bus use, and multiple daily use by pick-up trucks, mail/parcel delivery trucks, and maintenance vehicles. Note: This infeasibility criterion does not extend to sidewalks and other non-traffic bearing surfaces.","27 The site is a contaminated site or abandoned landfill."]
[null,null,null,null,null,null,"28 The pavement area is defined as a “high use site” in SMC, Section 22.801.090.","28 Installation is within 10 feet of a petroleum, chemical, or liquid hazardous waste storage tank or connecting underground pipes."]
[null,null,null,null,null,null,"29 In areas with “industrial activity” as identified in 40 CFR 122.26(b)(14).","29 Run-on from an adjacent impervious area is greater than 10 percent of the permeable pavement surface area."]
[null,null,null,null,null,null,"30 Where the risk of concentrated pollutant spills is more likely, including, but not limited to, gas stations, truck stops, and industrial chemical storage sites.","30 A licensed professional (as defined in Appendix D, Section D-1) recommends permeable pavement not be used anywhere within the project site due to reasonable concerns of erosion, slope failure, or flooding (requires a signed and stamped written determination based on site-specific conditions from a licensed professional)."]
[null,null,null,null,null,null,"31 In areas where routine, heavy roadway applications of sand occur in frequent snow zones to maintain traction during weeks of snow and ice accumulation, including sidewalks within 7 feet of roadways with sand application.","31 The Director has determined that permeable pavement in active zones of a skate park, bike park, or sport court violates safety standards."]
[null,null,null,null,null,null,"32 Where runon from unstabilized erodible areas would occur without presettling.","32 Subsurface investigation demonstrate groundwater or hydraulically-restrictive layer is too shallow per the Minimum Vertical Separation table."]
[null,null,null,null,null,null,"33 The areas contributing runoff to the permeable pavement facilities exceed the maximum run-on limits: Pollution-generating impervious surfaces (e.g., roadways, parking lots) exceed the maximum run-on area ratio of 2:1, Non-pollution generating impervious surfaces (e.g., roofs, sidewalks) and stabilized pervious surfaces exceed the maximum run-on area ratio of 5:1"]
[null,null,null,null,null,null,"34 The Director has determined that permeable pavement in active zones of a skate park, bike park, or sport court violates safety standards."]

{"sheet":"log","index":7,"n_rows":2,"n_cols":3,"rows_kept":2,"cut":false,"hidden":true,"merged":[]}
[]
[2,"2023-01-06T09:36:52","Workbook_Open"]

{"sheet":"BMP Modeling","index":8,"n_rows":50,"n_cols":44,"rows_kept":50,"cut":false,"hidden":true,"merged":[[7,0,7,2],[39,1,39,2],[23,1,23,2],[19,3,19,7],[21,3,21,7],[23,3,23,7],[25,3,25,7],[15,15,15,21],[17,15,17,21],[19,15,19,21],[21,15,21,21],[23,15,23,21],[25,15,25,21],[27,15,27,21],[29,15,29,21],[31,15,31,21],[33,15,33,21],[35,15,35,21],[37,15,37,21],[39,15,39,21],[7,9,7,13],[9,9,9,13],[11,9,11,13],[13,9,13,13],[37,3,37,7],[27,9,27,13],[29,9,29,13],[31,9,31,13],[33,9,33,13],[35,9,35,13],[37,9,37,13],[29,1,29,2],[27,1,27,2],[31,1,31,2],[33,1,33,2],[35,3,35,7],[27,3,27,7],[29,3,29,7],[31,3,31,7],[29,31,29,35],[27,23,27,29],[15,3,15,7],[35,1,35,2],[35,37,35,41],[27,37,27,41],[15,9,15,13],[17,9,17,13],[19,9,19,13],[21,9,21,13],[23,9,23,13],[31,37,31,41],[33,37,33,41],[23,37,23,41],[25,1,25,2],[25,37,25,41],[17,37,17,41],[17,3,17,7],[45,3,45,7],[45,23,45,29],[39,9,39,13],[43,15,43,21],[45,15,45,21],[41,15,41,21],[47,31,47,35],[9,1,9,2],[9,37,9,41],[37,1,37,2],[25,9,25,13],[35,31,35,35],[33,31,33,35],[33,3,33,7],[29,37,29,41],[21,31,21,35],[19,1,19,2],[19,37,19,41],[21,1,21,2],[37,37,37,41],[37,31,37,35],[23,31,23,35],[25,31,25,35],[27,31,27,35],[45,37,45,41],[45,31,45,35],[47,1,47,2],[39,23,39,29],[41,23,41,29],[43,23,43,29],[39,31,39,35],[39,3,39,7],[41,9,41,13],[43,9,43,13],[45,9,45,13],[47,9,47,13],[39,37,39,41],[41,1,41,2],[41,37,41,41],[43,1,43,2],[43,37,43,41],[47,15,47,21],[47,37,47,41],[45,1,45,2],[43,31,43,35],[41,31,41,35],[41,3,41,7],[43,3,43,7],[0,0,0,71],[1,0,1,71],[13,31,13,35],[9,31,9,35],[11,31,11,35],[21,37,21,41],[11,1,11,2],[13,1,13,2],[13,37,13,41],[15,1,15,2],[15,37,15,41],[9,3,9,7],[11,3,11,7],[13,3,13,7],[4,1,6,69],[7,3,7,7],[11,43,11,70],[13,43,13,70],[15,43,15,70],[11,37,11,41],[17,1,17,2],[17,43,17,70],[19,43,19,70],[21,43,21,70],[23,43,23,70],[25,43,25,70],[9,43,9,70],[7,37,7,41],[7,31,7,35],[7,23,7,29],[11,23,11,29],[13,23,13,29],[15,23,15,29],[17,23,17,29],[19,23,19,29],[9,23,9,29],[21,23,21,29],[23,23,23,29],[25,23,25,29],[15,31,15,35],[17,31,17,35],[19,31,19,35],[7,15,7,21],[9,15,9,21],[11,15,11,21],[13,15,13,21],[49,1,50,70],[27,43,27,70],[29,43,29,70],[31,43,31,70],[33,43,33,70],[35,43,35,70],[37,43,37,70],[39,43,39,70],[41,43,41,70],[43,43,43,70],[29,23,29,29],[31,23,31,29],[33,23,33,29],[35,23,35,29],[37,23,37,29],[47,3,47,7],[47,23,47,29],[45,43,45,70],[47,43,47,70],[31,31,31,35]]}
["On-site Stormwater Management Calculator"]
["BMP Modeling Results"]
[{"$f":"Version","v":"Version 01-04-2023"}]
[]
[null,"For the On-Site Performance Standard the modeling approach for each BMP design shall be applied. Refer to Section 4.1.3 and Appendix F in the Seattle Stormwater Manual for modeling requirements and guidelines."]
[]
[]
["Surface",null,null,"Contributing Area (sf)",null,null,null,null,null,"Hard Surface Type",null,null,null,null,null,"Hard Surface Description",null,null,null,null,null,null,null,"BMP Name",null,null,null,null,null,null,null,"Facility Size (sf)",null,null,null,null,null,"Total Volume Infiltrated (cf)*",null,null,null,null,null,"Optional Notes"]
[]
[null,1]
[]
[null,2]
[]
[null,3]
[]
[null,4]
[]
[null,5]
[]
[null,6]
[]
[null,7]
[]
[null,8]
[]
[null,9]
[]
[null,10]
[]
[null,11]
[]
[null,12]
[]
[null,13]
[]
[null,14]
[]
[null,15]
[]
[null,16]
[]
[null,17]
[]
[null,18]
[]
[null,19]
[]
[null,20]
[]
[null,"* Total volume infiltrated over the required 158-year continuous runoff model simulation in cubic feet (i.e. total volume infiltrated from the WWHM or MGS Flood output). The calculator will convert the volume to gallons and display the average annual volume infiltrated on the Project Summary tab. (If a pre-sized table is used rather than modeling, leave this field blank.)"]

{"sheet":"BMP Sizing","index":9,"n_rows":207,"n_cols":46,"rows_kept":207,"cut":false,"hidden":false,"merged":[[88,1,88,12],[80,21,80,26],[86,13,86,20],[86,21,86,26],[84,13,84,20],[66,13,66,20],[56,21,56,26],[64,21,64,26],[56,13,56,20],[64,13,64,20],[68,13,68,20],[60,13,60,20],[72,13,72,20],[58,21,58,26],[66,21,66,26],[70,21,70,26],[68,21,68,26],[70,13,70,20],[80,13,80,20],[64,1,64,12],[66,7,66,11],[74,7,74,11],[82,7,82,11],[48,28,48,36],[6,10,6,25],[112,1,112,12],[112,13,112,20],[112,21,112,26],[104,13,104,20],[106,13,106,20],[104,1,104,12],[96,1,96,12],[72,1,72,12],[74,13,74,20],[74,21,74,26],[76,21,76,26],[80,1,80,12],[72,21,72,26],[76,13,76,20],[100,21,100,26],[100,13,100,20],[88,21,88,26],[92,21,92,26],[90,21,90,26],[82,21,82,26],[84,21,84,26],[78,13,78,20],[56,28,56,36],[64,28,64,36],[42,26,42,37],[4,5,4,8],[6,5,6,8],[8,5,8,8],[10,5,10,8],[20,5,20,8],[50,13,50,20],[48,21,48,26],[48,13,48,20],[50,21,50,26],[6,26,6,37],[8,26,8,37],[10,26,10,37],[12,26,12,37],[14,26,14,37],[16,26,16,37],[18,10,18,25],[16,10,16,25],[14,10,14,25],[12,10,12,25],[10,10,10,25],[28,26,28,37],[48,1,48,12],[56,1,56,12],[54,13,54,20],[54,21,54,26],[62,13,62,20],[62,21,62,26],[52,21,52,26],[60,21,60,26],[58,13,58,20],[59,13,59,20],[52,13,52,20],[50,7,50,11],[58,7,58,11],[0,0,0,37],[1,0,1,37],[3,1,3,36],[45,5,45,7],[4,1,4,4],[6,1,6,4],[8,1,8,4],[10,1,10,4],[12,1,12,4],[14,1,14,4],[16,1,16,4],[18,1,18,4],[20,1,20,4],[22,1,22,4],[24,1,24,4],[22,5,22,8],[42,5,42,8],[42,10,42,25],[8,10,8,25],[22,10,22,25],[20,10,20,25],[18,5,18,8],[26,1,26,4],[26,5,26,8],[96,21,96,26],[88,13,88,20],[96,13,96,20],[94,13,94,20],[94,21,94,26],[90,13,90,20],[92,13,92,20],[104,21,104,26],[98,21,98,26],[4,10,4,24],[36,1,36,4],[36,5,36,8],[36,10,36,25],[36,26,36,37],[38,1,38,4],[38,5,38,8],[24,5,24,8],[12,5,12,8],[14,5,14,8],[16,5,16,8],[18,26,18,37],[20,26,20,37],[22,26,22,37],[24,10,24,25],[28,10,28,25],[26,10,26,25],[26,26,26,37],[28,1,28,4],[28,5,28,8],[24,26,24,37],[50,28,50,36],[30,1,30,4],[30,5,30,8],[30,10,30,25],[30,26,30,37],[32,1,32,4],[32,5,32,8],[32,10,32,25],[32,26,32,37],[34,1,34,4],[34,5,34,8],[34,10,34,25],[34,26,34,37],[38,10,38,25],[38,26,38,37],[40,1,40,4],[40,5,40,8],[40,10,40,25],[40,26,40,37],[42,1,42,4],[44,5,44,8],[44,10,44,25],[44,26,44,37],[44,1,44,4],[130,13,130,20],[130,21,130,26],[130,28,130,36],[128,13,128,20],[128,21,128,26],[128,28,128,36],[124,21,124,26],[124,13,124,20],[126,13,126,20],[126,21,126,26],[122,13,122,20],[122,21,122,26],[120,13,120,20],[58,28,58,36],[66,28,66,36],[74,28,74,36],[82,28,82,36],[90,28,90,36],[98,28,98,36],[122,28,122,36],[112,28,112,36],[120,28,120,36],[106,28,106,36],[114,28,114,36],[106,21,106,26],[98,13,98,20],[118,21,118,26],[72,28,72,36],[80,28,80,36],[88,28,88,36],[96,28,96,36],[104,28,104,36],[78,21,78,26],[82,13,82,20],[114,21,114,26],[116,21,116,26],[116,13,116,20],[102,13,102,20],[136,28,136,36],[138,13,138,20],[138,21,138,26],[138,28,138,36],[140,13,140,20],[140,21,140,26],[102,21,102,26],[110,13,110,20],[110,21,110,26],[118,13,118,20],[108,21,108,26],[108,13,108,20],[114,13,114,20],[132,13,132,20],[132,21,132,26],[134,13,134,20],[134,21,134,26],[136,13,136,20],[136,21,136,26],[120,21,120,26],[142,13,142,20],[142,21,142,26],[144,1,144,12],[144,13,144,20],[144,21,144,26],[144,28,144,36],[146,13,146,20],[146,21,146,26],[146,28,146,36],[148,13,148,20],[148,21,148,26],[150,13,150,20],[150,21,150,26],[152,1,152,12],[152,13,152,20],[152,21,152,26],[152,28,152,36],[154,13,154,20],[154,21,154,26],[154,28,154,36],[156,13,156,20],[156,21,156,26],[158,13,158,20],[158,21,158,26],[160,1,160,12],[160,13,160,20],[160,21,160,26],[160,28,160,36],[162,13,162,20],[162,21,162,26],[162,28,162,36],[162,7,162,11],[164,13,164,20],[164,21,164,26],[166,13,166,20],[166,21,166,26],[168,1,168,12],[168,13,168,20],[168,21,168,26],[168,28,168,36],[170,13,170,20],[170,21,170,26],[170,28,170,36],[170,7,170,11],[172,13,172,20],[172,21,172,26],[174,13,174,20],[174,21,174,26],[176,1,176,12],[176,13,176,20],[176,21,176,26],[176,28,176,36],[178,13,178,20],[178,21,178,26],[178,28,178,36],[178,7,178,11],[180,13,180,20],[180,21,180,26],[182,13,182,20],[182,21,182,26],[184,1,184,12],[184,13,184,20],[184,21,184,26],[184,28,184,36],[186,13,186,20],[186,21,186,26],[186,28,186,36],[186,7,186,11],[200,28,200,36],[202,13,202,20],[202,21,202,26],[202,28,202,36],[188,13,188,20],[188,21,188,26],[190,13,190,20],[190,21,190,26],[192,1,192,12],[192,13,192,20],[192,21,192,26],[192,28,192,36],[194,13,194,20],[194,21,194,26],[194,28,194,36],[194,7,194,11],[204,13,204,20],[204,21,204,26],[206,13,206,20],[206,21,206,26],[196,13,196,20],[196,21,196,26],[198,13,198,20],[198,21,198,26],[200,1,200,12],[200,13,200,20],[200,21,200,26],[202,7,202,11],[90,7,90,11],[98,7,98,11],[106,7,106,11],[114,7,114,11],[122,7,122,11],[130,7,130,11],[138,7,138,11],[146,7,146,11],[154,7,154,11],[120,1,120,12],[136,1,136,12],[128,1,128,12]]}
["On-site Stormwater Management Calculator - List Approach"]
["BMP Sizing"]
[{"$f":"Version","v":"Version 01-04-2023"}]
[null,"\nMore than one surface can drain to the same BMP. For example, a garage roof and driveway may be managed by a single infiltration trench. Please indicate which surfaces are draining to which BMPs in the dropdown menus."]
[null,"Surface",null,null,null,"Area (sf)",null,null,null,null,"Select BMP",null,null,null,null,null,null,null,null,null,null,null,null,null,null,null,null,null,null,null,null,null,null,null,null,null,null,null,null,"Dropdown List","Unique Count","BMP Type","Can there be more than one BMP","Match"]
[]
[null,1,null,null,null,{"$f":"IFERROR(INDEX('Project Summary'!$W$81:$W$82,MATCH(B7,'Project Summary'!$AS$81:$AS$84,0)),\"\")","v":""},null,null,null,null,null,null,null,null,null,null,null,null,null,null,null,null,null,null,null,null,{"$f":"IFERROR(IF(AND(K7<>\"\",NOT(AR7)),IF(AN7=\"\",\"Select BMP on Surface Tab.\",\"Selected BMP doesn't match Surface Tab.\"),\"\"),\"\")","v":""},null,null,null,null,null,null,null,null,null,null,null,null,{"$f":"IFERROR(INDEX('Project Summary'!$AX$81:$AX$84,MATCH(B7,'Project Summary'!$AS$81:$AS$84,0)),\"NoLIst\")","v":"NoLIst"},{"$f":"IF(LEFT(K7,3)=LEFT(AN7,3),IF(K7<>\"\",1,\"\"),\"\")","v":""},{"$f":"IFERROR(INDEX('Project Summary'!$AT$81:$AT$84,MATCH(B7,'Project Summary'!$AS$81:$AS$84,0)),\"\")","v":""},{"$f":"INDEX(Lookup!$B$70:$B$90,MATCH(AP7,Lookup!$A$70:$A$90,0))","v":{"$error":"#N/A"}},{"$f":"OR(LEFT(K7,LEN(K7)-LEN(AO7)-2)=AP7,K7=AP7,LEFT(K7,LEN(K7)-LEN(AO7)-1)=AP7)","v":{"$error":"#VALUE!"}}]
[]
[null,2,2,null,null,{"$f":"IFERROR(INDEX('Project Summary'!$W$81:$W$82,MATCH(B9,'Project Summary'!$AS$81:$AS$84,0)),\"\")","v":""},null,null,null,null,null,null,null,null,null,null,null,null,null,null,null,null,null,null,null,null,{"$f":"IFERROR(IF(AND(K9<>\"\",NOT(AR9)),IF(AN9=\"\",\"Select BMP on Surface Tab.\",\"Selected BMP doesn't match Surface Tab.\"),\"\"),\"\")","v":""},null,null,null,null,null,null,null,null,null,null,null,null,{"$f":"IFERROR(INDEX('Project Summary'!$AX$81:$AX$84,MATCH(B9,'Project Summary'!$AS$81:$AS$84,0)),\"NoLIst\")","v":"NoLIst"},{"$f":"IF(OR(K9=\"\",LEFT(K9,3)<>LEFT(AN9,3)),\"\",IF(AQ9,IFERROR(INDEX($AO$7:AO8,MATCH(K9,$K$7:K9,0)),MAX($AO$7:AO8)+1),MAX($AO$7:AO8)+1))","v":""},{"$f":"IFERROR(INDEX('Project Summary'!$AT$81:$AT$84,MATCH(B9,'Project Summary'!$AS$81:$AS$84,0)),\"\")","v":""},{"$f":"INDEX(Lookup!$B$70:$B$90,MATCH(AP9,Lookup!$A$70:$A$90,0))","v":{"$error":"#N/A"}},{"$f":"OR(LEFT(K9,LEN(K9)-LEN(AO9)-2)=AP9,K9=AP9,LEFT(K9,LEN(K9)-LEN(AO9)-1)=AP9)","v":{"$error":"#VALUE!"}}]
[]
[null,3,3,null,null,{"$f":"IFERROR(INDEX('Project Summary'!$W$81:$W$82,MATCH(B11,'Project Summary'!$AS$81:$AS$84,0)),\"\")","v":""},null,null,null,null,null,null,null,null,null,null,null,null,null,null,null,null,null,null,null,null,{"$f":"IFERROR(IF(AND(K11<>\"\",NOT(AR11)),IF(AN11=\"\",\"Select BMP on Surface Tab.\",\"Selected BMP doesn't match Surface Tab.\"),\"\"),\"\")","v":""},null,null,null,null,null,null,null,null,null,null,null,null,{"$f":"IFERROR(INDEX('Project Summary'!$AX$81:$AX$84,MATCH(B11,'Project Summary'!$AS$81:$AS$84,0)),\"NoLIst\")","v":"NoLIst"},{"$f":"IF(OR(K11=\"\",LEFT(K11,3)<>LEFT(AN11,3)),\"\",IF(AQ11,IFERROR(INDEX($AO$7:AO10,MATCH(K11,$K$7:K11,0)),MAX($AO$7:AO10)+1),MAX($AO$7:AO10)+1))","v":""},{"$f":"IFERROR(INDEX('Project Summary'!$AT$81:$AT$84,MATCH(B11,'Project Summary'!$AS$81:$AS$84,0)),\"\")","v":""},{"$f":"INDEX(Lookup!$B$70:$B$90,MATCH(AP11,Lookup!$A$70:$A$90,0))","v":{"$error":"#N/A"}},{"$f":"OR(LEFT(K11,LEN(K11)-LEN(AO11)-2)=AP11,K11=AP11,LEFT(K11,LEN(K11)-LEN(AO11)-1)=AP11)","v":{"$error":"#VALUE!"}}]
[]
[null,4,4,null,null,{"$f":"IFERROR(INDEX('Project Summary'!$W$81:$W$82,MATCH(B13,'Project Summary'!$AS$81:$AS$84,0)),\"\")","v":""},null,null,null,null,null,null,null,null,null,null,null,null,null,null,null,null,null,null,null,null,{"$f":"IFERROR(IF(AND(K13<>\"\",NOT(AR13)),IF(AN13=\"\",\"Select BMP on Surface Tab.\",\"Selected BMP doesn't match Surface Tab.\"),\"\"),\"\")","v":""},null,null,null,null,null,null,null,null,null,null,null,null,{"$f":"IFERROR(INDEX('Project Summary'!$AX$81:$AX$84,MATCH(B13,'Project Summary'!$AS$81:$AS$84,0)),\"NoLIst\")","v":"NoLIst"},{"$f":"IF(OR(K13=\"\",LEFT(K13,3)<>LEFT(AN13,3)),\"\",IF(AQ13,IFERROR(INDEX($AO$7:AO12,MATCH(K13,$K$7:K13,0)),MAX($AO$7:AO12)+1),MAX($AO$7:AO12)+1))","v":""},{"$f":"IFERROR(INDEX('Project Summary'!$AT$81:$AT$84,MATCH(B13,'Project Summary'!$AS$81:$AS$84,0)),\"\")","v":""},{"$f":"INDEX(Lookup!$B$70:$B$90,MATCH(AP13,Lookup!$A$70:$A$90,0))","v":{"$error":"#N/A"}},{"$f":"OR(LEFT(K13,LEN(K13)-LEN(AO13)-2)=AP13,K13=AP13,LEFT(K13,LEN(K13)-LEN(AO13)-1)=AP13)","v":{"$error":"#VALUE!"}}]
[]
[null,5,5,null,null,{"$f":"IFERROR(INDEX('Project Summary'!$W$81:$W$82,MATCH(B15,'Project Summary'!$AS$81:$AS$84,0)),\"\")","v":""},null,null,null,null,null,null,null,null,null,null,null,null,null,null,null,null,null,null,null,null,{"$f":"IFERROR(IF(AND(K15<>\"\",NOT(AR15)),IF(AN15=\"\",\"Select BMP on Surface Tab.\",\"Selected BMP doesn't match Surface Tab.\"),\"\"),\"\")","v":""},null,null,null,null,null,null,null,null,null,null,null,null,{"$f":"IFERROR(INDEX('Project Summary'!$AX$81:$AX$84,MATCH(B15,'Project Summary'!$AS$81:$AS$84,0)),\"NoLIst\")","v":"NoLIst"},{"$f":"IF(OR(K15=\"\",LEFT(K15,3)<>LEFT(AN15,3)),\"\",IF(AQ15,IFERROR(INDEX($AO$7:AO14,MATCH(K15,$K$7:K15,0)),MAX($AO$7:AO14)+1),MAX($AO$7:AO14)+1))","v":""},{"$f":"IFERROR(INDEX('Project Summary'!$AT$81:$AT$84,MATCH(B15,'Project Summary'!$AS$81:$AS$84,0)),\"\")","v":""},{"$f":"INDEX(Lookup!$B$70:$B$90,MATCH(AP15,Lookup!$A$70:$A$90,0))","v":{"$error":"#N/A"}},{"$f":"OR(LEFT(K15,LEN(K15)-LEN(AO15)-2)=AP15,K15=AP15,LEFT(K15,LEN(K15)-LEN(AO15)-1)=AP15)","v":{"$error":"#VALUE!"}}]
[]
[null,6,6,null,null,{"$f":"IFERROR(INDEX('Project Summary'!$W$81:$W$82,MATCH(B17,'Project Summary'!$AS$81:$AS$84,0)),\"\")","v":""},null,null,null,null,null,null,null,null,null,null,null,null,null,null,null,null,null,null,null,null,{"$f":"IFERROR(IF(AND(K17<>\"\",NOT(AR17)),IF(AN17=\"\",\"Select BMP on Surface Tab.\",\"Selected BMP doesn't match Surface Tab.\"),\"\"),\"\")","v":""},null,null,null,null,null,null,null,null,null,null,null,null,{"$f":"IFERROR(INDEX('Project Summary'!$AX$81:$AX$84,MATCH(B17,'Project Summary'!$AS$81:$AS$84,0)),\"NoLIst\")","v":"NoLIst"},{"$f":"IF(OR(K17=\"\",LEFT(K17,3)<>LEFT(AN17,3)),\"\",IF(AQ17,IFERROR(INDEX($AO$7:AO16,MATCH(K17,$K$7:K17,0)),MAX($AO$7:AO16)+1),MAX($AO$7:AO16)+1))","v":""},{"$f":"IFERROR(INDEX('Project Summary'!$AT$81:$AT$84,MATCH(B17,'Project Summary'!$AS$81:$AS$84,0)),\"\")","v":""},{"$f":"INDEX(Lookup!$B$70:$B$90,MATCH(AP17,Lookup!$A$70:$A$90,0))","v":{"$error":"#N/A"}},{"$f":"OR(LEFT(K17,LEN(K17)-LEN(AO17)-2)=AP17,K17=AP17,LEFT(K17,LEN(K17)-LEN(AO17)-1)=AP17)","v":{"$error":"#VALUE!"}}]
[]
[null,7,7,null,null,{"$f":"IFERROR(INDEX('Project Summary'!$W$81:$W$82,MATCH(B19,'Project Summary'!$AS$81:$AS$84,0)),\"\")","v":""},null,null,null,null,null,null,null,null,null,null,null,null,null,null,null,null,null,null,null,null,{"$f":"IFERROR(IF(AND(K19<>\"\",NOT(AR19)),IF(AN19=\"\",\"Select BMP on Surface Tab.\",\"Selected BMP doesn't match Surface Tab.\"),\"\"),\"\")","v":""},null,null,null,null,null,null,null,null,null,null,null,null,{"$f":"IFERROR(INDEX('Project Summary'!$AX$81:$AX$84,MATCH(B19,'Project Summary'!$AS$81:$AS$84,0)),\"NoLIst\")","v":"NoLIst"},{"$f":"IF(OR(K19=\"\",LEFT(K19,3)<>LEFT(AN19,3)),\"\",IF(AQ19,IFERROR(INDEX($AO$7:AO18,MATCH(K19,$K$7:K19,0)),MAX($AO$7:AO18)+1),MAX($AO$7:AO18)+1))","v":""},{"$f":"IFERROR(INDEX('Project Summary'!$AT$81:$AT$84,MATCH(B19,'Project Summary'!$AS$81:$AS$84,0)),\"\")","v":""},{"$f":"INDEX(Lookup!$B$70:$B$90,MATCH(AP19,Lookup!$A$70:$A$90,0))","v":{"$error":"#N/A"}},{"$f":"OR(LEFT(K19,LEN(K19)-LEN(AO19)-2)=AP19,K19=AP19,LEFT(K19,LEN(K19)-LEN(AO19)-1)=AP19)","v":{"$error":"#VALUE!"}}]
[]
[null,8,8,null,null,{"$f":"IFERROR(INDEX('Project Summary'!$W$81:$W$82,MATCH(B21,'Project Summary'!$AS$81:$AS$84,0)),\"\")","v":""},null,null,null,null,null,null,null,null,null,null,null,null,null,null,null,null,null,null,null,null,{"$f":"IFERROR(IF(AND(K21<>\"\",NOT(AR21)),IF(AN21=\"\",\"Select BMP on Surface Tab.\",\"Selected BMP doesn't match Surface Tab.\"),\"\"),\"\")","v":""},null,null,null,null,null,null,null,null,null,null,null,null,{"$f":"IFERROR(INDEX('Project Summary'!$AX$81:$AX$84,MATCH(B21,'Project Summary'!$AS$81:$AS$84,0)),\"NoLIst\")","v":"NoLIst"},{"$f":"IF(OR(K21=\"\",LEFT(K21,3)<>LEFT(AN21,3)),\"\",IF(AQ21,IFERROR(INDEX($AO$7:AO20,MATCH(K21,$K$7:K21,0)),MAX($AO$7:AO20)+1),MAX($AO$7:AO20)+1))","v":""},{"$f":"IFERROR(INDEX('Project Summary'!$AT$81:$AT$84,MATCH(B21,'Project Summary'!$AS$81:$AS$84,0)),\"\")","v":""},{"$f":"INDEX(Lookup!$B$70:$B$90,MATCH(AP21,Lookup!$A$70:$A$90,0))","v":{"$error":"#N/A"}},{"$f":"OR(LEFT(K21,LEN(K21)-LEN(AO21)-2)=AP21,K21=AP21,LEFT(K21,LEN(K21)-LEN(AO21)-1)=AP21)","v":{"$error":"#VALUE!"}}]
[]
[null,9,9,null,null,{"$f":"IFERROR(INDEX('Project Summary'!$W$81:$W$82,MATCH(B23,'Project Summary'!$AS$81:$AS$84,0)),\"\")","v":""},null,null,null,null,null,null,null,null,null,null,null,null,null,null,null,null,null,null,null,null,{"$f":"IFERROR(IF(AND(K23<>\"\",NOT(AR23)),IF(AN23=\"\",\"Select BMP on Surface Tab.\",\"Selected BMP doesn't match Surface Tab.\"),\"\"),\"\")","v":""},null,null,null,null,null,null,null,null,null,null,null,null,{"$f":"IFERROR(INDEX('Project Summary'!$AX$81:$AX$84,MATCH(B23,'Project Summary'!$AS$81:$AS$84,0)),\"NoLIst\")","v":"NoLIst"},{"$f":"IF(OR(K23=\"\",LEFT(K23,3)<>LEFT(AN23,3)),\"\",IF(AQ23,IFERROR(INDEX($AO$7:AO22,MATCH(K23,$K$7:K23,0)),MAX($AO$7:AO22)+1),MAX($AO$7:AO22)+1))","v":""},{"$f":"IFERROR(INDEX('Project Summary'!$AT$81:$AT$84,MATCH(B23,'Project Summary'!$AS$81:$AS$84,0)),\"\")","v":""},{"$f":"INDEX(Lookup!$B$70:$B$90,MATCH(AP23,Lookup!$A$70:$A$90,0))","v":{"$error":"#N/A"}},{"$f":"OR(LEFT(K23,LEN(K23)-LEN(AO23)-2)=AP23,K23=AP23,LEFT(K23,LEN(K23)-LEN(AO23)-1)=AP23)","v":{"$error":"#VALUE!"}}]
[]
[null,10,10,null,null,{"$f":"IFERROR(INDEX('Project Summary'!$W$81:$W$82,MATCH(B25,'Project Summary'!$AS$81:$AS$84,0)),\"\")","v":""},null,null,null,null,null,null,null,null,null,null,null,null,null,null,null,null,null,null,null,null,{"$f":"IFERROR(IF(AND(K25<>\"\",NOT(AR25)),IF(AN25=\"\",\"Select BMP on Surface Tab.\",\"Selected BMP doesn't match Surface Tab.\"),\"\"),\"\")","v":""},null,null,null,null,null,null,null,null,null,null,null,null,{"$f":"IFERROR(INDEX('Project Summary'!$AX$81:$AX$84,MATCH(B25,'Project Summary'!$AS$81:$AS$84,0)),\"NoLIst\")","v":"NoLIst"},{"$f":"IF(OR(K25=\"\",LEFT(K25,3)<>LEFT(AN25,3)),\"\",IF(AQ25,IFERROR(INDEX($AO$7:AO24,MATCH(K25,$K$7:K25,0)),MAX($AO$7:AO24)+1),MAX($AO$7:AO24)+1))","v":""},{"$f":"IFERROR(INDEX('Project Summary'!$AT$81:$AT$84,MATCH(B25,'Project Summary'!$AS$81:$AS$84,0)),\"\")","v":""},{"$f":"INDEX(Lookup!$B$70:$B$90,MATCH(AP25,Lookup!$A$70:$A$90,0))","v":{"$error":"#N/A"}},{"$f":"OR(LEFT(K25,LEN(K25)-LEN(AO25)-2)=AP25,K25=AP25,LEFT(K25,LEN(K25)-LEN(AO25)-1)=AP25)","v":{"$error":"#VALUE!"}}]
[]
[null,11,10,null,null,{"$f":"IFERROR(INDEX('Project Summary'!$W$81:$W$82,MATCH(B27,'Project Summary'!$AS$81:$AS$84,0)),\"\")","v":""},null,null,null,null,null,null,null,null,null,null,null,null,null,null,null,null,null,null,null,null,{"$f":"IFERROR(IF(AND(K27<>\"\",NOT(AR27)),IF(AN27=\"\",\"Select BMP on Surface Tab.\",\"Selected BMP doesn't match Surface Tab.\"),\"\"),\"\")","v":""},null,null,null,null,null,null,null,null,null,null,null,null,{"$f":"IFERROR(INDEX('Project Summary'!$AX$81:$AX$84,MATCH(B27,'Project Summary'!$AS$81:$AS$84,0)),\"NoLIst\")","v":"NoLIst"},{"$f":"IF(OR(K27=\"\",LEFT(K27,3)<>LEFT(AN27,3)),\"\",IF(AQ27,IFERROR(INDEX($AO$7:AO26,MATCH(K27,$K$7:K27,0)),MAX($AO$7:AO26)+1),MAX($AO$7:AO26)+1))","v":""},{"$f":"IFERROR(INDEX('Project Summary'!$AT$81:$AT$84,MATCH(B27,'Project Summary'!$AS$81:$AS$84,0)),\"\")","v":""},{"$f":"INDEX(Lookup!$B$70:$B$90,MATCH(AP27,Lookup!$A$70:$A$90,0))","v":{"$error":"#N/A"}},{"$f":"OR(LEFT(K27,LEN(K27)-LEN(AO27)-2)=AP27,K27=AP27,LEFT(K27,LEN(K27)-LEN(AO27)-1)=AP27)","v":{"$error":"#VALUE!"}}]
[]
[null,12,10,null,null,{"$f":"IFERROR(INDEX('Project Summary'!$W$81:$W$82,MATCH(B29,'Project Summary'!$AS$81:$AS$84,0)),\"\")","v":""},null,null,null,null,null,null,null,null,null,null,null,null,null,null,null,null,null,null,null,null,{"$f":"IFERROR(IF(AND(K29<>\"\",NOT(AR29)),IF(AN29=\"\",\"Select BMP on Surface Tab.\",\"Selected BMP doesn't match Surface Tab.\"),\"\"),\"\")","v":""},null,null,null,null,null,null,null,null,null,null,null,null,{"$f":"IFERROR(INDEX('Project Summary'!$AX$81:$AX$84,MATCH(B29,'Project Summary'!$AS$81:$AS$84,0)),\"NoLIst\")","v":"NoLIst"},{"$f":"IF(OR(K29=\"\",LEFT(K29,3)<>LEFT(AN29,3)),\"\",IF(AQ29,IFERROR(INDEX($AO$7:AO28,MATCH(K29,$K$7:K29,0)),MAX($AO$7:AO28)+1),MAX($AO$7:AO28)+1))","v":""},{"$f":"IFERROR(INDEX('Project Summary'!$AT$81:$AT$84,MATCH(B29,'Project Summary'!$AS$81:$AS$84,0)),\"\")","v":""},{"$f":"INDEX(Lookup!$B$70:$B$90,MATCH(AP29,Lookup!$A$70:$A$90,0))","v":{"$error":"#N/A"}},{"$f":"OR(LEFT(K29,LEN(K29)-LEN(AO29)-2)=AP29,K29=AP29,LEFT(K29,LEN(K29)-LEN(AO29)-1)=AP29)","v":{"$error":"#VALUE!"}}]
[]
[null,13,10,null,null,{"$f":"IFERROR(INDEX('Project Summary'!$W$81:$W$82,MATCH(B31,'Project Summary'!$AS$81:$AS$84,0)),\"\")","v":""},null,null,null,null,null,null,null,null,null,null,null,null,null,null,null,null,null,null,null,null,{"$f":"IFERROR(IF(AND(K31<>\"\",NOT(AR31)),IF(AN31=\"\",\"Select BMP on Surface Tab.\",\"Selected BMP doesn't match Surface Tab.\"),\"\"),\"\")","v":""},null,null,null,null,null,null,null,null,null,null,null,null,{"$f":"IFERROR(INDEX('Project Summary'!$AX$81:$AX$84,MATCH(B31,'Project Summary'!$AS$81:$AS$84,0)),\"NoLIst\")","v":"NoLIst"},{"$f":"IF(OR(K31=\"\",LEFT(K31,3)<>LEFT(AN31,3)),\"\",IF(AQ31,IFERROR(INDEX($AO$7:AO30,MATCH(K31,$K$7:K31,0)),MAX($AO$7:AO30)+1),MAX($AO$7:AO30)+1))","v":""},{"$f":"IFERROR(INDEX('Project Summary'!$AT$81:$AT$84,MATCH(B31,'Project Summary'!$AS$81:$AS$84,0)),\"\")","v":""},{"$f":"INDEX(Lookup!$B$70:$B$90,MATCH(AP31,Lookup!$A$70:$A$90,0))","v":{"$error":"#N/A"}},{"$f":"OR(LEFT(K31,LEN(K31)-LEN(AO31)-2)=AP31,K31=AP31,LEFT(K31,LEN(K31)-LEN(AO31)-1)=AP31)","v":{"$error":"#VALUE!"}}]
[]
[null,14,10,null,null,{"$f":"IFERROR(INDEX('Project Summary'!$W$81:$W$82,MATCH(B33,'Project Summary'!$AS$81:$AS$84,0)),\"\")","v":""},null,null,null,null,null,null,null,null,null,null,null,null,null,null,null,null,null,null,null,null,{"$f":"IFERROR(IF(AND(K33<>\"\",NOT(AR33)),IF(AN33=\"\",\"Select BMP on Surface Tab.\",\"Selected BMP doesn't match Surface Tab.\"),\"\"),\"\")","v":""},null,null,null,null,null,null,null,null,null,null,null,null,{"$f":"IFERROR(INDEX('Project Summary'!$AX$81:$AX$84,MATCH(B33,'Project Summary'!$AS$81:$AS$84,0)),\"NoLIst\")","v":"NoLIst"},{"$f":"IF(OR(K33=\"\",LEFT(K33,3)<>LEFT(AN33,3)),\"\",IF(AQ33,IFERROR(INDEX($AO$7:AO32,MATCH(K33,$K$7:K33,0)),MAX($AO$7:AO32)+1),MAX($AO$7:AO32)+1))","v":""},{"$f":"IFERROR(INDEX('Project Summary'!$AT$81:$AT$84,MATCH(B33,'Project Summary'!$AS$81:$AS$84,0)),\"\")","v":""},{"$f":"INDEX(Lookup!$B$70:$B$90,MATCH(AP33,Lookup!$A$70:$A$90,0))","v":{"$error":"#N/A"}},{"$f":"OR(LEFT(K33,LEN(K33)-LEN(AO33)-2)=AP33,K33=AP33,LEFT(K33,LEN(K33)-LEN(AO33)-1)=AP33)","v":{"$error":"#VALUE!"}}]
[]
[null,15,10,null,null,{"$f":"IFERROR(INDEX('Project Summary'!$W$81:$W$82,MATCH(B35,'Project Summary'!$AS$81:$AS$84,0)),\"\")","v":""},null,null,null,null,null,null,null,null,null,null,null,null,null,null,null,null,null,null,null,null,{"$f":"IFERROR(IF(AND(K35<>\"\",NOT(AR35)),IF(AN35=\"\",\"Select BMP on Surface Tab.\",\"Selected BMP doesn't match Surface Tab.\"),\"\"),\"\")","v":""},null,null,null,null,null,null,null,null,null,null,null,null,{"$f":"IFERROR(INDEX('Project Summary'!$AX$81:$AX$84,MATCH(B35,'Project Summary'!$AS$81:$AS$84,0)),\"NoLIst\")","v":"NoLIst"},{"$f":"IF(OR(K35=\"\",LEFT(K35,3)<>LEFT(AN35,3)),\"\",IF(AQ35,IFERROR(INDEX($AO$7:AO34,MATCH(K35,$K$7:K35,0)),MAX($AO$7:AO34)+1),MAX($AO$7:AO34)+1))","v":""},{"$f":"IFERROR(INDEX('Project Summary'!$AT$81:$AT$84,MATCH(B35,'Project Summary'!$AS$81:$AS$84,0)),\"\")","v":""},{"$f":"INDEX(Lookup!$B$70:$B$90,MATCH(AP35,Lookup!$A$70:$A$90,0))","v":{"$error":"#N/A"}},{"$f":"OR(LEFT(K35,LEN(K35)-LEN(AO35)-2)=AP35,K35=AP35,LEFT(K35,LEN(K35)-LEN(AO35)-1)=AP35)","v":{"$error":"#VALUE!"}}]
[]
[null,16,10,null,null,{"$f":"IFERROR(INDEX('Project Summary'!$W$81:$W$82,MATCH(B37,'Project Summary'!$AS$81:$AS$84,0)),\"\")","v":""},null,null,null,null,null,null,null,null,null,null,null,null,null,null,null,null,null,null,null,null,{"$f":"IFERROR(IF(AND(K37<>\"\",NOT(AR37)),IF(AN37=\"\",\"Select BMP on Surface Tab.\",\"Selected BMP doesn't match Surface Tab.\"),\"\"),\"\")","v":""},null,null,null,null,null,null,null,null,null,null,null,null,{"$f":"IFERROR(INDEX('Project Summary'!$AX$81:$AX$84,MATCH(B37,'Project Summary'!$AS$81:$AS$84,0)),\"NoLIst\")","v":"NoLIst"},{"$f":"IF(OR(K37=\"\",LEFT(K37,3)<>LEFT(AN37,3)),\"\",IF(AQ37,IFERROR(INDEX($AO$7:AO36,MATCH(K37,$K$7:K37,0)),MAX($AO$7:AO36)+1),MAX($AO$7:AO36)+1))","v":""},{"$f":"IFERROR(INDEX('Project Summary'!$AT$81:$AT$84,MATCH(B37,'Project Summary'!$AS$81:$AS$84,0)),\"\")","v":""},{"$f":"INDEX(Lookup!$B$70:$B$90,MATCH(AP37,Lookup!$A$70:$A$90,0))","v":{"$error":"#N/A"}},{"$f":"OR(LEFT(K37,LEN(K37)-LEN(AO37)-2)=AP37,K37=AP37,LEFT(K37,LEN(K37)-LEN(AO37)-1)=AP37)","v":{"$error":"#VALUE!"}}]
[]
[null,17,10,null,null,{"$f":"IFERROR(INDEX('Project Summary'!$W$81:$W$82,MATCH(B39,'Project Summary'!$AS$81:$AS$84,0)),\"\")","v":""},null,null,null,null,null,null,null,null,null,null,null,null,null,null,null,null,null,null,null,null,{"$f":"IFERROR(IF(AND(K39<>\"\",NOT(AR39)),IF(AN39=\"\",\"Select BMP on Surface Tab.\",\"Selected BMP doesn't match Surface Tab.\"),\"\"),\"\")","v":""},null,null,null,null,null,null,null,null,null,null,null,null,{"$f":"IFERROR(INDEX('Project Summary'!$AX$81:$AX$84,MATCH(B39,'Project Summary'!$AS$81:$AS$84,0)),\"NoLIst\")","v":"NoLIst"},{"$f":"IF(OR(K39=\"\",LEFT(K39,3)<>LEFT(AN39,3)),\"\",IF(AQ39,IFERROR(INDEX($AO$7:AO38,MATCH(K39,$K$7:K39,0)),MAX($AO$7:AO38)+1),MAX($AO$7:AO38)+1))","v":""},{"$f":"IFERROR(INDEX('Project Summary'!$AT$81:$AT$84,MATCH(B39,'Project Summary'!$AS$81:$AS$84,0)),\"\")","v":""},{"$f":"INDEX(Lookup!$B$70:$B$90,MATCH(AP39,Lookup!$A$70:$A$90,0))","v":{"$error":"#N/A"}},{"$f":"OR(LEFT(K39,LEN(K39)-LEN(AO39)-2)=AP39,K39=AP39,LEFT(K39,LEN(K39)-LEN(AO39)-1)=AP39)","v":{"$error":"#VALUE!"}}]
[]
[null,18,10,null,null,{"$f":"IFERROR(INDEX('Project Summary'!$W$81:$W$82,MATCH(B41,'Project Summary'!$AS$81:$AS$84,0)),\"\")","v":""},null,null,null,null,null,null,null,null,null,null,null,null,null,null,null,null,null,null,null,null,{"$f":"IFERROR(IF(AND(K41<>\"\",NOT(AR41)),IF(AN41=\"\",\"Select BMP on Surface Tab.\",\"Selected BMP doesn't match Surface Tab.\"),\"\"),\"\")","v":""},null,null,null,null,null,null,null,null,null,null,null,null,{"$f":"IFERROR(INDEX('Project Summary'!$AX$81:$AX$84,MATCH(B41,'Project Summary'!$AS$81:$AS$84,0)),\"NoLIst\")","v":"NoLIst"},{"$f":"IF(OR(K41=\"\",LEFT(K41,3)<>LEFT(AN41,3)),\"\",IF(AQ41,IFERROR(INDEX($AO$7:AO40,MATCH(K41,$K$7:K41,0)),MAX($AO$7:AO40)+1),MAX($AO$7:AO40)+1))","v":""},{"$f":"IFERROR(INDEX('Project Summary'!$AT$81:$AT$84,MATCH(B41,'Project Summary'!$AS$81:$AS$84,0)),\"\")","v":""},{"$f":"INDEX(Lookup!$B$70:$B$90,MATCH(AP41,Lookup!$A$70:$A$90,0))","v":{"$error":"#N/A"}},{"$f":"OR(LEFT(K41,LEN(K41)-LEN(AO41)-2)=AP41,K41=AP41,LEFT(K41,LEN(K41)-LEN(AO41)-1)=AP41)","v":{"$error":"#VALUE!"}}]
[]
[null,19,10,null,null,{"$f":"IFERROR(INDEX('Project Summary'!$W$81:$W$82,MATCH(B43,'Project Summary'!$AS$81:$AS$84,0)),\"\")","v":""},null,null,null,null,null,null,null,null,null,null,null,null,null,null,null,null,null,null,null,null,{"$f":"IFERROR(IF(AND(K43<>\"\",NOT(AR43)),IF(AN43=\"\",\"Select BMP on Surface Tab.\",\"Selected BMP doesn't match Surface Tab.\"),\"\"),\"\")","v":""},null,null,null,null,null,null,null,null,null,null,null,null,{"$f":"IFERROR(INDEX('Project Summary'!$AX$81:$AX$84,MATCH(B43,'Project Summary'!$AS$81:$AS$84,0)),\"NoLIst\")","v":"NoLIst"},{"$f":"IF(OR(K43=\"\",LEFT(K43,3)<>LEFT(AN43,3)),\"\",IF(AQ43,IFERROR(INDEX($AO$7:AO42,MATCH(K43,$K$7:K43,0)),MAX($AO$7:AO42)+1),MAX($AO$7:AO42)+1))","v":""},{"$f":"IFERROR(INDEX('Project Summary'!$AT$81:$AT$84,MATCH(B43,'Project Summary'!$AS$81:$AS$84,0)),\"\")","v":""},{"$f":"INDEX(Lookup!$B$70:$B$90,MATCH(AP43,Lookup!$A$70:$A$90,0))","v":{"$error":"#N/A"}},{"$f":"OR(LEFT(K43,LEN(K43)-LEN(AO43)-2)=AP43,K43=AP43,LEFT(K43,LEN(K43)-LEN(AO43)-1)=AP43)","v":{"$error":"#VALUE!"}}]
[]
[null,20,10,null,null,{"$f":"IFERROR(INDEX('Project Summary'!$W$81:$W$82,MATCH(B45,'Project Summary'!$AS$81:$AS$84,0)),\"\")","v":""},null,null,null,null,null,null,null,null,null,null,null,null,null,null,null,null,null,null,null,null,{"$f":"IFERROR(IF(AND(K45<>\"\",NOT(AR45)),IF(AN45=\"\",\"Select BMP on Surface Tab.\",\"Selected BMP doesn't match Surface Tab.\"),\"\"),\"\")","v":""},null,null,null,null,null,null,null,null,null,null,null,null,{"$f":"IFERROR(INDEX('Project Summary'!$AX$81:$AX$84,MATCH(B45,'Project Summary'!$AS$81:$AS$84,0)),\"NoLIst\")","v":"NoLIst"},{"$f":"IF(OR(K45=\"\",LEFT(K45,3)<>LEFT(AN45,3)),\"\",IF(AQ45,IFERROR(INDEX($AO$7:AO44,MATCH(K45,$K$7:K45,0)),MAX($AO$7:AO44)+1),MAX($AO$7:AO44)+1))","v":""},{"$f":"IFERROR(INDEX('Project Summary'!$AT$81:$AT$84,MATCH(B45,'Project Summary'!$AS$81:$AS$84,0)),\"\")","v":""},{"$f":"INDEX(Lookup!$B$70:$B$90,MATCH(AP45,Lookup!$A$70:$A$90,0))","v":{"$error":"#N/A"}},{"$f":"OR(LEFT(K45,LEN(K45)-LEN(AO45)-2)=AP45,K45=AP45,LEFT(K45,LEN(K45)-LEN(AO45)-1)=AP45)","v":{"$error":"#VALUE!"}}]
[]
[null,null,null,null,null,null,null,null,null,null,null,null,null,null,null,null,null,null,null,null,null,null,null,null,null,null,null,null,null,null,null,null,null,null,null,null,null,null,null,"Unique count lookup","Dropdown lookup","Sizing Factor & Units","Facility Size","Units","Volume Mangaed gal/yr","Data Entered when This was List"]
[null,"BMP",null,null,null,null,null,null,null,null,null,null,null,"BMP Facility Inputs",null,null,null,null,null,null,null,null,null,null,null,null,null,null,"BMP Size and Credit"]
[null,{"$f":"IFERROR(IF(INDEX($K$7:$K$46,MATCH(AN49,$AO$7:$AO$46,0))=\"\",\"\",INDEX($K$7:$K$46,MATCH(AN49,$AO$7:$AO$46,0))),\"\")","v":""},null,null,null,null,null,null,null,null,null,null,null,{"$f":"IF(B49=\"\",\"\",IF(AO49=\"Vegetated Roof System\",\"Roof Area\",\"Contributing Area (sf)\"))","v":""},null,null,null,null,null,null,null,{"$f":"IF(B49=\"\",\"\",SUMIF($AO$7:$AO$46,AN49,$F$7:$I$46))","v":""},null,null,null,null,null,null,{"$f":"IFERROR(IF(AO49=\"Water Quality BMP in lieu of NIB\",\"Submit sizing documentation separately.\",\nIF(AP49=-999,\"Configuration not allowed.\",IF(AP49=0,\"Configuration not allowed.\",IF(AO49=\"New or Retained Trees\",\"As many as feasible.\",\nIF(AP49=\"equation\",TEXT(AQ49,\"#,##0\")&\" \"&AR49,\nTEXT(IF(OR(AO49=\"Permeable Pavement Facility\",AO49=\"Vegetated Roof System\",AO49=\"Rainwater Harvesting - Category 2\", AO49=\"Rainwater Harvesting - Category 4\"),H51,\nIF(AO49=\"Sidewalk/Trail Compost-Amended Strip\",MAX(V49/H51,AP49*V49),\nAP49*V49)),\"#,##0\")&\" \"&AR49))))),\"\")","v":""},null,null,null,null,null,null,null,null,null,null,1,{"$f":"INDEX($AP$7:$AP$46,MATCH(AN49,$AO$7:$AO$46,0))","v":{"$error":"#N/A"}},{"$f":"IF(AO49=\"New or Retained Trees\", INDEX(Lookup!$F$93:$F$219,MATCH(TRIM(CONCATENATE(AO49,V51)),Lookup!$E$93:$E$219,0)),\nIF(AO49=\"Single-family Residential Cisterns\", INDEX(Lookup!$F$93:$F$219,MATCH(TRIM(CONCATENATE(AO49,IF(V49<400,0,IF(V49>4200,4201,ROUNDDOWN(V49,-2))))),Lookup!$E$93:$E$219,0)),\nIF(AO49=\"Sidewalk/Trail Compost-Amended Strip\", IF(H51=\"\",NA(),IF(H51<10,Lookup!$F$95,Lookup!$F$94)),\nIF(AND(AO49=\"Non-Infiltrating Bioretention\",V53=\"Sloped sides\"),\nIF(V51=2,0.013,\nIF(AND(V51=12,V49<=2000),0.004,\"equation\")),\nINDEX(Lookup!$F$93:$F$219,MATCH(TRIM(CONCATENATE(AO49,V51,V53,V55)),Lookup!$E$93:$E$219,0))))))","v":{"$error":"#N/A"}},{"$f":"IF(AND(AO49=\"Non-Infiltrating Bioretention\",V53=\"Sloped sides\"),\nIF(V51=2,0.013*V49,\nIF(AND(V51=6,V49<=2000),0.0059*V49-3.215,\nIF(AND(V51=6,V49>2000,V49<=10000),0.0097*V49-11.297,\nIF(AND(V51=6,V49>10000),0.012*V49,\nIF(AND(V51=12,V49<=2700),0.004*V49,\nIF(AND(V51=12,V49>2700,V49<=10000),0.0052*V49-12.092,\nIF(AND(V51=12,V49>10000),0.01*V49,NA()))))))),\nIF(AP49<=0,NA(),IF(OR(AO49=\"Permeable Pavement Facility\",AO49=\"Vegetated Roof System\",AO49=\"Rainwater Harvesting - Category 2\", AO49=\"Rainwater Harvesting - Category 4\"),H51,\nIF(AO49=\"Sidewalk/Trail Compost-Amended Strip\",MAX(V49/H51, AP49*V49),\nAP49*V49))))","v":{"$error":"#N/A"}},{"$f":"IF(AO49=\"Single-family Residential Cisterns\",\n\"sf\",INDEX(Lookup!$H$93:$H$219,MATCH(TRIM(CONCATENATE(AO49,V51,V53,V55)),Lookup!$E$93:$E$219,0)))","v":{"$error":"#N/A"}},{"$f":"IF(AO49=\"New or Retained Trees\", INDEX(Lookup!$G$93:$G$219,MATCH(TRIM(CONCATENATE(AO49,V51)),Lookup!$E$93:$E$219,0))*V53,\nIF(AO49=\"Single-family Residential Cisterns\", INDEX(Lookup!$G$93:$G$219,MATCH(TRIM(CONCATENATE(AO49,IF(V49<400,0,IF(V49>4200,4201,ROUNDDOWN(V49,-2))))),Lookup!$E$93:$E$219,0))*V49,\nIF(AND(AO49=\"Sidewalk/Trail Compost-Amended Strip\",OR(H51=\"\",InfRate=0)),NA(),\nINDEX(Lookup!$G$93:$G$219,MATCH(TRIM(CONCATENATE(AO49,V51,V53,V55)),Lookup!$E$93:$E$219,0))*V49)))*7.48052\n*IF(OR(AO49=\"Permeable Pavement Facility\",AO49=\"Vegetated Roof System\"),MIN(1,H51/(AP49*V49)),1)\n+IF(AO49=\"Permeable Pavement Facility\",H51*2.1*7.48052,1)","v":{"$error":"#N/A"}},{"$f":"IFERROR(\nIF(AO49=\"Single-family Residential Cisterns\",INDEX(Lookup!$H$93:$H$219,MATCH(TRIM(CONCATENATE(AO49,IF(V49<400,0,IF(V49>4200,4201,ROUNDDOWN(V49,-2))))),Lookup!$E$93:$E$219,0)),\nIF(AO49=\"Sidewalk/Trail Compost-Amended Strip\",ROUND(AQ49/(V49/H51),1) &\" ft wide x \"& ROUND(V49/H51,0)&\" ft long\",\nIF(OR(AO49=\"Rainwater Harvesting - Category 2\",AO49=\"Rainwater Harvesting - Category 4\"),\" required minimum live storage\",\nIF(AO49=\"Water Quality BMP in lieu of NIB\",\"See Plan\",\nIF(AND(V51=\"\",V53=\"\",V55=\"\"),\"\",TRIM(V53&\" \"&AP53&\" \"&V51&\" \"&AP51&\" \"&V55&\" \"&AP55)))))),\"\")","v":""}]
[]
[null,{"$f":"IFERROR(\nIF(AO49=\"Permeable Pavement Facility\",\"Facility Area (sf)\",\nIF(AO49=\"Vegetated Roof System\",\"Vegetated Area (sf)\",\nIF(AO49=\"Sidewalk/Trail Compost-Amended Strip\",\"Sidewalk/Trail Width (ft)\",\nIF(OR(AO49=\"Rainwater Harvesting - Category 2\",AO49=\"Rainwater Harvesting - Category 4\"),\"Live Storage Volume (gal)\",\n\"\")))),\"\")","v":""},null,null,null,null,null,null,null,null,null,null,null,{"$f":"IFERROR(INDEX(Lookup!$C$70:$C$90,MATCH(AO49,Lookup!$A$70:$A$90,0)),\"\")","v":""},null,null,null,null,null,null,null,null,null,null,null,null,null,null,{"$f":"IFERROR(TEXT(AS49,\"#,##0\")&\" gal managed/year\",IFERROR(IF(AP49=0,\"Infiltration rate too low.\",\"\"),\"\"))","v":""},null,null,null,null,null,null,null,null,null,null,null,{"$f":"TRIM(SUBSTITUTE(SUBSTITUTE(SUBSTITUTE(AO49,\" \",\"\"),\"-\",\"\"),\"/\",\"\")&\"List1\")","v":{"$error":"#N/A"}},{"$f":"IFERROR(INDEX(Lookup!$F$70:$F$90,MATCH(AO49,Lookup!$A$70:$A$90,0)),\"\")","v":""},null,null,null,{"$error":"#N/A"}]
[]
[null,{"$f":"IFERROR(\nIF(OR(AO49=\"Permeable Pavement Facility\",AO49=\"Vegetated Roof System\"),\"Minimum Facility Area \"&TEXT((AP49*V49),\"#,###\")&\" sf\",\nIF(OR(AO49=\"Rainwater Harvesting - Category 2\",AO49=\"Rainwater Harvesting - Category 4\"),\"Continuous runoff modeling required by\",\n\"\")),\"\")","v":""},null,null,null,null,null,null,null,null,null,null,null,{"$f":"IFERROR(INDEX(Lookup!$D$70:$D$90,MATCH(AO49,Lookup!$A$70:$A$90,0)),\"\")","v":""},null,null,null,null,null,null,null,null,null,null,null,null,null,null,{"$f":"IFERROR(IF(AO49=\"Sidewalk/Trail Compost-Amended Strip\",ROUND(AQ49/(V49/H51),1) &\" ft wide compost-amended strip\",\"\"),\"\")","v":""},null,null,null,null,null,null,null,null,null,null,null,{"$f":"TRIM(SUBSTITUTE(SUBSTITUTE(SUBSTITUTE(AO49,\" \",\"\"),\"-\",\"\"),\"/\",\"\")&\"List2\")","v":{"$error":"#N/A"}},{"$f":"IFERROR(INDEX(Lookup!$G$70:$G$90,MATCH(AO49,Lookup!$A$70:$A$90,0)),\"\")","v":""},null,null,null,{"$error":"#N/A"}]
[]
[null,{"$f":"IFERROR(IF(OR(AO49=\"Rainwater Harvesting - Category 2\",AO49=\"Rainwater Harvesting - Category 4\"),\"professional engineer.\",\n\"\"),\"\")","v":""},null,null,null,null,null,null,null,null,null,null,null,{"$f":"IFERROR(INDEX(Lookup!$E$70:$E$90,MATCH(AO49,Lookup!$A$70:$A$90,0)),\"\")","v":""},null,null,null,null,null,null,null,null,null,null,null,null,null,null,{"$f":"IFERROR(IF(AO49=\"Sidewalk/Trail Compost-Amended Strip\",IF(AND(AC53=\"\",H51<>\"\"),\"\",\"along full \"& ROUND(V49/H51,0) &\" ft trail/sidewalk\"),\"\"),\"\")","v":""},null,null,null,null,null,null,null,null,null,null,null,{"$f":"TRIM(SUBSTITUTE(SUBSTITUTE(SUBSTITUTE(AO49,\" \",\"\"),\"-\",\"\"),\"/\",\"\")&\"List3\")","v":{"$error":"#N/A"}}]
[]
[null,{"$f":"IFERROR(IF(INDEX($K$7:$K$46,MATCH(AN57,$AO$7:$AO$46,0))=\"\",\"\",INDEX($K$7:$K$46,MATCH(AN57,$AO$7:$AO$46,0))),\"\")","v":""},null,null,null,null,null,null,null,null,null,null,null,{"$f":"IF(B57=\"\",\"\",IF(AO57=\"Vegetated Roof System\",\"Roof Area\",\"Contributing Area (sf)\"))","v":""},null,null,null,null,null,null,null,{"$f":"IF(B57=\"\",\"\",SUMIF($AO$7:$AO$46,AN57,$F$7:$I$46))","v":""},null,null,null,null,null,null,{"$f":"IFERROR(IF(AO57=\"Water Quality BMP in lieu of NIB\",\"Submit sizing documentation separately.\",\nIF(AP57=-999,\"Configuration not allowed.\",IF(AP57=0,\"Configuration not allowed.\",IF(AO57=\"New or Retained Trees\",\"As many as feasible.\",\nIF(AP57=\"equation\",TEXT(AQ57,\"#,##0\")&\" \"&AR57,\nTEXT(IF(OR(AO57=\"Permeable Pavement Facility\",AO57=\"Vegetated Roof System\",AO57=\"Rainwater Harvesting - Category 2\", AO57=\"Rainwater Harvesting - Category 4\"),H59,\nIF(AO57=\"Sidewalk/Trail Compost-Amended Strip\",MAX(V57/H59,AP57*V57),\nAP57*V57)),\"#,##0\")&\" \"&AR57))))),\"\")","v":""},null,null,null,null,null,null,null,null,null,null,2,{"$f":"INDEX($AP$7:$AP$46,MATCH(AN57,$AO$7:$AO$46,0))","v":{"$error":"#N/A"}},{"$f":"IF(AO57=\"New or Retained Trees\", INDEX(Lookup!$F$93:$F$219,MATCH(TRIM(CONCATENATE(AO57,V59)),Lookup!$E$93:$E$219,0)),\nIF(AO57=\"Single-family Residential Cisterns\", INDEX(Lookup!$F$93:$F$219,MATCH(TRIM(CONCATENATE(AO57,IF(V57<400,0,IF(V57>4200,4201,ROUNDDOWN(V57,-2))))),Lookup!$E$93:$E$219,0)),\nIF(AO57=\"Sidewalk/Trail Compost-Amended Strip\", IF(H59=\"\",NA(),IF(H59<10,Lookup!$F$95,Lookup!$F$94)),\nIF(AND(AO57=\"Non-Infiltrating Bioretention\",V61=\"Sloped sides\"),\nIF(V59=2,0.013,\nIF(AND(V59=12,V57<=2000),0.004,\"equation\")),\nINDEX(Lookup!$F$93:$F$219,MATCH(TRIM(CONCATENATE(AO57,V59,V61,V63)),Lookup!$E$93:$E$219,0))))))","v":{"$error":"#N/A"}},{"$f":"IF(AND(AO57=\"Non-Infiltrating Bioretention\",V61=\"Sloped sides\"),\nIF(V59=2,0.013*V57,\nIF(AND(V59=6,V57<=2000),0.0059*V57-3.215,\nIF(AND(V59=6,V57>2000,V57<=10000),0.0097*V57-11.297,\nIF(AND(V59=6,V57>10000),0.012*V57,\nIF(AND(V59=12,V57<=2700),0.004*V57,\nIF(AND(V59=12,V57>2700,V57<=10000),0.0052*V57-12.092,\nIF(AND(V59=12,V57>10000),0.01*V57,NA()))))))),\nIF(AP57<=0,NA(),IF(OR(AO57=\"Permeable Pavement Facility\",AO57=\"Vegetated Roof System\",AO57=\"Rainwater Harvesting - Category 2\", AO57=\"Rainwater Harvesting - Category 4\"),H59,\nIF(AO57=\"Sidewalk/Trail Compost-Amended Strip\",MAX(V57/H59, AP57*V57),\nAP57*V57))))","v":{"$error":"#N/A"}},{"$f":"IF(AO57=\"Single-family Residential Cisterns\",\n\"sf\",INDEX(Lookup!$H$93:$H$219,MATCH(TRIM(CONCATENATE(AO57,V59,V61,V63)),Lookup!$E$93:$E$219,0)))","v":{"$error":"#N/A"}},{"$f":"IF(AO57=\"New or Retained Trees\", INDEX(Lookup!$G$93:$G$219,MATCH(TRIM(CONCATENATE(AO57,V59)),Lookup!$E$93:$E$219,0))*V61,\nIF(AO57=\"Single-family Residential Cisterns\", INDEX(Lookup!$G$93:$G$219,MATCH(TRIM(CONCATENATE(AO57,IF(V57<400,0,IF(V57>4200,4201,ROUNDDOWN(V57,-2))))),Lookup!$E$93:$E$219,0))*V57,\nIF(AND(AO57=\"Sidewalk/Trail Compost-Amended Strip\",OR(H59=\"\",InfRate=0)),NA(),\nINDEX(Lookup!$G$93:$G$219,MATCH(TRIM(CONCATENATE(AO57,V59,V61,V63)),Lookup!$E$93:$E$219,0))*V57)))*7.48052\n*IF(OR(AO57=\"Permeable Pavement Facility\",AO57=\"Vegetated Roof System\"),MIN(1,H59/(AP57*V57)),1)\n+IF(AO57=\"Permeable Pavement Facility\",H59*2.1*7.48052,1)","v":{"$error":"#N/A"}},{"$f":"IFERROR(\nIF(AO57=\"Single-family Residential Cisterns\",INDEX(Lookup!$H$93:$H$219,MATCH(TRIM(CONCATENATE(AO57,IF(V57<400,0,IF(V57>4200,4201,ROUNDDOWN(V57,-2))))),Lookup!$E$93:$E$219,0)),\nIF(AO57=\"Sidewalk/Trail Compost-Amended Strip\",ROUND(AQ57/(V57/H59),1) &\" ft wide x \"& ROUND(V57/H59,0)&\" ft long\",\nIF(OR(AO57=\"Rainwater Harvesting - Category 2\",AO57=\"Rainwater Harvesting - Category 4\"),\" required minimum live storage\",\nIF(AO57=\"Water Quality BMP in lieu of NIB\",\"See Plan\",\nIF(AND(V59=\"\",V61=\"\",V63=\"\"),\"\",TRIM(V61&\" \"&AP61&\" \"&V59&\" \"&AP59&\" \"&V63&\" \"&AP63)))))),\"\")","v":""}]
[]
[null,{"$f":"IFERROR(\nIF(AO57=\"Permeable Pavement Facility\",\"Facility Area (sf)\",\nIF(AO57=\"Vegetated Roof System\",\"Vegetated Area (sf)\",\nIF(AO57=\"Sidewalk/Trail Compost-Amended Strip\",\"Sidewalk/Trail Width (ft)\",\nIF(OR(AO57=\"Rainwater Harvesting - Category 2\",AO57=\"Rainwater Harvesting - Category 4\"),\"Live Storage Volume (gal)\",\n\"\")))),\"\")","v":""},null,null,null,null,null,null,null,null,null,null,null,{"$f":"IFERROR(INDEX(Lookup!$C$70:$C$90,MATCH(AO57,Lookup!$A$70:$A$90,0)),\"\")","v":""},null,null,null,null,null,null,null,null,null,null,null,null,null,null,{"$f":"IFERROR(TEXT(AS57,\"#,##0\")&\" gal managed/year\",IFERROR(IF(AP57=0,\"Infiltration rate too low.\",\"\"),\"\"))","v":""},null,null,null,null,null,null,null,null,null,null,null,{"$f":"TRIM(SUBSTITUTE(SUBSTITUTE(SUBSTITUTE(AO57,\" \",\"\"),\"-\",\"\"),\"/\",\"\")&\"List1\")","v":{"$error":"#N/A"}},{"$f":"IFERROR(INDEX(Lookup!$F$70:$F$90,MATCH(AO57,Lookup!$A$70:$A$90,0)),\"\")","v":""}]
[null,null,null,null,null,null,null,null,null,null,null,null,null,{"$f":"IFERROR(INDEX(Lookup!$D$70:$D$90,MATCH(AO53,Lookup!$A$70:$A$90,0)),\"\")","v":""}]
[null,{"$f":"IFERROR(\nIF(OR(AO57=\"Permeable Pavement Facility\",AO57=\"Vegetated Roof System\"),\"Minimum Facility Area \"&TEXT((AP57*V57),\"#,###\")&\" sf\",\nIF(OR(AO57=\"Rainwater Harvesting - Category 2\",AO57=\"Rainwater Harvesting - Category 4\"),\"Continuous runoff modeling required by\",\n\"\")),\"\")","v":""},null,null,null,null,null,null,null,null,null,null,null,{"$f":"IFERROR(INDEX(Lookup!$D$70:$D$90,MATCH(AO57,Lookup!$A$70:$A$90,0)),\"\")","v":""},null,null,null,null,null,null,null,null,null,null,null,null,null,null,{"$f":"IFERROR(IF(AO57=\"Sidewalk/Trail Compost-Amended Strip\",ROUND(AQ57/(V57/H59),1) &\" ft wide compost-amended strip\",\"\"),\"\")","v":""},null,null,null,null,null,null,null,null,null,null,null,{"$f":"TRIM(SUBSTITUTE(SUBSTITUTE(SUBSTITUTE(AO57,\" \",\"\"),\"-\",\"\"),\"/\",\"\")&\"List2\")","v":{"$error":"#N/A"}},{"$f":"IFERROR(INDEX(Lookup!$G$70:$G$90,MATCH(AO57,Lookup!$A$70:$A$90,0)),\"\")","v":""}]
[]
[null,{"$f":"IFERROR(IF(OR(AO57=\"Rainwater Harvesting - Category 2\",AO57=\"Rainwater Harvesting - Category 4\"),\"professional engineer.\",\n\"\"),\"\")","v":""},null,null,null,null,null,null,null,null,null,null,null,{"$f":"IFERROR(INDEX(Lookup!$E$70:$E$90,MATCH(AO57,Lookup!$A$70:$A$90,0)),\"\")","v":""},null,null,null,null,null,null,null,null,null,null,null,null,null,null,{"$f":"IFERROR(IF(AO57=\"Sidewalk/Trail Compost-Amended Strip\",IF(AND(AC61=\"\",H59<>\"\"),\"\",\"along full \"& ROUND(V57/H59,0) &\" ft trail/sidewalk\"),\"\"),\"\")","v":""},null,null,null,null,null,null,null,null,null,null,null,{"$f":"TRIM(SUBSTITUTE(SUBSTITUTE(SUBSTITUTE(AO57,\" \",\"\"),\"-\",\"\"),\"/\",\"\")&\"List3\")","v":{"$error":"#N/A"}}]
[]
[null,{"$f":"IFERROR(IF(INDEX($K$7:$K$46,MATCH(AN65,$AO$7:$AO$46,0))=\"\",\"\",INDEX($K$7:$K$46,MATCH(AN65,$AO$7:$AO$46,0))),\"\")","v":""},null,null,null,null,null,null,null,null,null,null,null,{"$f":"IF(B65=\"\",\"\",IF(AO65=\"Vegetated Roof System\",\"Roof Area\",\"Contributing Area (sf)\"))","v":""},null,null,null,null,null,null,null,{"$f":"IF(B65=\"\",\"\",SUMIF($AO$7:$AO$46,AN65,$F$7:$I$46))","v":""},null,null,null,null,null,null,{"$f":"IFERROR(IF(AO65=\"Water Quality BMP in lieu of NIB\",\"Submit sizing documentation separately.\",\nIF(AP65=-999,\"Configuration not allowed.\",IF(AP65=0,\"Configuration not allowed.\",IF(AO65=\"New or Retained Trees\",\"As many as feasible.\",\nIF(AP65=\"equation\",TEXT(AQ65,\"#,##0\")&\" \"&AR65,\nTEXT(IF(OR(AO65=\"Permeable Pavement Facility\",AO65=\"Vegetated Roof System\",AO65=\"Rainwater Harvesting - Category 2\", AO65=\"Rainwater Harvesting - Category 4\"),H67,\nIF(AO65=\"Sidewalk/Trail Compost-Amended Strip\",MAX(V65/H67,AP65*V65),\nAP65*V65)),\"#,##0\")&\" \"&AR65))))),\"\")","v":""},null,null,null,null,null,null,null,null,null,null,3,{"$f":"INDEX($AP$7:$AP$46,MATCH(AN65,$AO$7:$AO$46,0))","v":{"$error":"#N/A"}},{"$f":"IF(AO65=\"New or Retained Trees\", INDEX(Lookup!$F$93:$F$219,MATCH(TRIM(CONCATENATE(AO65,V67)),Lookup!$E$93:$E$219,0)),\nIF(AO65=\"Single-family Residential Cisterns\", INDEX(Lookup!$F$93:$F$219,MATCH(TRIM(CONCATENATE(AO65,IF(V65<400,0,IF(V65>4200,4201,ROUNDDOWN(V65,-2))))),Lookup!$E$93:$E$219,0)),\nIF(AO65=\"Sidewalk/Trail Compost-Amended Strip\", IF(H67=\"\",NA(),IF(H67<10,Lookup!$F$95,Lookup!$F$94)),\nIF(AND(AO65=\"Non-Infiltrating Bioretention\",V69=\"Sloped sides\"),\nIF(V67=2,0.013,\nIF(AND(V67=12,V65<=2000),0.004,\"equation\")),\nINDEX(Lookup!$F$93:$F$219,MATCH(TRIM(CONCATENATE(AO65,V67,V69,V71)),Lookup!$E$93:$E$219,0))))))","v":{"$error":"#N/A"}},{"$f":"IF(AND(AO65=\"Non-Infiltrating Bioretention\",V69=\"Sloped sides\"),\nIF(V67=2,0.013*V65,\nIF(AND(V67=6,V65<=2000),0.0059*V65-3.215,\nIF(AND(V67=6,V65>2000,V65<=10000),0.0097*V65-11.297,\nIF(AND(V67=6,V65>10000),0.012*V65,\nIF(AND(V67=12,V65<=2700),0.004*V65,\nIF(AND(V67=12,V65>2700,V65<=10000),0.0052*V65-12.092,\nIF(AND(V67=12,V65>10000),0.01*V65,NA()))))))),\nIF(AP65<=0,NA(),IF(OR(AO65=\"Permeable Pavement Facility\",AO65=\"Vegetated Roof System\",AO65=\"Rainwater Harvesting - Category 2\", AO65=\"Rainwater Harvesting - Category 4\"),H67,\nIF(AO65=\"Sidewalk/Trail Compost-Amended Strip\",MAX(V65/H67, AP65*V65),\nAP65*V65))))","v":{"$error":"#N/A"}},{"$f":"IF(AO65=\"Single-family Residential Cisterns\",\n\"sf\",INDEX(Lookup!$H$93:$H$219,MATCH(TRIM(CONCATENATE(AO65,V67,V69,V71)),Lookup!$E$93:$E$219,0)))","v":{"$error":"#N/A"}},{"$f":"IF(AO65=\"New or Retained Trees\", INDEX(Lookup!$G$93:$G$219,MATCH(TRIM(CONCATENATE(AO65,V67)),Lookup!$E$93:$E$219,0))*V69,\nIF(AO65=\"Single-family Residential Cisterns\", INDEX(Lookup!$G$93:$G$219,MATCH(TRIM(CONCATENATE(AO65,IF(V65<400,0,IF(V65>4200,4201,ROUNDDOWN(V65,-2))))),Lookup!$E$93:$E$219,0))*V65,\nIF(AND(AO65=\"Sidewalk/Trail Compost-Amended Strip\",OR(H67=\"\",InfRate=0)),NA(),\nINDEX(Lookup!$G$93:$G$219,MATCH(TRIM(CONCATENATE(AO65,V67,V69,V71)),Lookup!$E$93:$E$219,0))*V65)))*7.48052\n*IF(OR(AO65=\"Permeable Pavement Facility\",AO65=\"Vegetated Roof System\"),MIN(1,H67/(AP65*V65)),1)\n+IF(AO65=\"Permeable Pavement Facility\",H67*2.1*7.48052,1)","v":{"$error":"#N/A"}},{"$f":"IFERROR(\nIF(AO65=\"Single-family Residential Cisterns\",INDEX(Lookup!$H$93:$H$219,MATCH(TRIM(CONCATENATE(AO65,IF(V65<400,0,IF(V65>4200,4201,ROUNDDOWN(V65,-2))))),Lookup!$E$93:$E$219,0)),\nIF(AO65=\"Sidewalk/Trail Compost-Amended Strip\",ROUND(AQ65/(V65/H67),1) &\" ft wide x \"& ROUND(V65/H67,0)&\" ft long\",\nIF(OR(AO65=\"Rainwater Harvesting - Category 2\",AO65=\"Rainwater Harvesting - Category 4\"),\" required minimum live storage\",\nIF(AO65=\"Water Quality BMP in lieu of NIB\",\"See Plan\",\nIF(AND(V67=\"\",V69=\"\",V71=\"\"),\"\",TRIM(V69&\" \"&AP69&\" \"&V67&\" \"&AP67&\" \"&V71&\" \"&AP71)))))),\"\")","v":""}]
[]
[null,{"$f":"IFERROR(\nIF(AO65=\"Permeable Pavement Facility\",\"Facility Area (sf)\",\nIF(AO65=\"Vegetated Roof System\",\"Vegetated Area (sf)\",\nIF(AO65=\"Sidewalk/Trail Compost-Amended Strip\",\"Sidewalk/Trail Width (ft)\",\nIF(OR(AO65=\"Rainwater Harvesting - Category 2\",AO65=\"Rainwater Harvesting - Category 4\"),\"Live Storage Volume (gal)\",\n\"\")))),\"\")","v":""},null,null,null,null,null,null,null,null,null,null,null,{"$f":"IFERROR(INDEX(Lookup!$C$70:$C$90,MATCH(AO65,Lookup!$A$70:$A$90,0)),\"\")","v":""},null,null,null,null,null,null,null,null,null,null,null,null,null,null,{"$f":"IFERROR(TEXT(AS65,\"#,##0\")&\" gal managed/year\",IFERROR(IF(AP65=0,\"Infiltration rate too low.\",\"\"),\"\"))","v":""},null,null,null,null,null,null,null,null,null,null,null,{"$f":"TRIM(SUBSTITUTE(SUBSTITUTE(SUBSTITUTE(AO65,\" \",\"\"),\"-\",\"\"),\"/\",\"\")&\"List1\")","v":{"$error":"#N/A"}},{"$f":"IFERROR(INDEX(Lookup!$F$70:$F$90,MATCH(AO65,Lookup!$A$70:$A$90,0)),\"\")","v":""}]
[]
[null,{"$f":"IFERROR(\nIF(OR(AO65=\"Permeable Pavement Facility\",AO65=\"Vegetated Roof System\"),\"Minimum Facility Area \"&TEXT((AP65*V65),\"#,###\")&\" sf\",\nIF(OR(AO65=\"Rainwater Harvesting - Category 2\",AO65=\"Rainwater Harvesting - Category 4\"),\"Continuous runoff modeling required by\",\n\"\")),\"\")","v":""},null,null,null,null,null,null,null,null,null,null,null,{"$f":"IFERROR(INDEX(Lookup!$D$70:$D$90,MATCH(AO65,Lookup!$A$70:$A$90,0)),\"\")","v":""},null,null,null,null,null,null,null,null,null,null,null,null,null,null,{"$f":"IFERROR(IF(AO65=\"Sidewalk/Trail Compost-Amended Strip\",ROUND(AQ65/(V65/H67),1) &\" ft wide compost-amended strip\",\"\"),\"\")","v":""},null,null,null,null,null,null,null,null,null,null,null,{"$f":"TRIM(SUBSTITUTE(SUBSTITUTE(SUBSTITUTE(AO65,\" \",\"\"),\"-\",\"\"),\"/\",\"\")&\"List2\")","v":{"$error":"#N/A"}},{"$f":"IFERROR(INDEX(Lookup!$G$70:$G$90,MATCH(AO65,Lookup!$A$70:$A$90,0)),\"\")","v":""}]
[]
[null,{"$f":"IFERROR(IF(OR(AO65=\"Rainwater Harvesting - Category 2\",AO65=\"Rainwater Harvesting - Category 4\"),\"professional engineer.\",\n\"\"),\"\")","v":""},null,null,null,null,null,null,null,null,null,null,null,{"$f":"IFERROR(INDEX(Lookup!$E$70:$E$90,MATCH(AO65,Lookup!$A$70:$A$90,0)),\"\")","v":""},null,null,null,null,null,null,null,null,null,null,null,null,null,null,{"$f":"IFERROR(IF(AO65=\"Sidewalk/Trail Compost-Amended Strip\",IF(AND(AC69=\"\",H67<>\"\"),\"\",\"along full \"& ROUND(V65/H67,0) &\" ft trail/sidewalk\"),\"\"),\"\")","v":""},null,null,null,null,null,null,null,null,null,null,null,{"$f":"TRIM(SUBSTITUTE(SUBSTITUTE(SUBSTITUTE(AO65,\" \",\"\"),\"-\",\"\"),\"/\",\"\")&\"List3\")","v":{"$error":"#N/A"}}]
[]
[null,{"$f":"IFERROR(IF(INDEX($K$7:$K$46,MATCH(AN73,$AO$7:$AO$46,0))=\"\",\"\",INDEX($K$7:$K$46,MATCH(AN73,$AO$7:$AO$46,0))),\"\")","v":""},null,null,null,null,null,null,null,null,null,null,null,{"$f":"IF(B73=\"\",\"\",IF(AO73=\"Vegetated Roof System\",\"Roof Area\",\"Contributing Area (sf)\"))","v":""},null,null,null,null,null,null,null,{"$f":"IF(B73=\"\",\"\",SUMIF($AO$7:$AO$46,AN73,$F$7:$I$46))","v":""},null,null,null,null,null,null,{"$f":"IFERROR(IF(AO73=\"Water Quality BMP in lieu of NIB\",\"Submit sizing documentation separately.\",\nIF(AP73=-999,\"Configuration not allowed.\",IF(AP73=0,\"Configuration not allowed.\",IF(AO73=\"New or Retained Trees\",\"As many as feasible.\",\nIF(AP73=\"equation\",TEXT(AQ73,\"#,##0\")&\" \"&AR73,\nTEXT(IF(OR(AO73=\"Permeable Pavement Facility\",AO73=\"Vegetated Roof System\",AO73=\"Rainwater Harvesting - Category 2\", AO73=\"Rainwater Harvesting - Category 4\"),H75,\nIF(AO73=\"Sidewalk/Trail Compost-Amended Strip\",MAX(V73/H75,AP73*V73),\nAP73*V73)),\"#,##0\")&\" \"&AR73))))),\"\")","v":""},null,null,null,null,null,null,null,null,null,null,4,{"$f":"INDEX($AP$7:$AP$46,MATCH(AN73,$AO$7:$AO$46,0))","v":{"$error":"#N/A"}},{"$f":"IF(AO73=\"New or Retained Trees\", INDEX(Lookup!$F$93:$F$219,MATCH(TRIM(CONCATENATE(AO73,V75)),Lookup!$E$93:$E$219,0)),\nIF(AO73=\"Single-family Residential Cisterns\", INDEX(Lookup!$F$93:$F$219,MATCH(TRIM(CONCATENATE(AO73,IF(V73<400,0,IF(V73>4200,4201,ROUNDDOWN(V73,-2))))),Lookup!$E$93:$E$219,0)),\nIF(AO73=\"Sidewalk/Trail Compost-Amended Strip\", IF(H75=\"\",NA(),IF(H75<10,Lookup!$F$95,Lookup!$F$94)),\nIF(AND(AO73=\"Non-Infiltrating Bioretention\",V77=\"Sloped sides\"),\nIF(V75=2,0.013,\nIF(AND(V75=12,V73<=2000),0.004,\"equation\")),\nINDEX(Lookup!$F$93:$F$219,MATCH(TRIM(CONCATENATE(AO73,V75,V77,V79)),Lookup!$E$93:$E$219,0))))))","v":{"$error":"#N/A"}},{"$f":"IF(AND(AO73=\"Non-Infiltrating Bioretention\",V77=\"Sloped sides\"),\nIF(V75=2,0.013*V73,\nIF(AND(V75=6,V73<=2000),0.0059*V73-3.215,\nIF(AND(V75=6,V73>2000,V73<=10000),0.0097*V73-11.297,\nIF(AND(V75=6,V73>10000),0.012*V73,\nIF(AND(V75=12,V73<=2700),0.004*V73,\nIF(AND(V75=12,V73>2700,V73<=10000),0.0052*V73-12.092,\nIF(AND(V75=12,V73>10000),0.01*V73,NA()))))))),\nIF(AP73<=0,NA(),IF(OR(AO73=\"Permeable Pavement Facility\",AO73=\"Vegetated Roof System\",AO73=\"Rainwater Harvesting - Category 2\", AO73=\"Rainwater Harvesting - Category 4\"),H75,\nIF(AO73=\"Sidewalk/Trail Compost-Amended Strip\",MAX(V73/H75, AP73*V73),\nAP73*V73))))","v":{"$error":"#N/A"}},{"$f":"IF(AO73=\"Single-family Residential Cisterns\",\n\"sf\",INDEX(Lookup!$H$93:$H$219,MATCH(TRIM(CONCATENATE(AO73,V75,V77,V79)),Lookup!$E$93:$E$219,0)))","v":{"$error":"#N/A"}},{"$f":"IF(AO73=\"New or Retained Trees\", INDEX(Lookup!$G$93:$G$219,MATCH(TRIM(CONCATENATE(AO73,V75)),Lookup!$E$93:$E$219,0))*V77,\nIF(AO73=\"Single-family Residential Cisterns\", INDEX(Lookup!$G$93:$G$219,MATCH(TRIM(CONCATENATE(AO73,IF(V73<400,0,IF(V73>4200,4201,ROUNDDOWN(V73,-2))))),Lookup!$E$93:$E$219,0))*V73,\nIF(AND(AO73=\"Sidewalk/Trail Compost-Amended Strip\",OR(H75=\"\",InfRate=0)),NA(),\nINDEX(Lookup!$G$93:$G$219,MATCH(TRIM(CONCATENATE(AO73,V75,V77,V79)),Lookup!$E$93:$E$219,0))*V73)))*7.48052\n*IF(OR(AO73=\"Permeable Pavement Facility\",AO73=\"Vegetated Roof System\"),MIN(1,H75/(AP73*V73)),1)\n+IF(AO73=\"Permeable Pavement Facility\",H75*2.1*7.48052,1)","v":{"$error":"#N/A"}},{"$f":"IFERROR(\nIF(AO73=\"Single-family Residential Cisterns\",INDEX(Lookup!$H$93:$H$219,MATCH(TRIM(CONCATENATE(AO73,IF(V73<400,0,IF(V73>4200,4201,ROUNDDOWN(V73,-2))))),Lookup!$E$93:$E$219,0)),\nIF(AO73=\"Sidewalk/Trail Compost-Amended Strip\",ROUND(AQ73/(V73/H75),1) &\" ft wide x \"& ROUND(V73/H75,0)&\" ft long\",\nIF(OR(AO73=\"Rainwater Harvesting - Category 2\",AO73=\"Rainwater Harvesting - Category 4\"),\" required minimum live storage\",\nIF(AO73=\"Water Quality BMP in lieu of NIB\",\"See Plan\",\nIF(AND(V75=\"\",V77=\"\",V79=\"\"),\"\",TRIM(V77&\" \"&AP77&\" \"&V75&\" \"&AP75&\" \"&V79&\" \"&AP79)))))),\"\")","v":""}]
[]
[null,{"$f":"IFERROR(\nIF(AO73=\"Permeable Pavement Facility\",\"Facility Area (sf)\",\nIF(AO73=\"Vegetated Roof System\",\"Vegetated Area (sf)\",\nIF(AO73=\"Sidewalk/Trail Compost-Amended Strip\",\"Sidewalk/Trail Width (ft)\",\nIF(OR(AO73=\"Rainwater Harvesting - Category 2\",AO73=\"Rainwater Harvesting - Category 4\"),\"Live Storage Volume (gal)\",\n\"\")))),\"\")","v":""},null,null,null,null,null,null,null,null,null,null,null,{"$f":"IFERROR(INDEX(Lookup!$C$70:$C$90,MATCH(AO73,Lookup!$A$70:$A$90,0)),\"\")","v":""},null,null,null,null,null,null,null,null,null,null,null,null,null,null,{"$f":"IFERROR(TEXT(AS73,\"#,##0\")&\" gal managed/year\",IFERROR(IF(AP73=0,\"Infiltration rate too low.\",\"\"),\"\"))","v":""},null,null,null,null,null,null,null,null,null,null,null,{"$f":"TRIM(SUBSTITUTE(SUBSTITUTE(SUBSTITUTE(AO73,\" \",\"\"),\"-\",\"\"),\"/\",\"\")&\"List1\")","v":{"$error":"#N/A"}},{"$f":"IFERROR(INDEX(Lookup!$F$70:$F$90,MATCH(AO73,Lookup!$A$70:$A$90,0)),\"\")","v":""}]
[]
[null,{"$f":"IFERROR(\nIF(OR(AO73=\"Permeable Pavement Facility\",AO73=\"Vegetated Roof System\"),\"Minimum Facility Area \"&TEXT((AP73*V73),\"#,###\")&\" sf\",\nIF(OR(AO73=\"Rainwater Harvesting - Category 2\",AO73=\"Rainwater Harvesting - Category 4\"),\"Continuous runoff modeling required by\",\n\"\")),\"\")","v":""},null,null,null,null,null,null,null,null,null,null,null,{"$f":"IFERROR(INDEX(Lookup!$D$70:$D$90,MATCH(AO73,Lookup!$A$70:$A$90,0)),\"\")","v":""},null,null,null,null,null,null,null,null,null,null,null,null,null,null,{"$f":"IFERROR(IF(AO73=\"Sidewalk/Trail Compost-Amended Strip\",ROUND(AQ73/(V73/H75),1) &\" ft wide compost-amended strip\",\"\"),\"\")","v":""},null,null,null,null,null,null,null,null,null,null,null,{"$f":"TRIM(SUBSTITUTE(SUBSTITUTE(SUBSTITUTE(AO73,\" \",\"\"),\"-\",\"\"),\"/\",\"\")&\"List2\")","v":{"$error":"#N/A"}},{"$f":"IFERROR(INDEX(Lookup!$G$70:$G$90,MATCH(AO73,Lookup!$A$70:$A$90,0)),\"\")","v":""}]
[]
[null,{"$f":"IFERROR(IF(OR(AO73=\"Rainwater Harvesting - Category 2\",AO73=\"Rainwater Harvesting - Category 4\"),\"professional engineer.\",\n\"\"),\"\")","v":""},null,null,null,null,null,null,null,null,null,null,null,{"$f":"IFERROR(INDEX(Lookup!$E$70:$E$90,MATCH(AO73,Lookup!$A$70:$A$90,0)),\"\")","v":""},null,null,null,null,null,null,null,null,null,null,null,null,null,null,{"$f":"IFERROR(IF(AO73=\"Sidewalk/Trail Compost-Amended Strip\",IF(AND(AC77=\"\",H75<>\"\"),\"\",\"along full \"& ROUND(V73/H75,0) &\" ft trail/sidewalk\"),\"\"),\"\")","v":""},null,null,null,null,null,null,null,null,null,null,null,{"$f":"TRIM(SUBSTITUTE(SUBSTITUTE(SUBSTITUTE(AO73,\" \",\"\"),\"-\",\"\"),\"/\",\"\")&\"List3\")","v":{"$error":"#N/A"}}]
[]
[null,{"$f":"IFERROR(IF(INDEX($K$7:$K$46,MATCH(AN81,$AO$7:$AO$46,0))=\"\",\"\",INDEX($K$7:$K$46,MATCH(AN81,$AO$7:$AO$46,0))),\"\")","v":""},null,null,null,null,null,null,null,null,null,null,null,{"$f":"IF(B81=\"\",\"\",IF(AO81=\"Vegetated Roof System\",\"Roof Area\",\"Contributing Area (sf)\"))","v":""},null,null,null,null,null,null,null,{"$f":"IF(B81=\"\",\"\",SUMIF($AO$7:$AO$46,AN81,$F$7:$I$46))","v":""},null,null,null,null,null,null,{"$f":"IFERROR(IF(AO81=\"Water Quality BMP in lieu of NIB\",\"Submit sizing documentation separately.\",\nIF(AP81=-999,\"Configuration not allowed.\",IF(AP81=0,\"Configuration not allowed.\",IF(AO81=\"New or Retained Trees\",\"As many as feasible.\",\nIF(AP81=\"equation\",TEXT(AQ81,\"#,##0\")&\" \"&AR81,\nTEXT(IF(OR(AO81=\"Permeable Pavement Facility\",AO81=\"Vegetated Roof System\",AO81=\"Rainwater Harvesting - Category 2\", AO81=\"Rainwater Harvesting - Category 4\"),H83,\nIF(AO81=\"Sidewalk/Trail Compost-Amended Strip\",MAX(V81/H83,AP81*V81),\nAP81*V81)),\"#,##0\")&\" \"&AR81))))),\"\")","v":""},null,null,null,null,null,null,null,null,null,null,5,{"$f":"INDEX($AP$7:$AP$46,MATCH(AN81,$AO$7:$AO$46,0))","v":{"$error":"#N/A"}},{"$f":"IF(AO81=\"New or Retained Trees\", INDEX(Lookup!$F$93:$F$219,MATCH(TRIM(CONCATENATE(AO81,V83)),Lookup!$E$93:$E$219,0)),\nIF(AO81=\"Single-family Residential Cisterns\", INDEX(Lookup!$F$93:$F$219,MATCH(TRIM(CONCATENATE(AO81,IF(V81<400,0,IF(V81>4200,4201,ROUNDDOWN(V81,-2))))),Lookup!$E$93:$E$219,0)),\nIF(AO81=\"Sidewalk/Trail Compost-Amended Strip\", IF(H83=\"\",NA(),IF(H83<10,Lookup!$F$95,Lookup!$F$94)),\nIF(AND(AO81=\"Non-Infiltrating Bioretention\",V85=\"Sloped sides\"),\nIF(V83=2,0.013,\nIF(AND(V83=12,V81<=2000),0.004,\"equation\")),\nINDEX(Lookup!$F$93:$F$219,MATCH(TRIM(CONCATENATE(AO81,V83,V85,V87)),Lookup!$E$93:$E$219,0))))))","v":{"$error":"#N/A"}},{"$f":"IF(AND(AO81=\"Non-Infiltrating Bioretention\",V85=\"Sloped sides\"),\nIF(V83=2,0.013*V81,\nIF(AND(V83=6,V81<=2000),0.0059*V81-3.215,\nIF(AND(V83=6,V81>2000,V81<=10000),0.0097*V81-11.297,\nIF(AND(V83=6,V81>10000),0.012*V81,\nIF(AND(V83=12,V81<=2700),0.004*V81,\nIF(AND(V83=12,V81>2700,V81<=10000),0.0052*V81-12.092,\nIF(AND(V83=12,V81>10000),0.01*V81,NA()))))))),\nIF(AP81<=0,NA(),IF(OR(AO81=\"Permeable Pavement Facility\",AO81=\"Vegetated Roof System\",AO81=\"Rainwater Harvesting - Category 2\", AO81=\"Rainwater Harvesting - Category 4\"),H83,\nIF(AO81=\"Sidewalk/Trail Compost-Amended Strip\",MAX(V81/H83, AP81*V81),\nAP81*V81))))","v":{"$error":"#N/A"}},{"$f":"IF(AO81=\"Single-family Residential Cisterns\",\n\"sf\",INDEX(Lookup!$H$93:$H$219,MATCH(TRIM(CONCATENATE(AO81,V83,V85,V87)),Lookup!$E$93:$E$219,0)))","v":{"$error":"#N/A"}},{"$f":"IF(AO81=\"New or Retained Trees\", INDEX(Lookup!$G$93:$G$219,MATCH(TRIM(CONCATENATE(AO81,V83)),Lookup!$E$93:$E$219,0))*V85,\nIF(AO81=\"Single-family Residential Cisterns\", INDEX(Lookup!$G$93:$G$219,MATCH(TRIM(CONCATENATE(AO81,IF(V81<400,0,IF(V81>4200,4201,ROUNDDOWN(V81,-2))))),Lookup!$E$93:$E$219,0))*V81,\nIF(AND(AO81=\"Sidewalk/Trail Compost-Amended Strip\",OR(H83=\"\",InfRate=0)),NA(),\nINDEX(Lookup!$G$93:$G$219,MATCH(TRIM(CONCATENATE(AO81,V83,V85,V87)),Lookup!$E$93:$E$219,0))*V81)))*7.48052\n*IF(OR(AO81=\"Permeable Pavement Facility\",AO81=\"Vegetated Roof System\"),MIN(1,H83/(AP81*V81)),1)\n+IF(AO81=\"Permeable Pavement Facility\",H83*2.1*7.48052,1)","v":{"$error":"#N/A"}},{"$f":"IFERROR(\nIF(AO81=\"Single-family Residential Cisterns\",INDEX(Lookup!$H$93:$H$219,MATCH(TRIM(CONCATENATE(AO81,IF(V81<400,0,IF(V81>4200,4201,ROUNDDOWN(V81,-2))))),Lookup!$E$93:$E$219,0)),\nIF(AO81=\"Sidewalk/Trail Compost-Amended Strip\",ROUND(AQ81/(V81/H83),1) &\" ft wide x \"& ROUND(V81/H83,0)&\" ft long\",\nIF(OR(AO81=\"Rainwater Harvesting - Category 2\",AO81=\"Rainwater Harvesting - Category 4\"),\" required minimum live storage\",\nIF(AO81=\"Water Quality BMP in lieu of NIB\",\"See Plan\",\nIF(AND(V83=\"\",V85=\"\",V87=\"\"),\"\",TRIM(V85&\" \"&AP85&\" \"&V83&\" \"&AP83&\" \"&V87&\" \"&AP87)))))),\"\")","v":""}]
[]
[null,{"$f":"IFERROR(\nIF(AO81=\"Permeable Pavement Facility\",\"Facility Area (sf)\",\nIF(AO81=\"Vegetated Roof System\",\"Vegetated Area (sf)\",\nIF(AO81=\"Sidewalk/Trail Compost-Amended Strip\",\"Sidewalk/Trail Width (ft)\",\nIF(OR(AO81=\"Rainwater Harvesting - Category 2\",AO81=\"Rainwater Harvesting - Category 4\"),\"Live Storage Volume (gal)\",\n\"\")))),\"\")","v":""},null,null,null,null,null,null,null,null,null,null,null,{"$f":"IFERROR(INDEX(Lookup!$C$70:$C$90,MATCH(AO81,Lookup!$A$70:$A$90,0)),\"\")","v":""},null,null,null,null,null,null,null,null,null,null,null,null,null,null,{"$f":"IFERROR(TEXT(AS81,\"#,##0\")&\" gal managed/year\",IFERROR(IF(AP81=0,\"Infiltration rate too low.\",\"\"),\"\"))","v":""},null,null,null,null,null,null,null,null,null,null,null,{"$f":"TRIM(SUBSTITUTE(SUBSTITUTE(SUBSTITUTE(AO81,\" \",\"\"),\"-\",\"\"),\"/\",\"\")&\"List1\")","v":{"$error":"#N/A"}},{"$f":"IFERROR(INDEX(Lookup!$F$70:$F$90,MATCH(AO81,Lookup!$A$70:$A$90,0)),\"\")","v":""}]
[]
[null,{"$f":"IFERROR(\nIF(OR(AO81=\"Permeable Pavement Facility\",AO81=\"Vegetated Roof System\"),\"Minimum Facility Area \"&TEXT((AP81*V81),\"#,###\")&\" sf\",\nIF(OR(AO81=\"Rainwater Harvesting - Category 2\",AO81=\"Rainwater Harvesting - Category 4\"),\"Continuous runoff modeling required by\",\n\"\")),\"\")","v":""},null,null,null,null,null,null,null,null,null,null,null,{"$f":"IFERROR(INDEX(Lookup!$D$70:$D$90,MATCH(AO81,Lookup!$A$70:$A$90,0)),\"\")","v":""},null,null,null,null,null,null,null,null,null,null,null,null,null,null,{"$f":"IFERROR(IF(AO81=\"Sidewalk/Trail Compost-Amended Strip\",ROUND(AQ81/(V81/H83),1) &\" ft wide compost-amended strip\",\"\"),\"\")","v":""},null,null,null,null,null,null,null,null,null,null,null,{"$f":"TRIM(SUBSTITUTE(SUBSTITUTE(SUBSTITUTE(AO81,\" \",\"\"),\"-\",\"\"),\"/\",\"\")&\"List2\")","v":{"$error":"#N/A"}},{"$f":"IFERROR(INDEX(Lookup!$G$70:$G$90,MATCH(AO81,Lookup!$A$70:$A$90,0)),\"\")","v":""}]
[]
[null,{"$f":"IFERROR(IF(OR(AO81=\"Rainwater Harvesting - Category 2\",AO81=\"Rainwater Harvesting - Category 4\"),\"professional engineer.\",\n\"\"),\"\")","v":""},null,null,null,null,null,null,null,null,null,null,null,{"$f":"IFERROR(INDEX(Lookup!$E$70:$E$90,MATCH(AO81,Lookup!$A$70:$A$90,0)),\"\")","v":""},null,null,null,null,null,null,null,null,null,null,null,null,null,null,{"$f":"IFERROR(IF(AO81=\"Sidewalk/Trail Compost-Amended Strip\",IF(AND(AC85=\"\",H83<>\"\"),\"\",\"along full \"& ROUND(V81/H83,0) &\" ft trail/sidewalk\"),\"\"),\"\")","v":""},null,null,null,null,null,null,null,null,null,null,null,{"$f":"TRIM(SUBSTITUTE(SUBSTITUTE(SUBSTITUTE(AO81,\" \",\"\"),\"-\",\"\"),\"/\",\"\")&\"List3\")","v":{"$error":"#N/A"}}]
[]
[null,{"$f":"IFERROR(IF(INDEX($K$7:$K$46,MATCH(AN89,$AO$7:$AO$46,0))=\"\",\"\",INDEX($K$7:$K$46,MATCH(AN89,$AO$7:$AO$46,0))),\"\")","v":""},null,null,null,null,null,null,null,null,null,null,null,{"$f":"IF(B89=\"\",\"\",IF(AO89=\"Vegetated Roof System\",\"Roof Area\",\"Contributing Area (sf)\"))","v":""},null,null,null,null,null,null,null,{"$f":"IF(B89=\"\",\"\",SUMIF($AO$7:$AO$46,AN89,$F$7:$I$46))","v":""},null,null,null,null,null,null,{"$f":"IFERROR(IF(AO89=\"Water Quality BMP in lieu of NIB\",\"Submit sizing documentation separately.\",\nIF(AP89=-999,\"Configuration not allowed.\",IF(AP89=0,\"Configuration not allowed.\",IF(AO89=\"New or Retained Trees\",\"As many as feasible.\",\nIF(AP89=\"equation\",TEXT(AQ89,\"#,##0\")&\" \"&AR89,\nTEXT(IF(OR(AO89=\"Permeable Pavement Facility\",AO89=\"Vegetated Roof System\",AO89=\"Rainwater Harvesting - Category 2\", AO89=\"Rainwater Harvesting - Category 4\"),H91,\nIF(AO89=\"Sidewalk/Trail Compost-Amended Strip\",MAX(V89/H91,AP89*V89),\nAP89*V89)),\"#,##0\")&\" \"&AR89))))),\"\")","v":""},null,null,null,null,null,null,null,null,null,null,6,{"$f":"INDEX($AP$7:$AP$46,MATCH(AN89,$AO$7:$AO$46,0))","v":{"$error":"#N/A"}},{"$f":"IF(AO89=\"New or Retained Trees\", INDEX(Lookup!$F$93:$F$219,MATCH(TRIM(CONCATENATE(AO89,V91)),Lookup!$E$93:$E$219,0)),\nIF(AO89=\"Single-family Residential Cisterns\", INDEX(Lookup!$F$93:$F$219,MATCH(TRIM(CONCATENATE(AO89,IF(V89<400,0,IF(V89>4200,4201,ROUNDDOWN(V89,-2))))),Lookup!$E$93:$E$219,0)),\nIF(AO89=\"Sidewalk/Trail Compost-Amended Strip\", IF(H91=\"\",NA(),IF(H91<10,Lookup!$F$95,Lookup!$F$94)),\nIF(AND(AO89=\"Non-Infiltrating Bioretention\",V93=\"Sloped sides\"),\nIF(V91=2,0.013,\nIF(AND(V91=12,V89<=2000),0.004,\"equation\")),\nINDEX(Lookup!$F$93:$F$219,MATCH(TRIM(CONCATENATE(AO89,V91,V93,V95)),Lookup!$E$93:$E$219,0))))))","v":{"$error":"#N/A"}},{"$f":"IF(AND(AO89=\"Non-Infiltrating Bioretention\",V93=\"Sloped sides\"),\nIF(V91=2,0.013*V89,\nIF(AND(V91=6,V89<=2000),0.0059*V89-3.215,\nIF(AND(V91=6,V89>2000,V89<=10000),0.0097*V89-11.297,\nIF(AND(V91=6,V89>10000),0.012*V89,\nIF(AND(V91=12,V89<=2700),0.004*V89,\nIF(AND(V91=12,V89>2700,V89<=10000),0.0052*V89-12.092,\nIF(AND(V91=12,V89>10000),0.01*V89,NA()))))))),\nIF(AP89<=0,NA(),IF(OR(AO89=\"Permeable Pavement Facility\",AO89=\"Vegetated Roof System\",AO89=\"Rainwater Harvesting - Category 2\", AO89=\"Rainwater Harvesting - Category 4\"),H91,\nIF(AO89=\"Sidewalk/Trail Compost-Amended Strip\",MAX(V89/H91, AP89*V89),\nAP89*V89))))","v":{"$error":"#N/A"}},{"$f":"IF(AO89=\"Single-family Residential Cisterns\",\n\"sf\",INDEX(Lookup!$H$93:$H$219,MATCH(TRIM(CONCATENATE(AO89,V91,V93,V95)),Lookup!$E$93:$E$219,0)))","v":{"$error":"#N/A"}},{"$f":"IF(AO89=\"New or Retained Trees\", INDEX(Lookup!$G$93:$G$219,MATCH(TRIM(CONCATENATE(AO89,V91)),Lookup!$E$93:$E$219,0))*V93,\nIF(AO89=\"Single-family Residential Cisterns\", INDEX(Lookup!$G$93:$G$219,MATCH(TRIM(CONCATENATE(AO89,IF(V89<400,0,IF(V89>4200,4201,ROUNDDOWN(V89,-2))))),Lookup!$E$93:$E$219,0))*V89,\nIF(AND(AO89=\"Sidewalk/Trail Compost-Amended Strip\",OR(H91=\"\",InfRate=0)),NA(),\nINDEX(Lookup!$G$93:$G$219,MATCH(TRIM(CONCATENATE(AO89,V91,V93,V95)),Lookup!$E$93:$E$219,0))*V89)))*7.48052\n*IF(OR(AO89=\"Permeable Pavement Facility\",AO89=\"Vegetated Roof System\"),MIN(1,H91/(AP89*V89)),1)\n+IF(AO89=\"Permeable Pavement Facility\",H91*2.1*7.48052,1)","v":{"$error":"#N/A"}},{"$f":"IFERROR(\nIF(AO89=\"Single-family Residential Cisterns\",INDEX(Lookup!$H$93:$H$219,MATCH(TRIM(CONCATENATE(AO89,IF(V89<400,0,IF(V89>4200,4201,ROUNDDOWN(V89,-2))))),Lookup!$E$93:$E$219,0)),\nIF(AO89=\"Sidewalk/Trail Compost-Amended Strip\",ROUND(AQ89/(V89/H91),1) &\" ft wide x \"& ROUND(V89/H91,0)&\" ft long\",\nIF(OR(AO89=\"Rainwater Harvesting - Category 2\",AO89=\"Rainwater Harvesting - Category 4\"),\" required minimum live storage\",\nIF(AO89=\"Water Quality BMP in lieu of NIB\",\"See Plan\",\nIF(AND(V91=\"\",V93=\"\",V95=\"\"),\"\",TRIM(V93&\" \"&AP93&\" \"&V91&\" \"&AP91&\" \"&V95&\" \"&AP95)))))),\"\")","v":""}]
[]
[null,{"$f":"IFERROR(\nIF(AO89=\"Permeable Pavement Facility\",\"Facility Area (sf)\",\nIF(AO89=\"Vegetated Roof System\",\"Vegetated Area (sf)\",\nIF(AO89=\"Sidewalk/Trail Compost-Amended Strip\",\"Sidewalk/Trail Width (ft)\",\nIF(OR(AO89=\"Rainwater Harvesting - Category 2\",AO89=\"Rainwater Harvesting - Category 4\"),\"Live Storage Volume (gal)\",\n\"\")))),\"\")","v":""},null,null,null,null,null,null,null,null,null,null,null,{"$f":"IFERROR(INDEX(Lookup!$C$70:$C$90,MATCH(AO89,Lookup!$A$70:$A$90,0)),\"\")","v":""},null,null,null,null,null,null,null,null,null,null,null,null,null,null,{"$f":"IFERROR(TEXT(AS89,\"#,##0\")&\" gal managed/year\",IFERROR(IF(AP89=0,\"Infiltration rate too low.\",\"\"),\"\"))","v":""},null,null,null,null,null,null,null,null,null,null,null,{"$f":"TRIM(SUBSTITUTE(SUBSTITUTE(SUBSTITUTE(AO89,\" \",\"\"),\"-\",\"\"),\"/\",\"\")&\"List1\")","v":{"$error":"#N/A"}},{"$f":"IFERROR(INDEX(Lookup!$F$70:$F$90,MATCH(AO89,Lookup!$A$70:$A$90,0)),\"\")","v":""}]
[]
[null,{"$f":"IFERROR(\nIF(OR(AO89=\"Permeable Pavement Facility\",AO89=\"Vegetated Roof System\"),\"Minimum Facility Area \"&TEXT((AP89*V89),\"#,###\")&\" sf\",\nIF(OR(AO89=\"Rainwater Harvesting - Category 2\",AO89=\"Rainwater Harvesting - Category 4\"),\"Continuous runoff modeling required by\",\n\"\")),\"\")","v":""},null,null,null,null,null,null,null,null,null,null,null,{"$f":"IFERROR(INDEX(Lookup!$D$70:$D$90,MATCH(AO89,Lookup!$A$70:$A$90,0)),\"\")","v":""},null,null,null,null,null,null,null,null,null,null,null,null,null,null,{"$f":"IFERROR(IF(AO89=\"Sidewalk/Trail Compost-Amended Strip\",ROUND(AQ89/(V89/H91),1) &\" ft wide compost-amended strip\",\"\"),\"\")","v":""},null,null,null,null,null,null,null,null,null,null,null,{"$f":"TRIM(SUBSTITUTE(SUBSTITUTE(SUBSTITUTE(AO89,\" \",\"\"),\"-\",\"\"),\"/\",\"\")&\"List2\")","v":{"$error":"#N/A"}},{"$f":"IFERROR(INDEX(Lookup!$G$70:$G$90,MATCH(AO89,Lookup!$A$70:$A$90,0)),\"\")","v":""}]
[]
[null,{"$f":"IFERROR(IF(OR(AO89=\"Rainwater Harvesting - Category 2\",AO89=\"Rainwater Harvesting - Category 4\"),\"professional engineer.\",\n\"\"),\"\")","v":""},null,null,null,null,null,null,null,null,null,null,null,{"$f":"IFERROR(INDEX(Lookup!$E$70:$E$90,MATCH(AO89,Lookup!$A$70:$A$90,0)),\"\")","v":""},null,null,null,null,null,null,null,null,null,null,null,null,null,null,{"$f":"IFERROR(IF(AO89=\"Sidewalk/Trail Compost-Amended Strip\",IF(AND(AC93=\"\",H91<>\"\"),\"\",\"along full \"& ROUND(V89/H91,0) &\" ft trail/sidewalk\"),\"\"),\"\")","v":""},null,null,null,null,null,null,null,null,null,null,null,{"$f":"TRIM(SUBSTITUTE(SUBSTITUTE(SUBSTITUTE(AO89,\" \",\"\"),\"-\",\"\"),\"/\",\"\")&\"List3\")","v":{"$error":"#N/A"}}]
[]
[null,{"$f":"IFERROR(IF(INDEX($K$7:$K$46,MATCH(AN97,$AO$7:$AO$46,0))=\"\",\"\",INDEX($K$7:$K$46,MATCH(AN97,$AO$7:$AO$46,0))),\"\")","v":""},null,null,null,null,null,null,null,null,null,null,null,{"$f":"IF(B97=\"\",\"\",IF(AO97=\"Vegetated Roof System\",\"Roof Area\",\"Contributing Area (sf)\"))","v":""},null,null,null,null,null,null,null,{"$f":"IF(B97=\"\",\"\",SUMIF($AO$7:$AO$46,AN97,$F$7:$I$46))","v":""},null,null,null,null,null,null,{"$f":"IFERROR(IF(AO97=\"Water Quality BMP in lieu of NIB\",\"Submit sizing documentation separately.\",\nIF(AP97=-999,\"Configuration not allowed.\",IF(AP97=0,\"Configuration not allowed.\",IF(AO97=\"New or Retained Trees\",\"As many as feasible.\",\nIF(AP97=\"equation\",TEXT(AQ97,\"#,##0\")&\" \"&AR97,\nTEXT(IF(OR(AO97=\"Permeable Pavement Facility\",AO97=\"Vegetated Roof System\",AO97=\"Rainwater Harvesting - Category 2\", AO97=\"Rainwater Harvesting - Category 4\"),H99,\nIF(AO97=\"Sidewalk/Trail Compost-Amended Strip\",MAX(V97/H99,AP97*V97),\nAP97*V97)),\"#,##0\")&\" \"&AR97))))),\"\")","v":""},null,null,null,null,null,null,null,null,null,null,7,{"$f":"INDEX($AP$7:$AP$46,MATCH(AN97,$AO$7:$AO$46,0))","v":{"$error":"#N/A"}},{"$f":"IF(AO97=\"New or Retained Trees\", INDEX(Lookup!$F$93:$F$219,MATCH(TRIM(CONCATENATE(AO97,V99)),Lookup!$E$93:$E$219,0)),\nIF(AO97=\"Single-family Residential Cisterns\", INDEX(Lookup!$F$93:$F$219,MATCH(TRIM(CONCATENATE(AO97,IF(V97<400,0,IF(V97>4200,4201,ROUNDDOWN(V97,-2))))),Lookup!$E$93:$E$219,0)),\nIF(AO97=\"Sidewalk/Trail Compost-Amended Strip\", IF(H99=\"\",NA(),IF(H99<10,Lookup!$F$95,Lookup!$F$94)),\nIF(AND(AO97=\"Non-Infiltrating Bioretention\",V101=\"Sloped sides\"),\nIF(V99=2,0.013,\nIF(AND(V99=12,V97<=2000),0.004,\"equation\")),\nINDEX(Lookup!$F$93:$F$219,MATCH(TRIM(CONCATENATE(AO97,V99,V101,V103)),Lookup!$E$93:$E$219,0))))))","v":{"$error":"#N/A"}},{"$f":"IF(AND(AO97=\"Non-Infiltrating Bioretention\",V101=\"Sloped sides\"),\nIF(V99=2,0.013*V97,\nIF(AND(V99=6,V97<=2000),0.0059*V97-3.215,\nIF(AND(V99=6,V97>2000,V97<=10000),0.0097*V97-11.297,\nIF(AND(V99=6,V97>10000),0.012*V97,\nIF(AND(V99=12,V97<=2700),0.004*V97,\nIF(AND(V99=12,V97>2700,V97<=10000),0.0052*V97-12.092,\nIF(AND(V99=12,V97>10000),0.01*V97,NA()))))))),\nIF(AP97<=0,NA(),IF(OR(AO97=\"Permeable Pavement Facility\",AO97=\"Vegetated Roof System\",AO97=\"Rainwater Harvesting - Category 2\", AO97=\"Rainwater Harvesting - Category 4\"),H99,\nIF(AO97=\"Sidewalk/Trail Compost-Amended Strip\",MAX(V97/H99, AP97*V97),\nAP97*V97))))","v":{"$error":"#N/A"}},{"$f":"IF(AO97=\"Single-family Residential Cisterns\",\n\"sf\",INDEX(Lookup!$H$93:$H$219,MATCH(TRIM(CONCATENATE(AO97,V99,V101,V103)),Lookup!$E$93:$E$219,0)))","v":{"$error":"#N/A"}},{"$f":"IF(AO97=\"New or Retained Trees\", INDEX(Lookup!$G$93:$G$219,MATCH(TRIM(CONCATENATE(AO97,V99)),Lookup!$E$93:$E$219,0))*V101,\nIF(AO97=\"Single-family Residential Cisterns\", INDEX(Lookup!$G$93:$G$219,MATCH(TRIM(CONCATENATE(AO97,IF(V97<400,0,IF(V97>4200,4201,ROUNDDOWN(V97,-2))))),Lookup!$E$93:$E$219,0))*V97,\nIF(AND(AO97=\"Sidewalk/Trail Compost-Amended Strip\",OR(H99=\"\",InfRate=0)),NA(),\nINDEX(Lookup!$G$93:$G$219,MATCH(TRIM(CONCATENATE(AO97,V99,V101,V103)),Lookup!$E$93:$E$219,0))*V97)))*7.48052\n*IF(OR(AO97=\"Permeable Pavement Facility\",AO97=\"Vegetated Roof System\"),MIN(1,H99/(AP97*V97)),1)\n+IF(AO97=\"Permeable Pavement Facility\",H99*2.1*7.48052,1)","v":{"$error":"#N/A"}},{"$f":"IFERROR(\nIF(AO97=\"Single-family Residential Cisterns\",INDEX(Lookup!$H$93:$H$219,MATCH(TRIM(CONCATENATE(AO97,IF(V97<400,0,IF(V97>4200,4201,ROUNDDOWN(V97,-2))))),Lookup!$E$93:$E$219,0)),\nIF(AO97=\"Sidewalk/Trail Compost-Amended Strip\",ROUND(AQ97/(V97/H99),1) &\" ft wide x \"& ROUND(V97/H99,0)&\" ft long\",\nIF(OR(AO97=\"Rainwater Harvesting - Category 2\",AO97=\"Rainwater Harvesting - Category 4\"),\" required minimum live storage\",\nIF(AO97=\"Water Quality BMP in lieu of NIB\",\"See Plan\",\nIF(AND(V99=\"\",V101=\"\",V103=\"\"),\"\",TRIM(V101&\" \"&AP101&\" \"&V99&\" \"&AP99&\" \"&V103&\" \"&AP103)))))),\"\")","v":""}]
[]
[null,{"$f":"IFERROR(\nIF(AO97=\"Permeable Pavement Facility\",\"Facility Area (sf)\",\nIF(AO97=\"Vegetated Roof System\",\"Vegetated Area (sf)\",\nIF(AO97=\"Sidewalk/Trail Compost-Amended Strip\",\"Sidewalk/Trail Width (ft)\",\nIF(OR(AO97=\"Rainwater Harvesting - Category 2\",AO97=\"Rainwater Harvesting - Category 4\"),\"Live Storage Volume (gal)\",\n\"\")))),\"\")","v":""},null,null,null,null,null,null,null,null,null,null,null,{"$f":"IFERROR(INDEX(Lookup!$C$70:$C$90,MATCH(AO97,Lookup!$A$70:$A$90,0)),\"\")","v":""},null,null,null,null,null,null,null,null,null,null,null,null,null,null,{"$f":"IFERROR(TEXT(AS97,\"#,##0\")&\" gal managed/year\",IFERROR(IF(AP97=0,\"Infiltration rate too low.\",\"\"),\"\"))","v":""},null,null,null,null,null,null,null,null,null,null,null,{"$f":"TRIM(SUBSTITUTE(SUBSTITUTE(SUBSTITUTE(AO97,\" \",\"\"),\"-\",\"\"),\"/\",\"\")&\"List1\")","v":{"$error":"#N/A"}},{"$f":"IFERROR(INDEX(Lookup!$F$70:$F$90,MATCH(AO97,Lookup!$A$70:$A$90,0)),\"\")","v":""}]
[]
[null,{"$f":"IFERROR(\nIF(OR(AO97=\"Permeable Pavement Facility\",AO97=\"Vegetated Roof System\"),\"Minimum Facility Area \"&TEXT((AP97*V97),\"#,###\")&\" sf\",\nIF(OR(AO97=\"Rainwater Harvesting - Category 2\",AO97=\"Rainwater Harvesting - Category 4\"),\"Continuous runoff modeling required by\",\n\"\")),\"\")","v":""},null,null,null,null,null,null,null,null,null,null,null,{"$f":"IFERROR(INDEX(Lookup!$D$70:$D$90,MATCH(AO97,Lookup!$A$70:$A$90,0)),\"\")","v":""},null,null,null,null,null,null,null,null,null,null,null,null,null,null,{"$f":"IFERROR(IF(AO97=\"Sidewalk/Trail Compost-Amended Strip\",ROUND(AQ97/(V97/H99),1) &\" ft wide compost-amended strip\",\"\"),\"\")","v":""},null,null,null,null,null,null,null,null,null,null,null,{"$f":"TRIM(SUBSTITUTE(SUBSTITUTE(SUBSTITUTE(AO97,\" \",\"\"),\"-\",\"\"),\"/\",\"\")&\"List2\")","v":{"$error":"#N/A"}},{"$f":"IFERROR(INDEX(Lookup!$G$70:$G$90,MATCH(AO97,Lookup!$A$70:$A$90,0)),\"\")","v":""}]
[]
[null,{"$f":"IFERROR(IF(OR(AO97=\"Rainwater Harvesting - Category 2\",AO97=\"Rainwater Harvesting - Category 4\"),\"professional engineer.\",\n\"\"),\"\")","v":""},null,null,null,null,null,null,null,null,null,null,null,{"$f":"IFERROR(INDEX(Lookup!$E$70:$E$90,MATCH(AO97,Lookup!$A$70:$A$90,0)),\"\")","v":""},null,null,null,null,null,null,null,null,null,null,null,null,null,null,{"$f":"IFERROR(IF(AO97=\"Sidewalk/Trail Compost-Amended Strip\",IF(AND(AC101=\"\",H99<>\"\"),\"\",\"along full \"& ROUND(V97/H99,0) &\" ft trail/sidewalk\"),\"\"),\"\")","v":""},null,null,null,null,null,null,null,null,null,null,null,{"$f":"TRIM(SUBSTITUTE(SUBSTITUTE(SUBSTITUTE(AO97,\" \",\"\"),\"-\",\"\"),\"/\",\"\")&\"List3\")","v":{"$error":"#N/A"}}]
[]
[null,{"$f":"IFERROR(IF(INDEX($K$7:$K$46,MATCH(AN105,$AO$7:$AO$46,0))=\"\",\"\",INDEX($K$7:$K$46,MATCH(AN105,$AO$7:$AO$46,0))),\"\")","v":""},null,null,null,null,null,null,null,null,null,null,null,{"$f":"IF(B105=\"\",\"\",IF(AO105=\"Vegetated Roof System\",\"Roof Area\",\"Contributing Area (sf)\"))","v":""},null,null,null,null,null,null,null,{"$f":"IF(B105=\"\",\"\",SUMIF($AO$7:$AO$46,AN105,$F$7:$I$46))","v":""},null,null,null,null,null,null,{"$f":"IFERROR(IF(AO105=\"Water Quality BMP in lieu of NIB\",\"Submit sizing documentation separately.\",\nIF(AP105=-999,\"Configuration not allowed.\",IF(AP105=0,\"Configuration not allowed.\",IF(AO105=\"New or Retained Trees\",\"As many as feasible.\",\nIF(AP105=\"equation\",TEXT(AQ105,\"#,##0\")&\" \"&AR105,\nTEXT(IF(OR(AO105=\"Permeable Pavement Facility\",AO105=\"Vegetated Roof System\",AO105=\"Rainwater Harvesting - Category 2\", AO105=\"Rainwater Harvesting - Category 4\"),H107,\nIF(AO105=\"Sidewalk/Trail Compost-Amended Strip\",MAX(V105/H107,AP105*V105),\nAP105*V105)),\"#,##0\")&\" \"&AR105))))),\"\")","v":""},null,null,null,null,null,null,null,null,null,null,8,{"$f":"INDEX($AP$7:$AP$46,MATCH(AN105,$AO$7:$AO$46,0))","v":{"$error":"#N/A"}},{"$f":"IF(AO105=\"New or Retained Trees\", INDEX(Lookup!$F$93:$F$219,MATCH(TRIM(CONCATENATE(AO105,V107)),Lookup!$E$93:$E$219,0)),\nIF(AO105=\"Single-family Residential Cisterns\", INDEX(Lookup!$F$93:$F$219,MATCH(TRIM(CONCATENATE(AO105,IF(V105<400,0,IF(V105>4200,4201,ROUNDDOWN(V105,-2))))),Lookup!$E$93:$E$219,0)),\nIF(AO105=\"Sidewalk/Trail Compost-Amended Strip\", IF(H107=\"\",NA(),IF(H107<10,Lookup!$F$95,Lookup!$F$94)),\nIF(AND(AO105=\"Non-Infiltrating Bioretention\",V109=\"Sloped sides\"),\nIF(V107=2,0.013,\nIF(AND(V107=12,V105<=2000),0.004,\"equation\")),\nINDEX(Lookup!$F$93:$F$219,MATCH(TRIM(CONCATENATE(AO105,V107,V109,V111)),Lookup!$E$93:$E$219,0))))))","v":{"$error":"#N/A"}},{"$f":"IF(AND(AO105=\"Non-Infiltrating Bioretention\",V109=\"Sloped sides\"),\nIF(V107=2,0.013*V105,\nIF(AND(V107=6,V105<=2000),0.0059*V105-3.215,\nIF(AND(V107=6,V105>2000,V105<=10000),0.0097*V105-11.297,\nIF(AND(V107=6,V105>10000),0.012*V105,\nIF(AND(V107=12,V105<=2700),0.004*V105,\nIF(AND(V107=12,V105>2700,V105<=10000),0.0052*V105-12.092,\nIF(AND(V107=12,V105>10000),0.01*V105,NA()))))))),\nIF(AP105<=0,NA(),IF(OR(AO105=\"Permeable Pavement Facility\",AO105=\"Vegetated Roof System\",AO105=\"Rainwater Harvesting - Category 2\", AO105=\"Rainwater Harvesting - Category 4\"),H107,\nIF(AO105=\"Sidewalk/Trail Compost-Amended Strip\",MAX(V105/H107, AP105*V105),\nAP105*V105))))","v":{"$error":"#N/A"}},{"$f":"IF(AO105=\"Single-family Residential Cisterns\",\n\"sf\",INDEX(Lookup!$H$93:$H$219,MATCH(TRIM(CONCATENATE(AO105,V107,V109,V111)),Lookup!$E$93:$E$219,0)))","v":{"$error":"#N/A"}},{"$f":"IF(AO105=\"New or Retained Trees\", INDEX(Lookup!$G$93:$G$219,MATCH(TRIM(CONCATENATE(AO105,V107)),Lookup!$E$93:$E$219,0))*V109,\nIF(AO105=\"Single-family Residential Cisterns\", INDEX(Lookup!$G$93:$G$219,MATCH(TRIM(CONCATENATE(AO105,IF(V105<400,0,IF(V105>4200,4201,ROUNDDOWN(V105,-2))))),Lookup!$E$93:$E$219,0))*V105,\nIF(AND(AO105=\"Sidewalk/Trail Compost-Amended Strip\",OR(H107=\"\",InfRate=0)),NA(),\nINDEX(Lookup!$G$93:$G$219,MATCH(TRIM(CONCATENATE(AO105,V107,V109,V111)),Lookup!$E$93:$E$219,0))*V105)))*7.48052\n*IF(OR(AO105=\"Permeable Pavement Facility\",AO105=\"Vegetated Roof System\"),MIN(1,H107/(AP105*V105)),1)\n+IF(AO105=\"Permeable Pavement Facility\",H107*2.1*7.48052,1)","v":{"$error":"#N/A"}},{"$f":"IFERROR(\nIF(AO105=\"Single-family Residential Cisterns\",INDEX(Lookup!$H$93:$H$219,MATCH(TRIM(CONCATENATE(AO105,IF(V105<400,0,IF(V105>4200,4201,ROUNDDOWN(V105,-2))))),Lookup!$E$93:$E$219,0)),\nIF(AO105=\"Sidewalk/Trail Compost-Amended Strip\",ROUND(AQ105/(V105/H107),1) &\" ft wide x \"& ROUND(V105/H107,0)&\" ft long\",\nIF(OR(AO105=\"Rainwater Harvesting - Category 2\",AO105=\"Rainwater Harvesting - Category 4\"),\" required minimum live storage\",\nIF(AO105=\"Water Quality BMP in lieu of NIB\",\"See Plan\",\nIF(AND(V107=\"\",V109=\"\",V111=\"\"),\"\",TRIM(V109&\" \"&AP109&\" \"&V107&\" \"&AP107&\" \"&V111&\" \"&AP111)))))),\"\")","v":""}]
[]
[null,{"$f":"IFERROR(\nIF(AO105=\"Permeable Pavement Facility\",\"Facility Area (sf)\",\nIF(AO105=\"Vegetated Roof System\",\"Vegetated Area (sf)\",\nIF(AO105=\"Sidewalk/Trail Compost-Amended Strip\",\"Sidewalk/Trail Width (ft)\",\nIF(OR(AO105=\"Rainwater Harvesting - Category 2\",AO105=\"Rainwater Harvesting - Category 4\"),\"Live Storage Volume (gal)\",\n\"\")))),\"\")","v":""},null,null,null,null,null,null,null,null,null,null,null,{"$f":"IFERROR(INDEX(Lookup!$C$70:$C$90,MATCH(AO105,Lookup!$A$70:$A$90,0)),\"\")","v":""},null,null,null,null,null,null,null,null,null,null,null,null,null,null,{"$f":"IFERROR(TEXT(AS105,\"#,##0\")&\" gal managed/year\",IFERROR(IF(AP105=0,\"Infiltration rate too low.\",\"\"),\"\"))","v":""},null,null,null,null,null,null,null,null,null,null,null,{"$f":"TRIM(SUBSTITUTE(SUBSTITUTE(SUBSTITUTE(AO105,\" \",\"\"),\"-\",\"\"),\"/\",\"\")&\"List1\")","v":{"$error":"#N/A"}},{"$f":"IFERROR(INDEX(Lookup!$F$70:$F$90,MATCH(AO105,Lookup!$A$70:$A$90,0)),\"\")","v":""}]
[]
[null,{"$f":"IFERROR(\nIF(OR(AO105=\"Permeable Pavement Facility\",AO105=\"Vegetated Roof System\"),\"Minimum Facility Area \"&TEXT((AP105*V105),\"#,###\")&\" sf\",\nIF(OR(AO105=\"Rainwater Harvesting - Category 2\",AO105=\"Rainwater Harvesting - Category 4\"),\"Continuous runoff modeling required by\",\n\"\")),\"\")","v":""},null,null,null,null,null,null,null,null,null,null,null,{"$f":"IFERROR(INDEX(Lookup!$D$70:$D$90,MATCH(AO105,Lookup!$A$70:$A$90,0)),\"\")","v":""},null,null,null,null,null,null,null,null,null,null,null,null,null,null,{"$f":"IFERROR(IF(AO105=\"Sidewalk/Trail Compost-Amended Strip\",ROUND(AQ105/(V105/H107),1) &\" ft wide compost-amended strip\",\"\"),\"\")","v":""},null,null,null,null,null,null,null,null,null,null,null,{"$f":"TRIM(SUBSTITUTE(SUBSTITUTE(SUBSTITUTE(AO105,\" \",\"\"),\"-\",\"\"),\"/\",\"\")&\"List2\")","v":{"$error":"#N/A"}},{"$f":"IFERROR(INDEX(Lookup!$G$70:$G$90,MATCH(AO105,Lookup!$A$70:$A$90,0)),\"\")","v":""}]
[]
[null,{"$f":"IFERROR(IF(OR(AO105=\"Rainwater Harvesting - Category 2\",AO105=\"Rainwater Harvesting - Category 4\"),\"professional engineer.\",\n\"\"),\"\")","v":""},null,null,null,null,null,null,null,null,null,null,null,{"$f":"IFERROR(INDEX(Lookup!$E$70:$E$90,MATCH(AO105,Lookup!$A$70:$A$90,0)),\"\")","v":""},null,null,null,null,null,null,null,null,null,null,null,null,null,null,{"$f":"IFERROR(IF(AO105=\"Sidewalk/Trail Compost-Amended Strip\",IF(AND(AC109=\"\",H107<>\"\"),\"\",\"along full \"& ROUND(V105/H107,0) &\" ft trail/sidewalk\"),\"\"),\"\")","v":""},null,null,null,null,null,null,null,null,null,null,null,{"$f":"TRIM(SUBSTITUTE(SUBSTITUTE(SUBSTITUTE(AO105,\" \",\"\"),\"-\",\"\"),\"/\",\"\")&\"List3\")","v":{"$error":"#N/A"}}]
[]
[null,{"$f":"IFERROR(IF(INDEX($K$7:$K$46,MATCH(AN113,$AO$7:$AO$46,0))=\"\",\"\",INDEX($K$7:$K$46,MATCH(AN113,$AO$7:$AO$46,0))),\"\")","v":""},null,null,null,null,null,null,null,null,null,null,null,{"$f":"IF(B113=\"\",\"\",IF(AO113=\"Vegetated Roof System\",\"Roof Area\",\"Contributing Area (sf)\"))","v":""},null,null,null,null,null,null,null,{"$f":"IF(B113=\"\",\"\",SUMIF($AO$7:$AO$46,AN113,$F$7:$I$46))","v":""},null,null,null,null,null,null,{"$f":"IFERROR(IF(AO113=\"Water Quality BMP in lieu of NIB\",\"Submit sizing documentation separately.\",\nIF(AP113=-999,\"Configuration not allowed.\",IF(AP113=0,\"Configuration not allowed.\",IF(AO113=\"New or Retained Trees\",\"As many as feasible.\",\nIF(AP113=\"equation\",TEXT(AQ113,\"#,##0\")&\" \"&AR113,\nTEXT(IF(OR(AO113=\"Permeable Pavement Facility\",AO113=\"Vegetated Roof System\",AO113=\"Rainwater Harvesting - Category 2\", AO113=\"Rainwater Harvesting - Category 4\"),H115,\nIF(AO113=\"Sidewalk/Trail Compost-Amended Strip\",MAX(V113/H115,AP113*V113),\nAP113*V113)),\"#,##0\")&\" \"&AR113))))),\"\")","v":""},null,null,null,null,null,null,null,null,null,null,9,{"$f":"INDEX($AP$7:$AP$46,MATCH(AN113,$AO$7:$AO$46,0))","v":{"$error":"#N/A"}},{"$f":"IF(AO113=\"New or Retained Trees\", INDEX(Lookup!$F$93:$F$219,MATCH(TRIM(CONCATENATE(AO113,V115)),Lookup!$E$93:$E$219,0)),\nIF(AO113=\"Single-family Residential Cisterns\", INDEX(Lookup!$F$93:$F$219,MATCH(TRIM(CONCATENATE(AO113,IF(V113<400,0,IF(V113>4200,4201,ROUNDDOWN(V113,-2))))),Lookup!$E$93:$E$219,0)),\nIF(AO113=\"Sidewalk/Trail Compost-Amended Strip\", IF(H115=\"\",NA(),IF(H115<10,Lookup!$F$95,Lookup!$F$94)),\nIF(AND(AO113=\"Non-Infiltrating Bioretention\",V117=\"Sloped sides\"),\nIF(V115=2,0.013,\nIF(AND(V115=12,V113<=2000),0.004,\"equation\")),\nINDEX(Lookup!$F$93:$F$219,MATCH(TRIM(CONCATENATE(AO113,V115,V117,V119)),Lookup!$E$93:$E$219,0))))))","v":{"$error":"#N/A"}},{"$f":"IF(AND(AO113=\"Non-Infiltrating Bioretention\",V117=\"Sloped sides\"),\nIF(V115=2,0.013*V113,\nIF(AND(V115=6,V113<=2000),0.0059*V113-3.215,\nIF(AND(V115=6,V113>2000,V113<=10000),0.0097*V113-11.297,\nIF(AND(V115=6,V113>10000),0.012*V113,\nIF(AND(V115=12,V113<=2700),0.004*V113,\nIF(AND(V115=12,V113>2700,V113<=10000),0.0052*V113-12.092,\nIF(AND(V115=12,V113>10000),0.01*V113,NA()))))))),\nIF(AP113<=0,NA(),IF(OR(AO113=\"Permeable Pavement Facility\",AO113=\"Vegetated Roof System\",AO113=\"Rainwater Harvesting - Category 2\", AO113=\"Rainwater Harvesting - Category 4\"),H115,\nIF(AO113=\"Sidewalk/Trail Compost-Amended Strip\",MAX(V113/H115, AP113*V113),\nAP113*V113))))","v":{"$error":"#N/A"}},{"$f":"IF(AO113=\"Single-family Residential Cisterns\",\n\"sf\",INDEX(Lookup!$H$93:$H$219,MATCH(TRIM(CONCATENATE(AO113,V115,V117,V119)),Lookup!$E$93:$E$219,0)))","v":{"$error":"#N/A"}},{"$f":"IF(AO113=\"New or Retained Trees\", INDEX(Lookup!$G$93:$G$219,MATCH(TRIM(CONCATENATE(AO113,V115)),Lookup!$E$93:$E$219,0))*V117,\nIF(AO113=\"Single-family Residential Cisterns\", INDEX(Lookup!$G$93:$G$219,MATCH(TRIM(CONCATENATE(AO113,IF(V113<400,0,IF(V113>4200,4201,ROUNDDOWN(V113,-2))))),Lookup!$E$93:$E$219,0))*V113,\nIF(AND(AO113=\"Sidewalk/Trail Compost-Amended Strip\",OR(H115=\"\",InfRate=0)),NA(),\nINDEX(Lookup!$G$93:$G$219,MATCH(TRIM(CONCATENATE(AO113,V115,V117,V119)),Lookup!$E$93:$E$219,0))*V113)))*7.48052\n*IF(OR(AO113=\"Permeable Pavement Facility\",AO113=\"Vegetated Roof System\"),MIN(1,H115/(AP113*V113)),1)\n+IF(AO113=\"Permeable Pavement Facility\",H115*2.1*7.48052,1)","v":{"$error":"#N/A"}},{"$f":"IFERROR(\nIF(AO113=\"Single-family Residential Cisterns\",INDEX(Lookup!$H$93:$H$219,MATCH(TRIM(CONCATENATE(AO113,IF(V113<400,0,IF(V113>4200,4201,ROUNDDOWN(V113,-2))))),Lookup!$E$93:$E$219,0)),\nIF(AO113=\"Sidewalk/Trail Compost-Amended Strip\",ROUND(AQ113/(V113/H115),1) &\" ft wide x \"& ROUND(V113/H115,0)&\" ft long\",\nIF(OR(AO113=\"Rainwater Harvesting - Category 2\",AO113=\"Rainwater Harvesting - Category 4\"),\" required minimum live storage\",\nIF(AO113=\"Water Quality BMP in lieu of NIB\",\"See Plan\",\nIF(AND(V115=\"\",V117=\"\",V119=\"\"),\"\",TRIM(V117&\" \"&AP117&\" \"&V115&\" \"&AP115&\" \"&V119&\" \"&AP119)))))),\"\")","v":""}]
[]
[null,{"$f":"IFERROR(\nIF(AO113=\"Permeable Pavement Facility\",\"Facility Area (sf)\",\nIF(AO113=\"Vegetated Roof System\",\"Vegetated Area (sf)\",\nIF(AO113=\"Sidewalk/Trail Compost-Amended Strip\",\"Sidewalk/Trail Width (ft)\",\nIF(OR(AO113=\"Rainwater Harvesting - Category 2\",AO113=\"Rainwater Harvesting - Category 4\"),\"Live Storage Volume (gal)\",\n\"\")))),\"\")","v":""},null,null,null,null,null,null,null,null,null,null,null,{"$f":"IFERROR(INDEX(Lookup!$C$70:$C$90,MATCH(AO113,Lookup!$A$70:$A$90,0)),\"\")","v":""},null,null,null,null,null,null,null,null,null,null,null,null,null,null,{"$f":"IFERROR(TEXT(AS113,\"#,##0\")&\" gal managed/year\",IFERROR(IF(AP113=0,\"Infiltration rate too low.\",\"\"),\"\"))","v":""},null,null,null,null,null,null,null,null,null,null,null,{"$f":"TRIM(SUBSTITUTE(SUBSTITUTE(SUBSTITUTE(AO113,\" \",\"\"),\"-\",\"\"),\"/\",\"\")&\"List1\")","v":{"$error":"#N/A"}},{"$f":"IFERROR(INDEX(Lookup!$F$70:$F$90,MATCH(AO113,Lookup!$A$70:$A$90,0)),\"\")","v":""}]
[]
[null,{"$f":"IFERROR(\nIF(OR(AO113=\"Permeable Pavement Facility\",AO113=\"Vegetated Roof System\"),\"Minimum Facility Area \"&TEXT((AP113*V113),\"#,###\")&\" sf\",\nIF(OR(AO113=\"Rainwater Harvesting - Category 2\",AO113=\"Rainwater Harvesting - Category 4\"),\"Continuous runoff modeling required by\",\n\"\")),\"\")","v":""},null,null,null,null,null,null,null,null,null,null,null,{"$f":"IFERROR(INDEX(Lookup!$D$70:$D$90,MATCH(AO113,Lookup!$A$70:$A$90,0)),\"\")","v":""},null,null,null,null,null,null,null,null,null,null,null,null,null,null,{"$f":"IFERROR(IF(AO113=\"Sidewalk/Trail Compost-Amended Strip\",ROUND(AQ113/(V113/H115),1) &\" ft wide compost-amended strip\",\"\"),\"\")","v":""},null,null,null,null,null,null,null,null,null,null,null,{"$f":"TRIM(SUBSTITUTE(SUBSTITUTE(SUBSTITUTE(AO113,\" \",\"\"),\"-\",\"\"),\"/\",\"\")&\"List2\")","v":{"$error":"#N/A"}},{"$f":"IFERROR(INDEX(Lookup!$G$70:$G$90,MATCH(AO113,Lookup!$A$70:$A$90,0)),\"\")","v":""}]
[]
[null,{"$f":"IFERROR(IF(OR(AO113=\"Rainwater Harvesting - Category 2\",AO113=\"Rainwater Harvesting - Category 4\"),\"professional engineer.\",\n\"\"),\"\")","v":""},null,null,null,null,null,null,null,null,null,null,null,{"$f":"IFERROR(INDEX(Lookup!$E$70:$E$90,MATCH(AO113,Lookup!$A$70:$A$90,0)),\"\")","v":""},null,null,null,null,null,null,null,null,null,null,null,null,null,null,{"$f":"IFERROR(IF(AO113=\"Sidewalk/Trail Compost-Amended Strip\",IF(AND(AC117=\"\",H115<>\"\"),\"\",\"along full \"& ROUND(V113/H115,0) &\" ft trail/sidewalk\"),\"\"),\"\")","v":""},null,null,null,null,null,null,null,null,null,null,null,{"$f":"TRIM(SUBSTITUTE(SUBSTITUTE(SUBSTITUTE(AO113,\" \",\"\"),\"-\",\"\"),\"/\",\"\")&\"List3\")","v":{"$error":"#N/A"}}]
[]
[null,{"$f":"IFERROR(IF(INDEX($K$7:$K$46,MATCH(AN121,$AO$7:$AO$46,0))=\"\",\"\",INDEX($K$7:$K$46,MATCH(AN121,$AO$7:$AO$46,0))),\"\")","v":""},null,null,null,null,null,null,null,null,null,null,null,{"$f":"IF(B121=\"\",\"\",IF(AO121=\"Vegetated Roof System\",\"Roof Area\",\"Contributing Area (sf)\"))","v":""},null,null,null,null,null,null,null,{"$f":"IF(B121=\"\",\"\",SUMIF($AO$7:$AO$46,AN121,$F$7:$I$46))","v":""},null,null,null,null,null,null,{"$f":"IFERROR(IF(AO121=\"Water Quality BMP in lieu of NIB\",\"Submit sizing documentation separately.\",\nIF(AP121=-999,\"Configuration not allowed.\",IF(AP121=0,\"Configuration not allowed.\",IF(AO121=\"New or Retained Trees\",\"As many as feasible.\",\nIF(AP121=\"equation\",TEXT(AQ121,\"#,##0\")&\" \"&AR121,\nTEXT(IF(OR(AO121=\"Permeable Pavement Facility\",AO121=\"Vegetated Roof System\",AO121=\"Rainwater Harvesting - Category 2\", AO121=\"Rainwater Harvesting - Category 4\"),H123,\nIF(AO121=\"Sidewalk/Trail Compost-Amended Strip\",MAX(V121/H123,AP121*V121),\nAP121*V121)),\"#,##0\")&\" \"&AR121))))),\"\")","v":""},null,null,null,null,null,null,null,null,null,null,10,{"$f":"INDEX($AP$7:$AP$46,MATCH(AN121,$AO$7:$AO$46,0))","v":{"$error":"#N/A"}},{"$f":"IF(AO121=\"New or Retained Trees\", INDEX(Lookup!$F$93:$F$219,MATCH(TRIM(CONCATENATE(AO121,V123)),Lookup!$E$93:$E$219,0)),\nIF(AO121=\"Single-family Residential Cisterns\", INDEX(Lookup!$F$93:$F$219,MATCH(TRIM(CONCATENATE(AO121,IF(V121<400,0,IF(V121>4200,4201,ROUNDDOWN(V121,-2))))),Lookup!$E$93:$E$219,0)),\nIF(AO121=\"Sidewalk/Trail Compost-Amended Strip\", IF(H123=\"\",NA(),IF(H123<10,Lookup!$F$95,Lookup!$F$94)),\nIF(AND(AO121=\"Non-Infiltrating Bioretention\",V125=\"Sloped sides\"),\nIF(V123=2,0.013,\nIF(AND(V123=12,V121<=2000),0.004,\"equation\")),\nINDEX(Lookup!$F$93:$F$219,MATCH(TRIM(CONCATENATE(AO121,V123,V125,V127)),Lookup!$E$93:$E$219,0))))))","v":{"$error":"#N/A"}},{"$f":"IF(AND(AO121=\"Non-Infiltrating Bioretention\",V125=\"Sloped sides\"),\nIF(V123=2,0.013*V121,\nIF(AND(V123=6,V121<=2000),0.0059*V121-3.215,\nIF(AND(V123=6,V121>2000,V121<=10000),0.0097*V121-11.297,\nIF(AND(V123=6,V121>10000),0.012*V121,\nIF(AND(V123=12,V121<=2700),0.004*V121,\nIF(AND(V123=12,V121>2700,V121<=10000),0.0052*V121-12.092,\nIF(AND(V123=12,V121>10000),0.01*V121,NA()))))))),\nIF(AP121<=0,NA(),IF(OR(AO121=\"Permeable Pavement Facility\",AO121=\"Vegetated Roof System\",AO121=\"Rainwater Harvesting - Category 2\", AO121=\"Rainwater Harvesting - Category 4\"),H123,\nIF(AO121=\"Sidewalk/Trail Compost-Amended Strip\",MAX(V121/H123, AP121*V121),\nAP121*V121))))","v":{"$error":"#N/A"}},{"$f":"IF(AO121=\"Single-family Residential Cisterns\",\n\"sf\",INDEX(Lookup!$H$93:$H$219,MATCH(TRIM(CONCATENATE(AO121,V123,V125,V127)),Lookup!$E$93:$E$219,0)))","v":{"$error":"#N/A"}},{"$f":"IF(AO121=\"New or Retained Trees\", INDEX(Lookup!$G$93:$G$219,MATCH(TRIM(CONCATENATE(AO121,V123)),Lookup!$E$93:$E$219,0))*V125,\nIF(AO121=\"Single-family Residential Cisterns\", INDEX(Lookup!$G$93:$G$219,MATCH(TRIM(CONCATENATE(AO121,IF(V121<400,0,IF(V121>4200,4201,ROUNDDOWN(V121,-2))))),Lookup!$E$93:$E$219,0))*V121,\nIF(AND(AO121=\"Sidewalk/Trail Compost-Amended Strip\",OR(H123=\"\",InfRate=0)),NA(),\nINDEX(Lookup!$G$93:$G$219,MATCH(TRIM(CONCATENATE(AO121,V123,V125,V127)),Lookup!$E$93:$E$219,0))*V121)))*7.48052\n*IF(OR(AO121=\"Permeable Pavement Facility\",AO121=\"Vegetated Roof System\"),MIN(1,H123/(AP121*V121)),1)\n+IF(AO121=\"Permeable Pavement Facility\",H123*2.1*7.48052,1)","v":{"$error":"#N/A"}},{"$f":"IFERROR(\nIF(AO121=\"Single-family Residential Cisterns\",INDEX(Lookup!$H$93:$H$219,MATCH(TRIM(CONCATENATE(AO121,IF(V121<400,0,IF(V121>4200,4201,ROUNDDOWN(V121,-2))))),Lookup!$E$93:$E$219,0)),\nIF(AO121=\"Sidewalk/Trail Compost-Amended Strip\",ROUND(AQ121/(V121/H123),1) &\" ft wide x \"& ROUND(V121/H123,0)&\" ft long\",\nIF(OR(AO121=\"Rainwater Harvesting - Category 2\",AO121=\"Rainwater Harvesting - Category 4\"),\" required minimum live storage\",\nIF(AO121=\"Water Quality BMP in lieu of NIB\",\"See Plan\",\nIF(AND(V123=\"\",V125=\"\",V127=\"\"),\"\",TRIM(V125&\" \"&AP125&\" \"&V123&\" \"&AP123&\" \"&V127&\" \"&AP127)))))),\"\")","v":""}]
[]
[null,{"$f":"IFERROR(\nIF(AO121=\"Permeable Pavement Facility\",\"Facility Area (sf)\",\nIF(AO121=\"Vegetated Roof System\",\"Vegetated Area (sf)\",\nIF(AO121=\"Sidewalk/Trail Compost-Amended Strip\",\"Sidewalk/Trail Width (ft)\",\nIF(OR(AO121=\"Rainwater Harvesting - Category 2\",AO121=\"Rainwater Harvesting - Category 4\"),\"Live Storage Volume (gal)\",\n\"\")))),\"\")","v":""},null,null,null,null,null,null,null,null,null,null,null,{"$f":"IFERROR(INDEX(Lookup!$C$70:$C$90,MATCH(AO121,Lookup!$A$70:$A$90,0)),\"\")","v":""},null,null,null,null,null,null,null,null,null,null,null,null,null,null,{"$f":"IFERROR(TEXT(AS121,\"#,##0\")&\" gal managed/year\",IFERROR(IF(AP121=0,\"Infiltration rate too low.\",\"\"),\"\"))","v":""},null,null,null,null,null,null,null,null,null,null,null,{"$f":"TRIM(SUBSTITUTE(SUBSTITUTE(SUBSTITUTE(AO121,\" \",\"\"),\"-\",\"\"),\"/\",\"\")&\"List1\")","v":{"$error":"#N/A"}},{"$f":"IFERROR(INDEX(Lookup!$F$70:$F$90,MATCH(AO121,Lookup!$A$70:$A$90,0)),\"\")","v":""}]
[]
[null,{"$f":"IFERROR(\nIF(OR(AO121=\"Permeable Pavement Facility\",AO121=\"Vegetated Roof System\"),\"Minimum Facility Area \"&TEXT((AP121*V121),\"#,###\")&\" sf\",\nIF(OR(AO121=\"Rainwater Harvesting - Category 2\",AO121=\"Rainwater Harvesting - Category 4\"),\"Continuous runoff modeling required by\",\n\"\")),\"\")","v":""},null,null,null,null,null,null,null,null,null,null,null,{"$f":"IFERROR(INDEX(Lookup!$D$70:$D$90,MATCH(AO121,Lookup!$A$70:$A$90,0)),\"\")","v":""},null,null,null,null,null,null,null,null,null,null,null,null,null,null,{"$f":"IFERROR(IF(AO121=\"Sidewalk/Trail Compost-Amended Strip\",ROUND(AQ121/(V121/H123),1) &\" ft wide compost-amended strip\",\"\"),\"\")","v":""},null,null,null,null,null,null,null,null,null,null,null,{"$f":"TRIM(SUBSTITUTE(SUBSTITUTE(SUBSTITUTE(AO121,\" \",\"\"),\"-\",\"\"),\"/\",\"\")&\"List2\")","v":{"$error":"#N/A"}},{"$f":"IFERROR(INDEX(Lookup!$G$70:$G$90,MATCH(AO121,Lookup!$A$70:$A$90,0)),\"\")","v":""}]
[]
[null,{"$f":"IFERROR(IF(OR(AO121=\"Rainwater Harvesting - Category 2\",AO121=\"Rainwater Harvesting - Category 4\"),\"professional engineer.\",\n\"\"),\"\")","v":""},null,null,null,null,null,null,null,null,null,null,null,{"$f":"IFERROR(INDEX(Lookup!$E$70:$E$90,MATCH(AO121,Lookup!$A$70:$A$90,0)),\"\")","v":""},null,null,null,null,null,null,null,null,null,null,null,null,null,null,{"$f":"IFERROR(IF(AO121=\"Sidewalk/Trail Compost-Amended Strip\",IF(AND(AC125=\"\",H123<>\"\"),\"\",\"along full \"& ROUND(V121/H123,0) &\" ft trail/sidewalk\"),\"\"),\"\")","v":""},null,null,null,null,null,null,null,null,null,null,null,{"$f":"TRIM(SUBSTITUTE(SUBSTITUTE(SUBSTITUTE(AO121,\" \",\"\"),\"-\",\"\"),\"/\",\"\")&\"List3\")","v":{"$error":"#N/A"}}]
[]
[null,{"$f":"IFERROR(IF(INDEX($K$7:$K$46,MATCH(AN129,$AO$7:$AO$46,0))=\"\",\"\",INDEX($K$7:$K$46,MATCH(AN129,$AO$7:$AO$46,0))),\"\")","v":""},null,null,null,null,null,null,null,null,null,null,null,{"$f":"IF(B129=\"\",\"\",IF(AO129=\"Vegetated Roof System\",\"Roof Area\",\"Contributing Area (sf)\"))","v":""},null,null,null,null,null,null,null,{"$f":"IF(B129=\"\",\"\",SUMIF($AO$7:$AO$46,AN129,$F$7:$I$46))","v":""},null,null,null,null,null,null,{"$f":"IFERROR(IF(AO129=\"Water Quality BMP in lieu of NIB\",\"Submit sizing documentation separately.\",\nIF(AP129=-999,\"Configuration not allowed.\",IF(AP129=0,\"Configuration not allowed.\",IF(AO129=\"New or Retained Trees\",\"As many as feasible.\",\nIF(AP129=\"equation\",TEXT(AQ129,\"#,##0\")&\" \"&AR129,\nTEXT(IF(OR(AO129=\"Permeable Pavement Facility\",AO129=\"Vegetated Roof System\",AO129=\"Rainwater Harvesting - Category 2\", AO129=\"Rainwater Harvesting - Category 4\"),H131,\nIF(AO129=\"Sidewalk/Trail Compost-Amended Strip\",MAX(V129/H131,AP129*V129),\nAP129*V129)),\"#,##0\")&\" \"&AR129))))),\"\")","v":""},null,null,null,null,null,null,null,null,null,null,11,{"$f":"INDEX($AP$7:$AP$46,MATCH(AN129,$AO$7:$AO$46,0))","v":{"$error":"#N/A"}},{"$f":"IF(AO129=\"New or Retained Trees\", INDEX(Lookup!$F$93:$F$219,MATCH(TRIM(CONCATENATE(AO129,V131)),Lookup!$E$93:$E$219,0)),\nIF(AO129=\"Single-family Residential Cisterns\", INDEX(Lookup!$F$93:$F$219,MATCH(TRIM(CONCATENATE(AO129,IF(V129<400,0,IF(V129>4200,4201,ROUNDDOWN(V129,-2))))),Lookup!$E$93:$E$219,0)),\nIF(AO129=\"Sidewalk/Trail Compost-Amended Strip\", IF(H131=\"\",NA(),IF(H131<10,Lookup!$F$95,Lookup!$F$94)),\nIF(AND(AO129=\"Non-Infiltrating Bioretention\",V133=\"Sloped sides\"),\nIF(V131=2,0.013,\nIF(AND(V131=12,V129<=2000),0.004,\"equation\")),\nINDEX(Lookup!$F$93:$F$219,MATCH(TRIM(CONCATENATE(AO129,V131,V133,V135)),Lookup!$E$93:$E$219,0))))))","v":{"$error":"#N/A"}},{"$f":"IF(AND(AO129=\"Non-Infiltrating Bioretention\",V133=\"Sloped sides\"),\nIF(V131=2,0.013*V129,\nIF(AND(V131=6,V129<=2000),0.0059*V129-3.215,\nIF(AND(V131=6,V129>2000,V129<=10000),0.0097*V129-11.297,\nIF(AND(V131=6,V129>10000),0.012*V129,\nIF(AND(V131=12,V129<=2700),0.004*V129,\nIF(AND(V131=12,V129>2700,V129<=10000),0.0052*V129-12.092,\nIF(AND(V131=12,V129>10000),0.01*V129,NA()))))))),\nIF(AP129<=0,NA(),IF(OR(AO129=\"Permeable Pavement Facility\",AO129=\"Vegetated Roof System\",AO129=\"Rainwater Harvesting - Category 2\", AO129=\"Rainwater Harvesting - Category 4\"),H131,\nIF(AO129=\"Sidewalk/Trail Compost-Amended Strip\",MAX(V129/H131, AP129*V129),\nAP129*V129))))","v":{"$error":"#N/A"}},{"$f":"IF(AO129=\"Single-family Residential Cisterns\",\n\"sf\",INDEX(Lookup!$H$93:$H$219,MATCH(TRIM(CONCATENATE(AO129,V131,V133,V135)),Lookup!$E$93:$E$219,0)))","v":{"$error":"#N/A"}},{"$f":"IF(AO129=\"New or Retained Trees\", INDEX(Lookup!$G$93:$G$219,MATCH(TRIM(CONCATENATE(AO129,V131)),Lookup!$E$93:$E$219,0))*V133,\nIF(AO129=\"Single-family Residential Cisterns\", INDEX(Lookup!$G$93:$G$219,MATCH(TRIM(CONCATENATE(AO129,IF(V129<400,0,IF(V129>4200,4201,ROUNDDOWN(V129,-2))))),Lookup!$E$93:$E$219,0))*V129,\nIF(AND(AO129=\"Sidewalk/Trail Compost-Amended Strip\",OR(H131=\"\",InfRate=0)),NA(),\nINDEX(Lookup!$G$93:$G$219,MATCH(TRIM(CONCATENATE(AO129,V131,V133,V135)),Lookup!$E$93:$E$219,0))*V129)))*7.48052\n*IF(OR(AO129=\"Permeable Pavement Facility\",AO129=\"Vegetated Roof System\"),MIN(1,H131/(AP129*V129)),1)\n+IF(AO129=\"Permeable Pavement Facility\",H131*2.1*7.48052,1)","v":{"$error":"#N/A"}},{"$f":"IFERROR(\nIF(AO129=\"Single-family Residential Cisterns\",INDEX(Lookup!$H$93:$H$219,MATCH(TRIM(CONCATENATE(AO129,IF(V129<400,0,IF(V129>4200,4201,ROUNDDOWN(V129,-2))))),Lookup!$E$93:$E$219,0)),\nIF(AO129=\"Sidewalk/Trail Compost-Amended Strip\",ROUND(AQ129/(V129/H131),1) &\" ft wide x \"& ROUND(V129/H131,0)&\" ft long\",\nIF(OR(AO129=\"Rainwater Harvesting - Category 2\",AO129=\"Rainwater Harvesting - Category 4\"),\" required minimum live storage\",\nIF(AO129=\"Water Quality BMP in lieu of NIB\",\"See Plan\",\nIF(AND(V131=\"\",V133=\"\",V135=\"\"),\"\",TRIM(V133&\" \"&AP133&\" \"&V131&\" \"&AP131&\" \"&V135&\" \"&AP135)))))),\"\")","v":""}]
[]
[null,{"$f":"IFERROR(\nIF(AO129=\"Permeable Pavement Facility\",\"Facility Area (sf)\",\nIF(AO129=\"Vegetated Roof System\",\"Vegetated Area (sf)\",\nIF(AO129=\"Sidewalk/Trail Compost-Amended Strip\",\"Sidewalk/Trail Width (ft)\",\nIF(OR(AO129=\"Rainwater Harvesting - Category 2\",AO129=\"Rainwater Harvesting - Category 4\"),\"Live Storage Volume (gal)\",\n\"\")))),\"\")","v":""},null,null,null,null,null,null,null,null,null,null,null,{"$f":"IFERROR(INDEX(Lookup!$C$70:$C$90,MATCH(AO129,Lookup!$A$70:$A$90,0)),\"\")","v":""},null,null,null,null,null,null,null,null,null,null,null,null,null,null,{"$f":"IFERROR(TEXT(AS129,\"#,##0\")&\" gal managed/year\",IFERROR(IF(AP129=0,\"Infiltration rate too low.\",\"\"),\"\"))","v":""},null,null,null,null,null,null,null,null,null,null,null,{"$f":"TRIM(SUBSTITUTE(SUBSTITUTE(SUBSTITUTE(AO129,\" \",\"\"),\"-\",\"\"),\"/\",\"\")&\"List1\")","v":{"$error":"#N/A"}},{"$f":"IFERROR(INDEX(Lookup!$F$70:$F$90,MATCH(AO129,Lookup!$A$70:$A$90,0)),\"\")","v":""}]
[]
[null,{"$f":"IFERROR(\nIF(OR(AO129=\"Permeable Pavement Facility\",AO129=\"Vegetated Roof System\"),\"Minimum Facility Area \"&TEXT((AP129*V129),\"#,###\")&\" sf\",\nIF(OR(AO129=\"Rainwater Harvesting - Category 2\",AO129=\"Rainwater Harvesting - Category 4\"),\"Continuous runoff modeling required by\",\n\"\")),\"\")","v":""},null,null,null,null,null,null,null,null,null,null,null,{"$f":"IFERROR(INDEX(Lookup!$D$70:$D$90,MATCH(AO129,Lookup!$A$70:$A$90,0)),\"\")","v":""},null,null,null,null,null,null,null,null,null,null,null,null,null,null,{"$f":"IFERROR(IF(AO129=\"Sidewalk/Trail Compost-Amended Strip\",ROUND(AQ129/(V129/H131),1) &\" ft wide compost-amended strip\",\"\"),\"\")","v":""},null,null,null,null,null,null,null,null,null,null,null,{"$f":"TRIM(SUBSTITUTE(SUBSTITUTE(SUBSTITUTE(AO129,\" \",\"\"),\"-\",\"\"),\"/\",\"\")&\"List2\")","v":{"$error":"#N/A"}},{"$f":"IFERROR(INDEX(Lookup!$G$70:$G$90,MATCH(AO129,Lookup!$A$70:$A$90,0)),\"\")","v":""}]
[]
[null,{"$f":"IFERROR(IF(OR(AO129=\"Rainwater Harvesting - Category 2\",AO129=\"Rainwater Harvesting - Category 4\"),\"professional engineer.\",\n\"\"),\"\")","v":""},null,null,null,null,null,null,null,null,null,null,null,{"$f":"IFERROR(INDEX(Lookup!$E$70:$E$90,MATCH(AO129,Lookup!$A$70:$A$90,0)),\"\")","v":""},null,null,null,null,null,null,null,null,null,null,null,null,null,null,{"$f":"IFERROR(IF(AO129=\"Sidewalk/Trail Compost-Amended Strip\",IF(AND(AC133=\"\",H131<>\"\"),\"\",\"along full \"& ROUND(V129/H131,0) &\" ft trail/sidewalk\"),\"\"),\"\")","v":""},null,null,null,null,null,null,null,null,null,null,null,{"$f":"TRIM(SUBSTITUTE(SUBSTITUTE(SUBSTITUTE(AO129,\" \",\"\"),\"-\",\"\"),\"/\",\"\")&\"List3\")","v":{"$error":"#N/A"}}]
[]
[null,{"$f":"IFERROR(IF(INDEX($K$7:$K$46,MATCH(AN137,$AO$7:$AO$46,0))=\"\",\"\",INDEX($K$7:$K$46,MATCH(AN137,$AO$7:$AO$46,0))),\"\")","v":""},null,null,null,null,null,null,null,null,null,null,null,{"$f":"IF(B137=\"\",\"\",IF(AO137=\"Vegetated Roof System\",\"Roof Area\",\"Contributing Area (sf)\"))","v":""},null,null,null,null,null,null,null,{"$f":"IF(B137=\"\",\"\",SUMIF($AO$7:$AO$46,AN137,$F$7:$I$46))","v":""},null,null,null,null,null,null,{"$f":"IFERROR(IF(AO137=\"Water Quality BMP in lieu of NIB\",\"Submit sizing documentation separately.\",\nIF(AP137=-999,\"Configuration not allowed.\",IF(AP137=0,\"Configuration not allowed.\",IF(AO137=\"New or Retained Trees\",\"As many as feasible.\",\nIF(AP137=\"equation\",TEXT(AQ137,\"#,##0\")&\" \"&AR137,\nTEXT(IF(OR(AO137=\"Permeable Pavement Facility\",AO137=\"Vegetated Roof System\",AO137=\"Rainwater Harvesting - Category 2\", AO137=\"Rainwater Harvesting - Category 4\"),H139,\nIF(AO137=\"Sidewalk/Trail Compost-Amended Strip\",MAX(V137/H139,AP137*V137),\nAP137*V137)),\"#,##0\")&\" \"&AR137))))),\"\")","v":""},null,null,null,null,null,null,null,null,null,null,12,{"$f":"INDEX($AP$7:$AP$46,MATCH(AN137,$AO$7:$AO$46,0))","v":{"$error":"#N/A"}},{"$f":"IF(AO137=\"New or Retained Trees\", INDEX(Lookup!$F$93:$F$219,MATCH(TRIM(CONCATENATE(AO137,V139)),Lookup!$E$93:$E$219,0)),\nIF(AO137=\"Single-family Residential Cisterns\", INDEX(Lookup!$F$93:$F$219,MATCH(TRIM(CONCATENATE(AO137,IF(V137<400,0,IF(V137>4200,4201,ROUNDDOWN(V137,-2))))),Lookup!$E$93:$E$219,0)),\nIF(AO137=\"Sidewalk/Trail Compost-Amended Strip\", IF(H139=\"\",NA(),IF(H139<10,Lookup!$F$95,Lookup!$F$94)),\nIF(AND(AO137=\"Non-Infiltrating Bioretention\",V141=\"Sloped sides\"),\nIF(V139=2,0.013,\nIF(AND(V139=12,V137<=2000),0.004,\"equation\")),\nINDEX(Lookup!$F$93:$F$219,MATCH(TRIM(CONCATENATE(AO137,V139,V141,V143)),Lookup!$E$93:$E$219,0))))))","v":{"$error":"#N/A"}},{"$f":"IF(AND(AO137=\"Non-Infiltrating Bioretention\",V141=\"Sloped sides\"),\nIF(V139=2,0.013*V137,\nIF(AND(V139=6,V137<=2000),0.0059*V137-3.215,\nIF(AND(V139=6,V137>2000,V137<=10000),0.0097*V137-11.297,\nIF(AND(V139=6,V137>10000),0.012*V137,\nIF(AND(V139=12,V137<=2700),0.004*V137,\nIF(AND(V139=12,V137>2700,V137<=10000),0.0052*V137-12.092,\nIF(AND(V139=12,V137>10000),0.01*V137,NA()))))))),\nIF(AP137<=0,NA(),IF(OR(AO137=\"Permeable Pavement Facility\",AO137=\"Vegetated Roof System\",AO137=\"Rainwater Harvesting - Category 2\", AO137=\"Rainwater Harvesting - Category 4\"),H139,\nIF(AO137=\"Sidewalk/Trail Compost-Amended Strip\",MAX(V137/H139, AP137*V137),\nAP137*V137))))","v":{"$error":"#N/A"}},{"$f":"IF(AO137=\"Single-family Residential Cisterns\",\n\"sf\",INDEX(Lookup!$H$93:$H$219,MATCH(TRIM(CONCATENATE(AO137,V139,V141,V143)),Lookup!$E$93:$E$219,0)))","v":{"$error":"#N/A"}},{"$f":"IF(AO137=\"New or Retained Trees\", INDEX(Lookup!$G$93:$G$219,MATCH(TRIM(CONCATENATE(AO137,V139)),Lookup!$E$93:$E$219,0))*V141,\nIF(AO137=\"Single-family Residential Cisterns\", INDEX(Lookup!$G$93:$G$219,MATCH(TRIM(CONCATENATE(AO137,IF(V137<400,0,IF(V137>4200,4201,ROUNDDOWN(V137,-2))))),Lookup!$E$93:$E$219,0))*V137,\nIF(AND(AO137=\"Sidewalk/Trail Compost-Amended Strip\",OR(H139=\"\",InfRate=0)),NA(),\nINDEX(Lookup!$G$93:$G$219,MATCH(TRIM(CONCATENATE(AO137,V139,V141,V143)),Lookup!$E$93:$E$219,0))*V137)))*7.48052\n*IF(OR(AO137=\"Permeable Pavement Facility\",AO137=\"Vegetated Roof System\"),MIN(1,H139/(AP137*V137)),1)\n+IF(AO137=\"Permeable Pavement Facility\",H139*2.1*7.48052,1)","v":{"$error":"#N/A"}},{"$f":"IFERROR(\nIF(AO137=\"Single-family Residential Cisterns\",INDEX(Lookup!$H$93:$H$219,MATCH(TRIM(CONCATENATE(AO137,IF(V137<400,0,IF(V137>4200,4201,ROUNDDOWN(V137,-2))))),Lookup!$E$93:$E$219,0)),\nIF(AO137=\"Sidewalk/Trail Compost-Amended Strip\",ROUND(AQ137/(V137/H139),1) &\" ft wide x \"& ROUND(V137/H139,0)&\" ft long\",\nIF(OR(AO137=\"Rainwater Harvesting - Category 2\",AO137=\"Rainwater Harvesting - Category 4\"),\" required minimum live storage\",\nIF(AO137=\"Water Quality BMP in lieu of NIB\",\"See Plan\",\nIF(AND(V139=\"\",V141=\"\",V143=\"\"),\"\",TRIM(V141&\" \"&AP141&\" \"&V139&\" \"&AP139&\" \"&V143&\" \"&AP143)))))),\"\")","v":""}]
[]
[null,{"$f":"IFERROR(\nIF(AO137=\"Permeable Pavement Facility\",\"Facility Area (sf)\",\nIF(AO137=\"Vegetated Roof System\",\"Vegetated Area (sf)\",\nIF(AO137=\"Sidewalk/Trail Compost-Amended Strip\",\"Sidewalk/Trail Width (ft)\",\nIF(OR(AO137=\"Rainwater Harvesting - Category 2\",AO137=\"Rainwater Harvesting - Category 4\"),\"Live Storage Volume (gal)\",\n\"\")))),\"\")","v":""},null,null,null,null,null,null,null,null,null,null,null,{"$f":"IFERROR(INDEX(Lookup!$C$70:$C$90,MATCH(AO137,Lookup!$A$70:$A$90,0)),\"\")","v":""},null,null,null,null,null,null,null,null,null,null,null,null,null,null,{"$f":"IFERROR(TEXT(AS137,\"#,##0\")&\" gal managed/year\",IFERROR(IF(AP137=0,\"Infiltration rate too low.\",\"\"),\"\"))","v":""},null,null,null,null,null,null,null,null,null,null,null,{"$f":"TRIM(SUBSTITUTE(SUBSTITUTE(SUBSTITUTE(AO137,\" \",\"\"),\"-\",\"\"),\"/\",\"\")&\"List1\")","v":{"$error":"#N/A"}},{"$f":"IFERROR(INDEX(Lookup!$F$70:$F$90,MATCH(AO137,Lookup!$A$70:$A$90,0)),\"\")","v":""}]
[]
[null,{"$f":"IFERROR(\nIF(OR(AO137=\"Permeable Pavement Facility\",AO137=\"Vegetated Roof System\"),\"Minimum Facility Area \"&TEXT((AP137*V137),\"#,###\")&\" sf\",\nIF(OR(AO137=\"Rainwater Harvesting - Category 2\",AO137=\"Rainwater Harvesting - Category 4\"),\"Continuous runoff modeling required by\",\n\"\")),\"\")","v":""},null,null,null,null,null,null,null,null,null,null,null,{"$f":"IFERROR(INDEX(Lookup!$D$70:$D$90,MATCH(AO137,Lookup!$A$70:$A$90,0)),\"\")","v":""},null,null,null,null,null,null,null,null,null,null,null,null,null,null,{"$f":"IFERROR(IF(AO137=\"Sidewalk/Trail Compost-Amended Strip\",ROUND(AQ137/(V137/H139),1) &\" ft wide compost-amended strip\",\"\"),\"\")","v":""},null,null,null,null,null,null,null,null,null,null,null,{"$f":"TRIM(SUBSTITUTE(SUBSTITUTE(SUBSTITUTE(AO137,\" \",\"\"),\"-\",\"\"),\"/\",\"\")&\"List2\")","v":{"$error":"#N/A"}},{"$f":"IFERROR(INDEX(Lookup!$G$70:$G$90,MATCH(AO137,Lookup!$A$70:$A$90,0)),\"\")","v":""}]
[]
[null,{"$f":"IFERROR(IF(OR(AO137=\"Rainwater Harvesting - Category 2\",AO137=\"Rainwater Harvesting - Category 4\"),\"professional engineer.\",\n\"\"),\"\")","v":""},null,null,null,null,null,null,null,null,null,null,null,{"$f":"IFERROR(INDEX(Lookup!$E$70:$E$90,MATCH(AO137,Lookup!$A$70:$A$90,0)),\"\")","v":""},null,null,null,null,null,null,null,null,null,null,null,null,null,null,{"$f":"IFERROR(IF(AO137=\"Sidewalk/Trail Compost-Amended Strip\",IF(AND(AC141=\"\",H139<>\"\"),\"\",\"along full \"& ROUND(V137/H139,0) &\" ft trail/sidewalk\"),\"\"),\"\")","v":""},null,null,null,null,null,null,null,null,null,null,null,{"$f":"TRIM(SUBSTITUTE(SUBSTITUTE(SUBSTITUTE(AO137,\" \",\"\"),\"-\",\"\"),\"/\",\"\")&\"List3\")","v":{"$error":"#N/A"}}]
[]
[null,{"$f":"IFERROR(IF(INDEX($K$7:$K$46,MATCH(AN145,$AO$7:$AO$46,0))=\"\",\"\",INDEX($K$7:$K$46,MATCH(AN145,$AO$7:$AO$46,0))),\"\")","v":""},null,null,null,null,null,null,null,null,null,null,null,{"$f":"IF(B145=\"\",\"\",IF(AO145=\"Vegetated Roof System\",\"Roof Area\",\"Contributing Area (sf)\"))","v":""},null,null,null,null,null,null,null,{"$f":"IF(B145=\"\",\"\",SUMIF($AO$7:$AO$46,AN145,$F$7:$I$46))","v":""},null,null,null,null,null,null,{"$f":"IFERROR(IF(AO145=\"Water Quality BMP in lieu of NIB\",\"Submit sizing documentation separately.\",\nIF(AP145=-999,\"Configuration not allowed.\",IF(AP145=0,\"Configuration not allowed.\",IF(AO145=\"New or Retained Trees\",\"As many as feasible.\",\nIF(AP145=\"equation\",TEXT(AQ145,\"#,##0\")&\" \"&AR145,\nTEXT(IF(OR(AO145=\"Permeable Pavement Facility\",AO145=\"Vegetated Roof System\",AO145=\"Rainwater Harvesting - Category 2\", AO145=\"Rainwater Harvesting - Category 4\"),H147,\nIF(AO145=\"Sidewalk/Trail Compost-Amended Strip\",MAX(V145/H147,AP145*V145),\nAP145*V145)),\"#,##0\")&\" \"&AR145))))),\"\")","v":""},null,null,null,null,null,null,null,null,null,null,13,{"$f":"INDEX($AP$7:$AP$46,MATCH(AN145,$AO$7:$AO$46,0))","v":{"$error":"#N/A"}},{"$f":"IF(AO145=\"New or Retained Trees\", INDEX(Lookup!$F$93:$F$219,MATCH(TRIM(CONCATENATE(AO145,V147)),Lookup!$E$93:$E$219,0)),\nIF(AO145=\"Single-family Residential Cisterns\", INDEX(Lookup!$F$93:$F$219,MATCH(TRIM(CONCATENATE(AO145,IF(V145<400,0,IF(V145>4200,4201,ROUNDDOWN(V145,-2))))),Lookup!$E$93:$E$219,0)),\nIF(AO145=\"Sidewalk/Trail Compost-Amended Strip\", IF(H147=\"\",NA(),IF(H147<10,Lookup!$F$95,Lookup!$F$94)),\nIF(AND(AO145=\"Non-Infiltrating Bioretention\",V149=\"Sloped sides\"),\nIF(V147=2,0.013,\nIF(AND(V147=12,V145<=2000),0.004,\"equation\")),\nINDEX(Lookup!$F$93:$F$219,MATCH(TRIM(CONCATENATE(AO145,V147,V149,V151)),Lookup!$E$93:$E$219,0))))))","v":{"$error":"#N/A"}},{"$f":"IF(AND(AO145=\"Non-Infiltrating Bioretention\",V149=\"Sloped sides\"),\nIF(V147=2,0.013*V145,\nIF(AND(V147=6,V145<=2000),0.0059*V145-3.215,\nIF(AND(V147=6,V145>2000,V145<=10000),0.0097*V145-11.297,\nIF(AND(V147=6,V145>10000),0.012*V145,\nIF(AND(V147=12,V145<=2700),0.004*V145,\nIF(AND(V147=12,V145>2700,V145<=10000),0.0052*V145-12.092,\nIF(AND(V147=12,V145>10000),0.01*V145,NA()))))))),\nIF(AP145<=0,NA(),IF(OR(AO145=\"Permeable Pavement Facility\",AO145=\"Vegetated Roof System\",AO145=\"Rainwater Harvesting - Category 2\", AO145=\"Rainwater Harvesting - Category 4\"),H147,\nIF(AO145=\"Sidewalk/Trail Compost-Amended Strip\",MAX(V145/H147, AP145*V145),\nAP145*V145))))","v":{"$error":"#N/A"}},{"$f":"IF(AO145=\"Single-family Residential Cisterns\",\n\"sf\",INDEX(Lookup!$H$93:$H$219,MATCH(TRIM(CONCATENATE(AO145,V147,V149,V151)),Lookup!$E$93:$E$219,0)))","v":{"$error":"#N/A"}},{"$f":"IF(AO145=\"New or Retained Trees\", INDEX(Lookup!$G$93:$G$219,MATCH(TRIM(CONCATENATE(AO145,V147)),Lookup!$E$93:$E$219,0))*V149,\nIF(AO145=\"Single-family Residential Cisterns\", INDEX(Lookup!$G$93:$G$219,MATCH(TRIM(CONCATENATE(AO145,IF(V145<400,0,IF(V145>4200,4201,ROUNDDOWN(V145,-2))))),Lookup!$E$93:$E$219,0))*V145,\nIF(AND(AO145=\"Sidewalk/Trail Compost-Amended Strip\",OR(H147=\"\",InfRate=0)),NA(),\nINDEX(Lookup!$G$93:$G$219,MATCH(TRIM(CONCATENATE(AO145,V147,V149,V151)),Lookup!$E$93:$E$219,0))*V145)))*7.48052\n*IF(OR(AO145=\"Permeable Pavement Facility\",AO145=\"Vegetated Roof System\"),MIN(1,H147/(AP145*V145)),1)\n+IF(AO145=\"Permeable Pavement Facility\",H147*2.1*7.48052,1)","v":{"$error":"#N/A"}},{"$f":"IFERROR(\nIF(AO145=\"Single-family Residential Cisterns\",INDEX(Lookup!$H$93:$H$219,MATCH(TRIM(CONCATENATE(AO145,IF(V145<400,0,IF(V145>4200,4201,ROUNDDOWN(V145,-2))))),Lookup!$E$93:$E$219,0)),\nIF(AO145=\"Sidewalk/Trail Compost-Amended Strip\",ROUND(AQ145/(V145/H147),1) &\" ft wide x \"& ROUND(V145/H147,0)&\" ft long\",\nIF(OR(AO145=\"Rainwater Harvesting - Category 2\",AO145=\"Rainwater Harvesting - Category 4\"),\" required minimum live storage\",\nIF(AO145=\"Water Quality BMP in lieu of NIB\",\"See Plan\",\nIF(AND(V147=\"\",V149=\"\",V151=\"\"),\"\",TRIM(V149&\" \"&AP149&\" \"&V147&\" \"&AP147&\" \"&V151&\" \"&AP151)))))),\"\")","v":""}]
[]
[null,{"$f":"IFERROR(\nIF(AO145=\"Permeable Pavement Facility\",\"Facility Area (sf)\",\nIF(AO145=\"Vegetated Roof System\",\"Vegetated Area (sf)\",\nIF(AO145=\"Sidewalk/Trail Compost-Amended Strip\",\"Sidewalk/Trail Width (ft)\",\nIF(OR(AO145=\"Rainwater Harvesting - Category 2\",AO145=\"Rainwater Harvesting - Category 4\"),\"Live Storage Volume (gal)\",\n\"\")))),\"\")","v":""},null,null,null,null,null,null,null,null,null,null,null,{"$f":"IFERROR(INDEX(Lookup!$C$70:$C$90,MATCH(AO145,Lookup!$A$70:$A$90,0)),\"\")","v":""},null,null,null,null,null,null,null,null,null,null,null,null,null,null,{"$f":"IFERROR(TEXT(AS145,\"#,##0\")&\" gal managed/year\",IFERROR(IF(AP145=0,\"Infiltration rate too low.\",\"\"),\"\"))","v":""},null,null,null,null,null,null,null,null,null,null,null,{"$f":"TRIM(SUBSTITUTE(SUBSTITUTE(SUBSTITUTE(AO145,\" \",\"\"),\"-\",\"\"),\"/\",\"\")&\"List1\")","v":{"$error":"#N/A"}},{"$f":"IFERROR(INDEX(Lookup!$F$70:$F$90,MATCH(AO145,Lookup!$A$70:$A$90,0)),\"\")","v":""}]
[]
[null,{"$f":"IFERROR(\nIF(OR(AO145=\"Permeable Pavement Facility\",AO145=\"Vegetated Roof System\"),\"Minimum Facility Area \"&TEXT((AP145*V145),\"#,###\")&\" sf\",\nIF(OR(AO145=\"Rainwater Harvesting - Category 2\",AO145=\"Rainwater Harvesting - Category 4\"),\"Continuous runoff modeling required by\",\n\"\")),\"\")","v":""},null,null,null,null,null,null,null,null,null,null,null,{"$f":"IFERROR(INDEX(Lookup!$D$70:$D$90,MATCH(AO145,Lookup!$A$70:$A$90,0)),\"\")","v":""},null,null,null,null,null,null,null,null,null,null,null,null,null,null,{"$f":"IFERROR(IF(AO145=\"Sidewalk/Trail Compost-Amended Strip\",ROUND(AQ145/(V145/H147),1) &\" ft wide compost-amended strip\",\"\"),\"\")","v":""},null,null,null,null,null,null,null,null,null,null,null,{"$f":"TRIM(SUBSTITUTE(SUBSTITUTE(SUBSTITUTE(AO145,\" \",\"\"),\"-\",\"\"),\"/\",\"\")&\"List2\")","v":{"$error":"#N/A"}},{"$f":"IFERROR(INDEX(Lookup!$G$70:$G$90,MATCH(AO145,Lookup!$A$70:$A$90,0)),\"\")","v":""}]
[]
[null,{"$f":"IFERROR(IF(OR(AO145=\"Rainwater Harvesting - Category 2\",AO145=\"Rainwater Harvesting - Category 4\"),\"professional engineer.\",\n\"\"),\"\")","v":""},null,null,null,null,null,null,null,null,null,null,null,{"$f":"IFERROR(INDEX(Lookup!$E$70:$E$90,MATCH(AO145,Lookup!$A$70:$A$90,0)),\"\")","v":""},null,null,null,null,null,null,null,null,null,null,null,null,null,null,{"$f":"IFERROR(IF(AO145=\"Sidewalk/Trail Compost-Amended Strip\",IF(AND(AC149=\"\",H147<>\"\"),\"\",\"along full \"& ROUND(V145/H147,0) &\" ft trail/sidewalk\"),\"\"),\"\")","v":""},null,null,null,null,null,null,null,null,null,null,null,{"$f":"TRIM(SUBSTITUTE(SUBSTITUTE(SUBSTITUTE(AO145,\" \",\"\"),\"-\",\"\"),\"/\",\"\")&\"List3\")","v":{"$error":"#N/A"}}]
[]
[null,{"$f":"IFERROR(IF(INDEX($K$7:$K$46,MATCH(AN153,$AO$7:$AO$46,0))=\"\",\"\",INDEX($K$7:$K$46,MATCH(AN153,$AO$7:$AO$46,0))),\"\")","v":""},null,null,null,null,null,null,null,null,null,null,null,{"$f":"IF(B153=\"\",\"\",IF(AO153=\"Vegetated Roof System\",\"Roof Area\",\"Contributing Area (sf)\"))","v":""},null,null,null,null,null,null,null,{"$f":"IF(B153=\"\",\"\",SUMIF($AO$7:$AO$46,AN153,$F$7:$I$46))","v":""},null,null,null,null,null,null,{"$f":"IFERROR(IF(AO153=\"Water Quality BMP in lieu of NIB\",\"Submit sizing documentation separately.\",\nIF(AP153=-999,\"Configuration not allowed.\",IF(AP153=0,\"Configuration not allowed.\",IF(AO153=\"New or Retained Trees\",\"As many as feasible.\",\nIF(AP153=\"equation\",TEXT(AQ153,\"#,##0\")&\" \"&AR153,\nTEXT(IF(OR(AO153=\"Permeable Pavement Facility\",AO153=\"Vegetated Roof System\",AO153=\"Rainwater Harvesting - Category 2\", AO153=\"Rainwater Harvesting - Category 4\"),H155,\nIF(AO153=\"Sidewalk/Trail Compost-Amended Strip\",MAX(V153/H155,AP153*V153),\nAP153*V153)),\"#,##0\")&\" \"&AR153))))),\"\")","v":""},null,null,null,null,null,null,null,null,null,null,14,{"$f":"INDEX($AP$7:$AP$46,MATCH(AN153,$AO$7:$AO$46,0))","v":{"$error":"#N/A"}},{"$f":"IF(AO153=\"New or Retained Trees\", INDEX(Lookup!$F$93:$F$219,MATCH(TRIM(CONCATENATE(AO153,V155)),Lookup!$E$93:$E$219,0)),\nIF(AO153=\"Single-family Residential Cisterns\", INDEX(Lookup!$F$93:$F$219,MATCH(TRIM(CONCATENATE(AO153,IF(V153<400,0,IF(V153>4200,4201,ROUNDDOWN(V153,-2))))),Lookup!$E$93:$E$219,0)),\nIF(AO153=\"Sidewalk/Trail Compost-Amended Strip\", IF(H155=\"\",NA(),IF(H155<10,Lookup!$F$95,Lookup!$F$94)),\nIF(AND(AO153=\"Non-Infiltrating Bioretention\",V157=\"Sloped sides\"),\nIF(V155=2,0.013,\nIF(AND(V155=12,V153<=2000),0.004,\"equation\")),\nINDEX(Lookup!$F$93:$F$219,MATCH(TRIM(CONCATENATE(AO153,V155,V157,V159)),Lookup!$E$93:$E$219,0))))))","v":{"$error":"#N/A"}},{"$f":"IF(AND(AO153=\"Non-Infiltrating Bioretention\",V157=\"Sloped sides\"),\nIF(V155=2,0.013*V153,\nIF(AND(V155=6,V153<=2000),0.0059*V153-3.215,\nIF(AND(V155=6,V153>2000,V153<=10000),0.0097*V153-11.297,\nIF(AND(V155=6,V153>10000),0.012*V153,\nIF(AND(V155=12,V153<=2700),0.004*V153,\nIF(AND(V155=12,V153>2700,V153<=10000),0.0052*V153-12.092,\nIF(AND(V155=12,V153>10000),0.01*V153,NA()))))))),\nIF(AP153<=0,NA(),IF(OR(AO153=\"Permeable Pavement Facility\",AO153=\"Vegetated Roof System\",AO153=\"Rainwater Harvesting - Category 2\", AO153=\"Rainwater Harvesting - Category 4\"),H155,\nIF(AO153=\"Sidewalk/Trail Compost-Amended Strip\",MAX(V153/H155, AP153*V153),\nAP153*V153))))","v":{"$error":"#N/A"}},{"$f":"IF(AO153=\"Single-family Residential Cisterns\",\n\"sf\",INDEX(Lookup!$H$93:$H$219,MATCH(TRIM(CONCATENATE(AO153,V155,V157,V159)),Lookup!$E$93:$E$219,0)))","v":{"$error":"#N/A"}},{"$f":"IF(AO153=\"New or Retained Trees\", INDEX(Lookup!$G$93:$G$219,MATCH(TRIM(CONCATENATE(AO153,V155)),Lookup!$E$93:$E$219,0))*V157,\nIF(AO153=\"Single-family Residential Cisterns\", INDEX(Lookup!$G$93:$G$219,MATCH(TRIM(CONCATENATE(AO153,IF(V153<400,0,IF(V153>4200,4201,ROUNDDOWN(V153,-2))))),Lookup!$E$93:$E$219,0))*V153,\nIF(AND(AO153=\"Sidewalk/Trail Compost-Amended Strip\",OR(H155=\"\",InfRate=0)),NA(),\nINDEX(Lookup!$G$93:$G$219,MATCH(TRIM(CONCATENATE(AO153,V155,V157,V159)),Lookup!$E$93:$E$219,0))*V153)))*7.48052\n*IF(OR(AO153=\"Permeable Pavement Facility\",AO153=\"Vegetated Roof System\"),MIN(1,H155/(AP153*V153)),1)\n+IF(AO153=\"Permeable Pavement Facility\",H155*2.1*7.48052,1)","v":{"$error":"#N/A"}},{"$f":"IFERROR(\nIF(AO153=\"Single-family Residential Cisterns\",INDEX(Lookup!$H$93:$H$219,MATCH(TRIM(CONCATENATE(AO153,IF(V153<400,0,IF(V153>4200,4201,ROUNDDOWN(V153,-2))))),Lookup!$E$93:$E$219,0)),\nIF(AO153=\"Sidewalk/Trail Compost-Amended Strip\",ROUND(AQ153/(V153/H155),1) &\" ft wide x \"& ROUND(V153/H155,0)&\" ft long\",\nIF(OR(AO153=\"Rainwater Harvesting - Category 2\",AO153=\"Rainwater Harvesting - Category 4\"),\" required minimum live storage\",\nIF(AO153=\"Water Quality BMP in lieu of NIB\",\"See Plan\",\nIF(AND(V155=\"\",V157=\"\",V159=\"\"),\"\",TRIM(V157&\" \"&AP157&\" \"&V155&\" \"&AP155&\" \"&V159&\" \"&AP159)))))),\"\")","v":""}]
[]
[null,{"$f":"IFERROR(\nIF(AO153=\"Permeable Pavement Facility\",\"Facility Area (sf)\",\nIF(AO153=\"Vegetated Roof System\",\"Vegetated Area (sf)\",\nIF(AO153=\"Sidewalk/Trail Compost-Amended Strip\",\"Sidewalk/Trail Width (ft)\",\nIF(OR(AO153=\"Rainwater Harvesting - Category 2\",AO153=\"Rainwater Harvesting - Category 4\"),\"Live Storage Volume (gal)\",\n\"\")))),\"\")","v":""},null,null,null,null,null,null,null,null,null,null,null,{"$f":"IFERROR(INDEX(Lookup!$C$70:$C$90,MATCH(AO153,Lookup!$A$70:$A$90,0)),\"\")","v":""},null,null,null,null,null,null,null,null,null,null,null,null,null,null,{"$f":"IFERROR(TEXT(AS153,\"#,##0\")&\" gal managed/year\",IFERROR(IF(AP153=0,\"Infiltration rate too low.\",\"\"),\"\"))","v":""},null,null,null,null,null,null,null,null,null,null,null,{"$f":"TRIM(SUBSTITUTE(SUBSTITUTE(SUBSTITUTE(AO153,\" \",\"\"),\"-\",\"\"),\"/\",\"\")&\"List1\")","v":{"$error":"#N/A"}},{"$f":"IFERROR(INDEX(Lookup!$F$70:$F$90,MATCH(AO153,Lookup!$A$70:$A$90,0)),\"\")","v":""}]
[]
[null,{"$f":"IFERROR(\nIF(OR(AO153=\"Permeable Pavement Facility\",AO153=\"Vegetated Roof System\"),\"Minimum Facility Area \"&TEXT((AP153*V153),\"#,###\")&\" sf\",\nIF(OR(AO153=\"Rainwater Harvesting - Category 2\",AO153=\"Rainwater Harvesting - Category 4\"),\"Continuous runoff modeling required by\",\n\"\")),\"\")","v":""},null,null,null,null,null,null,null,null,null,null,null,{"$f":"IFERROR(INDEX(Lookup!$D$70:$D$90,MATCH(AO153,Lookup!$A$70:$A$90,0)),\"\")","v":""},null,null,null,null,null,null,null,null,null,null,null,null,null,null,{"$f":"IFERROR(IF(AO153=\"Sidewalk/Trail Compost-Amended Strip\",ROUND(AQ153/(V153/H155),1) &\" ft wide compost-amended strip\",\"\"),\"\")","v":""},null,null,null,null,null,null,null,null,null,null,null,{"$f":"TRIM(SUBSTITUTE(SUBSTITUTE(SUBSTITUTE(AO153,\" \",\"\"),\"-\",\"\"),\"/\",\"\")&\"List2\")","v":{"$error":"#N/A"}},{"$f":"IFERROR(INDEX(Lookup!$G$70:$G$90,MATCH(AO153,Lookup!$A$70:$A$90,0)),\"\")","v":""}]
[]
[null,{"$f":"IFERROR(IF(OR(AO153=\"Rainwater Harvesting - Category 2\",AO153=\"Rainwater Harvesting - Category 4\"),\"professional engineer.\",\n\"\"),\"\")","v":""},null,null,null,null,null,null,null,null,null,null,null,{"$f":"IFERROR(INDEX(Lookup!$E$70:$E$90,MATCH(AO153,Lookup!$A$70:$A$90,0)),\"\")","v":""},null,null,null,null,null,null,null,null,null,null,null,null,null,null,{"$f":"IFERROR(IF(AO153=\"Sidewalk/Trail Compost-Amended Strip\",IF(AND(AC157=\"\",H155<>\"\"),\"\",\"along full \"& ROUND(V153/H155,0) &\" ft trail/sidewalk\"),\"\"),\"\")","v":""},null,null,null,null,null,null,null,null,null,null,null,{"$f":"TRIM(SUBSTITUTE(SUBSTITUTE(SUBSTITUTE(AO153,\" \",\"\"),\"-\",\"\"),\"/\",\"\")&\"List3\")","v":{"$error":"#N/A"}}]
[]
[null,{"$f":"IFERROR(IF(INDEX($K$7:$K$46,MATCH(AN161,$AO$7:$AO$46,0))=\"\",\"\",INDEX($K$7:$K$46,MATCH(AN161,$AO$7:$AO$46,0))),\"\")","v":""},null,null,null,null,null,null,null,null,null,null,null,{"$f":"IF(B161=\"\",\"\",IF(AO161=\"Vegetated Roof System\",\"Roof Area\",\"Contributing Area (sf)\"))","v":""},null,null,null,null,null,null,null,{"$f":"IF(B161=\"\",\"\",SUMIF($AO$7:$AO$46,AN161,$F$7:$I$46))","v":""},null,null,null,null,null,null,{"$f":"IFERROR(IF(AO161=\"Water Quality BMP in lieu of NIB\",\"Submit sizing documentation separately.\",\nIF(AP161=-999,\"Configuration not allowed.\",IF(AP161=0,\"Configuration not allowed.\",IF(AO161=\"New or Retained Trees\",\"As many as feasible.\",\nIF(AP161=\"equation\",TEXT(AQ161,\"#,##0\")&\" \"&AR161,\nTEXT(IF(OR(AO161=\"Permeable Pavement Facility\",AO161=\"Vegetated Roof System\",AO161=\"Rainwater Harvesting - Category 2\", AO161=\"Rainwater Harvesting - Category 4\"),H163,\nIF(AO161=\"Sidewalk/Trail Compost-Amended Strip\",MAX(V161/H163,AP161*V161),\nAP161*V161)),\"#,##0\")&\" \"&AR161))))),\"\")","v":""},null,null,null,null,null,null,null,null,null,null,15,{"$f":"INDEX($AP$7:$AP$46,MATCH(AN161,$AO$7:$AO$46,0))","v":{"$error":"#N/A"}},{"$f":"IF(AO161=\"New or Retained Trees\", INDEX(Lookup!$F$93:$F$219,MATCH(TRIM(CONCATENATE(AO161,V163)),Lookup!$E$93:$E$219,0)),\nIF(AO161=\"Single-family Residential Cisterns\", INDEX(Lookup!$F$93:$F$219,MATCH(TRIM(CONCATENATE(AO161,IF(V161<400,0,IF(V161>4200,4201,ROUNDDOWN(V161,-2))))),Lookup!$E$93:$E$219,0)),\nIF(AO161=\"Sidewalk/Trail Compost-Amended Strip\", IF(H163=\"\",NA(),IF(H163<10,Lookup!$F$95,Lookup!$F$94)),\nIF(AND(AO161=\"Non-Infiltrating Bioretention\",V165=\"Sloped sides\"),\nIF(V163=2,0.013,\nIF(AND(V163=12,V161<=2000),0.004,\"equation\")),\nINDEX(Lookup!$F$93:$F$219,MATCH(TRIM(CONCATENATE(AO161,V163,V165,V167)),Lookup!$E$93:$E$219,0))))))","v":{"$error":"#N/A"}},{"$f":"IF(AND(AO161=\"Non-Infiltrating Bioretention\",V165=\"Sloped sides\"),\nIF(V163=2,0.013*V161,\nIF(AND(V163=6,V161<=2000),0.0059*V161-3.215,\nIF(AND(V163=6,V161>2000,V161<=10000),0.0097*V161-11.297,\nIF(AND(V163=6,V161>10000),0.012*V161,\nIF(AND(V163=12,V161<=2700),0.004*V161,\nIF(AND(V163=12,V161>2700,V161<=10000),0.0052*V161-12.092,\nIF(AND(V163=12,V161>10000),0.01*V161,NA()))))))),\nIF(AP161<=0,NA(),IF(OR(AO161=\"Permeable Pavement Facility\",AO161=\"Vegetated Roof System\",AO161=\"Rainwater Harvesting - Category 2\", AO161=\"Rainwater Harvesting - Category 4\"),H163,\nIF(AO161=\"Sidewalk/Trail Compost-Amended Strip\",MAX(V161/H163, AP161*V161),\nAP161*V161))))","v":{"$error":"#N/A"}},{"$f":"IF(AO161=\"Single-family Residential Cisterns\",\n\"sf\",INDEX(Lookup!$H$93:$H$219,MATCH(TRIM(CONCATENATE(AO161,V163,V165,V167)),Lookup!$E$93:$E$219,0)))","v":{"$error":"#N/A"}},{"$f":"IF(AO161=\"New or Retained Trees\", INDEX(Lookup!$G$93:$G$219,MATCH(TRIM(CONCATENATE(AO161,V163)),Lookup!$E$93:$E$219,0))*V165,\nIF(AO161=\"Single-family Residential Cisterns\", INDEX(Lookup!$G$93:$G$219,MATCH(TRIM(CONCATENATE(AO161,IF(V161<400,0,IF(V161>4200,4201,ROUNDDOWN(V161,-2))))),Lookup!$E$93:$E$219,0))*V161,\nIF(AND(AO161=\"Sidewalk/Trail Compost-Amended Strip\",OR(H163=\"\",InfRate=0)),NA(),\nINDEX(Lookup!$G$93:$G$219,MATCH(TRIM(CONCATENATE(AO161,V163,V165,V167)),Lookup!$E$93:$E$219,0))*V161)))*7.48052\n*IF(OR(AO161=\"Permeable Pavement Facility\",AO161=\"Vegetated Roof System\"),MIN(1,H163/(AP161*V161)),1)\n+IF(AO161=\"Permeable Pavement Facility\",H163*2.1*7.48052,1)","v":{"$error":"#N/A"}},{"$f":"IFERROR(\nIF(AO161=\"Single-family Residential Cisterns\",INDEX(Lookup!$H$93:$H$219,MATCH(TRIM(CONCATENATE(AO161,IF(V161<400,0,IF(V161>4200,4201,ROUNDDOWN(V161,-2))))),Lookup!$E$93:$E$219,0)),\nIF(AO161=\"Sidewalk/Trail Compost-Amended Strip\",ROUND(AQ161/(V161/H163),1) &\" ft wide x \"& ROUND(V161/H163,0)&\" ft long\",\nIF(OR(AO161=\"Rainwater Harvesting - Category 2\",AO161=\"Rainwater Harvesting - Category 4\"),\" required minimum live storage\",\nIF(AO161=\"Water Quality BMP in lieu of NIB\",\"See Plan\",\nIF(AND(V163=\"\",V165=\"\",V167=\"\"),\"\",TRIM(V165&\" \"&AP165&\" \"&V163&\" \"&AP163&\" \"&V167&\" \"&AP167)))))),\"\")","v":""}]
[]
[null,{"$f":"IFERROR(\nIF(AO161=\"Permeable Pavement Facility\",\"Facility Area (sf)\",\nIF(AO161=\"Vegetated Roof System\",\"Vegetated Area (sf)\",\nIF(AO161=\"Sidewalk/Trail Compost-Amended Strip\",\"Sidewalk/Trail Width (ft)\",\nIF(OR(AO161=\"Rainwater Harvesting - Category 2\",AO161=\"Rainwater Harvesting - Category 4\"),\"Live Storage Volume (gal)\",\n\"\")))),\"\")","v":""},null,null,null,null,null,null,null,null,null,null,null,{"$f":"IFERROR(INDEX(Lookup!$C$70:$C$90,MATCH(AO161,Lookup!$A$70:$A$90,0)),\"\")","v":""},null,null,null,null,null,null,null,null,null,null,null,null,null,null,{"$f":"IFERROR(TEXT(AS161,\"#,##0\")&\" gal managed/year\",IFERROR(IF(AP161=0,\"Infiltration rate too low.\",\"\"),\"\"))","v":""},null,null,null,null,null,null,null,null,null,null,null,{"$f":"TRIM(SUBSTITUTE(SUBSTITUTE(SUBSTITUTE(AO161,\" \",\"\"),\"-\",\"\"),\"/\",\"\")&\"List1\")","v":{"$error":"#N/A"}},{"$f":"IFERROR(INDEX(Lookup!$F$70:$F$90,MATCH(AO161,Lookup!$A$70:$A$90,0)),\"\")","v":""}]
[]
[null,{"$f":"IFERROR(\nIF(OR(AO161=\"Permeable Pavement Facility\",AO161=\"Vegetated Roof System\"),\"Minimum Facility Area \"&TEXT((AP161*V161),\"#,###\")&\" sf\",\nIF(OR(AO161=\"Rainwater Harvesting - Category 2\",AO161=\"Rainwater Harvesting - Category 4\"),\"Continuous runoff modeling required by\",\n\"\")),\"\")","v":""},null,null,null,null,null,null,null,null,null,null,null,{"$f":"IFERROR(INDEX(Lookup!$D$70:$D$90,MATCH(AO161,Lookup!$A$70:$A$90,0)),\"\")","v":""},null,null,null,null,null,null,null,null,null,null,null,null,null,null,{"$f":"IFERROR(IF(AO161=\"Sidewalk/Trail Compost-Amended Strip\",ROUND(AQ161/(V161/H163),1) &\" ft wide compost-amended strip\",\"\"),\"\")","v":""},null,null,null,null,null,null,null,null,null,null,null,{"$f":"TRIM(SUBSTITUTE(SUBSTITUTE(SUBSTITUTE(AO161,\" \",\"\"),\"-\",\"\"),\"/\",\"\")&\"List2\")","v":{"$error":"#N/A"}},{"$f":"IFERROR(INDEX(Lookup!$G$70:$G$90,MATCH(AO161,Lookup!$A$70:$A$90,0)),\"\")","v":""}]
[]
[null,{"$f":"IFERROR(IF(OR(AO161=\"Rainwater Harvesting - Category 2\",AO161=\"Rainwater Harvesting - Category 4\"),\"professional engineer.\",\n\"\"),\"\")","v":""},null,null,null,null,null,null,null,null,null,null,null,{"$f":"IFERROR(INDEX(Lookup!$E$70:$E$90,MATCH(AO161,Lookup!$A$70:$A$90,0)),\"\")","v":""},null,null,null,null,null,null,null,null,null,null,null,null,null,null,{"$f":"IFERROR(IF(AO161=\"Sidewalk/Trail Compost-Amended Strip\",IF(AND(AC165=\"\",H163<>\"\"),\"\",\"along full \"& ROUND(V161/H163,0) &\" ft trail/sidewalk\"),\"\"),\"\")","v":""},null,null,null,null,null,null,null,null,null,null,null,{"$f":"TRIM(SUBSTITUTE(SUBSTITUTE(SUBSTITUTE(AO161,\" \",\"\"),\"-\",\"\"),\"/\",\"\")&\"List3\")","v":{"$error":"#N/A"}}]
[]
[null,{"$f":"IFERROR(IF(INDEX($K$7:$K$46,MATCH(AN169,$AO$7:$AO$46,0))=\"\",\"\",INDEX($K$7:$K$46,MATCH(AN169,$AO$7:$AO$46,0))),\"\")","v":""},null,null,null,null,null,null,null,null,null,null,null,{"$f":"IF(B169=\"\",\"\",IF(AO169=\"Vegetated Roof System\",\"Roof Area\",\"Contributing Area (sf)\"))","v":""},null,null,null,null,null,null,null,{"$f":"IF(B169=\"\",\"\",SUMIF($AO$7:$AO$46,AN169,$F$7:$I$46))","v":""},null,null,null,null,null,null,{"$f":"IFERROR(IF(AO169=\"Water Quality BMP in lieu of NIB\",\"Submit sizing documentation separately.\",\nIF(AP169=-999,\"Configuration not allowed.\",IF(AP169=0,\"Configuration not allowed.\",IF(AO169=\"New or Retained Trees\",\"As many as feasible.\",\nIF(AP169=\"equation\",TEXT(AQ169,\"#,##0\")&\" \"&AR169,\nTEXT(IF(OR(AO169=\"Permeable Pavement Facility\",AO169=\"Vegetated Roof System\",AO169=\"Rainwater Harvesting - Category 2\", AO169=\"Rainwater Harvesting - Category 4\"),H171,\nIF(AO169=\"Sidewalk/Trail Compost-Amended Strip\",MAX(V169/H171,AP169*V169),\nAP169*V169)),\"#,##0\")&\" \"&AR169))))),\"\")","v":""},null,null,null,null,null,null,null,null,null,null,16,{"$f":"INDEX($AP$7:$AP$46,MATCH(AN169,$AO$7:$AO$46,0))","v":{"$error":"#N/A"}},{"$f":"IF(AO169=\"New or Retained Trees\", INDEX(Lookup!$F$93:$F$219,MATCH(TRIM(CONCATENATE(AO169,V171)),Lookup!$E$93:$E$219,0)),\nIF(AO169=\"Single-family Residential Cisterns\", INDEX(Lookup!$F$93:$F$219,MATCH(TRIM(CONCATENATE(AO169,IF(V169<400,0,IF(V169>4200,4201,ROUNDDOWN(V169,-2))))),Lookup!$E$93:$E$219,0)),\nIF(AO169=\"Sidewalk/Trail Compost-Amended Strip\", IF(H171=\"\",NA(),IF(H171<10,Lookup!$F$95,Lookup!$F$94)),\nIF(AND(AO169=\"Non-Infiltrating Bioretention\",V173=\"Sloped sides\"),\nIF(V171=2,0.013,\nIF(AND(V171=12,V169<=2000),0.004,\"equation\")),\nINDEX(Lookup!$F$93:$F$219,MATCH(TRIM(CONCATENATE(AO169,V171,V173,V175)),Lookup!$E$93:$E$219,0))))))","v":{"$error":"#N/A"}},{"$f":"IF(AND(AO169=\"Non-Infiltrating Bioretention\",V173=\"Sloped sides\"),\nIF(V171=2,0.013*V169,\nIF(AND(V171=6,V169<=2000),0.0059*V169-3.215,\nIF(AND(V171=6,V169>2000,V169<=10000),0.0097*V169-11.297,\nIF(AND(V171=6,V169>10000),0.012*V169,\nIF(AND(V171=12,V169<=2700),0.004*V169,\nIF(AND(V171=12,V169>2700,V169<=10000),0.0052*V169-12.092,\nIF(AND(V171=12,V169>10000),0.01*V169,NA()))))))),\nIF(AP169<=0,NA(),IF(OR(AO169=\"Permeable Pavement Facility\",AO169=\"Vegetated Roof System\",AO169=\"Rainwater Harvesting - Category 2\", AO169=\"Rainwater Harvesting - Category 4\"),H171,\nIF(AO169=\"Sidewalk/Trail Compost-Amended Strip\",MAX(V169/H171, AP169*V169),\nAP169*V169))))","v":{"$error":"#N/A"}},{"$f":"IF(AO169=\"Single-family Residential Cisterns\",\n\"sf\",INDEX(Lookup!$H$93:$H$219,MATCH(TRIM(CONCATENATE(AO169,V171,V173,V175)),Lookup!$E$93:$E$219,0)))","v":{"$error":"#N/A"}},{"$f":"IF(AO169=\"New or Retained Trees\", INDEX(Lookup!$G$93:$G$219,MATCH(TRIM(CONCATENATE(AO169,V171)),Lookup!$E$93:$E$219,0))*V173,\nIF(AO169=\"Single-family Residential Cisterns\", INDEX(Lookup!$G$93:$G$219,MATCH(TRIM(CONCATENATE(AO169,IF(V169<400,0,IF(V169>4200,4201,ROUNDDOWN(V169,-2))))),Lookup!$E$93:$E$219,0))*V169,\nIF(AND(AO169=\"Sidewalk/Trail Compost-Amended Strip\",OR(H171=\"\",InfRate=0)),NA(),\nINDEX(Lookup!$G$93:$G$219,MATCH(TRIM(CONCATENATE(AO169,V171,V173,V175)),Lookup!$E$93:$E$219,0))*V169)))*7.48052\n*IF(OR(AO169=\"Permeable Pavement Facility\",AO169=\"Vegetated Roof System\"),MIN(1,H171/(AP169*V169)),1)\n+IF(AO169=\"Permeable Pavement Facility\",H171*2.1*7.48052,1)","v":{"$error":"#N/A"}},{"$f":"IFERROR(\nIF(AO169=\"Single-family Residential Cisterns\",INDEX(Lookup!$H$93:$H$219,MATCH(TRIM(CONCATENATE(AO169,IF(V169<400,0,IF(V169>4200,4201,ROUNDDOWN(V169,-2))))),Lookup!$E$93:$E$219,0)),\nIF(AO169=\"Sidewalk/Trail Compost-Amended Strip\",ROUND(AQ169/(V169/H171),1) &\" ft wide x \"& ROUND(V169/H171,0)&\" ft long\",\nIF(OR(AO169=\"Rainwater Harvesting - Category 2\",AO169=\"Rainwater Harvesting - Category 4\"),\" required minimum live storage\",\nIF(AO169=\"Water Quality BMP in lieu of NIB\",\"See Plan\",\nIF(AND(V171=\"\",V173=\"\",V175=\"\"),\"\",TRIM(V173&\" \"&AP173&\" \"&V171&\" \"&AP171&\" \"&V175&\" \"&AP175)))))),\"\")","v":""}]
[]
[null,{"$f":"IFERROR(\nIF(AO169=\"Permeable Pavement Facility\",\"Facility Area (sf)\",\nIF(AO169=\"Vegetated Roof System\",\"Vegetated Area (sf)\",\nIF(AO169=\"Sidewalk/Trail Compost-Amended Strip\",\"Sidewalk/Trail Width (ft)\",\nIF(OR(AO169=\"Rainwater Harvesting - Category 2\",AO169=\"Rainwater Harvesting - Category 4\"),\"Live Storage Volume (gal)\",\n\"\")))),\"\")","v":""},null,null,null,null,null,null,null,null,null,null,null,{"$f":"IFERROR(INDEX(Lookup!$C$70:$C$90,MATCH(AO169,Lookup!$A$70:$A$90,0)),\"\")","v":""},null,null,null,null,null,null,null,null,null,null,null,null,null,null,{"$f":"IFERROR(TEXT(AS169,\"#,##0\")&\" gal managed/year\",IFERROR(IF(AP169=0,\"Infiltration rate too low.\",\"\"),\"\"))","v":""},null,null,null,null,null,null,null,null,null,null,null,{"$f":"TRIM(SUBSTITUTE(SUBSTITUTE(SUBSTITUTE(AO169,\" \",\"\"),\"-\",\"\"),\"/\",\"\")&\"List1\")","v":{"$error":"#N/A"}},{"$f":"IFERROR(INDEX(Lookup!$F$70:$F$90,MATCH(AO169,Lookup!$A$70:$A$90,0)),\"\")","v":""}]
[]
[null,{"$f":"IFERROR(\nIF(OR(AO169=\"Permeable Pavement Facility\",AO169=\"Vegetated Roof System\"),\"Minimum Facility Area \"&TEXT((AP169*V169),\"#,###\")&\" sf\",\nIF(OR(AO169=\"Rainwater Harvesting - Category 2\",AO169=\"Rainwater Harvesting - Category 4\"),\"Continuous runoff modeling required by\",\n\"\")),\"\")","v":""},null,null,null,null,null,null,null,null,null,null,null,{"$f":"IFERROR(INDEX(Lookup!$D$70:$D$90,MATCH(AO169,Lookup!$A$70:$A$90,0)),\"\")","v":""},null,null,null,null,null,null,null,null,null,null,null,null,null,null,{"$f":"IFERROR(IF(AO169=\"Sidewalk/Trail Compost-Amended Strip\",ROUND(AQ169/(V169/H171),1) &\" ft wide compost-amended strip\",\"\"),\"\")","v":""},null,null,null,null,null,null,null,null,null,null,null,{"$f":"TRIM(SUBSTITUTE(SUBSTITUTE(SUBSTITUTE(AO169,\" \",\"\"),\"-\",\"\"),\"/\",\"\")&\"List2\")","v":{"$error":"#N/A"}},{"$f":"IFERROR(INDEX(Lookup!$G$70:$G$90,MATCH(AO169,Lookup!$A$70:$A$90,0)),\"\")","v":""}]
[]
[null,{"$f":"IFERROR(IF(OR(AO169=\"Rainwater Harvesting - Category 2\",AO169=\"Rainwater Harvesting - Category 4\"),\"professional engineer.\",\n\"\"),\"\")","v":""},null,null,null,null,null,null,null,null,null,null,null,{"$f":"IFERROR(INDEX(Lookup!$E$70:$E$90,MATCH(AO169,Lookup!$A$70:$A$90,0)),\"\")","v":""},null,null,null,null,null,null,null,null,null,null,null,null,null,null,{"$f":"IFERROR(IF(AO169=\"Sidewalk/Trail Compost-Amended Strip\",IF(AND(AC173=\"\",H171<>\"\"),\"\",\"along full \"& ROUND(V169/H171,0) &\" ft trail/sidewalk\"),\"\"),\"\")","v":""},null,null,null,null,null,null,null,null,null,null,null,{"$f":"TRIM(SUBSTITUTE(SUBSTITUTE(SUBSTITUTE(AO169,\" \",\"\"),\"-\",\"\"),\"/\",\"\")&\"List3\")","v":{"$error":"#N/A"}}]
[]
[null,{"$f":"IFERROR(IF(INDEX($K$7:$K$46,MATCH(AN177,$AO$7:$AO$46,0))=\"\",\"\",INDEX($K$7:$K$46,MATCH(AN177,$AO$7:$AO$46,0))),\"\")","v":""},null,null,null,null,null,null,null,null,null,null,null,{"$f":"IF(B177=\"\",\"\",IF(AO177=\"Vegetated Roof System\",\"Roof Area\",\"Contributing Area (sf)\"))","v":""},null,null,null,null,null,null,null,{"$f":"IF(B177=\"\",\"\",SUMIF($AO$7:$AO$46,AN177,$F$7:$I$46))","v":""},null,null,null,null,null,null,{"$f":"IFERROR(IF(AO177=\"Water Quality BMP in lieu of NIB\",\"Submit sizing documentation separately.\",\nIF(AP177=-999,\"Configuration not allowed.\",IF(AP177=0,\"Configuration not allowed.\",IF(AO177=\"New or Retained Trees\",\"As many as feasible.\",\nIF(AP177=\"equation\",TEXT(AQ177,\"#,##0\")&\" \"&AR177,\nTEXT(IF(OR(AO177=\"Permeable Pavement Facility\",AO177=\"Vegetated Roof System\",AO177=\"Rainwater Harvesting - Category 2\", AO177=\"Rainwater Harvesting - Category 4\"),H179,\nIF(AO177=\"Sidewalk/Trail Compost-Amended Strip\",MAX(V177/H179,AP177*V177),\nAP177*V177)),\"#,##0\")&\" \"&AR177))))),\"\")","v":""},null,null,null,null,null,null,null,null,null,null,17,{"$f":"INDEX($AP$7:$AP$46,MATCH(AN177,$AO$7:$AO$46,0))","v":{"$error":"#N/A"}},{"$f":"IF(AO177=\"New or Retained Trees\", INDEX(Lookup!$F$93:$F$219,MATCH(TRIM(CONCATENATE(AO177,V179)),Lookup!$E$93:$E$219,0)),\nIF(AO177=\"Single-family Residential Cisterns\", INDEX(Lookup!$F$93:$F$219,MATCH(TRIM(CONCATENATE(AO177,IF(V177<400,0,IF(V177>4200,4201,ROUNDDOWN(V177,-2))))),Lookup!$E$93:$E$219,0)),\nIF(AO177=\"Sidewalk/Trail Compost-Amended Strip\", IF(H179=\"\",NA(),IF(H179<10,Lookup!$F$95,Lookup!$F$94)),\nIF(AND(AO177=\"Non-Infiltrating Bioretention\",V181=\"Sloped sides\"),\nIF(V179=2,0.013,\nIF(AND(V179=12,V177<=2000),0.004,\"equation\")),\nINDEX(Lookup!$F$93:$F$219,MATCH(TRIM(CONCATENATE(AO177,V179,V181,V183)),Lookup!$E$93:$E$219,0))))))","v":{"$error":"#N/A"}},{"$f":"IF(AND(AO177=\"Non-Infiltrating Bioretention\",V181=\"Sloped sides\"),\nIF(V179=2,0.013*V177,\nIF(AND(V179=6,V177<=2000),0.0059*V177-3.215,\nIF(AND(V179=6,V177>2000,V177<=10000),0.0097*V177-11.297,\nIF(AND(V179=6,V177>10000),0.012*V177,\nIF(AND(V179=12,V177<=2700),0.004*V177,\nIF(AND(V179=12,V177>2700,V177<=10000),0.0052*V177-12.092,\nIF(AND(V179=12,V177>10000),0.01*V177,NA()))))))),\nIF(AP177<=0,NA(),IF(OR(AO177=\"Permeable Pavement Facility\",AO177=\"Vegetated Roof System\",AO177=\"Rainwater Harvesting - Category 2\", AO177=\"Rainwater Harvesting - Category 4\"),H179,\nIF(AO177=\"Sidewalk/Trail Compost-Amended Strip\",MAX(V177/H179, AP177*V177),\nAP177*V177))))","v":{"$error":"#N/A"}},{"$f":"IF(AO177=\"Single-family Residential Cisterns\",\n\"sf\",INDEX(Lookup!$H$93:$H$219,MATCH(TRIM(CONCATENATE(AO177,V179,V181,V183)),Lookup!$E$93:$E$219,0)))","v":{"$error":"#N/A"}},{"$f":"IF(AO177=\"New or Retained Trees\", INDEX(Lookup!$G$93:$G$219,MATCH(TRIM(CONCATENATE(AO177,V179)),Lookup!$E$93:$E$219,0))*V181,\nIF(AO177=\"Single-family Residential Cisterns\", INDEX(Lookup!$G$93:$G$219,MATCH(TRIM(CONCATENATE(AO177,IF(V177<400,0,IF(V177>4200,4201,ROUNDDOWN(V177,-2))))),Lookup!$E$93:$E$219,0))*V177,\nIF(AND(AO177=\"Sidewalk/Trail Compost-Amended Strip\",OR(H179=\"\",InfRate=0)),NA(),\nINDEX(Lookup!$G$93:$G$219,MATCH(TRIM(CONCATENATE(AO177,V179,V181,V183)),Lookup!$E$93:$E$219,0))*V177)))*7.48052\n*IF(OR(AO177=\"Permeable Pavement Facility\",AO177=\"Vegetated Roof System\"),MIN(1,H179/(AP177*V177)),1)\n+IF(AO177=\"Permeable Pavement Facility\",H179*2.1*7.48052,1)","v":{"$error":"#N/A"}},{"$f":"IFERROR(\nIF(AO177=\"Single-family Residential Cisterns\",INDEX(Lookup!$H$93:$H$219,MATCH(TRIM(CONCATENATE(AO177,IF(V177<400,0,IF(V177>4200,4201,ROUNDDOWN(V177,-2))))),Lookup!$E$93:$E$219,0)),\nIF(AO177=\"Sidewalk/Trail Compost-Amended Strip\",ROUND(AQ177/(V177/H179),1) &\" ft wide x \"& ROUND(V177/H179,0)&\" ft long\",\nIF(OR(AO177=\"Rainwater Harvesting - Category 2\",AO177=\"Rainwater Harvesting - Category 4\"),\" required minimum live storage\",\nIF(AO177=\"Water Quality BMP in lieu of NIB\",\"See Plan\",\nIF(AND(V179=\"\",V181=\"\",V183=\"\"),\"\",TRIM(V181&\" \"&AP181&\" \"&V179&\" \"&AP179&\" \"&V183&\" \"&AP183)))))),\"\")","v":""}]
[]
[null,{"$f":"IFERROR(\nIF(AO177=\"Permeable Pavement Facility\",\"Facility Area (sf)\",\nIF(AO177=\"Vegetated Roof System\",\"Vegetated Area (sf)\",\nIF(AO177=\"Sidewalk/Trail Compost-Amended Strip\",\"Sidewalk/Trail Width (ft)\",\nIF(OR(AO177=\"Rainwater Harvesting - Category 2\",AO177=\"Rainwater Harvesting - Category 4\"),\"Live Storage Volume (gal)\",\n\"\")))),\"\")","v":""},null,null,null,null,null,null,null,null,null,null,null,{"$f":"IFERROR(INDEX(Lookup!$C$70:$C$90,MATCH(AO177,Lookup!$A$70:$A$90,0)),\"\")","v":""},null,null,null,null,null,null,null,null,null,null,null,null,null,null,{"$f":"IFERROR(TEXT(AS177,\"#,##0\")&\" gal managed/year\",IFERROR(IF(AP177=0,\"Infiltration rate too low.\",\"\"),\"\"))","v":""},null,null,null,null,null,null,null,null,null,null,null,{"$f":"TRIM(SUBSTITUTE(SUBSTITUTE(SUBSTITUTE(AO177,\" \",\"\"),\"-\",\"\"),\"/\",\"\")&\"List1\")","v":{"$error":"#N/A"}},{"$f":"IFERROR(INDEX(Lookup!$F$70:$F$90,MATCH(AO177,Lookup!$A$70:$A$90,0)),\"\")","v":""}]
[]
[null,{"$f":"IFERROR(\nIF(OR(AO177=\"Permeable Pavement Facility\",AO177=\"Vegetated Roof System\"),\"Minimum Facility Area \"&TEXT((AP177*V177),\"#,###\")&\" sf\",\nIF(OR(AO177=\"Rainwater Harvesting - Category 2\",AO177=\"Rainwater Harvesting - Category 4\"),\"Continuous runoff modeling required by\",\n\"\")),\"\")","v":""},null,null,null,null,null,null,null,null,null,null,null,{"$f":"IFERROR(INDEX(Lookup!$D$70:$D$90,MATCH(AO177,Lookup!$A$70:$A$90,0)),\"\")","v":""},null,null,null,null,null,null,null,null,null,null,null,null,null,null,{"$f":"IFERROR(IF(AO177=\"Sidewalk/Trail Compost-Amended Strip\",ROUND(AQ177/(V177/H179),1) &\" ft wide compost-amended strip\",\"\"),\"\")","v":""},null,null,null,null,null,null,null,null,null,null,null,{"$f":"TRIM(SUBSTITUTE(SUBSTITUTE(SUBSTITUTE(AO177,\" \",\"\"),\"-\",\"\"),\"/\",\"\")&\"List2\")","v":{"$error":"#N/A"}},{"$f":"IFERROR(INDEX(Lookup!$G$70:$G$90,MATCH(AO177,Lookup!$A$70:$A$90,0)),\"\")","v":""}]
[]
[null,{"$f":"IFERROR(IF(OR(AO177=\"Rainwater Harvesting - Category 2\",AO177=\"Rainwater Harvesting - Category 4\"),\"professional engineer.\",\n\"\"),\"\")","v":""},null,null,null,null,null,null,null,null,null,null,null,{"$f":"IFERROR(INDEX(Lookup!$E$70:$E$90,MATCH(AO177,Lookup!$A$70:$A$90,0)),\"\")","v":""},null,null,null,null,null,null,null,null,null,null,null,null,null,null,{"$f":"IFERROR(IF(AO177=\"Sidewalk/Trail Compost-Amended Strip\",IF(AND(AC181=\"\",H179<>\"\"),\"\",\"along full \"& ROUND(V177/H179,0) &\" ft trail/sidewalk\"),\"\"),\"\")","v":""},null,null,null,null,null,null,null,null,null,null,null,{"$f":"TRIM(SUBSTITUTE(SUBSTITUTE(SUBSTITUTE(AO177,\" \",\"\"),\"-\",\"\"),\"/\",\"\")&\"List3\")","v":{"$error":"#N/A"}}]
[]
[null,{"$f":"IFERROR(IF(INDEX($K$7:$K$46,MATCH(AN185,$AO$7:$AO$46,0))=\"\",\"\",INDEX($K$7:$K$46,MATCH(AN185,$AO$7:$AO$46,0))),\"\")","v":""},null,null,null,null,null,null,null,null,null,null,null,{"$f":"IF(B185=\"\",\"\",IF(AO185=\"Vegetated Roof System\",\"Roof Area\",\"Contributing Area (sf)\"))","v":""},null,null,null,null,null,null,null,{"$f":"IF(B185=\"\",\"\",SUMIF($AO$7:$AO$46,AN185,$F$7:$I$46))","v":""},null,null,null,null,null,null,{"$f":"IFERROR(IF(AO185=\"Water Quality BMP in lieu of NIB\",\"Submit sizing documentation separately.\",\nIF(AP185=-999,\"Configuration not allowed.\",IF(AP185=0,\"Configuration not allowed.\",IF(AO185=\"New or Retained Trees\",\"As many as feasible.\",\nIF(AP185=\"equation\",TEXT(AQ185,\"#,##0\")&\" \"&AR185,\nTEXT(IF(OR(AO185=\"Permeable Pavement Facility\",AO185=\"Vegetated Roof System\",AO185=\"Rainwater Harvesting - Category 2\", AO185=\"Rainwater Harvesting - Category 4\"),H187,\nIF(AO185=\"Sidewalk/Trail Compost-Amended Strip\",MAX(V185/H187,AP185*V185),\nAP185*V185)),\"#,##0\")&\" \"&AR185))))),\"\")","v":""},null,null,null,null,null,null,null,null,null,null,18,{"$f":"INDEX($AP$7:$AP$46,MATCH(AN185,$AO$7:$AO$46,0))","v":{"$error":"#N/A"}},{"$f":"IF(AO185=\"New or Retained Trees\", INDEX(Lookup!$F$93:$F$219,MATCH(TRIM(CONCATENATE(AO185,V187)),Lookup!$E$93:$E$219,0)),\nIF(AO185=\"Single-family Residential Cisterns\", INDEX(Lookup!$F$93:$F$219,MATCH(TRIM(CONCATENATE(AO185,IF(V185<400,0,IF(V185>4200,4201,ROUNDDOWN(V185,-2))))),Lookup!$E$93:$E$219,0)),\nIF(AO185=\"Sidewalk/Trail Compost-Amended Strip\", IF(H187=\"\",NA(),IF(H187<10,Lookup!$F$95,Lookup!$F$94)),\nIF(AND(AO185=\"Non-Infiltrating Bioretention\",V189=\"Sloped sides\"),\nIF(V187=2,0.013,\nIF(AND(V187=12,V185<=2000),0.004,\"equation\")),\nINDEX(Lookup!$F$93:$F$219,MATCH(TRIM(CONCATENATE(AO185,V187,V189,V191)),Lookup!$E$93:$E$219,0))))))","v":{"$error":"#N/A"}},{"$f":"IF(AND(AO185=\"Non-Infiltrating Bioretention\",V189=\"Sloped sides\"),\nIF(V187=2,0.013*V185,\nIF(AND(V187=6,V185<=2000),0.0059*V185-3.215,\nIF(AND(V187=6,V185>2000,V185<=10000),0.0097*V185-11.297,\nIF(AND(V187=6,V185>10000),0.012*V185,\nIF(AND(V187=12,V185<=2700),0.004*V185,\nIF(AND(V187=12,V185>2700,V185<=10000),0.0052*V185-12.092,\nIF(AND(V187=12,V185>10000),0.01*V185,NA()))))))),\nIF(AP185<=0,NA(),IF(OR(AO185=\"Permeable Pavement Facility\",AO185=\"Vegetated Roof System\",AO185=\"Rainwater Harvesting - Category 2\", AO185=\"Rainwater Harvesting - Category 4\"),H187,\nIF(AO185=\"Sidewalk/Trail Compost-Amended Strip\",MAX(V185/H187, AP185*V185),\nAP185*V185))))","v":{"$error":"#N/A"}},{"$f":"IF(AO185=\"Single-family Residential Cisterns\",\n\"sf\",INDEX(Lookup!$H$93:$H$219,MATCH(TRIM(CONCATENATE(AO185,V187,V189,V191)),Lookup!$E$93:$E$219,0)))","v":{"$error":"#N/A"}},{"$f":"IF(AO185=\"New or Retained Trees\", INDEX(Lookup!$G$93:$G$219,MATCH(TRIM(CONCATENATE(AO185,V187)),Lookup!$E$93:$E$219,0))*V189,\nIF(AO185=\"Single-family Residential Cisterns\", INDEX(Lookup!$G$93:$G$219,MATCH(TRIM(CONCATENATE(AO185,IF(V185<400,0,IF(V185>4200,4201,ROUNDDOWN(V185,-2))))),Lookup!$E$93:$E$219,0))*V185,\nIF(AND(AO185=\"Sidewalk/Trail Compost-Amended Strip\",OR(H187=\"\",InfRate=0)),NA(),\nINDEX(Lookup!$G$93:$G$219,MATCH(TRIM(CONCATENATE(AO185,V187,V189,V191)),Lookup!$E$93:$E$219,0))*V185)))*7.48052\n*IF(OR(AO185=\"Permeable Pavement Facility\",AO185=\"Vegetated Roof System\"),MIN(1,H187/(AP185*V185)),1)\n+IF(AO185=\"Permeable Pavement Facility\",H187*2.1*7.48052,1)","v":{"$error":"#N/A"}},{"$f":"IFERROR(\nIF(AO185=\"Single-family Residential Cisterns\",INDEX(Lookup!$H$93:$H$219,MATCH(TRIM(CONCATENATE(AO185,IF(V185<400,0,IF(V185>4200,4201,ROUNDDOWN(V185,-2))))),Lookup!$E$93:$E$219,0)),\nIF(AO185=\"Sidewalk/Trail Compost-Amended Strip\",ROUND(AQ185/(V185/H187),1) &\" ft wide x \"& ROUND(V185/H187,0)&\" ft long\",\nIF(OR(AO185=\"Rainwater Harvesting - Category 2\",AO185=\"Rainwater Harvesting - Category 4\"),\" required minimum live storage\",\nIF(AO185=\"Water Quality BMP in lieu of NIB\",\"See Plan\",\nIF(AND(V187=\"\",V189=\"\",V191=\"\"),\"\",TRIM(V189&\" \"&AP189&\" \"&V187&\" \"&AP187&\" \"&V191&\" \"&AP191)))))),\"\")","v":""}]
[]
[null,{"$f":"IFERROR(\nIF(AO185=\"Permeable Pavement Facility\",\"Facility Area (sf)\",\nIF(AO185=\"Vegetated Roof System\",\"Vegetated Area (sf)\",\nIF(AO185=\"Sidewalk/Trail Compost-Amended Strip\",\"Sidewalk/Trail Width (ft)\",\nIF(OR(AO185=\"Rainwater Harvesting - Category 2\",AO185=\"Rainwater Harvesting - Category 4\"),\"Live Storage Volume (gal)\",\n\"\")))),\"\")","v":""},null,null,null,null,null,null,null,null,null,null,null,{"$f":"IFERROR(INDEX(Lookup!$C$70:$C$90,MATCH(AO185,Lookup!$A$70:$A$90,0)),\"\")","v":""},null,null,null,null,null,null,null,null,null,null,null,null,null,null,{"$f":"IFERROR(TEXT(AS185,\"#,##0\")&\" gal managed/year\",IFERROR(IF(AP185=0,\"Infiltration rate too low.\",\"\"),\"\"))","v":""},null,null,null,null,null,null,null,null,null,null,null,{"$f":"TRIM(SUBSTITUTE(SUBSTITUTE(SUBSTITUTE(AO185,\" \",\"\"),\"-\",\"\"),\"/\",\"\")&\"List1\")","v":{"$error":"#N/A"}},{"$f":"IFERROR(INDEX(Lookup!$F$70:$F$90,MATCH(AO185,Lookup!$A$70:$A$90,0)),\"\")","v":""}]
[]
[null,{"$f":"IFERROR(\nIF(OR(AO185=\"Permeable Pavement Facility\",AO185=\"Vegetated Roof System\"),\"Minimum Facility Area \"&TEXT((AP185*V185),\"#,###\")&\" sf\",\nIF(OR(AO185=\"Rainwater Harvesting - Category 2\",AO185=\"Rainwater Harvesting - Category 4\"),\"Continuous runoff modeling required by\",\n\"\")),\"\")","v":""},null,null,null,null,null,null,null,null,null,null,null,{"$f":"IFERROR(INDEX(Lookup!$D$70:$D$90,MATCH(AO185,Lookup!$A$70:$A$90,0)),\"\")","v":""},null,null,null,null,null,null,null,null,null,null,null,null,null,null,{"$f":"IFERROR(IF(AO185=\"Sidewalk/Trail Compost-Amended Strip\",ROUND(AQ185/(V185/H187),1) &\" ft wide compost-amended strip\",\"\"),\"\")","v":""},null,null,null,null,null,null,null,null,null,null,null,{"$f":"TRIM(SUBSTITUTE(SUBSTITUTE(SUBSTITUTE(AO185,\" \",\"\"),\"-\",\"\"),\"/\",\"\")&\"List2\")","v":{"$error":"#N/A"}},{"$f":"IFERROR(INDEX(Lookup!$G$70:$G$90,MATCH(AO185,Lookup!$A$70:$A$90,0)),\"\")","v":""}]
[]
[null,{"$f":"IFERROR(IF(OR(AO185=\"Rainwater Harvesting - Category 2\",AO185=\"Rainwater Harvesting - Category 4\"),\"professional engineer.\",\n\"\"),\"\")","v":""},null,null,null,null,null,null,null,null,null,null,null,{"$f":"IFERROR(INDEX(Lookup!$E$70:$E$90,MATCH(AO185,Lookup!$A$70:$A$90,0)),\"\")","v":""},null,null,null,null,null,null,null,null,null,null,null,null,null,null,{"$f":"IFERROR(IF(AO185=\"Sidewalk/Trail Compost-Amended Strip\",IF(AND(AC189=\"\",H187<>\"\"),\"\",\"along full \"& ROUND(V185/H187,0) &\" ft trail/sidewalk\"),\"\"),\"\")","v":""},null,null,null,null,null,null,null,null,null,null,null,{"$f":"TRIM(SUBSTITUTE(SUBSTITUTE(SUBSTITUTE(AO185,\" \",\"\"),\"-\",\"\"),\"/\",\"\")&\"List3\")","v":{"$error":"#N/A"}}]
[]
[null,{"$f":"IFERROR(IF(INDEX($K$7:$K$46,MATCH(AN193,$AO$7:$AO$46,0))=\"\",\"\",INDEX($K$7:$K$46,MATCH(AN193,$AO$7:$AO$46,0))),\"\")","v":""},null,null,null,null,null,null,null,null,null,null,null,{"$f":"IF(B193=\"\",\"\",IF(AO193=\"Vegetated Roof System\",\"Roof Area\",\"Contributing Area (sf)\"))","v":""},null,null,null,null,null,null,null,{"$f":"IF(B193=\"\",\"\",SUMIF($AO$7:$AO$46,AN193,$F$7:$I$46))","v":""},null,null,null,null,null,null,{"$f":"IFERROR(IF(AO193=\"Water Quality BMP in lieu of NIB\",\"Submit sizing documentation separately.\",\nIF(AP193=-999,\"Configuration not allowed.\",IF(AP193=0,\"Configuration not allowed.\",IF(AO193=\"New or Retained Trees\",\"As many as feasible.\",\nIF(AP193=\"equation\",TEXT(AQ193,\"#,##0\")&\" \"&AR193,\nTEXT(IF(OR(AO193=\"Permeable Pavement Facility\",AO193=\"Vegetated Roof System\",AO193=\"Rainwater Harvesting - Category 2\", AO193=\"Rainwater Harvesting - Category 4\"),H195,\nIF(AO193=\"Sidewalk/Trail Compost-Amended Strip\",MAX(V193/H195,AP193*V193),\nAP193*V193)),\"#,##0\")&\" \"&AR193))))),\"\")","v":""},null,null,null,null,null,null,null,null,null,null,19,{"$f":"INDEX($AP$7:$AP$46,MATCH(AN193,$AO$7:$AO$46,0))","v":{"$error":"#N/A"}},{"$f":"IF(AO193=\"New or Retained Trees\", INDEX(Lookup!$F$93:$F$219,MATCH(TRIM(CONCATENATE(AO193,V195)),Lookup!$E$93:$E$219,0)),\nIF(AO193=\"Single-family Residential Cisterns\", INDEX(Lookup!$F$93:$F$219,MATCH(TRIM(CONCATENATE(AO193,IF(V193<400,0,IF(V193>4200,4201,ROUNDDOWN(V193,-2))))),Lookup!$E$93:$E$219,0)),\nIF(AO193=\"Sidewalk/Trail Compost-Amended Strip\", IF(H195=\"\",NA(),IF(H195<10,Lookup!$F$95,Lookup!$F$94)),\nIF(AND(AO193=\"Non-Infiltrating Bioretention\",V197=\"Sloped sides\"),\nIF(V195=2,0.013,\nIF(AND(V195=12,V193<=2000),0.004,\"equation\")),\nINDEX(Lookup!$F$93:$F$219,MATCH(TRIM(CONCATENATE(AO193,V195,V197,V199)),Lookup!$E$93:$E$219,0))))))","v":{"$error":"#N/A"}},{"$f":"IF(AND(AO193=\"Non-Infiltrating Bioretention\",V197=\"Sloped sides\"),\nIF(V195=2,0.013*V193,\nIF(AND(V195=6,V193<=2000),0.0059*V193-3.215,\nIF(AND(V195=6,V193>2000,V193<=10000),0.0097*V193-11.297,\nIF(AND(V195=6,V193>10000),0.012*V193,\nIF(AND(V195=12,V193<=2700),0.004*V193,\nIF(AND(V195=12,V193>2700,V193<=10000),0.0052*V193-12.092,\nIF(AND(V195=12,V193>10000),0.01*V193,NA()))))))),\nIF(AP193<=0,NA(),IF(OR(AO193=\"Permeable Pavement Facility\",AO193=\"Vegetated Roof System\",AO193=\"Rainwater Harvesting - Category 2\", AO193=\"Rainwater Harvesting - Category 4\"),H195,\nIF(AO193=\"Sidewalk/Trail Compost-Amended Strip\",MAX(V193/H195, AP193*V193),\nAP193*V193))))","v":{"$error":"#N/A"}},{"$f":"IF(AO193=\"Single-family Residential Cisterns\",\n\"sf\",INDEX(Lookup!$H$93:$H$219,MATCH(TRIM(CONCATENATE(AO193,V195,V197,V199)),Lookup!$E$93:$E$219,0)))","v":{"$error":"#N/A"}},{"$f":"IF(AO193=\"New or Retained Trees\", INDEX(Lookup!$G$93:$G$219,MATCH(TRIM(CONCATENATE(AO193,V195)),Lookup!$E$93:$E$219,0))*V197,\nIF(AO193=\"Single-family Residential Cisterns\", INDEX(Lookup!$G$93:$G$219,MATCH(TRIM(CONCATENATE(AO193,IF(V193<400,0,IF(V193>4200,4201,ROUNDDOWN(V193,-2))))),Lookup!$E$93:$E$219,0))*V193,\nIF(AND(AO193=\"Sidewalk/Trail Compost-Amended Strip\",OR(H195=\"\",InfRate=0)),NA(),\nINDEX(Lookup!$G$93:$G$219,MATCH(TRIM(CONCATENATE(AO193,V195,V197,V199)),Lookup!$E$93:$E$219,0))*V193)))*7.48052\n*IF(OR(AO193=\"Permeable Pavement Facility\",AO193=\"Vegetated Roof System\"),MIN(1,H195/(AP193*V193)),1)\n+IF(AO193=\"Permeable Pavement Facility\",H195*2.1*7.48052,1)","v":{"$error":"#N/A"}},{"$f":"IFERROR(\nIF(AO193=\"Single-family Residential Cisterns\",INDEX(Lookup!$H$93:$H$219,MATCH(TRIM(CONCATENATE(AO193,IF(V193<400,0,IF(V193>4200,4201,ROUNDDOWN(V193,-2))))),Lookup!$E$93:$E$219,0)),\nIF(AO193=\"Sidewalk/Trail Compost-Amended Strip\",ROUND(AQ193/(V193/H195),1) &\" ft wide x \"& ROUND(V193/H195,0)&\" ft long\",\nIF(OR(AO193=\"Rainwater Harvesting - Category 2\",AO193=\"Rainwater Harvesting - Category 4\"),\" required minimum live storage\",\nIF(AO193=\"Water Quality BMP in lieu of NIB\",\"See Plan\",\nIF(AND(V195=\"\",V197=\"\",V199=\"\"),\"\",TRIM(V197&\" \"&AP197&\" \"&V195&\" \"&AP195&\" \"&V199&\" \"&AP199)))))),\"\")","v":""}]
[]
[null,{"$f":"IFERROR(\nIF(AO193=\"Permeable Pavement Facility\",\"Facility Area (sf)\",\nIF(AO193=\"Vegetated Roof System\",\"Vegetated Area (sf)\",\nIF(AO193=\"Sidewalk/Trail Compost-Amended Strip\",\"Sidewalk/Trail Width (ft)\",\nIF(OR(AO193=\"Rainwater Harvesting - Category 2\",AO193=\"Rainwater Harvesting - Category 4\"),\"Live Storage Volume (gal)\",\n\"\")))),\"\")","v":""},null,null,null,null,null,null,null,null,null,null,null,{"$f":"IFERROR(INDEX(Lookup!$C$70:$C$90,MATCH(AO193,Lookup!$A$70:$A$90,0)),\"\")","v":""},null,null,null,null,null,null,null,null,null,null,null,null,null,null,{"$f":"IFERROR(TEXT(AS193,\"#,##0\")&\" gal managed/year\",IFERROR(IF(AP193=0,\"Infiltration rate too low.\",\"\"),\"\"))","v":""},null,null,null,null,null,null,null,null,null,null,null,{"$f":"TRIM(SUBSTITUTE(SUBSTITUTE(SUBSTITUTE(AO193,\" \",\"\"),\"-\",\"\"),\"/\",\"\")&\"List1\")","v":{"$error":"#N/A"}},{"$f":"IFERROR(INDEX(Lookup!$F$70:$F$90,MATCH(AO193,Lookup!$A$70:$A$90,0)),\"\")","v":""}]
[]
[null,{"$f":"IFERROR(\nIF(OR(AO193=\"Permeable Pavement Facility\",AO193=\"Vegetated Roof System\"),\"Minimum Facility Area \"&TEXT((AP193*V193),\"#,###\")&\" sf\",\nIF(OR(AO193=\"Rainwater Harvesting - Category 2\",AO193=\"Rainwater Harvesting - Category 4\"),\"Continuous runoff modeling required by\",\n\"\")),\"\")","v":""},null,null,null,null,null,null,null,null,null,null,null,{"$f":"IFERROR(INDEX(Lookup!$D$70:$D$90,MATCH(AO193,Lookup!$A$70:$A$90,0)),\"\")","v":""},null,null,null,null,null,null,null,null,null,null,null,null,null,null,{"$f":"IFERROR(IF(AO193=\"Sidewalk/Trail Compost-Amended Strip\",ROUND(AQ193/(V193/H195),1) &\" ft wide compost-amended strip\",\"\"),\"\")","v":""},null,null,null,null,null,null,null,null,null,null,null,{"$f":"TRIM(SUBSTITUTE(SUBSTITUTE(SUBSTITUTE(AO193,\" \",\"\"),\"-\",\"\"),\"/\",\"\")&\"List2\")","v":{"$error":"#N/A"}},{"$f":"IFERROR(INDEX(Lookup!$G$70:$G$90,MATCH(AO193,Lookup!$A$70:$A$90,0)),\"\")","v":""}]
[]
[null,{"$f":"IFERROR(IF(OR(AO193=\"Rainwater Harvesting - Category 2\",AO193=\"Rainwater Harvesting - Category 4\"),\"professional engineer.\",\n\"\"),\"\")","v":""},null,null,null,null,null,null,null,null,null,null,null,{"$f":"IFERROR(INDEX(Lookup!$E$70:$E$90,MATCH(AO193,Lookup!$A$70:$A$90,0)),\"\")","v":""},null,null,null,null,null,null,null,null,null,null,null,null,null,null,{"$f":"IFERROR(IF(AO193=\"Sidewalk/Trail Compost-Amended Strip\",IF(AND(AC197=\"\",H195<>\"\"),\"\",\"along full \"& ROUND(V193/H195,0) &\" ft trail/sidewalk\"),\"\"),\"\")","v":""},null,null,null,null,null,null,null,null,null,null,null,{"$f":"TRIM(SUBSTITUTE(SUBSTITUTE(SUBSTITUTE(AO193,\" \",\"\"),\"-\",\"\"),\"/\",\"\")&\"List3\")","v":{"$error":"#N/A"}}]
[]
[null,{"$f":"IFERROR(IF(INDEX($K$7:$K$46,MATCH(AN201,$AO$7:$AO$46,0))=\"\",\"\",INDEX($K$7:$K$46,MATCH(AN201,$AO$7:$AO$46,0))),\"\")","v":""},null,null,null,null,null,null,null,null,null,null,null,{"$f":"IF(B201=\"\",\"\",IF(AO201=\"Vegetated Roof System\",\"Roof Area\",\"Contributing Area (sf)\"))","v":""},null,null,null,null,null,null,null,{"$f":"IF(B201=\"\",\"\",SUMIF($AO$7:$AO$46,AN201,$F$7:$I$46))","v":""},null,null,null,null,null,null,{"$f":"IFERROR(IF(AO201=\"Water Quality BMP in lieu of NIB\",\"Submit sizing documentation separately.\",\nIF(AP201=-999,\"Configuration not allowed.\",IF(AP201=0,\"Configuration not allowed.\",IF(AO201=\"New or Retained Trees\",\"As many as feasible.\",\nIF(AP201=\"equation\",TEXT(AQ201,\"#,##0\")&\" \"&AR201,\nTEXT(IF(OR(AO201=\"Permeable Pavement Facility\",AO201=\"Vegetated Roof System\",AO201=\"Rainwater Harvesting - Category 2\", AO201=\"Rainwater Harvesting - Category 4\"),H203,\nIF(AO201=\"Sidewalk/Trail Compost-Amended Strip\",MAX(V201/H203,AP201*V201),\nAP201*V201)),\"#,##0\")&\" \"&AR201))))),\"\")","v":""},null,null,null,null,null,null,null,null,null,null,20,{"$f":"INDEX($AP$7:$AP$46,MATCH(AN201,$AO$7:$AO$46,0))","v":{"$error":"#N/A"}},{"$f":"IF(AO201=\"New or Retained Trees\", INDEX(Lookup!$F$93:$F$219,MATCH(TRIM(CONCATENATE(AO201,V203)),Lookup!$E$93:$E$219,0)),\nIF(AO201=\"Single-family Residential Cisterns\", INDEX(Lookup!$F$93:$F$219,MATCH(TRIM(CONCATENATE(AO201,IF(V201<400,0,IF(V201>4200,4201,ROUNDDOWN(V201,-2))))),Lookup!$E$93:$E$219,0)),\nIF(AO201=\"Sidewalk/Trail Compost-Amended Strip\", IF(H203=\"\",NA(),IF(H203<10,Lookup!$F$95,Lookup!$F$94)),\nIF(AND(AO201=\"Non-Infiltrating Bioretention\",V205=\"Sloped sides\"),\nIF(V203=2,0.013,\nIF(AND(V203=12,V201<=2000),0.004,\"equation\")),\nINDEX(Lookup!$F$93:$F$219,MATCH(TRIM(CONCATENATE(AO201,V203,V205,V207)),Lookup!$E$93:$E$219,0))))))","v":{"$error":"#N/A"}},{"$f":"IF(AND(AO201=\"Non-Infiltrating Bioretention\",V205=\"Sloped sides\"),\nIF(V203=2,0.013*V201,\nIF(AND(V203=6,V201<=2000),0.0059*V201-3.215,\nIF(AND(V203=6,V201>2000,V201<=10000),0.0097*V201-11.297,\nIF(AND(V203=6,V201>10000),0.012*V201,\nIF(AND(V203=12,V201<=2700),0.004*V201,\nIF(AND(V203=12,V201>2700,V201<=10000),0.0052*V201-12.092,\nIF(AND(V203=12,V201>10000),0.01*V201,NA()))))))),\nIF(AP201<=0,NA(),IF(OR(AO201=\"Permeable Pavement Facility\",AO201=\"Vegetated Roof System\",AO201=\"Rainwater Harvesting - Category 2\", AO201=\"Rainwater Harvesting - Category 4\"),H203,\nIF(AO201=\"Sidewalk/Trail Compost-Amended Strip\",MAX(V201/H203, AP201*V201),\nAP201*V201))))","v":{"$error":"#N/A"}},{"$f":"IF(AO201=\"Single-family Residential Cisterns\",\n\"sf\",INDEX(Lookup!$H$93:$H$219,MATCH(TRIM(CONCATENATE(AO201,V203,V205,V207)),Lookup!$E$93:$E$219,0)))","v":{"$error":"#N/A"}},{"$f":"IF(AO201=\"New or Retained Trees\", INDEX(Lookup!$G$93:$G$219,MATCH(TRIM(CONCATENATE(AO201,V203)),Lookup!$E$93:$E$219,0))*V205,\nIF(AO201=\"Single-family Residential Cisterns\", INDEX(Lookup!$G$93:$G$219,MATCH(TRIM(CONCATENATE(AO201,IF(V201<400,0,IF(V201>4200,4201,ROUNDDOWN(V201,-2))))),Lookup!$E$93:$E$219,0))*V201,\nIF(AND(AO201=\"Sidewalk/Trail Compost-Amended Strip\",OR(H203=\"\",InfRate=0)),NA(),\nINDEX(Lookup!$G$93:$G$219,MATCH(TRIM(CONCATENATE(AO201,V203,V205,V207)),Lookup!$E$93:$E$219,0))*V201)))*7.48052\n*IF(OR(AO201=\"Permeable Pavement Facility\",AO201=\"Vegetated Roof System\"),MIN(1,H203/(AP201*V201)),1)\n+IF(AO201=\"Permeable Pavement Facility\",H203*2.1*7.48052,1)","v":{"$error":"#N/A"}},{"$f":"IFERROR(\nIF(AO201=\"Single-family Residential Cisterns\",INDEX(Lookup!$H$93:$H$219,MATCH(TRIM(CONCATENATE(AO201,IF(V201<400,0,IF(V201>4200,4201,ROUNDDOWN(V201,-2))))),Lookup!$E$93:$E$219,0)),\nIF(AO201=\"Sidewalk/Trail Compost-Amended Strip\",ROUND(AQ201/(V201/H203),1) &\" ft wide x \"& ROUND(V201/H203,0)&\" ft long\",\nIF(OR(AO201=\"Rainwater Harvesting - Category 2\",AO201=\"Rainwater Harvesting - Category 4\"),\" required minimum live storage\",\nIF(AO201=\"Water Quality BMP in lieu of NIB\",\"See Plan\",\nIF(AND(V203=\"\",V205=\"\",V207=\"\"),\"\",TRIM(V205&\" \"&AP205&\" \"&V203&\" \"&AP203&\" \"&V207&\" \"&AP207)))))),\"\")","v":""}]
[]
[null,{"$f":"IFERROR(\nIF(AO201=\"Permeable Pavement Facility\",\"Facility Area (sf)\",\nIF(AO201=\"Vegetated Roof System\",\"Vegetated Area (sf)\",\nIF(AO201=\"Sidewalk/Trail Compost-Amended Strip\",\"Sidewalk/Trail Width (ft)\",\nIF(OR(AO201=\"Rainwater Harvesting - Category 2\",AO201=\"Rainwater Harvesting - Category 4\"),\"Live Storage Volume (gal)\",\n\"\")))),\"\")","v":""},null,null,null,null,null,null,null,null,null,null,null,{"$f":"IFERROR(INDEX(Lookup!$C$70:$C$90,MATCH(AO201,Lookup!$A$70:$A$90,0)),\"\")","v":""},null,null,null,null,null,null,null,null,null,null,null,null,null,null,{"$f":"IFERROR(TEXT(AS201,\"#,##0\")&\" gal managed/year\",IFERROR(IF(AP201=0,\"Infiltration rate too low.\",\"\"),\"\"))","v":""},null,null,null,null,null,null,null,null,null,null,null,{"$f":"TRIM(SUBSTITUTE(SUBSTITUTE(SUBSTITUTE(AO201,\" \",\"\"),\"-\",\"\"),\"/\",\"\")&\"List1\")","v":{"$error":"#N/A"}},{"$f":"IFERROR(INDEX(Lookup!$F$70:$F$90,MATCH(AO201,Lookup!$A$70:$A$90,0)),\"\")","v":""}]
[]
[null,{"$f":"IFERROR(\nIF(OR(AO201=\"Permeable Pavement Facility\",AO201=\"Vegetated Roof System\"),\"Minimum Facility Area \"&TEXT((AP201*V201),\"#,###\")&\" sf\",\nIF(OR(AO201=\"Rainwater Harvesting - Category 2\",AO201=\"Rainwater Harvesting - Category 4\"),\"Continuous runoff modeling required by\",\n\"\")),\"\")","v":""},null,null,null,null,null,null,null,null,null,null,null,{"$f":"IFERROR(INDEX(Lookup!$D$70:$D$90,MATCH(AO201,Lookup!$A$70:$A$90,0)),\"\")","v":""},null,null,null,null,null,null,null,null,null,null,null,null,null,null,{"$f":"IFERROR(IF(AO201=\"Sidewalk/Trail Compost-Amended Strip\",ROUND(AQ201/(V201/H203),1) &\" ft wide compost-amended strip\",\"\"),\"\")","v":""},null,null,null,null,null,null,null,null,null,null,null,{"$f":"TRIM(SUBSTITUTE(SUBSTITUTE(SUBSTITUTE(AO201,\" \",\"\"),\"-\",\"\"),\"/\",\"\")&\"List2\")","v":{"$error":"#N/A"}},{"$f":"IFERROR(INDEX(Lookup!$G$70:$G$90,MATCH(AO201,Lookup!$A$70:$A$90,0)),\"\")","v":""}]
[]
[null,{"$f":"IFERROR(IF(OR(AO201=\"Rainwater Harvesting - Category 2\",AO201=\"Rainwater Harvesting - Category 4\"),\"professional engineer.\",\n\"\"),\"\")","v":""},null,null,null,null,null,null,null,null,null,null,null,{"$f":"IFERROR(INDEX(Lookup!$E$70:$E$90,MATCH(AO201,Lookup!$A$70:$A$90,0)),\"\")","v":""},null,null,null,null,null,null,null,null,null,null,null,null,null,null,{"$f":"IFERROR(IF(AO201=\"Sidewalk/Trail Compost-Amended Strip\",IF(AND(AC205=\"\",H203<>\"\"),\"\",\"along full \"& ROUND(V201/H203,0) &\" ft trail/sidewalk\"),\"\"),\"\")","v":""},null,null,null,null,null,null,null,null,null,null,null,{"$f":"TRIM(SUBSTITUTE(SUBSTITUTE(SUBSTITUTE(AO201,\" \",\"\"),\"-\",\"\"),\"/\",\"\")&\"List3\")","v":{"$error":"#N/A"}}]

{"sheet":"Infeasibility Criteria","index":10,"n_rows":329,"n_cols":3,"rows_kept":329,"cut":false,"hidden":false,"merged":[[0,0,0,3]]}
["On-site Stormwater Management Calculator"]
[null,null,"Infeasibility Criteria"]
[{"$f":"Version","v":"Version 01-04-2023"}]
[]
["Infeasibility Criteria"]
[null,"Full Dispersion"]
[null,1,"Installation requires removal of an existing tree. "]
[null,2,"Installation is prohibited per Regulations for Environmentally Critical Areas (SMC Chapter 25.09)."]
[null,3,"Installation would require pumping to a designated point of discharge, but failure of the pump may destabilize a steep slope."]
[null,4,"Unable to maintain a desired access of 36 inches in a required building setback from a property line. "]
[null,5,"Unable to maintain clearance for required ingress, egress, or ADA pathways."]
[null,6,"Installation would require a pump when a pump is not already required to provide site storm drainage."]
[null,7,"A licensed professional recommends dispersion not be used anywhere within project site due to reasonable concerns of erosion, slope failure, or flooding."]
[null,8,"The dispersion flow path area does not provide positive drainage."]
[null,9,"The dispersion flowpath area is within a landslide-prone area (SMC, Section 25.09.080)."]
[null,10,"The dispersion flowpath area is within 100 feet of a contaminated site or landfill (active or closed)."]
[null,11,"The dispersion flowpath area is in a steep slope area (SMC, Section 25.09.020) or within a setback to a steep slope area (calculated as 10 times the height of the steep slope to a 500 foot maximum setback)."]
[null,12,"The dispersion flowpath area is within 10 feet of a proposed or existing septic system or drainfield. "]
[null,13,"The site has less than a 65 to 10 ratio of the native vegetation area to the impervious area."]
[null,14,"The minimum native vegetation flowpath length is less than 100 feet."]
[null,"Infiltration Trench"]
[null,1,"Installation requires removal of an existing tree. "]
[null,2,"Where BMP installation is prohibited per Regulations for Environmentally Critical Areas (SMC Chapter 25.09)."]
[null,3,"Installation would require pumping to a designated point of discharge, but failure of the pump may destabilize a steep slope."]
[null,4,"Installation would require a pump when a pump is not already required to provide site storm drainage."]
[null,5,"Infiltration is not recommended due to reasonable concerns about erosion, slope failure, or flooding."]
[null,6,"The area available for siting would threaten the safety or reliability of pre-existing underground utilities, pre-existing underground storage tanks, pre-existing structures, or pre-existing road or parking lot surfaces or subgrades."]
[null,7,"The area available for siting would threaten shoreline structures such as bulkheads."]
[null,8,"Evaluation of infiltration is not required per the “Infiltration Investigation Map”."]
[null,9,"The area available for siting does not allow for overflow conveyance to an approved point of discharge per Volume 3, Section 4.3.2."]
[null,10,"The area available for siting is within a steep slope area or land-slide prone area (or setback) (refer to Volume 3, Section 3.2)."]
[null,11,"The area available for siting does not meet the minimum horizontal setback requirements (refer to Volume 3, Section 3.2)."]
[null,12,"The area available for siting does not meet the minimum vertical setback requirements (refer to Volume 3, Section 3.2, and Appendix D)."]
[null,13,"Infiltration is restricted due to contaminated soil or groundwater (refer to Volume 3, Section 3.2)."]
[null,14,"Field testing indicates potential infiltration trench site(s) have a measured underlying soil infiltration rate less than 5 inches per hour (Volume 3, Section 5.4.2)."]
[null,15,"Where the site cannot be reasonably designed to locate a catch basin between the infiltration trench and point of connection to the public system."]
[null,"Drywell"]
[null,1,"Installation requires removal of an existing tree. "]
[null,2,"Where BMP installation is prohibited per Regulations for Environmentally Critical Areas (SMC Chapter 25.09)."]
[null,3,"Installation would require pumping to a designated point of discharge, but failure of the pump may destabilize a steep slope."]
[null,4,"Installation would require a pump when a pump is not already required to provide site storm drainage."]
[null,5,"Infiltration is not recommended due to reasonable concerns about erosion, slope failure, or flooding."]
[null,6,"The area available for siting would threaten the safety or reliability of pre-existing underground utilities, pre-existing underground storage tanks, pre-existing structures, or pre-existing road or parking lot surfaces or subgrades."]
[null,7,"The area available for siting would threaten shoreline structures such as bulkheads."]
[null,8,"Evaluation of infiltration is not required per the “Infiltration Investigation Map”."]
[null,9,"The area available for siting does not allow for overflow conveyance to an approved point of discharge per Volume 3, Section 4.3.2."]
[null,10,"The area available for siting is within a steep slope area or land-slide prone area (or setback) (refer to Volume 3, Section 3.2)."]
[null,11,"The area available for siting does not meet the minimum horizontal setback requirements (refer to Volume 3, Section 3.2)."]
[null,12,"The area available for siting does not meet the minimum vertical setback requirements (refer to Volume 3, Section 3.2, and Appendix D)."]
[null,13,"Infiltration is restricted due to contaminated soil or groundwater (refer to Volume 3, Section 3.2)."]
[null,14,"Field testing indicates potential drywell site(s) have a measured underlying soil infiltration rate less than 5 inches per hour (Volume 3, Section 5.4.3)."]
[null,15,"Where the site cannot be reasonably designed to locate a catch basin between the drywell and point of connection to the public system."]
[null,"Rain Garden"]
[null,1,"Installation requires removal of an existing tree. "]
[null,2,"Where BMP installation is prohibited per Regulations for Environmentally Critical Areas (SMC Chapter 25.09)."]
[null,3,"Installation would require pumping to a designated point of discharge, but failure of the pump may destabilize a steep slope."]
[null,4,"Unable to maintain a desired access of 36 inches in a required building setback from a property line. "]
[null,5,"Unable to maintain clearance for required ingress, egress, or ADA pathways."]
[null,6,"Installation would require a pump when a pump is not already required to provide site storm drainage."]
[null,7,"Infiltration is not recommended due to reasonable concerns about erosion, slope failure, or flooding."]
[null,8,"The area available for siting would threaten the safety or reliability of pre-existing underground utilities, pre-existing underground storage tanks, pre-existing structures, or pre-existing road or parking lot surfaces or subgrades."]
[null,9,"The area available for siting would threaten shoreline structures such as bulkheads."]
[null,10,"Evaluation of infiltration is not required per the “Infiltration Investigation Map”."]
[null,11,"The area available for siting does not allow for overflow conveyance to an approved point of discharge per Volume 3, Section 4.3.2."]
[null,12,"The area available for siting is within a steep slope area or land-slide prone area (or setback) (refer to Volume 3, Section 3.2)."]
[null,13,"The area available for siting does not meet the minimum horizontal setback requirements (refer to Volume 3, Section 3.2)."]
[null,14,"The area available for siting does not meet the minimum vertical setback requirements (refer to Volume 3, Section 3.2, and Appendix D)."]
[null,15,"Infiltration is restricted due to contaminated soil or groundwater (refer to Volume 3, Section 3.2)."]
[null,16,"In the right-of-way, the longitudinal road slope exceeds 4 percent."]
[null,17,"The rain garden would have a linear geometry with a longitudinal slope greater than 8 percent."]
[null,18,"The minimum bottom width of the rain garden (12-inch average) cannot be met due to, but not limited to: encroachment within the critical root zone of an existing tree(s) or minimum setbacks to structures, utilities, or property lines."]
[null,19,"The infiltration area is within the minimum vertical or horizontal clearance from utilities, according to clearances required by the utility owner."]
[null,20,"For projects in the right-of-way, the total rain garden top area would be less than 500 square feet and the project discharges to: A designated receiving water body or, A combined system, or A capacity constrained system which does not drain to a creek wetland or small lake."]
[null,21,"Field testing indicates soils have a measured underlying soil infiltration rate less than 0.3 inches per hour. "]
[null,"Infiltrating Bioretention"]
[null,1,"Installation requires removal of an existing tree. "]
[null,2,"Where BMP installation is prohibited per Regulations for Environmentally Critical Areas (SMC Chapter 25.09)."]
[null,3,"Installation would require pumping to a designated point of discharge, but failure of the pump may destabilize a steep slope."]
[null,4,"Unable to maintain a desired access of 36 inches in a required building setback from a property line. "]
[null,5,"Unable to maintain clearance for required ingress, egress, or ADA pathways."]
[null,6,"Installation would require a pump when a pump is not already required to provide site storm drainage."]
[null,7,"Infiltration is not recommended due to reasonable concerns about erosion, slope failure, or flooding."]
[null,8,"The area available for siting would threaten the safety or reliability of pre-existing underground utilities, pre-existing underground storage tanks, pre-existing structures, or pre-existing road or parking lot surfaces or subgrades."]
[null,9,"The area available for siting would threaten shoreline structures such as bulkheads."]
[null,10,"Evaluation of infiltration is not required per the “Infiltration Investigation Map”."]
[null,11,"The area available for siting does not allow for overflow conveyance to an approved point of discharge per Volume 3, Section 4.3.2."]
[null,12,"The area available for siting is within a steep slope area or land-slide prone area (or setback) (refer to Volume 3, Section 3.2)."]
[null,13,"The area available for siting does not meet the minimum horizontal setback requirements (refer to Volume 3, Section 3.2)."]
[null,14,"The area available for siting does not meet the minimum vertical setback requirements (refer to Volume 3, Section 3.2, and Appendix D)."]
[null,15,"Infiltration is restricted due to contaminated soil or groundwater (refer to Volume 3, Section 3.2)."]
[null,16,"The infiltrating bioretention facility would have a linear geometry with a longitudinal slope greater than 8 percent."]
[null,17,"The minimum bottom width of the infiltrating bioretention facility (2 feet for facilities with vertical sides and 18 inch average for facilities with sloped sides) cannot be met due to, but not limited to: encroachment within the critical root zone of an existing tree(s) or minimum setbacks to structures, utilities, or property lines."]
[null,18,"The infiltration area is within the minimum vertical and horizontal clearance from utilities, according to clearances required by the utility owner."]
[null,19,"Field testing indicates soils have a measured underlying soil infiltration rate less than 0.3 inches per hour."]
[null,20,"Field testing indicates soils have a measured underlying soil infiltration rate less than 0.6 inches per hour and an underdrain cannot be installed per the design criteria."]
[null,21,"The facility with an underdrain would route underdrained water to a nutrient-critical receiving water."]
[null,22,"In the right-of-way, installation requires a vertical walled facility. "]
[null,"Rainwater Harvesting"]
[null,1,"Installation requires removal of an existing tree. "]
[null,2,"Installation is prohibited per Regulations for Environmentally Critical Areas (SMC Chapter 25.09)."]
[null,3,"Installation would require pumping to a designated point of discharge, but failure of the pump may destabilize a steep slope."]
[null,4,"Unable to maintain a desired access of 36 inches in a required building setback from a property line. "]
[null,5,"Unable to maintain clearance for required ingress, egress, or ADA pathways."]
[null,6,"Installation would require a pump when a pump is not already required to provide site storm drainage. (Requiring a pump as the result of using the Rainwater Harvesting BMP does not make this BMP infeasible.)"]
[null,7,"Project lacks non-pollution-generating roof from which to harvest rainwater."]
[null,8,"Non-potable water demand is insufficient to meet the On-site Performance Standard per modeling conducted in accordance with Volume 3, Section 5.5.1.6."]
[null,9,"Installation is not economically feasible based on reasonable consideration of financial cost (e.g., roof area is less than 20,000 sf or the ratio of roof area to average daily rainwater demand is less than 10,000 square feet/gpm) (refer to Appendix H). Documentation is required. "]
[null,"Permeable Pavement Facility"]
[null,1,"Installation requires removal of an existing tree. "]
[null,2,"Where BMP installation is prohibited per Regulations for Environmentally Critical Areas (SMC Chapter 25.09)."]
[null,3,"Installation would require pumping to a designated point of discharge, but failure of the pump may destabilize a steep slope."]
[null,4,"Installation would require a pump when a pump is not already required to provide site storm drainage."]
[null,5,"Infiltration is not recommended due to reasonable concerns about erosion, slope failure, or flooding."]
[null,6,"The area available for siting would threaten the safety or reliability of pre-existing underground utilities, pre-existing underground storage tanks, pre-existing structures, or pre-existing road or parking lot surfaces or subgrades."]
[null,7,"The area available for siting would threaten shoreline structures such as bulkheads."]
[null,8,"Evaluation of infiltration is not required per the “Infiltration Investigation Map”."]
[null,9,"The area available for siting does not allow for overflow conveyance to an approved point of discharge per Volume 3, Section 4.3.2."]
[null,10,"The area available for siting is within a steep slope area or land-slide prone area (or setback) (refer to Volume 3, Section 3.2)."]
[null,11,"The area available for siting does not meet the minimum horizontal setback requirements (refer to Volume 3, Section 3.2)."]
[null,12,"The area available for siting does not meet the minimum vertical setback requirements (refer to Volume 3, Section 3.2, and Appendix D)."]
[null,13,"Infiltration is restricted due to contaminated soil or groundwater (refer to Volume 3, Section 3.2)."]
[null,14,"Infiltrating or ponding water below pavement area would compromise adjacent pavements."]
[null,15,"Fill soils are used that can become unstable when saturated."]
[null,16,"The permeable pavement design does not provide sufficient strength to support heavy loads in areas with “industrial activity” as identified in 40 CFR 122.26(b)(14)."]
[null,17,"The subgrade slope exceeds 6 percent after reasonable efforts to grade."]
[null,18,"The permeable pavement wearing course slope exceeds 6 percent after reasonable efforts to grade."]
[null,19,"For projects in the right-of-way, the permeable pavement surface area would be less than 2,000 square feet of contiguous pavement and the project discharges to: a designated receiving water body,  a combined system, or a capacity constrained system which does not drain to a creek wetland or small lake."]
[null,20,"The anticipated mature tree spread (based on tree species) would overhang more than 50 percent of permeable pavement area."]
[null,21,"The pavement is over a structure, such as, but not limited to: parking garages, box culverts, and bridges."]
[null,22,"The pavement is subject to long-term excessive sediment deposition (e.g., construction and landscaping material yards)."]
[null,23,"Underlying soils are unsuitable for supporting traffic loads when saturated (e.g., a residential access road has a California Bearing Ratio of 5 percent or less)."]
[null,24,"Field testing indicates soils have a measured underlying soil infiltration rate less than 0.3 inches per hour."]
[null,25,"Pavement is replacing an existing pollution-generating hard surface in the right-of-way."]
[null,26,"The street type is classified as arterial or collector rather than local access. Refer to RCW 35.78.010, RCW 36.86.070, and RCW 47.05.021. Note: This infeasibility criterion does not extend to sidewalks and other non-traffic bearing surfaces associated with the collector or arterial."]
[null,27,"Streets that receive more than very low traffic volumes, and areas having more than very low truck traffic. Streets with a projected average daily traffic volume of 400 vehicles or less are very low volume roads (AASHTO, 2001)(U.S. Dept. of Transportation, 2013). Areas with very low truck traffic volumes are streets and other areas not subject to through truck traffic but may receive up to weekly use by utility trucks (e.g., garbage, recycling), daily school bus use, and multiple daily use by pick-up trucks, mail/parcel delivery trucks, and maintenance vehicles. Note: This infeasibility criterion does not extend to sidewalks and other non-traffic bearing surfaces."]
[null,28,"The pavement area is defined as a “high use site” in SMC, Section 22.801.090."]
[null,29,"In areas with “industrial activity” as identified in 40 CFR 122.26(b)(14)."]
[null,30,"Where the risk of concentrated pollutant spills is more likely, including, but not limited to, gas stations, truck stops, and industrial chemical storage sites."]
[null,31,"In areas where routine, heavy roadway applications of sand occur in frequent snow zones to maintain traction during weeks of snow and ice accumulation, including sidewalks within 7 feet of roadways with sand application."]
[null,32,"Where runon from unstabilized erodible areas would occur without presettling."]
[null,33,"The areas contributing runoff to the permeable pavement facilities exceed the maximum run-on limits: Pollution-generating impervious surfaces (e.g., roadways, parking lots) exceed the maximum run-on area ratio of 2:1, Non-pollution generating impervious surfaces (e.g., roofs, sidewalks) and stabilized pervious surfaces exceed the maximum run-on area ratio of 5:1"]
[null,34,"The Director has determined that permeable pavement in active zones of a skate park, bike park, or sport court violates safety standards."]
[null,"Permeable Pavement Surface"]
[null,1,"Installation requires removal of an existing tree. "]
[null,2,"Where BMP installation is prohibited per Regulations for Environmentally Critical Areas (SMC Chapter 25.09)."]
[null,3,"Installation would require pumping to a designated point of discharge, but failure of the pump may destabilize a steep slope."]
[null,4,"Unable to maintain a desired access of 36 inches in a required building setback from a property line. "]
[null,5,"Unable to maintain clearance for required ingress, egress, or ADA pathways."]
[null,6,"Installation would require a pump when a pump is not already required to provide site storm drainage."]
[null,7,"Infiltrating or ponding water below pavement area would compromise adjacent pavements."]
[null,8,"Fill soils are used that can become unstable when saturated."]
[null,9,"The permeable pavement design does not provide sufficient strength to support heavy loads in areas with “industrial activity” as identified in 40 CFR 122.26(b)(14)."]
[null,10,"The subgrade slope exceeds 6 percent after reasonable efforts to grade."]
[null,11,"The permeable pavement wearing course slope exceeds 6 percent after reasonable efforts to grade."]
[null,12,"For projects in the right-of-way, the permeable pavement surface area would be less than 2,000 square feet of contiguous pavement and the project discharges to: a designated receiving water body,  a combined system, or a capacity constrained system which does not drain to a creek wetland or small lake."]
[null,13,"The anticipated mature tree spread (based on tree species) would overhang more than 50 percent of permeable pavement area."]
[null,14,"The pavement is over a structure, such as, but not limited to: parking garages, box culverts, and bridges."]
[null,15,"The pavement is subject to long-term excessive sediment deposition (e.g., construction and landscaping material yards)."]
[null,16,"Underlying soils are unsuitable for supporting traffic loads when saturated (e.g., a residential access road has a California Bearing Ratio of 5 percent or less)."]
[null,17,"Field testing indicates soils have a measured underlying soil infiltration rate less than 0.3 inches per hour."]
[null,18,"Pavement is replacing an existing pollution-generating hard surface in the right-of-way."]
[null,19,"The street type is classified as arterial or collector rather than local access. Refer to RCW 35.78.010, RCW 36.86.070, and RCW 47.05.021. Note: This infeasibility criterion does not extend to sidewalks and other non-traffic bearing surfaces associated with the collector or arterial."]
[null,20,"Streets that receive more than very low traffic volumes, and areas having more than very low truck traffic. Streets with a projected average daily traffic volume of 400 vehicles or less are very low volume roads (AASHTO, 2001)(U.S. Dept. of Transportation, 2013). Areas with very low truck traffic volumes are streets and other areas not subject to through truck traffic but may receive up to weekly use by utility trucks (e.g., garbage, recycling), daily school bus use, and multiple daily use by pick-up trucks, mail/parcel delivery trucks, and maintenance vehicles. Note: This infeasibility criterion does not extend to sidewalks and other non-traffic bearing surfaces."]
[null,21,"The pavement area is defined as a “high use site” in SMC, Section 22.801.090."]
[null,22,"In areas with “industrial activity” as identified in 40 CFR 122.26(b)(14)."]
[null,23,"Where the risk of concentrated pollutant spills is more likely, including, but not limited to, gas stations, truck stops, and industrial chemical storage sites."]
[null,24,"In areas where routine, heavy roadway applications of sand occur in frequent snow zones to maintain traction during weeks of snow and ice accumulation, including sidewalks within 7 feet of roadways with sand application."]
[null,25,"Where runon from unstabilized erodible areas would occur without presettling."]
[null,26,"Field testing indicates soils have a measured underlying soil infiltration rate less than 0.3 inches per hour (Note: field infiltration tests are not required for permeable pavement surfaces, but must be used to demonstrate infeasibility)."]
[null,27,"The site is a contaminated site or abandoned landfill."]
[null,28,"Installation is within 10 feet of a petroleum, chemical, or liquid hazardous waste storage tank or connecting underground pipes."]
[null,29,"Run-on from an adjacent impervious area is greater than 10 percent of the permeable pavement surface area."]
[null,30,"A licensed professional (as defined in Appendix D, Section D-1) recommends permeable pavement not be used anywhere within the project site due to reasonable concerns of erosion, slope failure, or flooding (requires a signed and stamped written determination based on site-specific conditions from a licensed professional)."]
[null,31,"The Director has determined that permeable pavement in active zones of a skate park, bike park, or sport court violates safety standards."]
[null,32,"Subsurface investigation demonstrate groundwater or hydraulically-restrictive layer is too shallow per the Minimum Vertical Separation table."]
[null,"Sidewalk/Trail Compost-Amended Strip"]
[null,1,"Installation requires removal of an existing tree. "]
[null,2,"Installation is prohibited per Regulations for Environmentally Critical Areas (SMC Chapter 25.09)."]
[null,3,"Installation would require pumping to a designated point of discharge, but failure of the pump may destabilize a steep slope."]
[null,4,"Unable to maintain a desired access of 36 inches in a required building setback from a property line. "]
[null,5,"Unable to maintain clearance for required ingress, egress, or ADA pathways."]
[null,6,"Installation would require a pump when a pump is not already required to provide site storm drainage."]
[null,7,"A licensed professional recommends dispersion not be used anywhere within project site due to reasonable concerns of erosion, slope failure, or flooding."]
[null,8,"The dispersion flow path area does not provide positive drainage."]
[null,9,"The dispersion flowpath area is within a landslide-prone area (SMC, Section 25.09.080)."]
[null,10,"The dispersion flowpath area is within 100 feet of a contaminated site or landfill (active or closed)."]
[null,11,"The dispersion flowpath area is in a steep slope area (SMC, Section 25.09.020) or within a setback to a steep slope area (calculated as 10 times the height of the steep slope to a 500 foot maximum setback)."]
[null,12,"The dispersion flowpath area is within 10 feet of a proposed or existing septic system or drainfield. "]
[null,13,"Infiltration is not recommended due to reasonable concerns about erosion, slope failure, or flooding."]
[null,14,"The area available for siting would threaten the safety or reliability of pre-existing underground utilities, pre-existing underground storage tanks, pre-existing structures, or pre-existing road or parking lot surfaces or subgrades."]
[null,15,"The area available for siting would threaten shoreline structures such as bulkheads."]
[null,16,"Evaluation of infiltration is not required per the “Infiltration Investigation Map”."]
[null,17,"The area available for siting does not allow for overflow conveyance to an approved point of discharge per Volume 3, Section 4.3.2."]
[null,18,"The area available for siting is within a steep slope area or land-slide prone area (or setback) (refer to Volume 3, Section 3.2)."]
[null,19,"The area available for siting does not meet the minimum horizontal setback requirements (refer to Volume 3, Section 3.2)."]
[null,20,"The area available for siting does not meet the minimum vertical setback requirements (refer to Volume 3, Section 3.2, and Appendix D)."]
[null,21,"Infiltration is restricted due to contaminated soil or groundwater (refer to Volume 3, Section 3.2)."]
[null,22,"The flowpath downstream of the Sidewalk/Trail Compost-Amended Strip is within 10 feet of a proposed or existing septic system or drainfield, as measured from the toe of the Sidewalk/Trail Compost-Amended Strip slope."]
[null,23,"The sidewalk or trail to be dispersed exceeds a lateral slope of 5 percent or a longitudinal slope of 8 percent."]
[null,24,"The sidewalk or trail to be dispersed has a lateral slope of less than 1 percent."]
[null,25,"Field testing indicates underlying soils have a design soil infiltration rate less than 0.15 inch per hour. Note that field infiltration tests are not required for Sidewalk/Trail Compost-Amended Strip, but must be used to demonstrate infeasibility."]
[null,26,"The minimum Sidewalk/Trail Compost-Amended Strip design criteria cannot be met."]
[null,"Sheet Flow Dispersion"]
[null,1,"Installation requires removal of an existing tree. "]
[null,2,"Where BMP installation is prohibited per Regulations for Environmentally Critical Areas (SMC Chapter 25.09)."]
[null,3,"Installation would require pumping to a designated point of discharge, but failure of the pump may destabilize a steep slope."]
[null,4,"Unable to maintain a desired access of 36 inches in a required building setback from a property line. "]
[null,5,"Unable to maintain clearance for required ingress, egress, or ADA pathways."]
[null,6,"Installation would require a pump when a pump is not already required to provide site storm drainage."]
[null,7,"A licensed professional recommends dispersion not be used anywhere within project site due to reasonable concerns of erosion, slope failure, or flooding."]
[null,8,"The dispersion flow path area does not provide positive drainage."]
[null,9,"The dispersion flowpath area is within a landslide-prone area (SMC, Section 25.09.080)."]
[null,10,"The dispersion flowpath area is within 100 feet of a contaminated site or landfill (active or closed)."]
[null,11,"The dispersion flowpath area is in a steep slope area (SMC, Section 25.09.020) or within a setback to a steep slope area (calculated as 10 times the height of the steep slope to a 500 foot maximum setback)."]
[null,12,"The dispersion flowpath area is within 10 feet of a proposed or existing septic system or drainfield. "]
[null,13,"The area to be dispersed (e.g., driveway, patio) exceeds a slope of 15 percent."]
[null,14,"The minimum vegetated flow path for sheet flow dispersion cannot be met. Note: A 10 foot flowpath is required to disperse runoff from a contributing flow length of up to 20 feet. An additional 10 feet of flow path is required for each additional 20 feet of contributing flow path or fraction thereof. Refer to Volume 3, Figure 5.5."]
[null,15,"The flowpath does not meet the minimum horizontal setback requirements to property lines, structures and other flowpaths (refer to Volume 3, Section 5.3.5)."]
[null,"Concentrated Dispersion"]
[null,1,"Installation requires removal of an existing tree. "]
[null,2,"Where BMP installation is prohibited per Regulations for Environmentally Critical Areas (SMC Chapter 25.09)."]
[null,3,"Installation would require pumping to a designated point of discharge, but failure of the pump may destabilize a steep slope."]
[null,4,"Unable to maintain a desired access of 36 inches in a required building setback from a property line. "]
[null,5,"Unable to maintain clearance for required ingress, egress, or ADA pathways."]
[null,6,"Installation would require a pump when a pump is not already required to provide site storm drainage."]
[null,7,"A licensed professional recommends dispersion not be used anywhere within project site due to reasonable concerns of erosion, slope failure, or flooding."]
[null,8,"The dispersion flow path area does not provide positive drainage."]
[null,9,"The dispersion flowpath area is within a landslide-prone area (SMC, Section 25.09.080)."]
[null,10,"The dispersion flowpath area is within 100 feet of a contaminated site or landfill (active or closed)."]
[null,11,"The dispersion flowpath area is in a steep slope area (SMC, Section 25.09.020) or within a setback to a steep slope area (calculated as 10 times the height of the steep slope to a 500 foot maximum setback)."]
[null,12,"The dispersion flowpath area is within 10 feet of a proposed or existing septic system or drainfield. "]
[null,13,"There are no concentrated flows to disperse."]
[null,14,"The minimum dispersion trench length of 10 feet cannot be met."]
[null,15,"The vegetated flow path for the dispersion trench is less than 25 feet"]
[null,16,"The vegetated flow path for a rock pad is less than 50 feet."]
[null,17,"Greater than 700 square feet of surface area drains to the BMP."]
[null,18,"The flowpath does not meet the minimum horizontal setback requirements to property lines, structures and other flowpaths (refer to Volume 3, Section 5.3.6)."]
[null,"Splashblock Downspout Dispersion"]
[null,1,"Installation requires removal of an existing tree. "]
[null,2,"Where BMP installation is prohibited per Regulations for Environmentally Critical Areas (SMC Chapter 25.09)."]
[null,3,"Installation would require pumping to a designated point of discharge, but failure of the pump may destabilize a steep slope."]
[null,4,"Unable to maintain a desired access of 36 inches in a required building setback from a property line. "]
[null,5,"Unable to maintain clearance for required ingress, egress, or ADA pathways."]
[null,6,"Installation would require a pump when a pump is not already required to provide site storm drainage."]
[null,7,"A licensed professional recommends dispersion not be used anywhere within project site due to reasonable concerns of erosion, slope failure, or flooding."]
[null,8,"The dispersion flow path area does not provide positive drainage."]
[null,9,"The dispersion flowpath area is within a landslide-prone area (SMC, Section 25.09.080)."]
[null,10,"The dispersion flowpath area is within 100 feet of a contaminated site or landfill (active or closed)."]
[null,11,"The dispersion flowpath area is in a steep slope area (SMC, Section 25.09.020) or within a setback to a steep slope area (calculated as 10 times the height of the steep slope to a 500 foot maximum setback)."]
[null,12,"The dispersion flowpath area is within 10 feet of a proposed or existing septic system or drainfield. "]
[null,13,"There are no downspouts."]
[null,14,"The vegetated flowpath is less than 50 feet."]
[null,15,"Greater than 700 square feet of surface area drains to the BMP."]
[null,16,"The flowpath does not meet the minimum horizontal setback requirements to property lines, structures and other flowpaths (refer to Volume 3, Section 5.3.3). "]
[null,"Trench Downspout Dispersion"]
[null,1,"Installation requires removal of an existing tree. "]
[null,2,"Where BMP installation is prohibited per Regulations for Environmentally Critical Areas (SMC Chapter 25.09)."]
[null,3,"Installation would require pumping to a designated point of discharge, but failure of the pump may destabilize a steep slope."]
[null,4,"Unable to maintain a desired access of 36 inches in a required building setback from a property line. "]
[null,5,"Unable to maintain clearance for required ingress, egress, or ADA pathways."]
[null,6,"Installation would require a pump when a pump is not already required to provide site storm drainage."]
[null,7,"A licensed professional recommends dispersion not be used anywhere within project site due to reasonable concerns of erosion, slope failure, or flooding."]
[null,8,"The dispersion flow path area does not provide positive drainage."]
[null,9,"The dispersion flowpath area is within a landslide-prone area (SMC, Section 25.09.080)."]
[null,10,"The dispersion flowpath area is within 100 feet of a contaminated site or landfill (active or closed)."]
[null,11,"The dispersion flowpath area is in a steep slope area (SMC, Section 25.09.020) or within a setback to a steep slope area (calculated as 10 times the height of the steep slope to a 500 foot maximum setback)."]
[null,12,"The dispersion flowpath area is within 10 feet of a proposed or existing septic system or drainfield. "]
[null,13,"There are no downspouts."]
[null,14,"The minimum dispersion trench length of 10 feet for every 700 square feet of drainage area cannot be met."]
[null,15,"The vegetated flowpath is less than 25 feet."]
[null,16,"The flowpath is within the setbacks to property lines, structures and other flowpaths (refer to Volume 3, Section 5.3.4)."]
[null,"Non-infiltrating Bioretention"]
[null,1,"Installation requires removal of an existing tree. "]
[null,2,"Where BMP installation is prohibited per Regulations for Environmentally Critical Areas (SMC Chapter 25.09)."]
[null,3,"Installation would require pumping to a designated point of discharge, but failure of the pump may destabilize a steep slope."]
[null,4,"Unable to maintain a desired access of 36 inches in a required building setback from a property line. "]
[null,5,"Unable to maintain clearance for required ingress, egress, or ADA pathways."]
[null,6,"Installation would require a pump when a pump is not already required to provide site storm drainage."]
[null,7,"The minimum bottom width of the non-infiltrating bioretention facility (2 feet) cannot be met due to, but not limited to: encroachment within the critical root zone of an existing tree(s), minimum setbacks to structures / utilities, or project limits/planting strip too small."]
[null,8,"Minimum vertical and horizontal clearances from utilities are unachievable as required by utility owner."]
[null,9,"The facility would route underdrained water to a nutrient-critical receiving water. "]
[null,10,"The area available for siting is within a setback equal to the height of the slope to a maximum of 50 feet from the top of steep slope and known landslide area."]
[null,11,"The BMP would be located on a structure or roof that cannot provide sufficient structural support for the BMP. "]
[null,12,"Less than 1 foot between the liner and seasonal high groundwater elevation."]
[null,"Vegetated Roof"]
[null,1,"Installation requires removal of an existing tree. "]
[null,2,"Where BMP installation is prohibited per Regulations for Environmentally Critical Areas (SMC Chapter 25.09)."]
[null,3,"Installation would require pumping to a designated point of discharge, but failure of the pump may destabilize a steep slope."]
[null,4,"Unable to maintain a desired access of 36 inches in a required building setback from a property line. "]
[null,5,"Unable to maintain clearance for required ingress, egress, or ADA pathways."]
[null,6,"Installation would require a pump when a pump is not already required to provide site storm drainage."]
[null,7,"Project does not include a roof."]
[null,8,"Roof design has a slope less than 1 degree (0.2:12) or greater than 10 degrees (2:12)."]
[null,9,"Installation is not economically feasible based on reasonable consideration of financial cost (refer to Appendix H). Documentation is required."]
[null,10,"This portion of the roof is an amenity area subject to pedestrian use (e.g. balcony, patio, walkway, pet runs, etc.)."]
[null,11,"The portion of the roof is required for HVAC equipment and/or maintenance access ways (e.g., window washing, HVAC maintenance, etc.)."]
[null,12,"This portion of the roof is completely covered with Solar Panels."]
[null,"Perforated Stub-out Connection"]
[null,1,"Installation requires removal of an existing tree. "]
[null,2,"Where BMP installation is prohibited per Regulations for Environmentally Critical Areas (SMC Chapter 25.09)."]
[null,3,"Installation would require pumping to a designated point of discharge, but failure of the pump may destabilize a steep slope."]
[null,4,"Installation would require a pump when a pump is not already required to provide site storm drainage."]
[null,5,"Infiltration is not recommended due to reasonable concerns about erosion, slope failure, or flooding."]
[null,6,"The area available for siting would threaten the safety or reliability of pre-existing underground utilities, pre-existing underground storage tanks, pre-existing structures, or pre-existing road or parking lot surfaces or subgrades."]
[null,7,"The area available for siting would threaten shoreline structures such as bulkheads."]
[null,8,"Evaluation of infiltration is not required per the “Infiltration Investigation Map”."]
[null,9,"The area available for siting does not allow for overflow conveyance to an approved point of discharge per Volume 3, Section 4.3.2."]
[null,10,"The area available for siting is within a steep slope area or land-slide prone area (or setback) (refer to Volume 3, Section 3.2)."]
[null,11,"The area available for siting does not meet the minimum horizontal setback requirements (refer to Volume 3, Section 3.2)."]
[null,12,"The area available for siting does not meet the minimum vertical setback requirements (refer to Volume 3, Section 3.2, and Appendix D)."]
[null,13,"Infiltration is restricted due to contaminated soil or groundwater (refer to Volume 3, Section 3.2)."]
[null,14,"The location for the perforated pipe portion of the system is under impervious or heavily compacted (e.g., driveways and parking areas) surfaces."]
[null,15,"The minimum perforated stub-out length of 10 feet per 5,000 square feet of contributing roof area cannot be met."]
[null,16,"Where the site cannot be reasonably designed to locate a catch basin between the perforated stub-out and point of connection to the public system."]
[null,"Trees"]
[null,1,"Installation requires removal of an existing tree. "]
[null,2,"Where BMP installation is prohibited per Regulations for Environmentally Critical Areas (SMC Chapter 25.09)."]
[null,3,"Unable to maintain a desired access of 36 inches in a required building setback from a property line. "]
[null,4,"Unable to maintain clearance for required ingress, egress, or ADA pathways."]
[null,5,"The mature height, size, and/or rooting depth is not compatible with Medium and Large trees listed in the current Seattle Master Tree List."]
[null,"Single Family Residential Cistern"]
[null,1,"Installation requires removal of an existing tree. "]
[null,2,"Where BMP installation is prohibited per Regulations for Environmentally Critical Areas (SMC Chapter 25.09)."]
[null,3,"Installation would require pumping to a designated point of discharge, but failure of the pump may destabilize a steep slope."]
[null,4,"Unable to maintain a desired access of 36 inches in a required building setback from a property line, "]
[null,5,"Unable to maintain clearance for required ingress, egress, or ADA pathways."]
[null,6,"Installation would require a pump when a pump is not already required to provide site storm drainage."]
[null,7,"Project does not include non-pollution generating surfaces."]
[null,8,"The SFR cistern would be within restricted setbacks."]

{"sheet":"MDC Exhibit A","index":11,"n_rows":51,"n_cols":35,"rows_kept":51,"cut":false,"hidden":false,"merged":[[34,24,34,31],[35,24,35,31],[36,24,36,31],[37,24,37,31],[38,24,38,31],[41,24,41,31],[42,24,42,31],[42,1,42,2],[42,4,42,8],[42,9,42,15],[42,16,42,18],[42,20,42,22],[41,1,41,2],[41,4,41,8],[41,9,41,15],[41,16,41,18],[41,20,41,22],[38,1,38,2],[38,4,38,8],[38,9,38,15],[38,16,38,18],[38,20,38,22],[36,16,36,18],[36,20,36,22],[37,1,37,2],[37,4,37,8],[37,9,37,15],[37,16,37,18],[37,20,37,22],[49,24,49,30],[34,1,34,2],[34,4,34,8],[34,9,34,15],[34,16,34,18],[34,20,34,22],[35,1,35,2],[35,4,35,8],[35,9,35,15],[35,16,35,18],[35,20,35,22],[36,1,36,2],[36,4,36,8],[36,9,36,15],[49,1,49,2],[49,4,49,8],[49,9,49,15],[49,16,49,18],[49,20,49,22],[50,24,50,31],[50,1,50,2],[50,4,50,8],[50,9,50,15],[50,16,50,18],[50,20,50,22],[48,24,48,31],[47,1,47,2],[47,4,47,8],[47,9,47,15],[47,16,47,18],[47,20,47,22],[47,24,47,31],[48,1,48,2],[48,4,48,8],[48,9,48,15],[48,16,48,18],[48,20,48,22],[46,24,46,31],[45,1,45,2],[45,4,45,8],[45,9,45,15],[45,16,45,18],[45,20,45,22],[45,24,45,31],[46,1,46,2],[46,4,46,8],[46,9,46,15],[46,16,46,18],[46,20,46,22],[44,24,44,31],[43,1,43,2],[43,4,43,8],[43,9,43,15],[43,16,43,18],[43,20,43,22],[43,24,43,31],[44,1,44,2],[44,4,44,8],[44,9,44,15],[44,16,44,18],[44,20,44,22],[33,24,33,31],[32,1,32,2],[32,4,32,8],[32,9,32,15],[32,16,32,18],[32,20,32,22],[32,24,32,31],[33,1,33,2],[33,4,33,8],[33,9,33,15],[33,16,33,18],[33,20,33,22],[31,24,31,31],[30,1,30,2],[30,4,30,8],[30,9,30,15],[30,16,30,18],[30,20,30,22],[30,24,30,31],[31,1,31,2],[31,4,31,8],[31,9,31,15],[31,16,31,18],[31,20,31,22],[25,1,26,13],[25,14,26,30],[20,1,20,13],[29,1,29,2],[29,4,29,8],[29,9,29,15],[29,16,29,18],[29,20,29,22],[29,24,29,31],[24,14,24,30],[28,9,28,15],[28,16,28,19],[28,20,28,23],[28,24,28,31],[17,14,17,30],[18,14,18,30],[20,14,20,30],[21,14,21,30],[23,1,23,12],[23,14,23,30],[16,14,16,30],[0,0,0,31],[1,0,1,31],[5,14,5,30],[6,14,6,30],[7,14,7,30],[9,17,9,21],[11,17,11,21],[10,17,10,21],[12,17,12,21],[13,17,13,21],[15,14,15,30],[40,9,40,15],[40,16,40,19],[40,20,40,23],[40,24,40,31],[39,1,39,2],[39,4,39,8],[39,9,39,15],[39,16,39,18],[39,20,39,22],[39,24,39,31]]}
["Exhibit A: On-site Stormwater Management Summary Sheet"]
["Attach to the Memorandum of Drainage Control"]
["This information is taken from the Drainage Control Plan approved as part of a building, site work or master use plan."]
[]
["Project Information"]
[null,"Site Address",null,null,null,null,null,null,null,null,null,null,null,null,{"$f":"'Project Summary'!H6","v":0}]
[null,"SDCI Project Number",null,null,null,null,null,null,null,null,null,null,null,null,{"$f":"'Project Summary'!AG6","v":0}]
[null,"Project Type",null,null,null,null,null,null,null,null,null,null,null,null,{"$f":"'Project Summary'!H10","v":0}]
[]
[null,"Total Site Area",null,null,null,null,null,null,null,null,null,null,null,null,null,null,null,{"$f":"'Project Summary'!S20","v":0},null,null,null,null,"sf"]
[null,"Existing Hard Surface Area",null,null,null,null,null,null,null,null,null,null,null,null,null,null,null,{"$f":"'Project Summary'!AK28","v":0},null,null,null,null,"sf"]
[null,"Total New plus Replaced Hard Surface Area",null,null,null,null,null,null,null,null,null,null,null,null,null,null,null,{"$f":"'Project Summary'!S22","v":0},null,null,null,null,"sf"]
[null,"Total New and/or Replaced Lawn and Landscaping",null,null,null,null,null,null,null,null,null,null,null,null,null,null,null,{"$f":"'Project Summary'!S24","v":0},null,null,null,null,"sf"]
[null,"Undisturbed and protected site area",null,null,null,null,null,null,null,null,null,null,null,null,null,null,null,{"$f":"'Project Summary'!S26","v":0},null,null,null,null,"sf"]
["Site Information"]
[null,"Approved Point of Stormwater Discharge",null,null,null,null,null,null,null,null,null,null,null,null,{"$f":"'Project Summary'!Q33","v":0}]
[null,"Drainage Basin",null,null,null,null,null,null,null,null,null,null,null,null,{"$f":"'Project Summary'!Q35","v":0}]
[null,"Approved Point of Wastewater Discharge",null,null,null,null,null,null,null,null,null,null,null,null,{"$f":"SUBSTITUTE('Project Summary'!Q39,\"(King County Public Health Department Approval Required)\",\"\")","v":""}]
[null,"Approved Point of Sub-Surface Discharge",null,null,null,null,null,null,null,null,null,null,null,null,{"$f":"SUBSTITUTE(SUBSTITUTE(SUBSTITUTE(SUBSTITUTE('Project Summary'!Q41,\"“\",\"\"),\"”\",\"\"),\"Public Sanitary\",\"Sanitary\"),\"on the Site\",\"Onsite\")","v":""}]
[null,"Flow Control (See Exibit B if required)"]
[null,"Flow Control is required ",null,null,null,null,null,null,null,null,null,null,null,null,{"$f":"IF('Project Summary'!AS47,\"Yes\",\"No\")","v":"No"}]
[null,"Flow Control Standard(s)",null,null,null,null,null,null,null,null,null,null,null,null,{"$f":"SUBSTITUTE(SUBSTITUTE(IF('Project Summary'!AU35,'Project Summary'!AV35 & \"; \",\"\") &\nIF('Project Summary'!AU37,'Project Summary'!AV37 & \"; \",\"\") &\nIF('Project Summary'!AU39,'Project Summary'!AV39 & \"; \",\"\") &\nIF('Project Summary'!AU41,'Project Summary'!AV41 & \"; \",\"\") &\nIF('Project Summary'!AU43,'Project Summary'!AV43 & \"; \",\"\")&\".\",\"; .\",\"\"),\".\",\"\")","v":""}]
[null,"Water Quality Treatment (See Exhibit C if required)"]
[null,"Water Quality Treatment is required",null,null,null,null,null,null,null,null,null,null,null,null,{"$f":"IF('Project Summary'!AS49,\"Yes\",\"No\")","v":"No"}]
[null,"Water Quality Treatment Standard(s)",null,null,null,null,null,null,null,null,null,null,null,null,{"$f":"SUBSTITUTE(SUBSTITUTE(IF('Project Summary'!AU47,\"Oil Control; \",\"\") &\nIF('Project Summary'!AU49,\"Enhanced; \",\"\") &\nIF('Project Summary'!AU51,\"Basic; \",\"\") &\".\",\"; .\",\"\"),\".\",\"\")","v":""}]
[null,"Structural Source Control is required (See \nExhibit D if required)",null,null,null,null,null,null,null,null,null,null,null,null,{"$f":"'Project Summary'!AK61","v":0}]
[]
["On-site Stormwater Management"]
[null,"Surface",null,null,"Description",null,null,null,null,"On-site BMP",null,null,null,null,null,null,"Contrib. Area (sf)",null,null,null,"Facility \nSize (sf)",null,null,null,"Facility Configuration"]
[null,{"$f":"IF(INDIRECT(\"'Project Summary'!B\"&AI30)=AI30-81,INDIRECT(\"'Project Summary'!B\"&AI30),\"\")","v":""},null,null,{"$f":"IF($B30=$AH30,INDIRECT(\"'Project Summary'!E\"&$AI30),\"\")","v":""},null,null,null,null,{"$f":"IF($B30=$AH30,INDIRECT(\"'Project Summary'!k\"&$AI30),\"\")","v":""},null,null,null,null,null,null,{"$f":"IF($B30=$AH30,INDIRECT(\"'Project Summary'!w\"&$AI30) & \" sf\",\"\")","v":""},null,null,null,{"$f":"IF($B30=$AH30,INDIRECT(\"'Project Summary'!aa\"&$AI30),\"\")","v":""},null,null,null,{"$f":"IF($B30=$AH30,INDIRECT(\"'Project Summary'!ag\"&$AI30),\"\")","v":""},null,null,null,null,null,null,null,null,1,82]
[null,{"$f":"IF(INDIRECT(\"'Project Summary'!B\"&AI31)=AI31-81,INDIRECT(\"'Project Summary'!B\"&AI31),\"\")","v":""},null,null,"",null,null,null,null,"",null,null,null,null,null,null,"",null,null,null,"",null,null,null,"",null,null,null,null,null,null,null,null,2,83]
[null,"",null,null,"",null,null,null,null,"",null,null,null,null,null,null,"",null,null,null,"",null,null,null,"",null,null,null,null,null,null,null,null,3,84]
[null,"",null,null,"",null,null,null,null,"",null,null,null,null,null,null,"",null,null,null,"",null,null,null,"",null,null,null,null,null,null,null,null,4,85]
[null,"",null,null,"",null,null,null,null,"",null,null,null,null,null,null,"",null,null,null,"",null,null,null,"",null,null,null,null,null,null,null,null,5,86]
[null,{"$f":"IF(INDIRECT(\"'Project Summary'!B\"&AI35)=AI35-81,INDIRECT(\"'Project Summary'!B\"&AI35),\"\")","v":""},null,null,"",null,null,null,null,"",null,null,null,null,null,null,"",null,null,null,"",null,null,null,"",null,null,null,null,null,null,null,null,6,87]
[null,{"$f":"IF(INDIRECT(\"'Project Summary'!B\"&AI36)=AI36-81,INDIRECT(\"'Project Summary'!B\"&AI36),\"\")","v":""},null,null,"",null,null,null,null,"",null,null,null,null,null,null,"",null,null,null,"",null,null,null,"",null,null,null,null,null,null,null,null,7,88]
[null,"",null,null,"",null,null,null,null,"",null,null,null,null,null,null,"",null,null,null,"",null,null,null,"",null,null,null,null,null,null,null,null,8,89]
[null,"",null,null,"",null,null,null,null,"",null,null,null,null,null,null,"",null,null,null,"",null,null,null,"",null,null,null,null,null,null,null,null,9,90]
[null,"",null,null,"",null,null,null,null,"",null,null,null,null,null,null,"",null,null,null,"",null,null,null,"",null,null,null,null,null,null,null,null,10,91]
[]
[null,"Surface",null,null,"Description",null,null,null,null,"On-site BMP",null,null,null,null,null,null,"Contrib. Area (sf)",null,null,null,"Facility \nSize (sf)",null,null,null,"Facility Configuration"]
[null,"",null,null,"",null,null,null,null,"",null,null,null,null,null,null,"",null,null,null,"",null,null,null,"",null,null,null,null,null,null,null,null,11,92]
[null,"",null,null,"",null,null,null,null,"",null,null,null,null,null,null,"",null,null,null,"",null,null,null,"",null,null,null,null,null,null,null,null,12,93]
[null,"",null,null,"",null,null,null,null,"",null,null,null,null,null,null,"",null,null,null,"",null,null,null,"",null,null,null,null,null,null,null,null,13,94]
[null,"",null,null,"",null,null,null,null,"",null,null,null,null,null,null,"",null,null,null,"",null,null,null,"",null,null,null,null,null,null,null,null,14,95]
[null,"",null,null,"",null,null,null,null,"",null,null,null,null,null,null,"",null,null,null,"",null,null,null,"",null,null,null,null,null,null,null,null,15,96]
[null,"",null,null,"",null,null,null,null,"",null,null,null,null,null,null,"",null,null,null,"",null,null,null,"",null,null,null,null,null,null,null,null,16,97]
[null,"",null,null,"",null,null,null,null,"",null,null,null,null,null,null,"",null,null,null,"",null,null,null,"",null,null,null,null,null,null,null,null,17,98]
[null,"",null,null,"",null,null,null,null,"",null,null,null,null,null,null,"",null,null,null,"",null,null,null,"",null,null,null,null,null,null,null,null,18,99]
[null,{"$f":"IF(INDIRECT(\"'Project Summary'!B\"&AI50)=AI50-81,INDIRECT(\"'Project Summary'!B\"&AI50),\"\")","v":""},null,null,"",null,null,null,null,"",null,null,null,null,null,null,"",null,null,null,"",null,null,null,"",null,null,null,null,null,null,null,null,19,100]
[null,"",null,null,"",null,null,null,null,"",null,null,null,null,null,null,"",null,null,null,"",null,null,null,"",null,null,null,null,null,null,null,null,20,101]